Workbook

Sheet General
B1: Módulo de Ingreso de Información
B5: Código | C5: 3
B6: Nombre | C6: Prueba 1 | E6: Permisos Ambiental obtenida | F6: NO
B7: Fecha Radicación | C7: 2022-02-08
B8: Hora Radicación | C8: 12:35:00
B9: Capacidad (MW) | C9: 50
B10: Tecnología | C10: Eólico Onshore | E10: Costo Activos de Uso ($COP) | F10: 0
B11: Barra 1 | C11: Chinú | E11: Delta pérdidas (GWh) | F11: 100
B12: Código Asociado | E12: Reducción Marginal VPN ($COP) | F12: 1000000
B13: FPO | C13: 2025-12-31
B14: FPO 2 | C14: 2026-12-31
B15: Obligaciones | C15: NO
B16: Requiere Expansión | C16: NO
B17: Área Eléctrica | C17: Antioquia

Sheet Tablas
B1: Tecnologia | C1: Factor de planta | D1: Iflex | E1: IE-RP | F1: Factor ENFICC | G1: Factor emisiones | H1: Oferta promedio | I1: Comentarios | J1: Area Eléctrica | N1: FPO | P1: Fecha Radicacion | Q1: Hora Radicacion | S1: Gestion Ambiental | U1: Consulta Previa | W1: Permiso Arquelogico
B2: Solar FV | C2: 0.26 | D2: 0 | E2: 0.3190502279 | F2: 0.15 | G2: 0 | H2: 83577.2 | I2: Los parámetros fueron calculados conforme a la metodología presentada en la Circular UPME 057 de 2022. | J2: Altántico | L2: SI | N2: 2023-01-01 | P2: 2022-01-01 | Q2: 00:00:00 | S2: No hay avances | U2: No hay avances | W2: No hay avances
B3: Eólico Onshore | C3: 0.57 | D3: 0 | E3: 0.3190502279 | F3: 0.06 | G3: 0 | H3: 83577.2 | I3: Los parámetros fueron calculados conforme a la metodología presentada en la Circular UPME 057 de 2022. | J3: Bolívar | L3: NO | N3: 2037-12-31 | P3: 2022-03-31 | Q3: 23:59:59 | S3: EIA | U3: Resolución. No Procede | W3: Aprobado
B4: Eólico Offshore | C4: 0.57 | D4: 0 | E4: 0.3190502279 | F4: 0.06 | G4: 0 | H4: 83577.2 | I4: Los parámetros fueron calculados conforme a la metodología presentada en la Circular UPME 057 de 2022. | J4: Córdoba - Sucre, Chinú | S4: LA | U4: Resolución. Si Procede | W4: No Aplica
B5: Biomasa y Residuos | C5: 0.7 | D5: 0.25 | E5: 0.3190502279 | F5: 0.83 | G5: 0.37 | H5: 83577.2 | I5: Los parámetros fueron calculados conforme a la metodología presentada en la Circular UPME 057 de 2022. | J5: Córdoba - Sucre, Cerromatoso | S5: PA | U5: Finalizada
B6: Geotérmica | C6: 0.8 | D6: 0.25 | E6: 0.3190502279 | F6: 0.7 | G6: 0 | H6: 83577.2 | I6: Los parámetros fueron calculados conforme a la metodología presentada en la Circular UPME 057 de 2022. | J6: Guajira - Cesar - Madgalena | S6: No Aplica
B7: PCH | C7: 0.54 | D7: 0.61 | E7: 0.1550930337 | F7: 0.15 | G7: 0 | H7: 158280.5 | I7: Los parámetros fueron calculados conforme a la metodología presentada en la Circular UPME 057 de 2022. | J7: Santander
B8: Termica - Ciclo abierto | C8: 0.85 | D8: 0.4 | E8: -0.5761741581 | F8: 0.83 | G8: 0.95 | H8: 267152.5 | I8: Los parámetros fueron calculados conforme a la metodología presentada en la Circular UPME 057 de 2022. | J8: Norte de Santander
B9: Termica - Ciclo combinado | C9: 0.85 | D9: 0.27 | E9: -0.5761741581 | F9: 0.83 | G9: 0.95 | H9: 267152.5 | I9: Los parámetros fueron calculados conforme a la metodología presentada en la Circular UPME 057 de 2022. | J9: Boyacá - Casanare
B10: Termica a vapor | C10: 0.85 | D10: 0.25 | E10: -0.5761741581 | F10: 0.83 | G10: 0.37 | H10: 267152.5 | I10: Los parámetros fueron calculados conforme a la metodología presentada en la Circular UPME 057 de 2022. | J10: Arauca
B11: Termica - diesel | C11: 0.85 | D11: 0.6 | E11: -4.282826571 | F11: 0.83 | G11: 0.77 | H11: 709472.9 | I11: Los parámetros fueron calculados conforme a la metodología presentada en la Circular UPME 057 de 2022. | J11: Antioquia
B12: Hidraulica | C12: 0.6 | D12: 0.61 | E12: 0.1550930337 | F12: 0.31 | G12: 0 | H12: 158280.5 | I12: Los parámetros fueron calculados conforme a la metodología presentada en la Circular UPME 057 de 2022. | J12: Chocó
B13: Cogeneracion | C13: 0.85 | D13: 0.1 | E13: 0.3190502279 | F13: 0.83 | G13: 0.37 | H13: 83577.2 | I13: Los parámetros fueron calculados conforme a la metodología presentada en la Circular UPME 057 de 2022. | J13: Bogotá
J14: Meta - Guaviare
J15: Caldas - Quidio - Risaralda
J16: Valle
J17: Cauca - Nariño
J18: Tolima - Huila Caquetá
J19: Putumayo

Sheet InfoPro
A1: Código | B1: Nombre | C1: Fecha Radicación | D1: Hora Radicación | E1: Capacidad | F1: Tipo | G1: Barra 1 | H1: Código Asociado | I1: FPO | J1: FPO 2 | K1: Obligaciones | L1: Requiere Expansión | M1: Area Eléctrica | N1: Permisos Ambiental obtenida | O1: Costo Activos de Uso | P1: Pérdidas STN
A2: SC_1323_A1 | B2: GEN ARAUCA | C2: 2022-07-16 | D2: 12:45:00 | E2: 30 | F2: Termica - Ciclo Abierto | G2: Banadia 34,5 kV | H2: SC_1323 | I2: 2023-08-31 | J2: 2023-08-31 | K2: NO | L2: NO | M2: Arauca | N2: NO | O2: 0 | P2: 5.632
A3: SC_1323_A2 | B3: GEN ARAUCA | C3: 2022-07-16 | D3: 12:45:00 | E3: 30 | F3: Termica - Ciclo Abierto | G3: Banadia 115 | H3: SC_1323 | I3: 2023-08-31 | J3: 2023-08-31 | K3: NO | L3: NO | M3: Arauca | N3: NO | O3: 0 | P3: 15.033
A4: SC_1323_A3 | B4: GEN ARAUCA | C4: 2022-07-16 | D4: 12:45:00 | E4: 30 | F4: Termica - Ciclo Abierto | G4: Banadia 220 | H4: SC_1323 | I4: 2023-08-31 | J4: 2023-08-31 | K4: NO | L4: NO | M4: Arauca | N4: NO | O4: 0 | P4: 16.453

Sheet IT-TA
B1: Codigo | C1: Nombre | D1: Capacidad | E1: Licencia Ambiental obtenida | F1: Año de entrada | G1: P | H1: Total | J1: Año de Referencia
B2: =IF(ISBLANK(InfoPro!A2),"",InfoPro!A2) -> SC_1323_A1 | C2: =IF(ISBLANK(InfoPro!B2),"",InfoPro!B2) -> GEN ARAUCA | D2: =IF(ISBLANK(InfoPro!E2),"",InfoPro!E2) -> 30 | E2: =IF(ISBLANK(InfoPro!N2),"",InfoPro!N2) -> NO | F2: =IF(ISBLANK(InfoPro!I2),"",YEAR(InfoPro!I2)-$J$2) -> 0 | G2: =IF(E2="SI",100,IF(E2="NO",0,"")) -> 0 | H2: =IF(G2="","",(G2)) -> 0 | J2: 2023
B3: =IF(ISBLANK(InfoPro!A3),"",InfoPro!A3) -> SC_1323_A2 | C3: =IF(ISBLANK(InfoPro!B3),"",InfoPro!B3) -> GEN ARAUCA | D3: =IF(ISBLANK(InfoPro!E3),"",InfoPro!E3) -> 30 | E3: =IF(ISBLANK(InfoPro!N3),"",InfoPro!N3) -> NO | F3: =IF(ISBLANK(InfoPro!I3),"",YEAR(InfoPro!I3)-$J$2) -> 0 | G3: =IF(E3="SI",100,IF(E3="NO",0,"")) -> 0 | H3: =IF(G3="","",(G3)) -> 0
B4: =IF(ISBLANK(InfoPro!A4),"",InfoPro!A4) -> SC_1323_A3 | C4: =IF(ISBLANK(InfoPro!B4),"",InfoPro!B4) -> GEN ARAUCA | D4: =IF(ISBLANK(InfoPro!E4),"",InfoPro!E4) -> 30 | E4: =IF(ISBLANK(InfoPro!N4),"",InfoPro!N4) -> NO | F4: =IF(ISBLANK(InfoPro!I4),"",YEAR(InfoPro!I4)-$J$2) -> 0 | G4: 0 | H4: 0
B5: =IF(ISBLANK(InfoPro!A5),"",InfoPro!A5) ->  | C5: =IF(ISBLANK(InfoPro!B5),"",InfoPro!B5) ->  | D5: =IF(ISBLANK(InfoPro!E5),"",InfoPro!E5) ->  | E5: =IF(ISBLANK(InfoPro!N5),"",InfoPro!N5) ->  | F5: =IF(ISBLANK(InfoPro!I5),"",YEAR(InfoPro!I5)-$J$2) -> 
B6: =IF(ISBLANK(InfoPro!A6),"",InfoPro!A6) ->  | C6: =IF(ISBLANK(InfoPro!B6),"",InfoPro!B6) ->  | D6: =IF(ISBLANK(InfoPro!E6),"",InfoPro!E6) ->  | E6: =IF(ISBLANK(InfoPro!N6),"",InfoPro!N6) ->  | F6: =IF(ISBLANK(InfoPro!I6),"",YEAR(InfoPro!I6)-$J$2) -> 
B7: =IF(ISBLANK(InfoPro!A7),"",InfoPro!A7) ->  | C7: =IF(ISBLANK(InfoPro!B7),"",InfoPro!B7) ->  | D7: =IF(ISBLANK(InfoPro!E7),"",InfoPro!E7) ->  | E7: =IF(ISBLANK(InfoPro!N7),"",InfoPro!N7) ->  | F7: =IF(ISBLANK(InfoPro!I7),"",YEAR(InfoPro!I7)-$J$2) -> 
B8: =IF(ISBLANK(InfoPro!A8),"",InfoPro!A8) ->  | C8: =IF(ISBLANK(InfoPro!B8),"",InfoPro!B8) ->  | D8: =IF(ISBLANK(InfoPro!E8),"",InfoPro!E8) ->  | E8: =IF(ISBLANK(InfoPro!N8),"",InfoPro!N8) ->  | F8: =IF(ISBLANK(InfoPro!I8),"",YEAR(InfoPro!I8)-$J$2) -> 
B9: =IF(ISBLANK(InfoPro!A9),"",InfoPro!A9) ->  | C9: =IF(ISBLANK(InfoPro!B9),"",InfoPro!B9) ->  | D9: =IF(ISBLANK(InfoPro!E9),"",InfoPro!E9) ->  | E9: =IF(ISBLANK(InfoPro!N9),"",InfoPro!N9) ->  | F9: =IF(ISBLANK(InfoPro!I9),"",YEAR(InfoPro!I9)-$J$2) -> 
B10: =IF(ISBLANK(InfoPro!A10),"",InfoPro!A10) ->  | C10: =IF(ISBLANK(InfoPro!B10),"",InfoPro!B10) ->  | D10: =IF(ISBLANK(InfoPro!E10),"",InfoPro!E10) ->  | E10: =IF(ISBLANK(InfoPro!N10),"",InfoPro!N10) ->  | F10: =IF(ISBLANK(InfoPro!I10),"",YEAR(InfoPro!I10)-$J$2) -> 
B11: =IF(ISBLANK(InfoPro!A11),"",InfoPro!A11) ->  | C11: =IF(ISBLANK(InfoPro!B11),"",InfoPro!B11) ->  | D11: =IF(ISBLANK(InfoPro!E11),"",InfoPro!E11) ->  | E11: =IF(ISBLANK(InfoPro!N11),"",InfoPro!N11) ->  | F11: =IF(ISBLANK(InfoPro!I11),"",YEAR(InfoPro!I11)-$J$2) -> 
B12: =IF(ISBLANK(InfoPro!A12),"",InfoPro!A12) ->  | C12: =IF(ISBLANK(InfoPro!B12),"",InfoPro!B12) ->  | D12: =IF(ISBLANK(InfoPro!E12),"",InfoPro!E12) ->  | E12: =IF(ISBLANK(InfoPro!N12),"",InfoPro!N12) ->  | F12: =IF(ISBLANK(InfoPro!I12),"",YEAR(InfoPro!I12)-$J$2) -> 
B13: =IF(ISBLANK(InfoPro!A13),"",InfoPro!A13) ->  | C13: =IF(ISBLANK(InfoPro!B13),"",InfoPro!B13) ->  | D13: =IF(ISBLANK(InfoPro!E13),"",InfoPro!E13) ->  | E13: =IF(ISBLANK(InfoPro!N13),"",InfoPro!N13) ->  | F13: =IF(ISBLANK(InfoPro!I13),"",YEAR(InfoPro!I13)-$J$2) -> 
B14: =IF(ISBLANK(InfoPro!A14),"",InfoPro!A14) ->  | C14: =IF(ISBLANK(InfoPro!B14),"",InfoPro!B14) ->  | D14: =IF(ISBLANK(InfoPro!E14),"",InfoPro!E14) ->  | E14: =IF(ISBLANK(InfoPro!N14),"",InfoPro!N14) ->  | F14: =IF(ISBLANK(InfoPro!I14),"",YEAR(InfoPro!I14)-$J$2) -> 
B15: =IF(ISBLANK(InfoPro!A15),"",InfoPro!A15) ->  | C15: =IF(ISBLANK(InfoPro!B15),"",InfoPro!B15) ->  | D15: =IF(ISBLANK(InfoPro!E15),"",InfoPro!E15) ->  | E15: =IF(ISBLANK(InfoPro!N15),"",InfoPro!N15) ->  | F15: =IF(ISBLANK(InfoPro!I15),"",YEAR(InfoPro!I15)-$J$2) -> 
B16: =IF(ISBLANK(InfoPro!A16),"",InfoPro!A16) ->  | C16: =IF(ISBLANK(InfoPro!B16),"",InfoPro!B16) ->  | D16: =IF(ISBLANK(InfoPro!E16),"",InfoPro!E16) ->  | E16: =IF(ISBLANK(InfoPro!N16),"",InfoPro!N16) ->  | F16: =IF(ISBLANK(InfoPro!I16),"",YEAR(InfoPro!I16)-$J$2) -> 
B17: =IF(ISBLANK(InfoPro!A17),"",InfoPro!A17) ->  | C17: =IF(ISBLANK(InfoPro!B17),"",InfoPro!B17) ->  | D17: =IF(ISBLANK(InfoPro!E17),"",InfoPro!E17) ->  | E17: =IF(ISBLANK(InfoPro!N17),"",InfoPro!N17) ->  | F17: =IF(ISBLANK(InfoPro!I17),"",YEAR(InfoPro!I17)-$J$2) -> 
B18: =IF(ISBLANK(InfoPro!A18),"",InfoPro!A18) ->  | C18: =IF(ISBLANK(InfoPro!B18),"",InfoPro!B18) ->  | D18: =IF(ISBLANK(InfoPro!E18),"",InfoPro!E18) ->  | E18: =IF(ISBLANK(InfoPro!N18),"",InfoPro!N18) ->  | F18: =IF(ISBLANK(InfoPro!I18),"",YEAR(InfoPro!I18)-$J$2) -> 
B19: =IF(ISBLANK(InfoPro!A19),"",InfoPro!A19) ->  | C19: =IF(ISBLANK(InfoPro!B19),"",InfoPro!B19) ->  | D19: =IF(ISBLANK(InfoPro!E19),"",InfoPro!E19) ->  | E19: =IF(ISBLANK(InfoPro!N19),"",InfoPro!N19) ->  | F19: =IF(ISBLANK(InfoPro!I19),"",YEAR(InfoPro!I19)-$J$2) -> 
B20: =IF(ISBLANK(InfoPro!A20),"",InfoPro!A20) ->  | C20: =IF(ISBLANK(InfoPro!B20),"",InfoPro!B20) ->  | D20: =IF(ISBLANK(InfoPro!E20),"",InfoPro!E20) ->  | E20: =IF(ISBLANK(InfoPro!N20),"",InfoPro!N20) ->  | F20: =IF(ISBLANK(InfoPro!I20),"",YEAR(InfoPro!I20)-$J$2) -> 
B21: =IF(ISBLANK(InfoPro!A21),"",InfoPro!A21) ->  | C21: =IF(ISBLANK(InfoPro!B21),"",InfoPro!B21) ->  | D21: =IF(ISBLANK(InfoPro!E21),"",InfoPro!E21) ->  | E21: =IF(ISBLANK(InfoPro!N21),"",InfoPro!N21) ->  | F21: =IF(ISBLANK(InfoPro!I21),"",YEAR(InfoPro!I21)-$J$2) -> 
B22: =IF(ISBLANK(InfoPro!A22),"",InfoPro!A22) ->  | C22: =IF(ISBLANK(InfoPro!B22),"",InfoPro!B22) ->  | D22: =IF(ISBLANK(InfoPro!E22),"",InfoPro!E22) ->  | E22: =IF(ISBLANK(InfoPro!N22),"",InfoPro!N22) ->  | F22: =IF(ISBLANK(InfoPro!I22),"",YEAR(InfoPro!I22)-$J$2) -> 
B23: =IF(ISBLANK(InfoPro!A23),"",InfoPro!A23) ->  | C23: =IF(ISBLANK(InfoPro!B23),"",InfoPro!B23) ->  | D23: =IF(ISBLANK(InfoPro!E23),"",InfoPro!E23) ->  | E23: =IF(ISBLANK(InfoPro!N23),"",InfoPro!N23) ->  | F23: =IF(ISBLANK(InfoPro!I23),"",YEAR(InfoPro!I23)-$J$2) -> 
B24: =IF(ISBLANK(InfoPro!A24),"",InfoPro!A24) ->  | C24: =IF(ISBLANK(InfoPro!B24),"",InfoPro!B24) ->  | D24: =IF(ISBLANK(InfoPro!E24),"",InfoPro!E24) ->  | E24: =IF(ISBLANK(InfoPro!N24),"",InfoPro!N24) ->  | F24: =IF(ISBLANK(InfoPro!I24),"",YEAR(InfoPro!I24)-$J$2) -> 
B25: =IF(ISBLANK(InfoPro!A25),"",InfoPro!A25) ->  | C25: =IF(ISBLANK(InfoPro!B25),"",InfoPro!B25) ->  | D25: =IF(ISBLANK(InfoPro!E25),"",InfoPro!E25) ->  | E25: =IF(ISBLANK(InfoPro!N25),"",InfoPro!N25) ->  | F25: =IF(ISBLANK(InfoPro!I25),"",YEAR(InfoPro!I25)-$J$2) -> 
B26: =IF(ISBLANK(InfoPro!A26),"",InfoPro!A26) ->  | C26: =IF(ISBLANK(InfoPro!B26),"",InfoPro!B26) ->  | D26: =IF(ISBLANK(InfoPro!E26),"",InfoPro!E26) ->  | E26: =IF(ISBLANK(InfoPro!N26),"",InfoPro!N26) ->  | F26: =IF(ISBLANK(InfoPro!I26),"",YEAR(InfoPro!I26)-$J$2) -> 
B27: =IF(ISBLANK(InfoPro!A27),"",InfoPro!A27) ->  | C27: =IF(ISBLANK(InfoPro!B27),"",InfoPro!B27) ->  | D27: =IF(ISBLANK(InfoPro!E27),"",InfoPro!E27) ->  | E27: =IF(ISBLANK(InfoPro!N27),"",InfoPro!N27) ->  | F27: =IF(ISBLANK(InfoPro!I27),"",YEAR(InfoPro!I27)-$J$2) -> 
B28: =IF(ISBLANK(InfoPro!A28),"",InfoPro!A28) ->  | C28: =IF(ISBLANK(InfoPro!B28),"",InfoPro!B28) ->  | D28: =IF(ISBLANK(InfoPro!E28),"",InfoPro!E28) ->  | E28: =IF(ISBLANK(InfoPro!N28),"",InfoPro!N28) ->  | F28: =IF(ISBLANK(InfoPro!I28),"",YEAR(InfoPro!I28)-$J$2) -> 
B29: =IF(ISBLANK(InfoPro!A29),"",InfoPro!A29) ->  | C29: =IF(ISBLANK(InfoPro!B29),"",InfoPro!B29) ->  | D29: =IF(ISBLANK(InfoPro!E29),"",InfoPro!E29) ->  | E29: =IF(ISBLANK(InfoPro!N29),"",InfoPro!N29) ->  | F29: =IF(ISBLANK(InfoPro!I29),"",YEAR(InfoPro!I29)-$J$2) -> 
B30: =IF(ISBLANK(InfoPro!A30),"",InfoPro!A30) ->  | C30: =IF(ISBLANK(InfoPro!B30),"",InfoPro!B30) ->  | D30: =IF(ISBLANK(InfoPro!E30),"",InfoPro!E30) ->  | E30: =IF(ISBLANK(InfoPro!N30),"",InfoPro!N30) ->  | F30: =IF(ISBLANK(InfoPro!I30),"",YEAR(InfoPro!I30)-$J$2) -> 
B31: =IF(ISBLANK(InfoPro!A31),"",InfoPro!A31) ->  | C31: =IF(ISBLANK(InfoPro!B31),"",InfoPro!B31) ->  | D31: =IF(ISBLANK(InfoPro!E31),"",InfoPro!E31) ->  | E31: =IF(ISBLANK(InfoPro!N31),"",InfoPro!N31) ->  | F31: =IF(ISBLANK(InfoPro!I31),"",YEAR(InfoPro!I31)-$J$2) -> 
B32: =IF(ISBLANK(InfoPro!A32),"",InfoPro!A32) ->  | C32: =IF(ISBLANK(InfoPro!B32),"",InfoPro!B32) ->  | D32: =IF(ISBLANK(InfoPro!E32),"",InfoPro!E32) ->  | E32: =IF(ISBLANK(InfoPro!N32),"",InfoPro!N32) ->  | F32: =IF(ISBLANK(InfoPro!I32),"",YEAR(InfoPro!I32)-$J$2) -> 
B33: =IF(ISBLANK(InfoPro!A33),"",InfoPro!A33) ->  | C33: =IF(ISBLANK(InfoPro!B33),"",InfoPro!B33) ->  | D33: =IF(ISBLANK(InfoPro!E33),"",InfoPro!E33) ->  | E33: =IF(ISBLANK(InfoPro!N33),"",InfoPro!N33) ->  | F33: =IF(ISBLANK(InfoPro!I33),"",YEAR(InfoPro!I33)-$J$2) -> 
B34: =IF(ISBLANK(InfoPro!A34),"",InfoPro!A34) ->  | C34: =IF(ISBLANK(InfoPro!B34),"",InfoPro!B34) ->  | D34: =IF(ISBLANK(InfoPro!E34),"",InfoPro!E34) ->  | E34: =IF(ISBLANK(InfoPro!N34),"",InfoPro!N34) ->  | F34: =IF(ISBLANK(InfoPro!I34),"",YEAR(InfoPro!I34)-$J$2) -> 
B35: =IF(ISBLANK(InfoPro!A35),"",InfoPro!A35) ->  | C35: =IF(ISBLANK(InfoPro!B35),"",InfoPro!B35) ->  | D35: =IF(ISBLANK(InfoPro!E35),"",InfoPro!E35) ->  | E35: =IF(ISBLANK(InfoPro!N35),"",InfoPro!N35) ->  | F35: =IF(ISBLANK(InfoPro!I35),"",YEAR(InfoPro!I35)-$J$2) -> 
B36: =IF(ISBLANK(InfoPro!A36),"",InfoPro!A36) ->  | C36: =IF(ISBLANK(InfoPro!B36),"",InfoPro!B36) ->  | D36: =IF(ISBLANK(InfoPro!E36),"",InfoPro!E36) ->  | E36: =IF(ISBLANK(InfoPro!N36),"",InfoPro!N36) ->  | F36: =IF(ISBLANK(InfoPro!I36),"",YEAR(InfoPro!I36)-$J$2) -> 
B37: =IF(ISBLANK(InfoPro!A37),"",InfoPro!A37) ->  | C37: =IF(ISBLANK(InfoPro!B37),"",InfoPro!B37) ->  | D37: =IF(ISBLANK(InfoPro!E37),"",InfoPro!E37) ->  | E37: =IF(ISBLANK(InfoPro!N37),"",InfoPro!N37) ->  | F37: =IF(ISBLANK(InfoPro!I37),"",YEAR(InfoPro!I37)-$J$2) -> 
B38: =IF(ISBLANK(InfoPro!A38),"",InfoPro!A38) ->  | C38: =IF(ISBLANK(InfoPro!B38),"",InfoPro!B38) ->  | D38: =IF(ISBLANK(InfoPro!E38),"",InfoPro!E38) ->  | E38: =IF(ISBLANK(InfoPro!N38),"",InfoPro!N38) ->  | F38: =IF(ISBLANK(InfoPro!I38),"",YEAR(InfoPro!I38)-$J$2) -> 
B39: =IF(ISBLANK(InfoPro!A39),"",InfoPro!A39) ->  | C39: =IF(ISBLANK(InfoPro!B39),"",InfoPro!B39) ->  | D39: =IF(ISBLANK(InfoPro!E39),"",InfoPro!E39) ->  | E39: =IF(ISBLANK(InfoPro!N39),"",InfoPro!N39) ->  | F39: =IF(ISBLANK(InfoPro!I39),"",YEAR(InfoPro!I39)-$J$2) -> 
B40: =IF(ISBLANK(InfoPro!A40),"",InfoPro!A40) ->  | C40: =IF(ISBLANK(InfoPro!B40),"",InfoPro!B40) ->  | D40: =IF(ISBLANK(InfoPro!E40),"",InfoPro!E40) ->  | E40: =IF(ISBLANK(InfoPro!N40),"",InfoPro!N40) ->  | F40: =IF(ISBLANK(InfoPro!I40),"",YEAR(InfoPro!I40)-$J$2) -> 
B41: =IF(ISBLANK(InfoPro!A41),"",InfoPro!A41) ->  | C41: =IF(ISBLANK(InfoPro!B41),"",InfoPro!B41) ->  | D41: =IF(ISBLANK(InfoPro!E41),"",InfoPro!E41) ->  | E41: =IF(ISBLANK(InfoPro!N41),"",InfoPro!N41) ->  | F41: =IF(ISBLANK(InfoPro!I41),"",YEAR(InfoPro!I41)-$J$2) -> 
B42: =IF(ISBLANK(InfoPro!A42),"",InfoPro!A42) ->  | C42: =IF(ISBLANK(InfoPro!B42),"",InfoPro!B42) ->  | D42: =IF(ISBLANK(InfoPro!E42),"",InfoPro!E42) ->  | E42: =IF(ISBLANK(InfoPro!N42),"",InfoPro!N42) ->  | F42: =IF(ISBLANK(InfoPro!I42),"",YEAR(InfoPro!I42)-$J$2) -> 
B43: =IF(ISBLANK(InfoPro!A43),"",InfoPro!A43) ->  | C43: =IF(ISBLANK(InfoPro!B43),"",InfoPro!B43) ->  | D43: =IF(ISBLANK(InfoPro!E43),"",InfoPro!E43) ->  | E43: =IF(ISBLANK(InfoPro!N43),"",InfoPro!N43) ->  | F43: =IF(ISBLANK(InfoPro!I43),"",YEAR(InfoPro!I43)-$J$2) -> 
B44: =IF(ISBLANK(InfoPro!A44),"",InfoPro!A44) ->  | C44: =IF(ISBLANK(InfoPro!B44),"",InfoPro!B44) ->  | D44: =IF(ISBLANK(InfoPro!E44),"",InfoPro!E44) ->  | E44: =IF(ISBLANK(InfoPro!N44),"",InfoPro!N44) ->  | F44: =IF(ISBLANK(InfoPro!I44),"",YEAR(InfoPro!I44)-$J$2) -> 
B45: =IF(ISBLANK(InfoPro!A45),"",InfoPro!A45) ->  | C45: =IF(ISBLANK(InfoPro!B45),"",InfoPro!B45) ->  | D45: =IF(ISBLANK(InfoPro!E45),"",InfoPro!E45) ->  | E45: =IF(ISBLANK(InfoPro!N45),"",InfoPro!N45) ->  | F45: =IF(ISBLANK(InfoPro!I45),"",YEAR(InfoPro!I45)-$J$2) -> 
B46: =IF(ISBLANK(InfoPro!A46),"",InfoPro!A46) ->  | C46: =IF(ISBLANK(InfoPro!B46),"",InfoPro!B46) ->  | D46: =IF(ISBLANK(InfoPro!E46),"",InfoPro!E46) ->  | E46: =IF(ISBLANK(InfoPro!N46),"",InfoPro!N46) ->  | F46: =IF(ISBLANK(InfoPro!I46),"",YEAR(InfoPro!I46)-$J$2) -> 
B47: =IF(ISBLANK(InfoPro!A47),"",InfoPro!A47) ->  | C47: =IF(ISBLANK(InfoPro!B47),"",InfoPro!B47) ->  | D47: =IF(ISBLANK(InfoPro!E47),"",InfoPro!E47) ->  | E47: =IF(ISBLANK(InfoPro!N47),"",InfoPro!N47) ->  | F47: =IF(ISBLANK(InfoPro!I47),"",YEAR(InfoPro!I47)-$J$2) -> 
B48: =IF(ISBLANK(InfoPro!A48),"",InfoPro!A48) ->  | C48: =IF(ISBLANK(InfoPro!B48),"",InfoPro!B48) ->  | D48: =IF(ISBLANK(InfoPro!E48),"",InfoPro!E48) ->  | E48: =IF(ISBLANK(InfoPro!N48),"",InfoPro!N48) ->  | F48: =IF(ISBLANK(InfoPro!I48),"",YEAR(InfoPro!I48)-$J$2) -> 
B49: =IF(ISBLANK(InfoPro!A49),"",InfoPro!A49) ->  | C49: =IF(ISBLANK(InfoPro!B49),"",InfoPro!B49) ->  | D49: =IF(ISBLANK(InfoPro!E49),"",InfoPro!E49) ->  | E49: =IF(ISBLANK(InfoPro!N49),"",InfoPro!N49) ->  | F49: =IF(ISBLANK(InfoPro!I49),"",YEAR(InfoPro!I49)-$J$2) -> 
B50: =IF(ISBLANK(InfoPro!A50),"",InfoPro!A50) ->  | C50: =IF(ISBLANK(InfoPro!B50),"",InfoPro!B50) ->  | D50: =IF(ISBLANK(InfoPro!E50),"",InfoPro!E50) ->  | E50: =IF(ISBLANK(InfoPro!N50),"",InfoPro!N50) ->  | F50: =IF(ISBLANK(InfoPro!I50),"",YEAR(InfoPro!I50)-$J$2) -> 
B51: =IF(ISBLANK(InfoPro!A51),"",InfoPro!A51) ->  | C51: =IF(ISBLANK(InfoPro!B51),"",InfoPro!B51) ->  | D51: =IF(ISBLANK(InfoPro!E51),"",InfoPro!E51) ->  | E51: =IF(ISBLANK(InfoPro!N51),"",InfoPro!N51) ->  | F51: =IF(ISBLANK(InfoPro!I51),"",YEAR(InfoPro!I51)-$J$2) -> 
B52: =IF(ISBLANK(InfoPro!A52),"",InfoPro!A52) ->  | C52: =IF(ISBLANK(InfoPro!B52),"",InfoPro!B52) ->  | D52: =IF(ISBLANK(InfoPro!E52),"",InfoPro!E52) ->  | E52: =IF(ISBLANK(InfoPro!N52),"",InfoPro!N52) ->  | F52: =IF(ISBLANK(InfoPro!I52),"",YEAR(InfoPro!I52)-$J$2) -> 
B53: =IF(ISBLANK(InfoPro!A53),"",InfoPro!A53) ->  | C53: =IF(ISBLANK(InfoPro!B53),"",InfoPro!B53) ->  | D53: =IF(ISBLANK(InfoPro!E53),"",InfoPro!E53) ->  | E53: =IF(ISBLANK(InfoPro!N53),"",InfoPro!N53) ->  | F53: =IF(ISBLANK(InfoPro!I53),"",YEAR(InfoPro!I53)-$J$2) -> 
B54: =IF(ISBLANK(InfoPro!A54),"",InfoPro!A54) ->  | C54: =IF(ISBLANK(InfoPro!B54),"",InfoPro!B54) ->  | D54: =IF(ISBLANK(InfoPro!E54),"",InfoPro!E54) ->  | E54: =IF(ISBLANK(InfoPro!N54),"",InfoPro!N54) ->  | F54: =IF(ISBLANK(InfoPro!I54),"",YEAR(InfoPro!I54)-$J$2) -> 
B55: =IF(ISBLANK(InfoPro!A55),"",InfoPro!A55) ->  | C55: =IF(ISBLANK(InfoPro!B55),"",InfoPro!B55) ->  | D55: =IF(ISBLANK(InfoPro!E55),"",InfoPro!E55) ->  | E55: =IF(ISBLANK(InfoPro!N55),"",InfoPro!N55) ->  | F55: =IF(ISBLANK(InfoPro!I55),"",YEAR(InfoPro!I55)-$J$2) -> 
B56: =IF(ISBLANK(InfoPro!A56),"",InfoPro!A56) ->  | C56: =IF(ISBLANK(InfoPro!B56),"",InfoPro!B56) ->  | D56: =IF(ISBLANK(InfoPro!E56),"",InfoPro!E56) ->  | E56: =IF(ISBLANK(InfoPro!N56),"",InfoPro!N56) ->  | F56: =IF(ISBLANK(InfoPro!I56),"",YEAR(InfoPro!I56)-$J$2) -> 
B57: =IF(ISBLANK(InfoPro!A57),"",InfoPro!A57) ->  | C57: =IF(ISBLANK(InfoPro!B57),"",InfoPro!B57) ->  | D57: =IF(ISBLANK(InfoPro!E57),"",InfoPro!E57) ->  | E57: =IF(ISBLANK(InfoPro!N57),"",InfoPro!N57) ->  | F57: =IF(ISBLANK(InfoPro!I57),"",YEAR(InfoPro!I57)-$J$2) -> 
B58: =IF(ISBLANK(InfoPro!A58),"",InfoPro!A58) ->  | C58: =IF(ISBLANK(InfoPro!B58),"",InfoPro!B58) ->  | D58: =IF(ISBLANK(InfoPro!E58),"",InfoPro!E58) ->  | E58: =IF(ISBLANK(InfoPro!N58),"",InfoPro!N58) ->  | F58: =IF(ISBLANK(InfoPro!I58),"",YEAR(InfoPro!I58)-$J$2) -> 
B59: =IF(ISBLANK(InfoPro!A59),"",InfoPro!A59) ->  | C59: =IF(ISBLANK(InfoPro!B59),"",InfoPro!B59) ->  | D59: =IF(ISBLANK(InfoPro!E59),"",InfoPro!E59) ->  | E59: =IF(ISBLANK(InfoPro!N59),"",InfoPro!N59) ->  | F59: =IF(ISBLANK(InfoPro!I59),"",YEAR(InfoPro!I59)-$J$2) -> 
B60: =IF(ISBLANK(InfoPro!A60),"",InfoPro!A60) ->  | C60: =IF(ISBLANK(InfoPro!B60),"",InfoPro!B60) ->  | D60: =IF(ISBLANK(InfoPro!E60),"",InfoPro!E60) ->  | E60: =IF(ISBLANK(InfoPro!N60),"",InfoPro!N60) ->  | F60: =IF(ISBLANK(InfoPro!I60),"",YEAR(InfoPro!I60)-$J$2) -> 
B61: =IF(ISBLANK(InfoPro!A61),"",InfoPro!A61) ->  | C61: =IF(ISBLANK(InfoPro!B61),"",InfoPro!B61) ->  | D61: =IF(ISBLANK(InfoPro!E61),"",InfoPro!E61) ->  | E61: =IF(ISBLANK(InfoPro!N61),"",InfoPro!N61) ->  | F61: =IF(ISBLANK(InfoPro!I61),"",YEAR(InfoPro!I61)-$J$2) -> 
B62: =IF(ISBLANK(InfoPro!A62),"",InfoPro!A62) ->  | C62: =IF(ISBLANK(InfoPro!B62),"",InfoPro!B62) ->  | D62: =IF(ISBLANK(InfoPro!E62),"",InfoPro!E62) ->  | E62: =IF(ISBLANK(InfoPro!N62),"",InfoPro!N62) ->  | F62: =IF(ISBLANK(InfoPro!I62),"",YEAR(InfoPro!I62)-$J$2) -> 
B63: =IF(ISBLANK(InfoPro!A63),"",InfoPro!A63) ->  | C63: =IF(ISBLANK(InfoPro!B63),"",InfoPro!B63) ->  | D63: =IF(ISBLANK(InfoPro!E63),"",InfoPro!E63) ->  | E63: =IF(ISBLANK(InfoPro!N63),"",InfoPro!N63) ->  | F63: =IF(ISBLANK(InfoPro!I63),"",YEAR(InfoPro!I63)-$J$2) -> 
B64: =IF(ISBLANK(InfoPro!A64),"",InfoPro!A64) ->  | C64: =IF(ISBLANK(InfoPro!B64),"",InfoPro!B64) ->  | D64: =IF(ISBLANK(InfoPro!E64),"",InfoPro!E64) ->  | E64: =IF(ISBLANK(InfoPro!N64),"",InfoPro!N64) ->  | F64: =IF(ISBLANK(InfoPro!I64),"",YEAR(InfoPro!I64)-$J$2) -> 
B65: =IF(ISBLANK(InfoPro!A65),"",InfoPro!A65) ->  | C65: =IF(ISBLANK(InfoPro!B65),"",InfoPro!B65) ->  | D65: =IF(ISBLANK(InfoPro!E65),"",InfoPro!E65) ->  | E65: =IF(ISBLANK(InfoPro!N65),"",InfoPro!N65) ->  | F65: =IF(ISBLANK(InfoPro!I65),"",YEAR(InfoPro!I65)-$J$2) -> 
B66: =IF(ISBLANK(InfoPro!A66),"",InfoPro!A66) ->  | C66: =IF(ISBLANK(InfoPro!B66),"",InfoPro!B66) ->  | D66: =IF(ISBLANK(InfoPro!E66),"",InfoPro!E66) ->  | E66: =IF(ISBLANK(InfoPro!N66),"",InfoPro!N66) ->  | F66: =IF(ISBLANK(InfoPro!I66),"",YEAR(InfoPro!I66)-$J$2) -> 
B67: =IF(ISBLANK(InfoPro!A67),"",InfoPro!A67) ->  | C67: =IF(ISBLANK(InfoPro!B67),"",InfoPro!B67) ->  | D67: =IF(ISBLANK(InfoPro!E67),"",InfoPro!E67) ->  | E67: =IF(ISBLANK(InfoPro!N67),"",InfoPro!N67) ->  | F67: =IF(ISBLANK(InfoPro!I67),"",YEAR(InfoPro!I67)-$J$2) ->  | G67: =IF(E67="SI",100,IF(E67="NO",0,"")) ->  | H67: =IF(G67="","",(G67)) -> 
B68: =IF(ISBLANK(InfoPro!A68),"",InfoPro!A68) ->  | C68: =IF(ISBLANK(InfoPro!B68),"",InfoPro!B68) ->  | D68: =IF(ISBLANK(InfoPro!E68),"",InfoPro!E68) ->  | E68: =IF(ISBLANK(InfoPro!N68),"",InfoPro!N68) ->  | F68: =IF(ISBLANK(InfoPro!I68),"",YEAR(InfoPro!I68)-$J$2) -> 
B69: =IF(ISBLANK(InfoPro!A69),"",InfoPro!A69) ->  | C69: =IF(ISBLANK(InfoPro!B69),"",InfoPro!B69) ->  | D69: =IF(ISBLANK(InfoPro!E69),"",InfoPro!E69) ->  | E69: =IF(ISBLANK(InfoPro!N69),"",InfoPro!N69) ->  | F69: =IF(ISBLANK(InfoPro!I69),"",YEAR(InfoPro!I69)-$J$2) -> 
B70: =IF(ISBLANK(InfoPro!A70),"",InfoPro!A70) ->  | C70: =IF(ISBLANK(InfoPro!B70),"",InfoPro!B70) ->  | D70: =IF(ISBLANK(InfoPro!E70),"",InfoPro!E70) ->  | E70: =IF(ISBLANK(InfoPro!N70),"",InfoPro!N70) ->  | F70: =IF(ISBLANK(InfoPro!I70),"",YEAR(InfoPro!I70)-$J$2) -> 
B71: =IF(ISBLANK(InfoPro!A71),"",InfoPro!A71) ->  | C71: =IF(ISBLANK(InfoPro!B71),"",InfoPro!B71) ->  | D71: =IF(ISBLANK(InfoPro!E71),"",InfoPro!E71) ->  | E71: =IF(ISBLANK(InfoPro!N71),"",InfoPro!N71) ->  | F71: =IF(ISBLANK(InfoPro!I71),"",YEAR(InfoPro!I71)-$J$2) -> 
B72: =IF(ISBLANK(InfoPro!A72),"",InfoPro!A72) ->  | C72: =IF(ISBLANK(InfoPro!B72),"",InfoPro!B72) ->  | D72: =IF(ISBLANK(InfoPro!E72),"",InfoPro!E72) ->  | E72: =IF(ISBLANK(InfoPro!N72),"",InfoPro!N72) ->  | F72: =IF(ISBLANK(InfoPro!I72),"",YEAR(InfoPro!I72)-$J$2) -> 
B73: =IF(ISBLANK(InfoPro!A73),"",InfoPro!A73) ->  | C73: =IF(ISBLANK(InfoPro!B73),"",InfoPro!B73) ->  | D73: =IF(ISBLANK(InfoPro!E73),"",InfoPro!E73) ->  | E73: =IF(ISBLANK(InfoPro!N73),"",InfoPro!N73) ->  | F73: =IF(ISBLANK(InfoPro!I73),"",YEAR(InfoPro!I73)-$J$2) -> 
B74: =IF(ISBLANK(InfoPro!A74),"",InfoPro!A74) ->  | C74: =IF(ISBLANK(InfoPro!B74),"",InfoPro!B74) ->  | D74: =IF(ISBLANK(InfoPro!E74),"",InfoPro!E74) ->  | E74: =IF(ISBLANK(InfoPro!N74),"",InfoPro!N74) ->  | F74: =IF(ISBLANK(InfoPro!I74),"",YEAR(InfoPro!I74)-$J$2) -> 
B75: =IF(ISBLANK(InfoPro!A75),"",InfoPro!A75) ->  | C75: =IF(ISBLANK(InfoPro!B75),"",InfoPro!B75) ->  | D75: =IF(ISBLANK(InfoPro!E75),"",InfoPro!E75) ->  | E75: =IF(ISBLANK(InfoPro!N75),"",InfoPro!N75) ->  | F75: =IF(ISBLANK(InfoPro!I75),"",YEAR(InfoPro!I75)-$J$2) -> 
B76: =IF(ISBLANK(InfoPro!A76),"",InfoPro!A76) ->  | C76: =IF(ISBLANK(InfoPro!B76),"",InfoPro!B76) ->  | D76: =IF(ISBLANK(InfoPro!E76),"",InfoPro!E76) ->  | E76: =IF(ISBLANK(InfoPro!N76),"",InfoPro!N76) ->  | F76: =IF(ISBLANK(InfoPro!I76),"",YEAR(InfoPro!I76)-$J$2) -> 
B77: =IF(ISBLANK(InfoPro!A77),"",InfoPro!A77) ->  | C77: =IF(ISBLANK(InfoPro!B77),"",InfoPro!B77) ->  | D77: =IF(ISBLANK(InfoPro!E77),"",InfoPro!E77) ->  | E77: =IF(ISBLANK(InfoPro!N77),"",InfoPro!N77) ->  | F77: =IF(ISBLANK(InfoPro!I77),"",YEAR(InfoPro!I77)-$J$2) -> 
B78: =IF(ISBLANK(InfoPro!A78),"",InfoPro!A78) ->  | C78: =IF(ISBLANK(InfoPro!B78),"",InfoPro!B78) ->  | D78: =IF(ISBLANK(InfoPro!E78),"",InfoPro!E78) ->  | E78: =IF(ISBLANK(InfoPro!N78),"",InfoPro!N78) ->  | F78: =IF(ISBLANK(InfoPro!I78),"",YEAR(InfoPro!I78)-$J$2) -> 
B79: =IF(ISBLANK(InfoPro!A79),"",InfoPro!A79) ->  | C79: =IF(ISBLANK(InfoPro!B79),"",InfoPro!B79) ->  | D79: =IF(ISBLANK(InfoPro!E79),"",InfoPro!E79) ->  | E79: =IF(ISBLANK(InfoPro!N79),"",InfoPro!N79) ->  | F79: =IF(ISBLANK(InfoPro!I79),"",YEAR(InfoPro!I79)-$J$2) -> 
B80: =IF(ISBLANK(InfoPro!A80),"",InfoPro!A80) ->  | C80: =IF(ISBLANK(InfoPro!B80),"",InfoPro!B80) ->  | D80: =IF(ISBLANK(InfoPro!E80),"",InfoPro!E80) ->  | E80: =IF(ISBLANK(InfoPro!N80),"",InfoPro!N80) ->  | F80: =IF(ISBLANK(InfoPro!I80),"",YEAR(InfoPro!I80)-$J$2) -> 
B81: =IF(ISBLANK(InfoPro!A81),"",InfoPro!A81) ->  | C81: =IF(ISBLANK(InfoPro!B81),"",InfoPro!B81) ->  | D81: =IF(ISBLANK(InfoPro!E81),"",InfoPro!E81) ->  | E81: =IF(ISBLANK(InfoPro!N81),"",InfoPro!N81) ->  | F81: =IF(ISBLANK(InfoPro!I81),"",YEAR(InfoPro!I81)-$J$2) -> 
B82: =IF(ISBLANK(InfoPro!A82),"",InfoPro!A82) ->  | C82: =IF(ISBLANK(InfoPro!B82),"",InfoPro!B82) ->  | D82: =IF(ISBLANK(InfoPro!E82),"",InfoPro!E82) ->  | E82: =IF(ISBLANK(InfoPro!N82),"",InfoPro!N82) ->  | F82: =IF(ISBLANK(InfoPro!I82),"",YEAR(InfoPro!I82)-$J$2) -> 
B83: =IF(ISBLANK(InfoPro!A83),"",InfoPro!A83) ->  | C83: =IF(ISBLANK(InfoPro!B83),"",InfoPro!B83) ->  | D83: =IF(ISBLANK(InfoPro!E83),"",InfoPro!E83) ->  | E83: =IF(ISBLANK(InfoPro!N83),"",InfoPro!N83) ->  | F83: =IF(ISBLANK(InfoPro!I83),"",YEAR(InfoPro!I83)-$J$2) -> 
B84: =IF(ISBLANK(InfoPro!A84),"",InfoPro!A84) ->  | C84: =IF(ISBLANK(InfoPro!B84),"",InfoPro!B84) ->  | D84: =IF(ISBLANK(InfoPro!E84),"",InfoPro!E84) ->  | E84: =IF(ISBLANK(InfoPro!N84),"",InfoPro!N84) ->  | F84: =IF(ISBLANK(InfoPro!I84),"",YEAR(InfoPro!I84)-$J$2) -> 
B85: =IF(ISBLANK(InfoPro!A85),"",InfoPro!A85) ->  | C85: =IF(ISBLANK(InfoPro!B85),"",InfoPro!B85) ->  | D85: =IF(ISBLANK(InfoPro!E85),"",InfoPro!E85) ->  | E85: =IF(ISBLANK(InfoPro!N85),"",InfoPro!N85) ->  | F85: =IF(ISBLANK(InfoPro!I85),"",YEAR(InfoPro!I85)-$J$2) -> 
B86: =IF(ISBLANK(InfoPro!A86),"",InfoPro!A86) ->  | C86: =IF(ISBLANK(InfoPro!B86),"",InfoPro!B86) ->  | D86: =IF(ISBLANK(InfoPro!E86),"",InfoPro!E86) ->  | E86: =IF(ISBLANK(InfoPro!N86),"",InfoPro!N86) ->  | F86: =IF(ISBLANK(InfoPro!I86),"",YEAR(InfoPro!I86)-$J$2) -> 
B87: =IF(ISBLANK(InfoPro!A87),"",InfoPro!A87) ->  | C87: =IF(ISBLANK(InfoPro!B87),"",InfoPro!B87) ->  | D87: =IF(ISBLANK(InfoPro!E87),"",InfoPro!E87) ->  | E87: =IF(ISBLANK(InfoPro!N87),"",InfoPro!N87) ->  | F87: =IF(ISBLANK(InfoPro!I87),"",YEAR(InfoPro!I87)-$J$2) -> 
B88: =IF(ISBLANK(InfoPro!A88),"",InfoPro!A88) ->  | C88: =IF(ISBLANK(InfoPro!B88),"",InfoPro!B88) ->  | D88: =IF(ISBLANK(InfoPro!E88),"",InfoPro!E88) ->  | E88: =IF(ISBLANK(InfoPro!N88),"",InfoPro!N88) ->  | F88: =IF(ISBLANK(InfoPro!I88),"",YEAR(InfoPro!I88)-$J$2) -> 
B89: =IF(ISBLANK(InfoPro!A89),"",InfoPro!A89) ->  | C89: =IF(ISBLANK(InfoPro!B89),"",InfoPro!B89) ->  | D89: =IF(ISBLANK(InfoPro!E89),"",InfoPro!E89) ->  | E89: =IF(ISBLANK(InfoPro!N89),"",InfoPro!N89) ->  | F89: =IF(ISBLANK(InfoPro!I89),"",YEAR(InfoPro!I89)-$J$2) -> 
B90: =IF(ISBLANK(InfoPro!A90),"",InfoPro!A90) ->  | C90: =IF(ISBLANK(InfoPro!B90),"",InfoPro!B90) ->  | D90: =IF(ISBLANK(InfoPro!E90),"",InfoPro!E90) ->  | E90: =IF(ISBLANK(InfoPro!N90),"",InfoPro!N90) ->  | F90: =IF(ISBLANK(InfoPro!I90),"",YEAR(InfoPro!I90)-$J$2) -> 
B91: =IF(ISBLANK(InfoPro!A91),"",InfoPro!A91) ->  | C91: =IF(ISBLANK(InfoPro!B91),"",InfoPro!B91) ->  | D91: =IF(ISBLANK(InfoPro!E91),"",InfoPro!E91) ->  | E91: =IF(ISBLANK(InfoPro!N91),"",InfoPro!N91) ->  | F91: =IF(ISBLANK(InfoPro!I91),"",YEAR(InfoPro!I91)-$J$2) -> 
B92: =IF(ISBLANK(InfoPro!A92),"",InfoPro!A92) ->  | C92: =IF(ISBLANK(InfoPro!B92),"",InfoPro!B92) ->  | D92: =IF(ISBLANK(InfoPro!E92),"",InfoPro!E92) ->  | E92: =IF(ISBLANK(InfoPro!N92),"",InfoPro!N92) ->  | F92: =IF(ISBLANK(InfoPro!I92),"",YEAR(InfoPro!I92)-$J$2) -> 
B93: =IF(ISBLANK(InfoPro!A93),"",InfoPro!A93) ->  | C93: =IF(ISBLANK(InfoPro!B93),"",InfoPro!B93) ->  | D93: =IF(ISBLANK(InfoPro!E93),"",InfoPro!E93) ->  | E93: =IF(ISBLANK(InfoPro!N93),"",InfoPro!N93) ->  | F93: =IF(ISBLANK(InfoPro!I93),"",YEAR(InfoPro!I93)-$J$2) -> 
B94: =IF(ISBLANK(InfoPro!A94),"",InfoPro!A94) ->  | C94: =IF(ISBLANK(InfoPro!B94),"",InfoPro!B94) ->  | D94: =IF(ISBLANK(InfoPro!E94),"",InfoPro!E94) ->  | E94: =IF(ISBLANK(InfoPro!N94),"",InfoPro!N94) ->  | F94: =IF(ISBLANK(InfoPro!I94),"",YEAR(InfoPro!I94)-$J$2) -> 
B95: =IF(ISBLANK(InfoPro!A95),"",InfoPro!A95) ->  | C95: =IF(ISBLANK(InfoPro!B95),"",InfoPro!B95) ->  | D95: =IF(ISBLANK(InfoPro!E95),"",InfoPro!E95) ->  | E95: =IF(ISBLANK(InfoPro!N95),"",InfoPro!N95) ->  | F95: =IF(ISBLANK(InfoPro!I95),"",YEAR(InfoPro!I95)-$J$2) -> 
B96: =IF(ISBLANK(InfoPro!A96),"",InfoPro!A96) ->  | C96: =IF(ISBLANK(InfoPro!B96),"",InfoPro!B96) ->  | D96: =IF(ISBLANK(InfoPro!E96),"",InfoPro!E96) ->  | E96: =IF(ISBLANK(InfoPro!N96),"",InfoPro!N96) ->  | F96: =IF(ISBLANK(InfoPro!I96),"",YEAR(InfoPro!I96)-$J$2) -> 
B97: =IF(ISBLANK(InfoPro!A97),"",InfoPro!A97) ->  | C97: =IF(ISBLANK(InfoPro!B97),"",InfoPro!B97) ->  | D97: =IF(ISBLANK(InfoPro!E97),"",InfoPro!E97) ->  | E97: =IF(ISBLANK(InfoPro!N97),"",InfoPro!N97) ->  | F97: =IF(ISBLANK(InfoPro!I97),"",YEAR(InfoPro!I97)-$J$2) -> 
B98: =IF(ISBLANK(InfoPro!A98),"",InfoPro!A98) ->  | C98: =IF(ISBLANK(InfoPro!B98),"",InfoPro!B98) ->  | D98: =IF(ISBLANK(InfoPro!E98),"",InfoPro!E98) ->  | E98: =IF(ISBLANK(InfoPro!N98),"",InfoPro!N98) ->  | F98: =IF(ISBLANK(InfoPro!I98),"",YEAR(InfoPro!I98)-$J$2) -> 
B99: =IF(ISBLANK(InfoPro!A99),"",InfoPro!A99) ->  | C99: =IF(ISBLANK(InfoPro!B99),"",InfoPro!B99) ->  | D99: =IF(ISBLANK(InfoPro!E99),"",InfoPro!E99) ->  | E99: =IF(ISBLANK(InfoPro!N99),"",InfoPro!N99) ->  | F99: =IF(ISBLANK(InfoPro!I99),"",YEAR(InfoPro!I99)-$J$2) -> 
B100: =IF(ISBLANK(InfoPro!A100),"",InfoPro!A100) ->  | C100: =IF(ISBLANK(InfoPro!B100),"",InfoPro!B100) ->  | D100: =IF(ISBLANK(InfoPro!E100),"",InfoPro!E100) ->  | E100: =IF(ISBLANK(InfoPro!N100),"",InfoPro!N100) ->  | F100: =IF(ISBLANK(InfoPro!I100),"",YEAR(InfoPro!I100)-$J$2) -> 
B101: =IF(ISBLANK(InfoPro!A101),"",InfoPro!A101) ->  | C101: =IF(ISBLANK(InfoPro!B101),"",InfoPro!B101) ->  | D101: =IF(ISBLANK(InfoPro!E101),"",InfoPro!E101) ->  | E101: =IF(ISBLANK(InfoPro!N101),"",InfoPro!N101) ->  | F101: =IF(ISBLANK(InfoPro!I101),"",YEAR(InfoPro!I101)-$J$2) -> 
B102: =IF(ISBLANK(InfoPro!A102),"",InfoPro!A102) ->  | C102: =IF(ISBLANK(InfoPro!B102),"",InfoPro!B102) ->  | D102: =IF(ISBLANK(InfoPro!E102),"",InfoPro!E102) ->  | E102: =IF(ISBLANK(InfoPro!N102),"",InfoPro!N102) ->  | F102: =IF(ISBLANK(InfoPro!I102),"",YEAR(InfoPro!I102)-$J$2) -> 
B103: =IF(ISBLANK(InfoPro!A103),"",InfoPro!A103) ->  | C103: =IF(ISBLANK(InfoPro!B103),"",InfoPro!B103) ->  | D103: =IF(ISBLANK(InfoPro!E103),"",InfoPro!E103) ->  | E103: =IF(ISBLANK(InfoPro!N103),"",InfoPro!N103) ->  | F103: =IF(ISBLANK(InfoPro!I103),"",YEAR(InfoPro!I103)-$J$2) -> 
B104: =IF(ISBLANK(InfoPro!A104),"",InfoPro!A104) ->  | C104: =IF(ISBLANK(InfoPro!B104),"",InfoPro!B104) ->  | D104: =IF(ISBLANK(InfoPro!E104),"",InfoPro!E104) ->  | E104: =IF(ISBLANK(InfoPro!N104),"",InfoPro!N104) ->  | F104: =IF(ISBLANK(InfoPro!I104),"",YEAR(InfoPro!I104)-$J$2) -> 
B105: =IF(ISBLANK(InfoPro!A105),"",InfoPro!A105) ->  | C105: =IF(ISBLANK(InfoPro!B105),"",InfoPro!B105) ->  | D105: =IF(ISBLANK(InfoPro!E105),"",InfoPro!E105) ->  | E105: =IF(ISBLANK(InfoPro!N105),"",InfoPro!N105) ->  | F105: =IF(ISBLANK(InfoPro!I105),"",YEAR(InfoPro!I105)-$J$2) -> 
B106: =IF(ISBLANK(InfoPro!A106),"",InfoPro!A106) ->  | C106: =IF(ISBLANK(InfoPro!B106),"",InfoPro!B106) ->  | D106: =IF(ISBLANK(InfoPro!E106),"",InfoPro!E106) ->  | E106: =IF(ISBLANK(InfoPro!N106),"",InfoPro!N106) ->  | F106: =IF(ISBLANK(InfoPro!I106),"",YEAR(InfoPro!I106)-$J$2) -> 
B107: =IF(ISBLANK(InfoPro!A107),"",InfoPro!A107) ->  | C107: =IF(ISBLANK(InfoPro!B107),"",InfoPro!B107) ->  | D107: =IF(ISBLANK(InfoPro!E107),"",InfoPro!E107) ->  | E107: =IF(ISBLANK(InfoPro!N107),"",InfoPro!N107) ->  | F107: =IF(ISBLANK(InfoPro!I107),"",YEAR(InfoPro!I107)-$J$2) -> 
B108: =IF(ISBLANK(InfoPro!A108),"",InfoPro!A108) ->  | C108: =IF(ISBLANK(InfoPro!B108),"",InfoPro!B108) ->  | D108: =IF(ISBLANK(InfoPro!E108),"",InfoPro!E108) ->  | E108: =IF(ISBLANK(InfoPro!N108),"",InfoPro!N108) ->  | F108: =IF(ISBLANK(InfoPro!I108),"",YEAR(InfoPro!I108)-$J$2) -> 
B109: =IF(ISBLANK(InfoPro!A109),"",InfoPro!A109) ->  | C109: =IF(ISBLANK(InfoPro!B109),"",InfoPro!B109) ->  | D109: =IF(ISBLANK(InfoPro!E109),"",InfoPro!E109) ->  | E109: =IF(ISBLANK(InfoPro!N109),"",InfoPro!N109) ->  | F109: =IF(ISBLANK(InfoPro!I109),"",YEAR(InfoPro!I109)-$J$2) -> 
B110: =IF(ISBLANK(InfoPro!A110),"",InfoPro!A110) ->  | C110: =IF(ISBLANK(InfoPro!B110),"",InfoPro!B110) ->  | D110: =IF(ISBLANK(InfoPro!E110),"",InfoPro!E110) ->  | E110: =IF(ISBLANK(InfoPro!N110),"",InfoPro!N110) ->  | F110: =IF(ISBLANK(InfoPro!I110),"",YEAR(InfoPro!I110)-$J$2) -> 
B111: =IF(ISBLANK(InfoPro!A111),"",InfoPro!A111) ->  | C111: =IF(ISBLANK(InfoPro!B111),"",InfoPro!B111) ->  | D111: =IF(ISBLANK(InfoPro!E111),"",InfoPro!E111) ->  | E111: =IF(ISBLANK(InfoPro!N111),"",InfoPro!N111) ->  | F111: =IF(ISBLANK(InfoPro!I111),"",YEAR(InfoPro!I111)-$J$2) -> 
B112: =IF(ISBLANK(InfoPro!A112),"",InfoPro!A112) ->  | C112: =IF(ISBLANK(InfoPro!B112),"",InfoPro!B112) ->  | D112: =IF(ISBLANK(InfoPro!E112),"",InfoPro!E112) ->  | E112: =IF(ISBLANK(InfoPro!N112),"",InfoPro!N112) ->  | F112: =IF(ISBLANK(InfoPro!I112),"",YEAR(InfoPro!I112)-$J$2) -> 
B113: =IF(ISBLANK(InfoPro!A113),"",InfoPro!A113) ->  | C113: =IF(ISBLANK(InfoPro!B113),"",InfoPro!B113) ->  | D113: =IF(ISBLANK(InfoPro!E113),"",InfoPro!E113) ->  | E113: =IF(ISBLANK(InfoPro!N113),"",InfoPro!N113) ->  | F113: =IF(ISBLANK(InfoPro!I113),"",YEAR(InfoPro!I113)-$J$2) -> 
B114: =IF(ISBLANK(InfoPro!A114),"",InfoPro!A114) ->  | C114: =IF(ISBLANK(InfoPro!B114),"",InfoPro!B114) ->  | D114: =IF(ISBLANK(InfoPro!E114),"",InfoPro!E114) ->  | E114: =IF(ISBLANK(InfoPro!N114),"",InfoPro!N114) ->  | F114: =IF(ISBLANK(InfoPro!I114),"",YEAR(InfoPro!I114)-$J$2) -> 
B115: =IF(ISBLANK(InfoPro!A115),"",InfoPro!A115) ->  | C115: =IF(ISBLANK(InfoPro!B115),"",InfoPro!B115) ->  | D115: =IF(ISBLANK(InfoPro!E115),"",InfoPro!E115) ->  | E115: =IF(ISBLANK(InfoPro!N115),"",InfoPro!N115) ->  | F115: =IF(ISBLANK(InfoPro!I115),"",YEAR(InfoPro!I115)-$J$2) -> 
B116: =IF(ISBLANK(InfoPro!A116),"",InfoPro!A116) ->  | C116: =IF(ISBLANK(InfoPro!B116),"",InfoPro!B116) ->  | D116: =IF(ISBLANK(InfoPro!E116),"",InfoPro!E116) ->  | E116: =IF(ISBLANK(InfoPro!N116),"",InfoPro!N116) ->  | F116: =IF(ISBLANK(InfoPro!I116),"",YEAR(InfoPro!I116)-$J$2) -> 
B117: =IF(ISBLANK(InfoPro!A117),"",InfoPro!A117) ->  | C117: =IF(ISBLANK(InfoPro!B117),"",InfoPro!B117) ->  | D117: =IF(ISBLANK(InfoPro!E117),"",InfoPro!E117) ->  | E117: =IF(ISBLANK(InfoPro!N117),"",InfoPro!N117) ->  | F117: =IF(ISBLANK(InfoPro!I117),"",YEAR(InfoPro!I117)-$J$2) -> 
B118: =IF(ISBLANK(InfoPro!A118),"",InfoPro!A118) ->  | C118: =IF(ISBLANK(InfoPro!B118),"",InfoPro!B118) ->  | D118: =IF(ISBLANK(InfoPro!E118),"",InfoPro!E118) ->  | E118: =IF(ISBLANK(InfoPro!N118),"",InfoPro!N118) ->  | F118: =IF(ISBLANK(InfoPro!I118),"",YEAR(InfoPro!I118)-$J$2) -> 
B119: =IF(ISBLANK(InfoPro!A119),"",InfoPro!A119) ->  | C119: =IF(ISBLANK(InfoPro!B119),"",InfoPro!B119) ->  | D119: =IF(ISBLANK(InfoPro!E119),"",InfoPro!E119) ->  | E119: =IF(ISBLANK(InfoPro!N119),"",InfoPro!N119) ->  | F119: =IF(ISBLANK(InfoPro!I119),"",YEAR(InfoPro!I119)-$J$2) -> 
B120: =IF(ISBLANK(InfoPro!A120),"",InfoPro!A120) ->  | C120: =IF(ISBLANK(InfoPro!B120),"",InfoPro!B120) ->  | D120: =IF(ISBLANK(InfoPro!E120),"",InfoPro!E120) ->  | E120: =IF(ISBLANK(InfoPro!N120),"",InfoPro!N120) ->  | F120: =IF(ISBLANK(InfoPro!I120),"",YEAR(InfoPro!I120)-$J$2) -> 
B121: =IF(ISBLANK(InfoPro!A121),"",InfoPro!A121) ->  | C121: =IF(ISBLANK(InfoPro!B121),"",InfoPro!B121) ->  | D121: =IF(ISBLANK(InfoPro!E121),"",InfoPro!E121) ->  | E121: =IF(ISBLANK(InfoPro!N121),"",InfoPro!N121) ->  | F121: =IF(ISBLANK(InfoPro!I121),"",YEAR(InfoPro!I121)-$J$2) -> 
B122: =IF(ISBLANK(InfoPro!A122),"",InfoPro!A122) ->  | C122: =IF(ISBLANK(InfoPro!B122),"",InfoPro!B122) ->  | D122: =IF(ISBLANK(InfoPro!E122),"",InfoPro!E122) ->  | E122: =IF(ISBLANK(InfoPro!N122),"",InfoPro!N122) ->  | F122: =IF(ISBLANK(InfoPro!I122),"",YEAR(InfoPro!I122)-$J$2) -> 
B123: =IF(ISBLANK(InfoPro!A123),"",InfoPro!A123) ->  | C123: =IF(ISBLANK(InfoPro!B123),"",InfoPro!B123) ->  | D123: =IF(ISBLANK(InfoPro!E123),"",InfoPro!E123) ->  | E123: =IF(ISBLANK(InfoPro!N123),"",InfoPro!N123) ->  | F123: =IF(ISBLANK(InfoPro!I123),"",YEAR(InfoPro!I123)-$J$2) -> 
B124: =IF(ISBLANK(InfoPro!A124),"",InfoPro!A124) ->  | C124: =IF(ISBLANK(InfoPro!B124),"",InfoPro!B124) ->  | D124: =IF(ISBLANK(InfoPro!E124),"",InfoPro!E124) ->  | E124: =IF(ISBLANK(InfoPro!N124),"",InfoPro!N124) ->  | F124: =IF(ISBLANK(InfoPro!I124),"",YEAR(InfoPro!I124)-$J$2) -> 
B125: =IF(ISBLANK(InfoPro!A125),"",InfoPro!A125) ->  | C125: =IF(ISBLANK(InfoPro!B125),"",InfoPro!B125) ->  | D125: =IF(ISBLANK(InfoPro!E125),"",InfoPro!E125) ->  | E125: =IF(ISBLANK(InfoPro!N125),"",InfoPro!N125) ->  | F125: =IF(ISBLANK(InfoPro!I125),"",YEAR(InfoPro!I125)-$J$2) -> 
B126: =IF(ISBLANK(InfoPro!A126),"",InfoPro!A126) ->  | C126: =IF(ISBLANK(InfoPro!B126),"",InfoPro!B126) ->  | D126: =IF(ISBLANK(InfoPro!E126),"",InfoPro!E126) ->  | E126: =IF(ISBLANK(InfoPro!N126),"",InfoPro!N126) ->  | F126: =IF(ISBLANK(InfoPro!I126),"",YEAR(InfoPro!I126)-$J$2) -> 
B127: =IF(ISBLANK(InfoPro!A127),"",InfoPro!A127) ->  | C127: =IF(ISBLANK(InfoPro!B127),"",InfoPro!B127) ->  | D127: =IF(ISBLANK(InfoPro!E127),"",InfoPro!E127) ->  | E127: =IF(ISBLANK(InfoPro!N127),"",InfoPro!N127) ->  | F127: =IF(ISBLANK(InfoPro!I127),"",YEAR(InfoPro!I127)-$J$2) -> 
B128: =IF(ISBLANK(InfoPro!A128),"",InfoPro!A128) ->  | C128: =IF(ISBLANK(InfoPro!B128),"",InfoPro!B128) ->  | D128: =IF(ISBLANK(InfoPro!E128),"",InfoPro!E128) ->  | E128: =IF(ISBLANK(InfoPro!N128),"",InfoPro!N128) ->  | F128: =IF(ISBLANK(InfoPro!I128),"",YEAR(InfoPro!I128)-$J$2) -> 
B129: =IF(ISBLANK(InfoPro!A129),"",InfoPro!A129) ->  | C129: =IF(ISBLANK(InfoPro!B129),"",InfoPro!B129) ->  | D129: =IF(ISBLANK(InfoPro!E129),"",InfoPro!E129) ->  | E129: =IF(ISBLANK(InfoPro!N129),"",InfoPro!N129) ->  | F129: =IF(ISBLANK(InfoPro!I129),"",YEAR(InfoPro!I129)-$J$2) -> 
B130: =IF(ISBLANK(InfoPro!A130),"",InfoPro!A130) ->  | C130: =IF(ISBLANK(InfoPro!B130),"",InfoPro!B130) ->  | D130: =IF(ISBLANK(InfoPro!E130),"",InfoPro!E130) ->  | E130: =IF(ISBLANK(InfoPro!N130),"",InfoPro!N130) ->  | F130: =IF(ISBLANK(InfoPro!I130),"",YEAR(InfoPro!I130)-$J$2) -> 
B131: =IF(ISBLANK(InfoPro!A131),"",InfoPro!A131) ->  | C131: =IF(ISBLANK(InfoPro!B131),"",InfoPro!B131) ->  | D131: =IF(ISBLANK(InfoPro!E131),"",InfoPro!E131) ->  | E131: =IF(ISBLANK(InfoPro!N131),"",InfoPro!N131) ->  | F131: =IF(ISBLANK(InfoPro!I131),"",YEAR(InfoPro!I131)-$J$2) ->  | G131: =IF(E131="SI",100,IF(E131="NO",0,"")) ->  | H131: =IF(G131="","",(G131)) -> 
B132: =IF(ISBLANK(InfoPro!A132),"",InfoPro!A132) ->  | C132: =IF(ISBLANK(InfoPro!B132),"",InfoPro!B132) ->  | D132: =IF(ISBLANK(InfoPro!E132),"",InfoPro!E132) ->  | E132: =IF(ISBLANK(InfoPro!N132),"",InfoPro!N132) ->  | F132: =IF(ISBLANK(InfoPro!I132),"",YEAR(InfoPro!I132)-$J$2) -> 
B133: =IF(ISBLANK(InfoPro!A133),"",InfoPro!A133) ->  | C133: =IF(ISBLANK(InfoPro!B133),"",InfoPro!B133) ->  | D133: =IF(ISBLANK(InfoPro!E133),"",InfoPro!E133) ->  | E133: =IF(ISBLANK(InfoPro!N133),"",InfoPro!N133) ->  | F133: =IF(ISBLANK(InfoPro!I133),"",YEAR(InfoPro!I133)-$J$2) -> 
B134: =IF(ISBLANK(InfoPro!A134),"",InfoPro!A134) ->  | C134: =IF(ISBLANK(InfoPro!B134),"",InfoPro!B134) ->  | D134: =IF(ISBLANK(InfoPro!E134),"",InfoPro!E134) ->  | E134: =IF(ISBLANK(InfoPro!N134),"",InfoPro!N134) ->  | F134: =IF(ISBLANK(InfoPro!I134),"",YEAR(InfoPro!I134)-$J$2) -> 
B135: =IF(ISBLANK(InfoPro!A135),"",InfoPro!A135) ->  | C135: =IF(ISBLANK(InfoPro!B135),"",InfoPro!B135) ->  | D135: =IF(ISBLANK(InfoPro!E135),"",InfoPro!E135) ->  | E135: =IF(ISBLANK(InfoPro!N135),"",InfoPro!N135) ->  | F135: =IF(ISBLANK(InfoPro!I135),"",YEAR(InfoPro!I135)-$J$2) -> 
B136: =IF(ISBLANK(InfoPro!A136),"",InfoPro!A136) ->  | C136: =IF(ISBLANK(InfoPro!B136),"",InfoPro!B136) ->  | D136: =IF(ISBLANK(InfoPro!E136),"",InfoPro!E136) ->  | E136: =IF(ISBLANK(InfoPro!N136),"",InfoPro!N136) ->  | F136: =IF(ISBLANK(InfoPro!I136),"",YEAR(InfoPro!I136)-$J$2) -> 
B137: =IF(ISBLANK(InfoPro!A137),"",InfoPro!A137) ->  | C137: =IF(ISBLANK(InfoPro!B137),"",InfoPro!B137) ->  | D137: =IF(ISBLANK(InfoPro!E137),"",InfoPro!E137) ->  | E137: =IF(ISBLANK(InfoPro!N137),"",InfoPro!N137) ->  | F137: =IF(ISBLANK(InfoPro!I137),"",YEAR(InfoPro!I137)-$J$2) -> 
B138: =IF(ISBLANK(InfoPro!A138),"",InfoPro!A138) ->  | C138: =IF(ISBLANK(InfoPro!B138),"",InfoPro!B138) ->  | D138: =IF(ISBLANK(InfoPro!E138),"",InfoPro!E138) ->  | E138: =IF(ISBLANK(InfoPro!N138),"",InfoPro!N138) ->  | F138: =IF(ISBLANK(InfoPro!I138),"",YEAR(InfoPro!I138)-$J$2) -> 
B139: =IF(ISBLANK(InfoPro!A139),"",InfoPro!A139) ->  | C139: =IF(ISBLANK(InfoPro!B139),"",InfoPro!B139) ->  | D139: =IF(ISBLANK(InfoPro!E139),"",InfoPro!E139) ->  | E139: =IF(ISBLANK(InfoPro!N139),"",InfoPro!N139) ->  | F139: =IF(ISBLANK(InfoPro!I139),"",YEAR(InfoPro!I139)-$J$2) -> 
B140: =IF(ISBLANK(InfoPro!A140),"",InfoPro!A140) ->  | C140: =IF(ISBLANK(InfoPro!B140),"",InfoPro!B140) ->  | D140: =IF(ISBLANK(InfoPro!E140),"",InfoPro!E140) ->  | E140: =IF(ISBLANK(InfoPro!N140),"",InfoPro!N140) ->  | F140: =IF(ISBLANK(InfoPro!I140),"",YEAR(InfoPro!I140)-$J$2) -> 
B141: =IF(ISBLANK(InfoPro!A141),"",InfoPro!A141) ->  | C141: =IF(ISBLANK(InfoPro!B141),"",InfoPro!B141) ->  | D141: =IF(ISBLANK(InfoPro!E141),"",InfoPro!E141) ->  | E141: =IF(ISBLANK(InfoPro!N141),"",InfoPro!N141) ->  | F141: =IF(ISBLANK(InfoPro!I141),"",YEAR(InfoPro!I141)-$J$2) -> 
B142: =IF(ISBLANK(InfoPro!A142),"",InfoPro!A142) ->  | C142: =IF(ISBLANK(InfoPro!B142),"",InfoPro!B142) ->  | D142: =IF(ISBLANK(InfoPro!E142),"",InfoPro!E142) ->  | E142: =IF(ISBLANK(InfoPro!N142),"",InfoPro!N142) ->  | F142: =IF(ISBLANK(InfoPro!I142),"",YEAR(InfoPro!I142)-$J$2) -> 
B143: =IF(ISBLANK(InfoPro!A143),"",InfoPro!A143) ->  | C143: =IF(ISBLANK(InfoPro!B143),"",InfoPro!B143) ->  | D143: =IF(ISBLANK(InfoPro!E143),"",InfoPro!E143) ->  | E143: =IF(ISBLANK(InfoPro!N143),"",InfoPro!N143) ->  | F143: =IF(ISBLANK(InfoPro!I143),"",YEAR(InfoPro!I143)-$J$2) -> 
B144: =IF(ISBLANK(InfoPro!A144),"",InfoPro!A144) ->  | C144: =IF(ISBLANK(InfoPro!B144),"",InfoPro!B144) ->  | D144: =IF(ISBLANK(InfoPro!E144),"",InfoPro!E144) ->  | E144: =IF(ISBLANK(InfoPro!N144),"",InfoPro!N144) ->  | F144: =IF(ISBLANK(InfoPro!I144),"",YEAR(InfoPro!I144)-$J$2) -> 
B145: =IF(ISBLANK(InfoPro!A145),"",InfoPro!A145) ->  | C145: =IF(ISBLANK(InfoPro!B145),"",InfoPro!B145) ->  | D145: =IF(ISBLANK(InfoPro!E145),"",InfoPro!E145) ->  | E145: =IF(ISBLANK(InfoPro!N145),"",InfoPro!N145) ->  | F145: =IF(ISBLANK(InfoPro!I145),"",YEAR(InfoPro!I145)-$J$2) -> 
B146: =IF(ISBLANK(InfoPro!A146),"",InfoPro!A146) ->  | C146: =IF(ISBLANK(InfoPro!B146),"",InfoPro!B146) ->  | D146: =IF(ISBLANK(InfoPro!E146),"",InfoPro!E146) ->  | E146: =IF(ISBLANK(InfoPro!N146),"",InfoPro!N146) ->  | F146: =IF(ISBLANK(InfoPro!I146),"",YEAR(InfoPro!I146)-$J$2) -> 
B147: =IF(ISBLANK(InfoPro!A147),"",InfoPro!A147) ->  | C147: =IF(ISBLANK(InfoPro!B147),"",InfoPro!B147) ->  | D147: =IF(ISBLANK(InfoPro!E147),"",InfoPro!E147) ->  | E147: =IF(ISBLANK(InfoPro!N147),"",InfoPro!N147) ->  | F147: =IF(ISBLANK(InfoPro!I147),"",YEAR(InfoPro!I147)-$J$2) -> 
B148: =IF(ISBLANK(InfoPro!A148),"",InfoPro!A148) ->  | C148: =IF(ISBLANK(InfoPro!B148),"",InfoPro!B148) ->  | D148: =IF(ISBLANK(InfoPro!E148),"",InfoPro!E148) ->  | E148: =IF(ISBLANK(InfoPro!N148),"",InfoPro!N148) ->  | F148: =IF(ISBLANK(InfoPro!I148),"",YEAR(InfoPro!I148)-$J$2) -> 
B149: =IF(ISBLANK(InfoPro!A149),"",InfoPro!A149) ->  | C149: =IF(ISBLANK(InfoPro!B149),"",InfoPro!B149) ->  | D149: =IF(ISBLANK(InfoPro!E149),"",InfoPro!E149) ->  | E149: =IF(ISBLANK(InfoPro!N149),"",InfoPro!N149) ->  | F149: =IF(ISBLANK(InfoPro!I149),"",YEAR(InfoPro!I149)-$J$2) -> 
B150: =IF(ISBLANK(InfoPro!A150),"",InfoPro!A150) ->  | C150: =IF(ISBLANK(InfoPro!B150),"",InfoPro!B150) ->  | D150: =IF(ISBLANK(InfoPro!E150),"",InfoPro!E150) ->  | E150: =IF(ISBLANK(InfoPro!N150),"",InfoPro!N150) ->  | F150: =IF(ISBLANK(InfoPro!I150),"",YEAR(InfoPro!I150)-$J$2) -> 
B151: =IF(ISBLANK(InfoPro!A151),"",InfoPro!A151) ->  | C151: =IF(ISBLANK(InfoPro!B151),"",InfoPro!B151) ->  | D151: =IF(ISBLANK(InfoPro!E151),"",InfoPro!E151) ->  | E151: =IF(ISBLANK(InfoPro!N151),"",InfoPro!N151) ->  | F151: =IF(ISBLANK(InfoPro!I151),"",YEAR(InfoPro!I151)-$J$2) -> 
B152: =IF(ISBLANK(InfoPro!A152),"",InfoPro!A152) ->  | C152: =IF(ISBLANK(InfoPro!B152),"",InfoPro!B152) ->  | D152: =IF(ISBLANK(InfoPro!E152),"",InfoPro!E152) ->  | E152: =IF(ISBLANK(InfoPro!N152),"",InfoPro!N152) ->  | F152: =IF(ISBLANK(InfoPro!I152),"",YEAR(InfoPro!I152)-$J$2) -> 
B153: =IF(ISBLANK(InfoPro!A153),"",InfoPro!A153) ->  | C153: =IF(ISBLANK(InfoPro!B153),"",InfoPro!B153) ->  | D153: =IF(ISBLANK(InfoPro!E153),"",InfoPro!E153) ->  | E153: =IF(ISBLANK(InfoPro!N153),"",InfoPro!N153) ->  | F153: =IF(ISBLANK(InfoPro!I153),"",YEAR(InfoPro!I153)-$J$2) -> 
B154: =IF(ISBLANK(InfoPro!A154),"",InfoPro!A154) ->  | C154: =IF(ISBLANK(InfoPro!B154),"",InfoPro!B154) ->  | D154: =IF(ISBLANK(InfoPro!E154),"",InfoPro!E154) ->  | E154: =IF(ISBLANK(InfoPro!N154),"",InfoPro!N154) ->  | F154: =IF(ISBLANK(InfoPro!I154),"",YEAR(InfoPro!I154)-$J$2) -> 
B155: =IF(ISBLANK(InfoPro!A155),"",InfoPro!A155) ->  | C155: =IF(ISBLANK(InfoPro!B155),"",InfoPro!B155) ->  | D155: =IF(ISBLANK(InfoPro!E155),"",InfoPro!E155) ->  | E155: =IF(ISBLANK(InfoPro!N155),"",InfoPro!N155) ->  | F155: =IF(ISBLANK(InfoPro!I155),"",YEAR(InfoPro!I155)-$J$2) -> 
B156: =IF(ISBLANK(InfoPro!A156),"",InfoPro!A156) ->  | C156: =IF(ISBLANK(InfoPro!B156),"",InfoPro!B156) ->  | D156: =IF(ISBLANK(InfoPro!E156),"",InfoPro!E156) ->  | E156: =IF(ISBLANK(InfoPro!N156),"",InfoPro!N156) ->  | F156: =IF(ISBLANK(InfoPro!I156),"",YEAR(InfoPro!I156)-$J$2) -> 
B157: =IF(ISBLANK(InfoPro!A157),"",InfoPro!A157) ->  | C157: =IF(ISBLANK(InfoPro!B157),"",InfoPro!B157) ->  | D157: =IF(ISBLANK(InfoPro!E157),"",InfoPro!E157) ->  | E157: =IF(ISBLANK(InfoPro!N157),"",InfoPro!N157) ->  | F157: =IF(ISBLANK(InfoPro!I157),"",YEAR(InfoPro!I157)-$J$2) -> 
B158: =IF(ISBLANK(InfoPro!A158),"",InfoPro!A158) ->  | C158: =IF(ISBLANK(InfoPro!B158),"",InfoPro!B158) ->  | D158: =IF(ISBLANK(InfoPro!E158),"",InfoPro!E158) ->  | E158: =IF(ISBLANK(InfoPro!N158),"",InfoPro!N158) ->  | F158: =IF(ISBLANK(InfoPro!I158),"",YEAR(InfoPro!I158)-$J$2) -> 
B159: =IF(ISBLANK(InfoPro!A159),"",InfoPro!A159) ->  | C159: =IF(ISBLANK(InfoPro!B159),"",InfoPro!B159) ->  | D159: =IF(ISBLANK(InfoPro!E159),"",InfoPro!E159) ->  | E159: =IF(ISBLANK(InfoPro!N159),"",InfoPro!N159) ->  | F159: =IF(ISBLANK(InfoPro!I159),"",YEAR(InfoPro!I159)-$J$2) -> 
B160: =IF(ISBLANK(InfoPro!A160),"",InfoPro!A160) ->  | C160: =IF(ISBLANK(InfoPro!B160),"",InfoPro!B160) ->  | D160: =IF(ISBLANK(InfoPro!E160),"",InfoPro!E160) ->  | E160: =IF(ISBLANK(InfoPro!N160),"",InfoPro!N160) ->  | F160: =IF(ISBLANK(InfoPro!I160),"",YEAR(InfoPro!I160)-$J$2) -> 
B161: =IF(ISBLANK(InfoPro!A161),"",InfoPro!A161) ->  | C161: =IF(ISBLANK(InfoPro!B161),"",InfoPro!B161) ->  | D161: =IF(ISBLANK(InfoPro!E161),"",InfoPro!E161) ->  | E161: =IF(ISBLANK(InfoPro!N161),"",InfoPro!N161) ->  | F161: =IF(ISBLANK(InfoPro!I161),"",YEAR(InfoPro!I161)-$J$2) -> 
B162: =IF(ISBLANK(InfoPro!A162),"",InfoPro!A162) ->  | C162: =IF(ISBLANK(InfoPro!B162),"",InfoPro!B162) ->  | D162: =IF(ISBLANK(InfoPro!E162),"",InfoPro!E162) ->  | E162: =IF(ISBLANK(InfoPro!N162),"",InfoPro!N162) ->  | F162: =IF(ISBLANK(InfoPro!I162),"",YEAR(InfoPro!I162)-$J$2) -> 
B163: =IF(ISBLANK(InfoPro!A163),"",InfoPro!A163) ->  | C163: =IF(ISBLANK(InfoPro!B163),"",InfoPro!B163) ->  | D163: =IF(ISBLANK(InfoPro!E163),"",InfoPro!E163) ->  | E163: =IF(ISBLANK(InfoPro!N163),"",InfoPro!N163) ->  | F163: =IF(ISBLANK(InfoPro!I163),"",YEAR(InfoPro!I163)-$J$2) -> 
B164: =IF(ISBLANK(InfoPro!A164),"",InfoPro!A164) ->  | C164: =IF(ISBLANK(InfoPro!B164),"",InfoPro!B164) ->  | D164: =IF(ISBLANK(InfoPro!E164),"",InfoPro!E164) ->  | E164: =IF(ISBLANK(InfoPro!N164),"",InfoPro!N164) ->  | F164: =IF(ISBLANK(InfoPro!I164),"",YEAR(InfoPro!I164)-$J$2) -> 
B165: =IF(ISBLANK(InfoPro!A165),"",InfoPro!A165) ->  | C165: =IF(ISBLANK(InfoPro!B165),"",InfoPro!B165) ->  | D165: =IF(ISBLANK(InfoPro!E165),"",InfoPro!E165) ->  | E165: =IF(ISBLANK(InfoPro!N165),"",InfoPro!N165) ->  | F165: =IF(ISBLANK(InfoPro!I165),"",YEAR(InfoPro!I165)-$J$2) -> 
B166: =IF(ISBLANK(InfoPro!A166),"",InfoPro!A166) ->  | C166: =IF(ISBLANK(InfoPro!B166),"",InfoPro!B166) ->  | D166: =IF(ISBLANK(InfoPro!E166),"",InfoPro!E166) ->  | E166: =IF(ISBLANK(InfoPro!N166),"",InfoPro!N166) ->  | F166: =IF(ISBLANK(InfoPro!I166),"",YEAR(InfoPro!I166)-$J$2) -> 
B167: =IF(ISBLANK(InfoPro!A167),"",InfoPro!A167) ->  | C167: =IF(ISBLANK(InfoPro!B167),"",InfoPro!B167) ->  | D167: =IF(ISBLANK(InfoPro!E167),"",InfoPro!E167) ->  | E167: =IF(ISBLANK(InfoPro!N167),"",InfoPro!N167) ->  | F167: =IF(ISBLANK(InfoPro!I167),"",YEAR(InfoPro!I167)-$J$2) -> 
B168: =IF(ISBLANK(InfoPro!A168),"",InfoPro!A168) ->  | C168: =IF(ISBLANK(InfoPro!B168),"",InfoPro!B168) ->  | D168: =IF(ISBLANK(InfoPro!E168),"",InfoPro!E168) ->  | E168: =IF(ISBLANK(InfoPro!N168),"",InfoPro!N168) ->  | F168: =IF(ISBLANK(InfoPro!I168),"",YEAR(InfoPro!I168)-$J$2) -> 
B169: =IF(ISBLANK(InfoPro!A169),"",InfoPro!A169) ->  | C169: =IF(ISBLANK(InfoPro!B169),"",InfoPro!B169) ->  | D169: =IF(ISBLANK(InfoPro!E169),"",InfoPro!E169) ->  | E169: =IF(ISBLANK(InfoPro!N169),"",InfoPro!N169) ->  | F169: =IF(ISBLANK(InfoPro!I169),"",YEAR(InfoPro!I169)-$J$2) -> 
B170: =IF(ISBLANK(InfoPro!A170),"",InfoPro!A170) ->  | C170: =IF(ISBLANK(InfoPro!B170),"",InfoPro!B170) ->  | D170: =IF(ISBLANK(InfoPro!E170),"",InfoPro!E170) ->  | E170: =IF(ISBLANK(InfoPro!N170),"",InfoPro!N170) ->  | F170: =IF(ISBLANK(InfoPro!I170),"",YEAR(InfoPro!I170)-$J$2) -> 
B171: =IF(ISBLANK(InfoPro!A171),"",InfoPro!A171) ->  | C171: =IF(ISBLANK(InfoPro!B171),"",InfoPro!B171) ->  | D171: =IF(ISBLANK(InfoPro!E171),"",InfoPro!E171) ->  | E171: =IF(ISBLANK(InfoPro!N171),"",InfoPro!N171) ->  | F171: =IF(ISBLANK(InfoPro!I171),"",YEAR(InfoPro!I171)-$J$2) -> 
B172: =IF(ISBLANK(InfoPro!A172),"",InfoPro!A172) ->  | C172: =IF(ISBLANK(InfoPro!B172),"",InfoPro!B172) ->  | D172: =IF(ISBLANK(InfoPro!E172),"",InfoPro!E172) ->  | E172: =IF(ISBLANK(InfoPro!N172),"",InfoPro!N172) ->  | F172: =IF(ISBLANK(InfoPro!I172),"",YEAR(InfoPro!I172)-$J$2) -> 
B173: =IF(ISBLANK(InfoPro!A173),"",InfoPro!A173) ->  | C173: =IF(ISBLANK(InfoPro!B173),"",InfoPro!B173) ->  | D173: =IF(ISBLANK(InfoPro!E173),"",InfoPro!E173) ->  | E173: =IF(ISBLANK(InfoPro!N173),"",InfoPro!N173) ->  | F173: =IF(ISBLANK(InfoPro!I173),"",YEAR(InfoPro!I173)-$J$2) -> 
B174: =IF(ISBLANK(InfoPro!A174),"",InfoPro!A174) ->  | C174: =IF(ISBLANK(InfoPro!B174),"",InfoPro!B174) ->  | D174: =IF(ISBLANK(InfoPro!E174),"",InfoPro!E174) ->  | E174: =IF(ISBLANK(InfoPro!N174),"",InfoPro!N174) ->  | F174: =IF(ISBLANK(InfoPro!I174),"",YEAR(InfoPro!I174)-$J$2) -> 
B175: =IF(ISBLANK(InfoPro!A175),"",InfoPro!A175) ->  | C175: =IF(ISBLANK(InfoPro!B175),"",InfoPro!B175) ->  | D175: =IF(ISBLANK(InfoPro!E175),"",InfoPro!E175) ->  | E175: =IF(ISBLANK(InfoPro!N175),"",InfoPro!N175) ->  | F175: =IF(ISBLANK(InfoPro!I175),"",YEAR(InfoPro!I175)-$J$2) -> 
B176: =IF(ISBLANK(InfoPro!A176),"",InfoPro!A176) ->  | C176: =IF(ISBLANK(InfoPro!B176),"",InfoPro!B176) ->  | D176: =IF(ISBLANK(InfoPro!E176),"",InfoPro!E176) ->  | E176: =IF(ISBLANK(InfoPro!N176),"",InfoPro!N176) ->  | F176: =IF(ISBLANK(InfoPro!I176),"",YEAR(InfoPro!I176)-$J$2) -> 
B177: =IF(ISBLANK(InfoPro!A177),"",InfoPro!A177) ->  | C177: =IF(ISBLANK(InfoPro!B177),"",InfoPro!B177) ->  | D177: =IF(ISBLANK(InfoPro!E177),"",InfoPro!E177) ->  | E177: =IF(ISBLANK(InfoPro!N177),"",InfoPro!N177) ->  | F177: =IF(ISBLANK(InfoPro!I177),"",YEAR(InfoPro!I177)-$J$2) -> 
B178: =IF(ISBLANK(InfoPro!A178),"",InfoPro!A178) ->  | C178: =IF(ISBLANK(InfoPro!B178),"",InfoPro!B178) ->  | D178: =IF(ISBLANK(InfoPro!E178),"",InfoPro!E178) ->  | E178: =IF(ISBLANK(InfoPro!N178),"",InfoPro!N178) ->  | F178: =IF(ISBLANK(InfoPro!I178),"",YEAR(InfoPro!I178)-$J$2) -> 
B179: =IF(ISBLANK(InfoPro!A179),"",InfoPro!A179) ->  | C179: =IF(ISBLANK(InfoPro!B179),"",InfoPro!B179) ->  | D179: =IF(ISBLANK(InfoPro!E179),"",InfoPro!E179) ->  | E179: =IF(ISBLANK(InfoPro!N179),"",InfoPro!N179) ->  | F179: =IF(ISBLANK(InfoPro!I179),"",YEAR(InfoPro!I179)-$J$2) -> 
B180: =IF(ISBLANK(InfoPro!A180),"",InfoPro!A180) ->  | C180: =IF(ISBLANK(InfoPro!B180),"",InfoPro!B180) ->  | D180: =IF(ISBLANK(InfoPro!E180),"",InfoPro!E180) ->  | E180: =IF(ISBLANK(InfoPro!N180),"",InfoPro!N180) ->  | F180: =IF(ISBLANK(InfoPro!I180),"",YEAR(InfoPro!I180)-$J$2) -> 
B181: =IF(ISBLANK(InfoPro!A181),"",InfoPro!A181) ->  | C181: =IF(ISBLANK(InfoPro!B181),"",InfoPro!B181) ->  | D181: =IF(ISBLANK(InfoPro!E181),"",InfoPro!E181) ->  | E181: =IF(ISBLANK(InfoPro!N181),"",InfoPro!N181) ->  | F181: =IF(ISBLANK(InfoPro!I181),"",YEAR(InfoPro!I181)-$J$2) -> 
B182: =IF(ISBLANK(InfoPro!A182),"",InfoPro!A182) ->  | C182: =IF(ISBLANK(InfoPro!B182),"",InfoPro!B182) ->  | D182: =IF(ISBLANK(InfoPro!E182),"",InfoPro!E182) ->  | E182: =IF(ISBLANK(InfoPro!N182),"",InfoPro!N182) ->  | F182: =IF(ISBLANK(InfoPro!I182),"",YEAR(InfoPro!I182)-$J$2) -> 
B183: =IF(ISBLANK(InfoPro!A183),"",InfoPro!A183) ->  | C183: =IF(ISBLANK(InfoPro!B183),"",InfoPro!B183) ->  | D183: =IF(ISBLANK(InfoPro!E183),"",InfoPro!E183) ->  | E183: =IF(ISBLANK(InfoPro!N183),"",InfoPro!N183) ->  | F183: =IF(ISBLANK(InfoPro!I183),"",YEAR(InfoPro!I183)-$J$2) -> 
B184: =IF(ISBLANK(InfoPro!A184),"",InfoPro!A184) ->  | C184: =IF(ISBLANK(InfoPro!B184),"",InfoPro!B184) ->  | D184: =IF(ISBLANK(InfoPro!E184),"",InfoPro!E184) ->  | E184: =IF(ISBLANK(InfoPro!N184),"",InfoPro!N184) ->  | F184: =IF(ISBLANK(InfoPro!I184),"",YEAR(InfoPro!I184)-$J$2) -> 
B185: =IF(ISBLANK(InfoPro!A185),"",InfoPro!A185) ->  | C185: =IF(ISBLANK(InfoPro!B185),"",InfoPro!B185) ->  | D185: =IF(ISBLANK(InfoPro!E185),"",InfoPro!E185) ->  | E185: =IF(ISBLANK(InfoPro!N185),"",InfoPro!N185) ->  | F185: =IF(ISBLANK(InfoPro!I185),"",YEAR(InfoPro!I185)-$J$2) -> 
B186: =IF(ISBLANK(InfoPro!A186),"",InfoPro!A186) ->  | C186: =IF(ISBLANK(InfoPro!B186),"",InfoPro!B186) ->  | D186: =IF(ISBLANK(InfoPro!E186),"",InfoPro!E186) ->  | E186: =IF(ISBLANK(InfoPro!N186),"",InfoPro!N186) ->  | F186: =IF(ISBLANK(InfoPro!I186),"",YEAR(InfoPro!I186)-$J$2) -> 
B187: =IF(ISBLANK(InfoPro!A187),"",InfoPro!A187) ->  | C187: =IF(ISBLANK(InfoPro!B187),"",InfoPro!B187) ->  | D187: =IF(ISBLANK(InfoPro!E187),"",InfoPro!E187) ->  | E187: =IF(ISBLANK(InfoPro!N187),"",InfoPro!N187) ->  | F187: =IF(ISBLANK(InfoPro!I187),"",YEAR(InfoPro!I187)-$J$2) -> 

Sheet EC-RE
B3: Factor emisiones sistema | C3: 0.127283 | D3: Ton/MWh | F3: Año de Referencia | G3: 2023
B4: Tasa de descuento | C4: 0.118 | F4: Mínimo | G4: =MIN(Z9:Z400) -> -17642891.43
B5: Costo emisiones Ton | C5: 91.94 | D5: USD/Ton
B6: TRM | C6: 4070 | D6: COP/USD
J7: 0 | K7: 1 | L7: 2 | M7: 3 | N7: 4 | O7: 5 | P7: 6 | Q7: 7 | R7: 8 | S7: 9 | T7: 10 | U7: 11 | V7: 12 | W7: 13 | X7: 14
A8: Codigo | B8: Nombre | C8: capacidad | D8: tipo | E8: Año de entrada | F8: FP | G8: Factor emisiones | H8: Produccion media/a MWh/a | I8: Emisiones evitadas Ton/a | J8: Flujo Descontado 0 | K8: Flujo Descontado 1 | L8: Flujo Descontado 2 | M8: Flujo Descontado 3 | N8: Flujo Descontado 4 | O8: Flujo Descontado 5 | P8: Flujo Descontado 6 | Q8: Flujo Descontado 7 | R8: Flujo Descontado 8 | S8: Flujo Descontado 9 | T8: Flujo Descontado 10 | U8: Flujo Descontado 11 | V8: Flujo Descontado 12 | W8: Flujo Descontado 13 | X8: Flujo Descontado 14 | Y8: VPN | Z8: (Beneficio)/kW
A9: =IF(ISBLANK(InfoPro!A2),"",InfoPro!A2) -> SC_1323_A1 | B9: =IF(ISBLANK(InfoPro!B2),"",InfoPro!B2) -> GEN ARAUCA | C9: =IF(ISBLANK(InfoPro!E2),"",InfoPro!E2) -> 30 | D9: =IF(ISBLANK(InfoPro!F2),"",InfoPro!F2) -> Termica - Ciclo Abierto | E9: =IF(ISBLANK(InfoPro!I2),"",YEAR(InfoPro!I2)-$G$3) -> 0 | F9: =IF(B9="","",VLOOKUP(D9,Tablas!$B$2:$E$13,2,FALSE)) -> 0.85 | G9: =IF(B9="","",VLOOKUP(D9,Tablas!$B$2:$G$13,6,FALSE)) -> 0.95 | H9: =IF(C9="","",+C9*F9*24*365) -> 223380 | I9: =IF(H9="","",+H9*($C$3-G9)) -> -183778.5235 | J9: =IF($I9="","",(1/(1+$C$4)^(J$7+$E9))*$I9*$C$5) -> -16896597.45 | K9: =IF($I9="","",(1/(1+$C$4)^(K$7+$E9))*$I9*$C$5) -> -15113235.64 | L9: -13518099.86 | M9: -12091323.67 | N9: -10815137.45 | O9: -9673647.09 | P9: -8652636.038 | Q9: -7739388.227 | R9: -6922529.72 | S9: -6191887.048 | T9: -5538360.508 | U9: -4953810.83 | V9: -4430957.809 | W9: -3963289.632 | X9: -3544981.782 | Y9: =IF(X9="","",SUM(J9:X9)*$C$6) -> -5.292867428e+11 | Z9: =IF(C9=0,0,IF(Y9="","",Y9/(C9*1000))) -> -17642891.43
A10: =IF(ISBLANK(InfoPro!A3),"",InfoPro!A3) -> SC_1323_A2 | B10: =IF(ISBLANK(InfoPro!B3),"",InfoPro!B3) -> GEN ARAUCA | C10: =IF(ISBLANK(InfoPro!E3),"",InfoPro!E3) -> 30 | D10: =IF(ISBLANK(InfoPro!F3),"",InfoPro!F3) -> Termica - Ciclo Abierto | E10: =IF(ISBLANK(InfoPro!I3),"",YEAR(InfoPro!I3)-$G$3) -> 0 | F10: =IF(B10="","",VLOOKUP(D10,Tablas!$B$2:$E$13,2,FALSE)) -> 0.85 | G10: =IF(B10="","",VLOOKUP(D10,Tablas!$B$2:$G$13,6,FALSE)) -> 0.95 | H10: =IF(C10="","",+C10*F10*24*365) -> 223380 | I10: =IF(H10="","",+H10*($C$3-G10)) -> -183778.5235 | J10: -16896597.45 | K10: -15113235.64 | L10: -13518099.86 | M10: -12091323.67 | N10: -10815137.45 | O10: -9673647.09 | P10: -8652636.038 | Q10: -7739388.227 | R10: -6922529.72 | S10: -6191887.048 | T10: -5538360.508 | U10: -4953810.83 | V10: -4430957.809 | W10: -3963289.632 | X10: -3544981.782 | Y10: =IF(X10="","",SUM(J10:X10)*$C$6) -> -5.292867428e+11 | Z10: =IF(C10=0,0,IF(Y10="","",Y10/(C10*1000))) -> -17642891.43
A11: =IF(ISBLANK(InfoPro!A4),"",InfoPro!A4) -> SC_1323_A3 | B11: =IF(ISBLANK(InfoPro!B4),"",InfoPro!B4) -> GEN ARAUCA | C11: =IF(ISBLANK(InfoPro!E4),"",InfoPro!E4) -> 30 | D11: =IF(ISBLANK(InfoPro!F4),"",InfoPro!F4) -> Termica - Ciclo Abierto | E11: =IF(ISBLANK(InfoPro!I4),"",YEAR(InfoPro!I4)-$G$3) -> 0 | F11: =IF(B11="","",VLOOKUP(D11,Tablas!$B$2:$E$13,2,FALSE)) -> 0.85 | G11: =IF(B11="","",VLOOKUP(D11,Tablas!$B$2:$G$13,6,FALSE)) -> 0.95 | H11: =IF(C11="","",+C11*F11*24*365) -> 223380 | I11: -183778.5235 | J11: -16896597.45 | K11: -15113235.64 | L11: -13518099.86 | M11: -12091323.67 | N11: -10815137.45 | O11: -9673647.09 | P11: -8652636.038 | Q11: -7739388.227 | R11: -6922529.72 | S11: -6191887.048 | T11: -5538360.508 | U11: -4953810.83 | V11: -4430957.809 | W11: -3963289.632 | X11: -3544981.782 | Y11: -5.292867428e+11 | Z11: -17642891.43
A12: =IF(ISBLANK(InfoPro!A5),"",InfoPro!A5) ->  | B12: =IF(ISBLANK(InfoPro!B5),"",InfoPro!B5) ->  | C12: =IF(ISBLANK(InfoPro!E5),"",InfoPro!E5) ->  | D12: =IF(ISBLANK(InfoPro!F5),"",InfoPro!F5) ->  | E12: =IF(ISBLANK(InfoPro!I5),"",YEAR(InfoPro!I5)-$G$3) ->  | F12: =IF(B12="","",VLOOKUP(D12,Tablas!$B$2:$E$13,2,FALSE)) ->  | G12: =IF(B12="","",VLOOKUP(D12,Tablas!$B$2:$G$13,6,FALSE)) -> 
A13: =IF(ISBLANK(InfoPro!A6),"",InfoPro!A6) ->  | B13: =IF(ISBLANK(InfoPro!B6),"",InfoPro!B6) ->  | C13: =IF(ISBLANK(InfoPro!E6),"",InfoPro!E6) ->  | D13: =IF(ISBLANK(InfoPro!F6),"",InfoPro!F6) ->  | E13: =IF(ISBLANK(InfoPro!I6),"",YEAR(InfoPro!I6)-$G$3) ->  | F13: =IF(B13="","",VLOOKUP(D13,Tablas!$B$2:$E$13,2,FALSE)) ->  | G13: =IF(B13="","",VLOOKUP(D13,Tablas!$B$2:$G$13,6,FALSE)) -> 
A14: =IF(ISBLANK(InfoPro!A7),"",InfoPro!A7) ->  | B14: =IF(ISBLANK(InfoPro!B7),"",InfoPro!B7) ->  | C14: =IF(ISBLANK(InfoPro!E7),"",InfoPro!E7) ->  | D14: =IF(ISBLANK(InfoPro!F7),"",InfoPro!F7) ->  | E14: =IF(ISBLANK(InfoPro!I7),"",YEAR(InfoPro!I7)-$G$3) ->  | F14: =IF(B14="","",VLOOKUP(D14,Tablas!$B$2:$E$13,2,FALSE)) ->  | G14: =IF(B14="","",VLOOKUP(D14,Tablas!$B$2:$G$13,6,FALSE)) -> 
A15: =IF(ISBLANK(InfoPro!A8),"",InfoPro!A8) ->  | B15: =IF(ISBLANK(InfoPro!B8),"",InfoPro!B8) ->  | C15: =IF(ISBLANK(InfoPro!E8),"",InfoPro!E8) ->  | D15: =IF(ISBLANK(InfoPro!F8),"",InfoPro!F8) ->  | E15: =IF(ISBLANK(InfoPro!I8),"",YEAR(InfoPro!I8)-$G$3) ->  | F15: =IF(B15="","",VLOOKUP(D15,Tablas!$B$2:$E$13,2,FALSE)) ->  | G15: =IF(B15="","",VLOOKUP(D15,Tablas!$B$2:$G$13,6,FALSE)) -> 
A16: =IF(ISBLANK(InfoPro!A9),"",InfoPro!A9) ->  | B16: =IF(ISBLANK(InfoPro!B9),"",InfoPro!B9) ->  | C16: =IF(ISBLANK(InfoPro!E9),"",InfoPro!E9) ->  | D16: =IF(ISBLANK(InfoPro!F9),"",InfoPro!F9) ->  | E16: =IF(ISBLANK(InfoPro!I9),"",YEAR(InfoPro!I9)-$G$3) ->  | F16: =IF(B16="","",VLOOKUP(D16,Tablas!$B$2:$E$13,2,FALSE)) ->  | G16: =IF(B16="","",VLOOKUP(D16,Tablas!$B$2:$G$13,6,FALSE)) -> 
A17: =IF(ISBLANK(InfoPro!A10),"",InfoPro!A10) ->  | B17: =IF(ISBLANK(InfoPro!B10),"",InfoPro!B10) ->  | C17: =IF(ISBLANK(InfoPro!E10),"",InfoPro!E10) ->  | D17: =IF(ISBLANK(InfoPro!F10),"",InfoPro!F10) ->  | E17: =IF(ISBLANK(InfoPro!I10),"",YEAR(InfoPro!I10)-$G$3) ->  | F17: =IF(B17="","",VLOOKUP(D17,Tablas!$B$2:$E$13,2,FALSE)) ->  | G17: =IF(B17="","",VLOOKUP(D17,Tablas!$B$2:$G$13,6,FALSE)) -> 
A18: =IF(ISBLANK(InfoPro!A11),"",InfoPro!A11) ->  | B18: =IF(ISBLANK(InfoPro!B11),"",InfoPro!B11) ->  | C18: =IF(ISBLANK(InfoPro!E11),"",InfoPro!E11) ->  | D18: =IF(ISBLANK(InfoPro!F11),"",InfoPro!F11) ->  | E18: =IF(ISBLANK(InfoPro!I11),"",YEAR(InfoPro!I11)-$G$3) ->  | F18: =IF(B18="","",VLOOKUP(D18,Tablas!$B$2:$E$13,2,FALSE)) ->  | G18: =IF(B18="","",VLOOKUP(D18,Tablas!$B$2:$G$13,6,FALSE)) -> 
A19: =IF(ISBLANK(InfoPro!A12),"",InfoPro!A12) ->  | B19: =IF(ISBLANK(InfoPro!B12),"",InfoPro!B12) ->  | C19: =IF(ISBLANK(InfoPro!E12),"",InfoPro!E12) ->  | D19: =IF(ISBLANK(InfoPro!F12),"",InfoPro!F12) ->  | E19: =IF(ISBLANK(InfoPro!I12),"",YEAR(InfoPro!I12)-$G$3) ->  | F19: =IF(B19="","",VLOOKUP(D19,Tablas!$B$2:$E$13,2,FALSE)) ->  | G19: =IF(B19="","",VLOOKUP(D19,Tablas!$B$2:$G$13,6,FALSE)) ->  | J19: =IF($I19="","",(1/(1+$C$4)^(J$7+$E19))*$I19*$C$5) -> 
A20: =IF(ISBLANK(InfoPro!A13),"",InfoPro!A13) ->  | B20: =IF(ISBLANK(InfoPro!B13),"",InfoPro!B13) ->  | C20: =IF(ISBLANK(InfoPro!E13),"",InfoPro!E13) ->  | D20: =IF(ISBLANK(InfoPro!F13),"",InfoPro!F13) ->  | E20: =IF(ISBLANK(InfoPro!I13),"",YEAR(InfoPro!I13)-$G$3) ->  | F20: =IF(B20="","",VLOOKUP(D20,Tablas!$B$2:$E$13,2,FALSE)) ->  | G20: =IF(B20="","",VLOOKUP(D20,Tablas!$B$2:$G$13,6,FALSE)) -> 
A21: =IF(ISBLANK(InfoPro!A14),"",InfoPro!A14) ->  | B21: =IF(ISBLANK(InfoPro!B14),"",InfoPro!B14) ->  | C21: =IF(ISBLANK(InfoPro!E14),"",InfoPro!E14) ->  | D21: =IF(ISBLANK(InfoPro!F14),"",InfoPro!F14) ->  | E21: =IF(ISBLANK(InfoPro!I14),"",YEAR(InfoPro!I14)-$G$3) ->  | F21: =IF(B21="","",VLOOKUP(D21,Tablas!$B$2:$E$13,2,FALSE)) ->  | G21: =IF(B21="","",VLOOKUP(D21,Tablas!$B$2:$G$13,6,FALSE)) -> 
A22: =IF(ISBLANK(InfoPro!A15),"",InfoPro!A15) ->  | B22: =IF(ISBLANK(InfoPro!B15),"",InfoPro!B15) ->  | C22: =IF(ISBLANK(InfoPro!E15),"",InfoPro!E15) ->  | D22: =IF(ISBLANK(InfoPro!F15),"",InfoPro!F15) ->  | E22: =IF(ISBLANK(InfoPro!I15),"",YEAR(InfoPro!I15)-$G$3) ->  | F22: =IF(B22="","",VLOOKUP(D22,Tablas!$B$2:$E$13,2,FALSE)) ->  | G22: =IF(B22="","",VLOOKUP(D22,Tablas!$B$2:$G$13,6,FALSE)) -> 
A23: =IF(ISBLANK(InfoPro!A16),"",InfoPro!A16) ->  | B23: =IF(ISBLANK(InfoPro!B16),"",InfoPro!B16) ->  | C23: =IF(ISBLANK(InfoPro!E16),"",InfoPro!E16) ->  | D23: =IF(ISBLANK(InfoPro!F16),"",InfoPro!F16) ->  | E23: =IF(ISBLANK(InfoPro!I16),"",YEAR(InfoPro!I16)-$G$3) ->  | F23: =IF(B23="","",VLOOKUP(D23,Tablas!$B$2:$E$13,2,FALSE)) ->  | G23: =IF(B23="","",VLOOKUP(D23,Tablas!$B$2:$G$13,6,FALSE)) -> 
A24: =IF(ISBLANK(InfoPro!A17),"",InfoPro!A17) ->  | B24: =IF(ISBLANK(InfoPro!B17),"",InfoPro!B17) ->  | C24: =IF(ISBLANK(InfoPro!E17),"",InfoPro!E17) ->  | D24: =IF(ISBLANK(InfoPro!F17),"",InfoPro!F17) ->  | E24: =IF(ISBLANK(InfoPro!I17),"",YEAR(InfoPro!I17)-$G$3) ->  | F24: =IF(B24="","",VLOOKUP(D24,Tablas!$B$2:$E$13,2,FALSE)) ->  | G24: =IF(B24="","",VLOOKUP(D24,Tablas!$B$2:$G$13,6,FALSE)) -> 
A25: =IF(ISBLANK(InfoPro!A18),"",InfoPro!A18) ->  | B25: =IF(ISBLANK(InfoPro!B18),"",InfoPro!B18) ->  | C25: =IF(ISBLANK(InfoPro!E18),"",InfoPro!E18) ->  | D25: =IF(ISBLANK(InfoPro!F18),"",InfoPro!F18) ->  | E25: =IF(ISBLANK(InfoPro!I18),"",YEAR(InfoPro!I18)-$G$3) ->  | F25: =IF(B25="","",VLOOKUP(D25,Tablas!$B$2:$E$13,2,FALSE)) ->  | G25: =IF(B25="","",VLOOKUP(D25,Tablas!$B$2:$G$13,6,FALSE)) -> 
A26: =IF(ISBLANK(InfoPro!A19),"",InfoPro!A19) ->  | B26: =IF(ISBLANK(InfoPro!B19),"",InfoPro!B19) ->  | C26: =IF(ISBLANK(InfoPro!E19),"",InfoPro!E19) ->  | D26: =IF(ISBLANK(InfoPro!F19),"",InfoPro!F19) ->  | E26: =IF(ISBLANK(InfoPro!I19),"",YEAR(InfoPro!I19)-$G$3) ->  | F26: =IF(B26="","",VLOOKUP(D26,Tablas!$B$2:$E$13,2,FALSE)) ->  | G26: =IF(B26="","",VLOOKUP(D26,Tablas!$B$2:$G$13,6,FALSE)) -> 
A27: =IF(ISBLANK(InfoPro!A20),"",InfoPro!A20) ->  | B27: =IF(ISBLANK(InfoPro!B20),"",InfoPro!B20) ->  | C27: =IF(ISBLANK(InfoPro!E20),"",InfoPro!E20) ->  | D27: =IF(ISBLANK(InfoPro!F20),"",InfoPro!F20) ->  | E27: =IF(ISBLANK(InfoPro!I20),"",YEAR(InfoPro!I20)-$G$3) ->  | F27: =IF(B27="","",VLOOKUP(D27,Tablas!$B$2:$E$13,2,FALSE)) ->  | G27: =IF(B27="","",VLOOKUP(D27,Tablas!$B$2:$G$13,6,FALSE)) -> 
A28: =IF(ISBLANK(InfoPro!A21),"",InfoPro!A21) ->  | B28: =IF(ISBLANK(InfoPro!B21),"",InfoPro!B21) ->  | C28: =IF(ISBLANK(InfoPro!E21),"",InfoPro!E21) ->  | D28: =IF(ISBLANK(InfoPro!F21),"",InfoPro!F21) ->  | E28: =IF(ISBLANK(InfoPro!I21),"",YEAR(InfoPro!I21)-$G$3) ->  | F28: =IF(B28="","",VLOOKUP(D28,Tablas!$B$2:$E$13,2,FALSE)) ->  | G28: =IF(B28="","",VLOOKUP(D28,Tablas!$B$2:$G$13,6,FALSE)) -> 
A29: =IF(ISBLANK(InfoPro!A22),"",InfoPro!A22) ->  | B29: =IF(ISBLANK(InfoPro!B22),"",InfoPro!B22) ->  | C29: =IF(ISBLANK(InfoPro!E22),"",InfoPro!E22) ->  | D29: =IF(ISBLANK(InfoPro!F22),"",InfoPro!F22) ->  | E29: =IF(ISBLANK(InfoPro!I22),"",YEAR(InfoPro!I22)-$G$3) ->  | F29: =IF(B29="","",VLOOKUP(D29,Tablas!$B$2:$E$13,2,FALSE)) ->  | G29: =IF(B29="","",VLOOKUP(D29,Tablas!$B$2:$G$13,6,FALSE)) ->  | J29: =IF($I29="","",(1/(1+$C$4)^(J$7+$E29))*$I29*$C$5) -> 
A30: =IF(ISBLANK(InfoPro!A23),"",InfoPro!A23) ->  | B30: =IF(ISBLANK(InfoPro!B23),"",InfoPro!B23) ->  | C30: =IF(ISBLANK(InfoPro!E23),"",InfoPro!E23) ->  | D30: =IF(ISBLANK(InfoPro!F23),"",InfoPro!F23) ->  | E30: =IF(ISBLANK(InfoPro!I23),"",YEAR(InfoPro!I23)-$G$3) ->  | F30: =IF(B30="","",VLOOKUP(D30,Tablas!$B$2:$E$13,2,FALSE)) ->  | G30: =IF(B30="","",VLOOKUP(D30,Tablas!$B$2:$G$13,6,FALSE)) -> 
A31: =IF(ISBLANK(InfoPro!A24),"",InfoPro!A24) ->  | B31: =IF(ISBLANK(InfoPro!B24),"",InfoPro!B24) ->  | C31: =IF(ISBLANK(InfoPro!E24),"",InfoPro!E24) ->  | D31: =IF(ISBLANK(InfoPro!F24),"",InfoPro!F24) ->  | E31: =IF(ISBLANK(InfoPro!I24),"",YEAR(InfoPro!I24)-$G$3) ->  | F31: =IF(B31="","",VLOOKUP(D31,Tablas!$B$2:$E$13,2,FALSE)) ->  | G31: =IF(B31="","",VLOOKUP(D31,Tablas!$B$2:$G$13,6,FALSE)) -> 
A32: =IF(ISBLANK(InfoPro!A25),"",InfoPro!A25) ->  | B32: =IF(ISBLANK(InfoPro!B25),"",InfoPro!B25) ->  | C32: =IF(ISBLANK(InfoPro!E25),"",InfoPro!E25) ->  | D32: =IF(ISBLANK(InfoPro!F25),"",InfoPro!F25) ->  | E32: =IF(ISBLANK(InfoPro!I25),"",YEAR(InfoPro!I25)-$G$3) ->  | F32: =IF(B32="","",VLOOKUP(D32,Tablas!$B$2:$E$13,2,FALSE)) ->  | G32: =IF(B32="","",VLOOKUP(D32,Tablas!$B$2:$G$13,6,FALSE)) -> 
A33: =IF(ISBLANK(InfoPro!A26),"",InfoPro!A26) ->  | B33: =IF(ISBLANK(InfoPro!B26),"",InfoPro!B26) ->  | C33: =IF(ISBLANK(InfoPro!E26),"",InfoPro!E26) ->  | D33: =IF(ISBLANK(InfoPro!F26),"",InfoPro!F26) ->  | E33: =IF(ISBLANK(InfoPro!I26),"",YEAR(InfoPro!I26)-$G$3) ->  | F33: =IF(B33="","",VLOOKUP(D33,Tablas!$B$2:$E$13,2,FALSE)) ->  | G33: =IF(B33="","",VLOOKUP(D33,Tablas!$B$2:$G$13,6,FALSE)) -> 
A34: =IF(ISBLANK(InfoPro!A27),"",InfoPro!A27) ->  | B34: =IF(ISBLANK(InfoPro!B27),"",InfoPro!B27) ->  | C34: =IF(ISBLANK(InfoPro!E27),"",InfoPro!E27) ->  | D34: =IF(ISBLANK(InfoPro!F27),"",InfoPro!F27) ->  | E34: =IF(ISBLANK(InfoPro!I27),"",YEAR(InfoPro!I27)-$G$3) ->  | F34: =IF(B34="","",VLOOKUP(D34,Tablas!$B$2:$E$13,2,FALSE)) ->  | G34: =IF(B34="","",VLOOKUP(D34,Tablas!$B$2:$G$13,6,FALSE)) -> 
A35: =IF(ISBLANK(InfoPro!A28),"",InfoPro!A28) ->  | B35: =IF(ISBLANK(InfoPro!B28),"",InfoPro!B28) ->  | C35: =IF(ISBLANK(InfoPro!E28),"",InfoPro!E28) ->  | D35: =IF(ISBLANK(InfoPro!F28),"",InfoPro!F28) ->  | E35: =IF(ISBLANK(InfoPro!I28),"",YEAR(InfoPro!I28)-$G$3) ->  | F35: =IF(B35="","",VLOOKUP(D35,Tablas!$B$2:$E$13,2,FALSE)) ->  | G35: =IF(B35="","",VLOOKUP(D35,Tablas!$B$2:$G$13,6,FALSE)) -> 
A36: =IF(ISBLANK(InfoPro!A29),"",InfoPro!A29) ->  | B36: =IF(ISBLANK(InfoPro!B29),"",InfoPro!B29) ->  | C36: =IF(ISBLANK(InfoPro!E29),"",InfoPro!E29) ->  | D36: =IF(ISBLANK(InfoPro!F29),"",InfoPro!F29) ->  | E36: =IF(ISBLANK(InfoPro!I29),"",YEAR(InfoPro!I29)-$G$3) ->  | F36: =IF(B36="","",VLOOKUP(D36,Tablas!$B$2:$E$13,2,FALSE)) ->  | G36: =IF(B36="","",VLOOKUP(D36,Tablas!$B$2:$G$13,6,FALSE)) -> 
A37: =IF(ISBLANK(InfoPro!A30),"",InfoPro!A30) ->  | B37: =IF(ISBLANK(InfoPro!B30),"",InfoPro!B30) ->  | C37: =IF(ISBLANK(InfoPro!E30),"",InfoPro!E30) ->  | D37: =IF(ISBLANK(InfoPro!F30),"",InfoPro!F30) ->  | E37: =IF(ISBLANK(InfoPro!I30),"",YEAR(InfoPro!I30)-$G$3) ->  | F37: =IF(B37="","",VLOOKUP(D37,Tablas!$B$2:$E$13,2,FALSE)) ->  | G37: =IF(B37="","",VLOOKUP(D37,Tablas!$B$2:$G$13,6,FALSE)) -> 
A38: =IF(ISBLANK(InfoPro!A31),"",InfoPro!A31) ->  | B38: =IF(ISBLANK(InfoPro!B31),"",InfoPro!B31) ->  | C38: =IF(ISBLANK(InfoPro!E31),"",InfoPro!E31) ->  | D38: =IF(ISBLANK(InfoPro!F31),"",InfoPro!F31) ->  | E38: =IF(ISBLANK(InfoPro!I31),"",YEAR(InfoPro!I31)-$G$3) ->  | F38: =IF(B38="","",VLOOKUP(D38,Tablas!$B$2:$E$13,2,FALSE)) ->  | G38: =IF(B38="","",VLOOKUP(D38,Tablas!$B$2:$G$13,6,FALSE)) -> 
A39: =IF(ISBLANK(InfoPro!A32),"",InfoPro!A32) ->  | B39: =IF(ISBLANK(InfoPro!B32),"",InfoPro!B32) ->  | C39: =IF(ISBLANK(InfoPro!E32),"",InfoPro!E32) ->  | D39: =IF(ISBLANK(InfoPro!F32),"",InfoPro!F32) ->  | E39: =IF(ISBLANK(InfoPro!I32),"",YEAR(InfoPro!I32)-$G$3) ->  | F39: =IF(B39="","",VLOOKUP(D39,Tablas!$B$2:$E$13,2,FALSE)) ->  | G39: =IF(B39="","",VLOOKUP(D39,Tablas!$B$2:$G$13,6,FALSE)) ->  | J39: =IF($I39="","",(1/(1+$C$4)^(J$7+$E39))*$I39*$C$5) -> 
A40: =IF(ISBLANK(InfoPro!A33),"",InfoPro!A33) ->  | B40: =IF(ISBLANK(InfoPro!B33),"",InfoPro!B33) ->  | C40: =IF(ISBLANK(InfoPro!E33),"",InfoPro!E33) ->  | D40: =IF(ISBLANK(InfoPro!F33),"",InfoPro!F33) ->  | E40: =IF(ISBLANK(InfoPro!I33),"",YEAR(InfoPro!I33)-$G$3) ->  | F40: =IF(B40="","",VLOOKUP(D40,Tablas!$B$2:$E$13,2,FALSE)) ->  | G40: =IF(B40="","",VLOOKUP(D40,Tablas!$B$2:$G$13,6,FALSE)) -> 
A41: =IF(ISBLANK(InfoPro!A34),"",InfoPro!A34) ->  | B41: =IF(ISBLANK(InfoPro!B34),"",InfoPro!B34) ->  | C41: =IF(ISBLANK(InfoPro!E34),"",InfoPro!E34) ->  | D41: =IF(ISBLANK(InfoPro!F34),"",InfoPro!F34) ->  | E41: =IF(ISBLANK(InfoPro!I34),"",YEAR(InfoPro!I34)-$G$3) ->  | F41: =IF(B41="","",VLOOKUP(D41,Tablas!$B$2:$E$13,2,FALSE)) ->  | G41: =IF(B41="","",VLOOKUP(D41,Tablas!$B$2:$G$13,6,FALSE)) ->  | H41: =IF(C41="","",+C41*F41*24*365) ->  | I41: =IF(H41="","",+H41*($C$3-G41)) -> 
A42: =IF(ISBLANK(InfoPro!A35),"",InfoPro!A35) ->  | B42: =IF(ISBLANK(InfoPro!B35),"",InfoPro!B35) ->  | C42: =IF(ISBLANK(InfoPro!E35),"",InfoPro!E35) ->  | D42: =IF(ISBLANK(InfoPro!F35),"",InfoPro!F35) ->  | E42: =IF(ISBLANK(InfoPro!I35),"",YEAR(InfoPro!I35)-$G$3) ->  | F42: =IF(B42="","",VLOOKUP(D42,Tablas!$B$2:$E$13,2,FALSE)) ->  | G42: =IF(B42="","",VLOOKUP(D42,Tablas!$B$2:$G$13,6,FALSE)) -> 
A43: =IF(ISBLANK(InfoPro!A36),"",InfoPro!A36) ->  | B43: =IF(ISBLANK(InfoPro!B36),"",InfoPro!B36) ->  | C43: =IF(ISBLANK(InfoPro!E36),"",InfoPro!E36) ->  | D43: =IF(ISBLANK(InfoPro!F36),"",InfoPro!F36) ->  | E43: =IF(ISBLANK(InfoPro!I36),"",YEAR(InfoPro!I36)-$G$3) ->  | F43: =IF(B43="","",VLOOKUP(D43,Tablas!$B$2:$E$13,2,FALSE)) ->  | G43: =IF(B43="","",VLOOKUP(D43,Tablas!$B$2:$G$13,6,FALSE)) -> 
A44: =IF(ISBLANK(InfoPro!A37),"",InfoPro!A37) ->  | B44: =IF(ISBLANK(InfoPro!B37),"",InfoPro!B37) ->  | C44: =IF(ISBLANK(InfoPro!E37),"",InfoPro!E37) ->  | D44: =IF(ISBLANK(InfoPro!F37),"",InfoPro!F37) ->  | E44: =IF(ISBLANK(InfoPro!I37),"",YEAR(InfoPro!I37)-$G$3) ->  | F44: =IF(B44="","",VLOOKUP(D44,Tablas!$B$2:$E$13,2,FALSE)) ->  | G44: =IF(B44="","",VLOOKUP(D44,Tablas!$B$2:$G$13,6,FALSE)) -> 
A45: =IF(ISBLANK(InfoPro!A38),"",InfoPro!A38) ->  | B45: =IF(ISBLANK(InfoPro!B38),"",InfoPro!B38) ->  | C45: =IF(ISBLANK(InfoPro!E38),"",InfoPro!E38) ->  | D45: =IF(ISBLANK(InfoPro!F38),"",InfoPro!F38) ->  | E45: =IF(ISBLANK(InfoPro!I38),"",YEAR(InfoPro!I38)-$G$3) ->  | F45: =IF(B45="","",VLOOKUP(D45,Tablas!$B$2:$E$13,2,FALSE)) ->  | G45: =IF(B45="","",VLOOKUP(D45,Tablas!$B$2:$G$13,6,FALSE)) -> 
A46: =IF(ISBLANK(InfoPro!A39),"",InfoPro!A39) ->  | B46: =IF(ISBLANK(InfoPro!B39),"",InfoPro!B39) ->  | C46: =IF(ISBLANK(InfoPro!E39),"",InfoPro!E39) ->  | D46: =IF(ISBLANK(InfoPro!F39),"",InfoPro!F39) ->  | E46: =IF(ISBLANK(InfoPro!I39),"",YEAR(InfoPro!I39)-$G$3) ->  | F46: =IF(B46="","",VLOOKUP(D46,Tablas!$B$2:$E$13,2,FALSE)) ->  | G46: =IF(B46="","",VLOOKUP(D46,Tablas!$B$2:$G$13,6,FALSE)) -> 
A47: =IF(ISBLANK(InfoPro!A40),"",InfoPro!A40) ->  | B47: =IF(ISBLANK(InfoPro!B40),"",InfoPro!B40) ->  | C47: =IF(ISBLANK(InfoPro!E40),"",InfoPro!E40) ->  | D47: =IF(ISBLANK(InfoPro!F40),"",InfoPro!F40) ->  | E47: =IF(ISBLANK(InfoPro!I40),"",YEAR(InfoPro!I40)-$G$3) ->  | F47: =IF(B47="","",VLOOKUP(D47,Tablas!$B$2:$E$13,2,FALSE)) ->  | G47: =IF(B47="","",VLOOKUP(D47,Tablas!$B$2:$G$13,6,FALSE)) -> 
A48: =IF(ISBLANK(InfoPro!A41),"",InfoPro!A41) ->  | B48: =IF(ISBLANK(InfoPro!B41),"",InfoPro!B41) ->  | C48: =IF(ISBLANK(InfoPro!E41),"",InfoPro!E41) ->  | D48: =IF(ISBLANK(InfoPro!F41),"",InfoPro!F41) ->  | E48: =IF(ISBLANK(InfoPro!I41),"",YEAR(InfoPro!I41)-$G$3) ->  | F48: =IF(B48="","",VLOOKUP(D48,Tablas!$B$2:$E$13,2,FALSE)) ->  | G48: =IF(B48="","",VLOOKUP(D48,Tablas!$B$2:$G$13,6,FALSE)) -> 
A49: =IF(ISBLANK(InfoPro!A42),"",InfoPro!A42) ->  | B49: =IF(ISBLANK(InfoPro!B42),"",InfoPro!B42) ->  | C49: =IF(ISBLANK(InfoPro!E42),"",InfoPro!E42) ->  | D49: =IF(ISBLANK(InfoPro!F42),"",InfoPro!F42) ->  | E49: =IF(ISBLANK(InfoPro!I42),"",YEAR(InfoPro!I42)-$G$3) ->  | F49: =IF(B49="","",VLOOKUP(D49,Tablas!$B$2:$E$13,2,FALSE)) ->  | G49: =IF(B49="","",VLOOKUP(D49,Tablas!$B$2:$G$13,6,FALSE)) ->  | J49: =IF($I49="","",(1/(1+$C$4)^(J$7+$E49))*$I49*$C$5) -> 
A50: =IF(ISBLANK(InfoPro!A43),"",InfoPro!A43) ->  | B50: =IF(ISBLANK(InfoPro!B43),"",InfoPro!B43) ->  | C50: =IF(ISBLANK(InfoPro!E43),"",InfoPro!E43) ->  | D50: =IF(ISBLANK(InfoPro!F43),"",InfoPro!F43) ->  | E50: =IF(ISBLANK(InfoPro!I43),"",YEAR(InfoPro!I43)-$G$3) ->  | F50: =IF(B50="","",VLOOKUP(D50,Tablas!$B$2:$E$13,2,FALSE)) ->  | G50: =IF(B50="","",VLOOKUP(D50,Tablas!$B$2:$G$13,6,FALSE)) -> 
A51: =IF(ISBLANK(InfoPro!A44),"",InfoPro!A44) ->  | B51: =IF(ISBLANK(InfoPro!B44),"",InfoPro!B44) ->  | C51: =IF(ISBLANK(InfoPro!E44),"",InfoPro!E44) ->  | D51: =IF(ISBLANK(InfoPro!F44),"",InfoPro!F44) ->  | E51: =IF(ISBLANK(InfoPro!I44),"",YEAR(InfoPro!I44)-$G$3) ->  | F51: =IF(B51="","",VLOOKUP(D51,Tablas!$B$2:$E$13,2,FALSE)) ->  | G51: =IF(B51="","",VLOOKUP(D51,Tablas!$B$2:$G$13,6,FALSE)) -> 
A52: =IF(ISBLANK(InfoPro!A45),"",InfoPro!A45) ->  | B52: =IF(ISBLANK(InfoPro!B45),"",InfoPro!B45) ->  | C52: =IF(ISBLANK(InfoPro!E45),"",InfoPro!E45) ->  | D52: =IF(ISBLANK(InfoPro!F45),"",InfoPro!F45) ->  | E52: =IF(ISBLANK(InfoPro!I45),"",YEAR(InfoPro!I45)-$G$3) ->  | F52: =IF(B52="","",VLOOKUP(D52,Tablas!$B$2:$E$13,2,FALSE)) ->  | G52: =IF(B52="","",VLOOKUP(D52,Tablas!$B$2:$G$13,6,FALSE)) -> 
A53: =IF(ISBLANK(InfoPro!A46),"",InfoPro!A46) ->  | B53: =IF(ISBLANK(InfoPro!B46),"",InfoPro!B46) ->  | C53: =IF(ISBLANK(InfoPro!E46),"",InfoPro!E46) ->  | D53: =IF(ISBLANK(InfoPro!F46),"",InfoPro!F46) ->  | E53: =IF(ISBLANK(InfoPro!I46),"",YEAR(InfoPro!I46)-$G$3) ->  | F53: =IF(B53="","",VLOOKUP(D53,Tablas!$B$2:$E$13,2,FALSE)) ->  | G53: =IF(B53="","",VLOOKUP(D53,Tablas!$B$2:$G$13,6,FALSE)) -> 
A54: =IF(ISBLANK(InfoPro!A47),"",InfoPro!A47) ->  | B54: =IF(ISBLANK(InfoPro!B47),"",InfoPro!B47) ->  | C54: =IF(ISBLANK(InfoPro!E47),"",InfoPro!E47) ->  | D54: =IF(ISBLANK(InfoPro!F47),"",InfoPro!F47) ->  | E54: =IF(ISBLANK(InfoPro!I47),"",YEAR(InfoPro!I47)-$G$3) ->  | F54: =IF(B54="","",VLOOKUP(D54,Tablas!$B$2:$E$13,2,FALSE)) ->  | G54: =IF(B54="","",VLOOKUP(D54,Tablas!$B$2:$G$13,6,FALSE)) -> 
A55: =IF(ISBLANK(InfoPro!A48),"",InfoPro!A48) ->  | B55: =IF(ISBLANK(InfoPro!B48),"",InfoPro!B48) ->  | C55: =IF(ISBLANK(InfoPro!E48),"",InfoPro!E48) ->  | D55: =IF(ISBLANK(InfoPro!F48),"",InfoPro!F48) ->  | E55: =IF(ISBLANK(InfoPro!I48),"",YEAR(InfoPro!I48)-$G$3) ->  | F55: =IF(B55="","",VLOOKUP(D55,Tablas!$B$2:$E$13,2,FALSE)) ->  | G55: =IF(B55="","",VLOOKUP(D55,Tablas!$B$2:$G$13,6,FALSE)) -> 
A56: =IF(ISBLANK(InfoPro!A49),"",InfoPro!A49) ->  | B56: =IF(ISBLANK(InfoPro!B49),"",InfoPro!B49) ->  | C56: =IF(ISBLANK(InfoPro!E49),"",InfoPro!E49) ->  | D56: =IF(ISBLANK(InfoPro!F49),"",InfoPro!F49) ->  | E56: =IF(ISBLANK(InfoPro!I49),"",YEAR(InfoPro!I49)-$G$3) ->  | F56: =IF(B56="","",VLOOKUP(D56,Tablas!$B$2:$E$13,2,FALSE)) ->  | G56: =IF(B56="","",VLOOKUP(D56,Tablas!$B$2:$G$13,6,FALSE)) -> 
A57: =IF(ISBLANK(InfoPro!A50),"",InfoPro!A50) ->  | B57: =IF(ISBLANK(InfoPro!B50),"",InfoPro!B50) ->  | C57: =IF(ISBLANK(InfoPro!E50),"",InfoPro!E50) ->  | D57: =IF(ISBLANK(InfoPro!F50),"",InfoPro!F50) ->  | E57: =IF(ISBLANK(InfoPro!I50),"",YEAR(InfoPro!I50)-$G$3) ->  | F57: =IF(B57="","",VLOOKUP(D57,Tablas!$B$2:$E$13,2,FALSE)) ->  | G57: =IF(B57="","",VLOOKUP(D57,Tablas!$B$2:$G$13,6,FALSE)) -> 
A58: =IF(ISBLANK(InfoPro!A51),"",InfoPro!A51) ->  | B58: =IF(ISBLANK(InfoPro!B51),"",InfoPro!B51) ->  | C58: =IF(ISBLANK(InfoPro!E51),"",InfoPro!E51) ->  | D58: =IF(ISBLANK(InfoPro!F51),"",InfoPro!F51) ->  | E58: =IF(ISBLANK(InfoPro!I51),"",YEAR(InfoPro!I51)-$G$3) ->  | F58: =IF(B58="","",VLOOKUP(D58,Tablas!$B$2:$E$13,2,FALSE)) ->  | G58: =IF(B58="","",VLOOKUP(D58,Tablas!$B$2:$G$13,6,FALSE)) -> 
A59: =IF(ISBLANK(InfoPro!A52),"",InfoPro!A52) ->  | B59: =IF(ISBLANK(InfoPro!B52),"",InfoPro!B52) ->  | C59: =IF(ISBLANK(InfoPro!E52),"",InfoPro!E52) ->  | D59: =IF(ISBLANK(InfoPro!F52),"",InfoPro!F52) ->  | E59: =IF(ISBLANK(InfoPro!I52),"",YEAR(InfoPro!I52)-$G$3) ->  | F59: =IF(B59="","",VLOOKUP(D59,Tablas!$B$2:$E$13,2,FALSE)) ->  | G59: =IF(B59="","",VLOOKUP(D59,Tablas!$B$2:$G$13,6,FALSE)) ->  | J59: =IF($I59="","",(1/(1+$C$4)^(J$7+$E59))*$I59*$C$5) -> 
A60: =IF(ISBLANK(InfoPro!A53),"",InfoPro!A53) ->  | B60: =IF(ISBLANK(InfoPro!B53),"",InfoPro!B53) ->  | C60: =IF(ISBLANK(InfoPro!E53),"",InfoPro!E53) ->  | D60: =IF(ISBLANK(InfoPro!F53),"",InfoPro!F53) ->  | E60: =IF(ISBLANK(InfoPro!I53),"",YEAR(InfoPro!I53)-$G$3) ->  | F60: =IF(B60="","",VLOOKUP(D60,Tablas!$B$2:$E$13,2,FALSE)) ->  | G60: =IF(B60="","",VLOOKUP(D60,Tablas!$B$2:$G$13,6,FALSE)) -> 
A61: =IF(ISBLANK(InfoPro!A54),"",InfoPro!A54) ->  | B61: =IF(ISBLANK(InfoPro!B54),"",InfoPro!B54) ->  | C61: =IF(ISBLANK(InfoPro!E54),"",InfoPro!E54) ->  | D61: =IF(ISBLANK(InfoPro!F54),"",InfoPro!F54) ->  | E61: =IF(ISBLANK(InfoPro!I54),"",YEAR(InfoPro!I54)-$G$3) ->  | F61: =IF(B61="","",VLOOKUP(D61,Tablas!$B$2:$E$13,2,FALSE)) ->  | G61: =IF(B61="","",VLOOKUP(D61,Tablas!$B$2:$G$13,6,FALSE)) -> 
A62: =IF(ISBLANK(InfoPro!A55),"",InfoPro!A55) ->  | B62: =IF(ISBLANK(InfoPro!B55),"",InfoPro!B55) ->  | C62: =IF(ISBLANK(InfoPro!E55),"",InfoPro!E55) ->  | D62: =IF(ISBLANK(InfoPro!F55),"",InfoPro!F55) ->  | E62: =IF(ISBLANK(InfoPro!I55),"",YEAR(InfoPro!I55)-$G$3) ->  | F62: =IF(B62="","",VLOOKUP(D62,Tablas!$B$2:$E$13,2,FALSE)) ->  | G62: =IF(B62="","",VLOOKUP(D62,Tablas!$B$2:$G$13,6,FALSE)) -> 
A63: =IF(ISBLANK(InfoPro!A56),"",InfoPro!A56) ->  | B63: =IF(ISBLANK(InfoPro!B56),"",InfoPro!B56) ->  | C63: =IF(ISBLANK(InfoPro!E56),"",InfoPro!E56) ->  | D63: =IF(ISBLANK(InfoPro!F56),"",InfoPro!F56) ->  | E63: =IF(ISBLANK(InfoPro!I56),"",YEAR(InfoPro!I56)-$G$3) ->  | F63: =IF(B63="","",VLOOKUP(D63,Tablas!$B$2:$E$13,2,FALSE)) ->  | G63: =IF(B63="","",VLOOKUP(D63,Tablas!$B$2:$G$13,6,FALSE)) -> 
A64: =IF(ISBLANK(InfoPro!A57),"",InfoPro!A57) ->  | B64: =IF(ISBLANK(InfoPro!B57),"",InfoPro!B57) ->  | C64: =IF(ISBLANK(InfoPro!E57),"",InfoPro!E57) ->  | D64: =IF(ISBLANK(InfoPro!F57),"",InfoPro!F57) ->  | E64: =IF(ISBLANK(InfoPro!I57),"",YEAR(InfoPro!I57)-$G$3) ->  | F64: =IF(B64="","",VLOOKUP(D64,Tablas!$B$2:$E$13,2,FALSE)) ->  | G64: =IF(B64="","",VLOOKUP(D64,Tablas!$B$2:$G$13,6,FALSE)) -> 
A65: =IF(ISBLANK(InfoPro!A58),"",InfoPro!A58) ->  | B65: =IF(ISBLANK(InfoPro!B58),"",InfoPro!B58) ->  | C65: =IF(ISBLANK(InfoPro!E58),"",InfoPro!E58) ->  | D65: =IF(ISBLANK(InfoPro!F58),"",InfoPro!F58) ->  | E65: =IF(ISBLANK(InfoPro!I58),"",YEAR(InfoPro!I58)-$G$3) ->  | F65: =IF(B65="","",VLOOKUP(D65,Tablas!$B$2:$E$13,2,FALSE)) ->  | G65: =IF(B65="","",VLOOKUP(D65,Tablas!$B$2:$G$13,6,FALSE)) -> 
A66: =IF(ISBLANK(InfoPro!A59),"",InfoPro!A59) ->  | B66: =IF(ISBLANK(InfoPro!B59),"",InfoPro!B59) ->  | C66: =IF(ISBLANK(InfoPro!E59),"",InfoPro!E59) ->  | D66: =IF(ISBLANK(InfoPro!F59),"",InfoPro!F59) ->  | E66: =IF(ISBLANK(InfoPro!I59),"",YEAR(InfoPro!I59)-$G$3) ->  | F66: =IF(B66="","",VLOOKUP(D66,Tablas!$B$2:$E$13,2,FALSE)) ->  | G66: =IF(B66="","",VLOOKUP(D66,Tablas!$B$2:$G$13,6,FALSE)) -> 
A67: =IF(ISBLANK(InfoPro!A60),"",InfoPro!A60) ->  | B67: =IF(ISBLANK(InfoPro!B60),"",InfoPro!B60) ->  | C67: =IF(ISBLANK(InfoPro!E60),"",InfoPro!E60) ->  | D67: =IF(ISBLANK(InfoPro!F60),"",InfoPro!F60) ->  | E67: =IF(ISBLANK(InfoPro!I60),"",YEAR(InfoPro!I60)-$G$3) ->  | F67: =IF(B67="","",VLOOKUP(D67,Tablas!$B$2:$E$13,2,FALSE)) ->  | G67: =IF(B67="","",VLOOKUP(D67,Tablas!$B$2:$G$13,6,FALSE)) -> 
A68: =IF(ISBLANK(InfoPro!A61),"",InfoPro!A61) ->  | B68: =IF(ISBLANK(InfoPro!B61),"",InfoPro!B61) ->  | C68: =IF(ISBLANK(InfoPro!E61),"",InfoPro!E61) ->  | D68: =IF(ISBLANK(InfoPro!F61),"",InfoPro!F61) ->  | E68: =IF(ISBLANK(InfoPro!I61),"",YEAR(InfoPro!I61)-$G$3) ->  | F68: =IF(B68="","",VLOOKUP(D68,Tablas!$B$2:$E$13,2,FALSE)) ->  | G68: =IF(B68="","",VLOOKUP(D68,Tablas!$B$2:$G$13,6,FALSE)) -> 
A69: =IF(ISBLANK(InfoPro!A62),"",InfoPro!A62) ->  | B69: =IF(ISBLANK(InfoPro!B62),"",InfoPro!B62) ->  | C69: =IF(ISBLANK(InfoPro!E62),"",InfoPro!E62) ->  | D69: =IF(ISBLANK(InfoPro!F62),"",InfoPro!F62) ->  | E69: =IF(ISBLANK(InfoPro!I62),"",YEAR(InfoPro!I62)-$G$3) ->  | F69: =IF(B69="","",VLOOKUP(D69,Tablas!$B$2:$E$13,2,FALSE)) ->  | G69: =IF(B69="","",VLOOKUP(D69,Tablas!$B$2:$G$13,6,FALSE)) ->  | J69: =IF($I69="","",(1/(1+$C$4)^(J$7+$E69))*$I69*$C$5) -> 
A70: =IF(ISBLANK(InfoPro!A63),"",InfoPro!A63) ->  | B70: =IF(ISBLANK(InfoPro!B63),"",InfoPro!B63) ->  | C70: =IF(ISBLANK(InfoPro!E63),"",InfoPro!E63) ->  | D70: =IF(ISBLANK(InfoPro!F63),"",InfoPro!F63) ->  | E70: =IF(ISBLANK(InfoPro!I63),"",YEAR(InfoPro!I63)-$G$3) ->  | F70: =IF(B70="","",VLOOKUP(D70,Tablas!$B$2:$E$13,2,FALSE)) ->  | G70: =IF(B70="","",VLOOKUP(D70,Tablas!$B$2:$G$13,6,FALSE)) -> 
A71: =IF(ISBLANK(InfoPro!A64),"",InfoPro!A64) ->  | B71: =IF(ISBLANK(InfoPro!B64),"",InfoPro!B64) ->  | C71: =IF(ISBLANK(InfoPro!E64),"",InfoPro!E64) ->  | D71: =IF(ISBLANK(InfoPro!F64),"",InfoPro!F64) ->  | E71: =IF(ISBLANK(InfoPro!I64),"",YEAR(InfoPro!I64)-$G$3) ->  | F71: =IF(B71="","",VLOOKUP(D71,Tablas!$B$2:$E$13,2,FALSE)) ->  | G71: =IF(B71="","",VLOOKUP(D71,Tablas!$B$2:$G$13,6,FALSE)) -> 
A72: =IF(ISBLANK(InfoPro!A65),"",InfoPro!A65) ->  | B72: =IF(ISBLANK(InfoPro!B65),"",InfoPro!B65) ->  | C72: =IF(ISBLANK(InfoPro!E65),"",InfoPro!E65) ->  | D72: =IF(ISBLANK(InfoPro!F65),"",InfoPro!F65) ->  | E72: =IF(ISBLANK(InfoPro!I65),"",YEAR(InfoPro!I65)-$G$3) ->  | F72: =IF(B72="","",VLOOKUP(D72,Tablas!$B$2:$E$13,2,FALSE)) ->  | G72: =IF(B72="","",VLOOKUP(D72,Tablas!$B$2:$G$13,6,FALSE)) -> 
A73: =IF(ISBLANK(InfoPro!A66),"",InfoPro!A66) ->  | B73: =IF(ISBLANK(InfoPro!B66),"",InfoPro!B66) ->  | C73: =IF(ISBLANK(InfoPro!E66),"",InfoPro!E66) ->  | D73: =IF(ISBLANK(InfoPro!F66),"",InfoPro!F66) ->  | E73: =IF(ISBLANK(InfoPro!I66),"",YEAR(InfoPro!I66)-$G$3) ->  | F73: =IF(B73="","",VLOOKUP(D73,Tablas!$B$2:$E$13,2,FALSE)) ->  | G73: =IF(B73="","",VLOOKUP(D73,Tablas!$B$2:$G$13,6,FALSE)) ->  | H73: =IF(C73="","",+C73*F73*24*365) ->  | I73: =IF(H73="","",+H73*($C$3-G73)) -> 
A74: =IF(ISBLANK(InfoPro!A67),"",InfoPro!A67) ->  | B74: =IF(ISBLANK(InfoPro!B67),"",InfoPro!B67) ->  | C74: =IF(ISBLANK(InfoPro!E67),"",InfoPro!E67) ->  | D74: =IF(ISBLANK(InfoPro!F67),"",InfoPro!F67) ->  | E74: =IF(ISBLANK(InfoPro!I67),"",YEAR(InfoPro!I67)-$G$3) ->  | F74: =IF(B74="","",VLOOKUP(D74,Tablas!$B$2:$E$13,2,FALSE)) ->  | G74: =IF(B74="","",VLOOKUP(D74,Tablas!$B$2:$G$13,6,FALSE)) ->  | Y74: =IF(X74="","",SUM(J74:X74)*$C$6) ->  | Z74: =IF(C74=0,0,IF(Y74="","",Y74/(C74*1000))) -> 
A75: =IF(ISBLANK(InfoPro!A68),"",InfoPro!A68) ->  | B75: =IF(ISBLANK(InfoPro!B68),"",InfoPro!B68) ->  | C75: =IF(ISBLANK(InfoPro!E68),"",InfoPro!E68) ->  | D75: =IF(ISBLANK(InfoPro!F68),"",InfoPro!F68) ->  | E75: =IF(ISBLANK(InfoPro!I68),"",YEAR(InfoPro!I68)-$G$3) ->  | F75: =IF(B75="","",VLOOKUP(D75,Tablas!$B$2:$E$13,2,FALSE)) ->  | G75: =IF(B75="","",VLOOKUP(D75,Tablas!$B$2:$G$13,6,FALSE)) -> 
A76: =IF(ISBLANK(InfoPro!A69),"",InfoPro!A69) ->  | B76: =IF(ISBLANK(InfoPro!B69),"",InfoPro!B69) ->  | C76: =IF(ISBLANK(InfoPro!E69),"",InfoPro!E69) ->  | D76: =IF(ISBLANK(InfoPro!F69),"",InfoPro!F69) ->  | E76: =IF(ISBLANK(InfoPro!I69),"",YEAR(InfoPro!I69)-$G$3) ->  | F76: =IF(B76="","",VLOOKUP(D76,Tablas!$B$2:$E$13,2,FALSE)) ->  | G76: =IF(B76="","",VLOOKUP(D76,Tablas!$B$2:$G$13,6,FALSE)) -> 
A77: =IF(ISBLANK(InfoPro!A70),"",InfoPro!A70) ->  | B77: =IF(ISBLANK(InfoPro!B70),"",InfoPro!B70) ->  | C77: =IF(ISBLANK(InfoPro!E70),"",InfoPro!E70) ->  | D77: =IF(ISBLANK(InfoPro!F70),"",InfoPro!F70) ->  | E77: =IF(ISBLANK(InfoPro!I70),"",YEAR(InfoPro!I70)-$G$3) ->  | F77: =IF(B77="","",VLOOKUP(D77,Tablas!$B$2:$E$13,2,FALSE)) ->  | G77: =IF(B77="","",VLOOKUP(D77,Tablas!$B$2:$G$13,6,FALSE)) -> 
A78: =IF(ISBLANK(InfoPro!A71),"",InfoPro!A71) ->  | B78: =IF(ISBLANK(InfoPro!B71),"",InfoPro!B71) ->  | C78: =IF(ISBLANK(InfoPro!E71),"",InfoPro!E71) ->  | D78: =IF(ISBLANK(InfoPro!F71),"",InfoPro!F71) ->  | E78: =IF(ISBLANK(InfoPro!I71),"",YEAR(InfoPro!I71)-$G$3) ->  | F78: =IF(B78="","",VLOOKUP(D78,Tablas!$B$2:$E$13,2,FALSE)) ->  | G78: =IF(B78="","",VLOOKUP(D78,Tablas!$B$2:$G$13,6,FALSE)) -> 
A79: =IF(ISBLANK(InfoPro!A72),"",InfoPro!A72) ->  | B79: =IF(ISBLANK(InfoPro!B72),"",InfoPro!B72) ->  | C79: =IF(ISBLANK(InfoPro!E72),"",InfoPro!E72) ->  | D79: =IF(ISBLANK(InfoPro!F72),"",InfoPro!F72) ->  | E79: =IF(ISBLANK(InfoPro!I72),"",YEAR(InfoPro!I72)-$G$3) ->  | F79: =IF(B79="","",VLOOKUP(D79,Tablas!$B$2:$E$13,2,FALSE)) ->  | G79: =IF(B79="","",VLOOKUP(D79,Tablas!$B$2:$G$13,6,FALSE)) ->  | J79: =IF($I79="","",(1/(1+$C$4)^(J$7+$E79))*$I79*$C$5) -> 
A80: =IF(ISBLANK(InfoPro!A73),"",InfoPro!A73) ->  | B80: =IF(ISBLANK(InfoPro!B73),"",InfoPro!B73) ->  | C80: =IF(ISBLANK(InfoPro!E73),"",InfoPro!E73) ->  | D80: =IF(ISBLANK(InfoPro!F73),"",InfoPro!F73) ->  | E80: =IF(ISBLANK(InfoPro!I73),"",YEAR(InfoPro!I73)-$G$3) ->  | F80: =IF(B80="","",VLOOKUP(D80,Tablas!$B$2:$E$13,2,FALSE)) ->  | G80: =IF(B80="","",VLOOKUP(D80,Tablas!$B$2:$G$13,6,FALSE)) -> 
A81: =IF(ISBLANK(InfoPro!A74),"",InfoPro!A74) ->  | B81: =IF(ISBLANK(InfoPro!B74),"",InfoPro!B74) ->  | C81: =IF(ISBLANK(InfoPro!E74),"",InfoPro!E74) ->  | D81: =IF(ISBLANK(InfoPro!F74),"",InfoPro!F74) ->  | E81: =IF(ISBLANK(InfoPro!I74),"",YEAR(InfoPro!I74)-$G$3) ->  | F81: =IF(B81="","",VLOOKUP(D81,Tablas!$B$2:$E$13,2,FALSE)) ->  | G81: =IF(B81="","",VLOOKUP(D81,Tablas!$B$2:$G$13,6,FALSE)) -> 
A82: =IF(ISBLANK(InfoPro!A75),"",InfoPro!A75) ->  | B82: =IF(ISBLANK(InfoPro!B75),"",InfoPro!B75) ->  | C82: =IF(ISBLANK(InfoPro!E75),"",InfoPro!E75) ->  | D82: =IF(ISBLANK(InfoPro!F75),"",InfoPro!F75) ->  | E82: =IF(ISBLANK(InfoPro!I75),"",YEAR(InfoPro!I75)-$G$3) ->  | F82: =IF(B82="","",VLOOKUP(D82,Tablas!$B$2:$E$13,2,FALSE)) ->  | G82: =IF(B82="","",VLOOKUP(D82,Tablas!$B$2:$G$13,6,FALSE)) -> 
A83: =IF(ISBLANK(InfoPro!A76),"",InfoPro!A76) ->  | B83: =IF(ISBLANK(InfoPro!B76),"",InfoPro!B76) ->  | C83: =IF(ISBLANK(InfoPro!E76),"",InfoPro!E76) ->  | D83: =IF(ISBLANK(InfoPro!F76),"",InfoPro!F76) ->  | E83: =IF(ISBLANK(InfoPro!I76),"",YEAR(InfoPro!I76)-$G$3) ->  | F83: =IF(B83="","",VLOOKUP(D83,Tablas!$B$2:$E$13,2,FALSE)) ->  | G83: =IF(B83="","",VLOOKUP(D83,Tablas!$B$2:$G$13,6,FALSE)) -> 
A84: =IF(ISBLANK(InfoPro!A77),"",InfoPro!A77) ->  | B84: =IF(ISBLANK(InfoPro!B77),"",InfoPro!B77) ->  | C84: =IF(ISBLANK(InfoPro!E77),"",InfoPro!E77) ->  | D84: =IF(ISBLANK(InfoPro!F77),"",InfoPro!F77) ->  | E84: =IF(ISBLANK(InfoPro!I77),"",YEAR(InfoPro!I77)-$G$3) ->  | F84: =IF(B84="","",VLOOKUP(D84,Tablas!$B$2:$E$13,2,FALSE)) ->  | G84: =IF(B84="","",VLOOKUP(D84,Tablas!$B$2:$G$13,6,FALSE)) -> 
A85: =IF(ISBLANK(InfoPro!A78),"",InfoPro!A78) ->  | B85: =IF(ISBLANK(InfoPro!B78),"",InfoPro!B78) ->  | C85: =IF(ISBLANK(InfoPro!E78),"",InfoPro!E78) ->  | D85: =IF(ISBLANK(InfoPro!F78),"",InfoPro!F78) ->  | E85: =IF(ISBLANK(InfoPro!I78),"",YEAR(InfoPro!I78)-$G$3) ->  | F85: =IF(B85="","",VLOOKUP(D85,Tablas!$B$2:$E$13,2,FALSE)) ->  | G85: =IF(B85="","",VLOOKUP(D85,Tablas!$B$2:$G$13,6,FALSE)) -> 
A86: =IF(ISBLANK(InfoPro!A79),"",InfoPro!A79) ->  | B86: =IF(ISBLANK(InfoPro!B79),"",InfoPro!B79) ->  | C86: =IF(ISBLANK(InfoPro!E79),"",InfoPro!E79) ->  | D86: =IF(ISBLANK(InfoPro!F79),"",InfoPro!F79) ->  | E86: =IF(ISBLANK(InfoPro!I79),"",YEAR(InfoPro!I79)-$G$3) ->  | F86: =IF(B86="","",VLOOKUP(D86,Tablas!$B$2:$E$13,2,FALSE)) ->  | G86: =IF(B86="","",VLOOKUP(D86,Tablas!$B$2:$G$13,6,FALSE)) -> 
A87: =IF(ISBLANK(InfoPro!A80),"",InfoPro!A80) ->  | B87: =IF(ISBLANK(InfoPro!B80),"",InfoPro!B80) ->  | C87: =IF(ISBLANK(InfoPro!E80),"",InfoPro!E80) ->  | D87: =IF(ISBLANK(InfoPro!F80),"",InfoPro!F80) ->  | E87: =IF(ISBLANK(InfoPro!I80),"",YEAR(InfoPro!I80)-$G$3) ->  | F87: =IF(B87="","",VLOOKUP(D87,Tablas!$B$2:$E$13,2,FALSE)) ->  | G87: =IF(B87="","",VLOOKUP(D87,Tablas!$B$2:$G$13,6,FALSE)) -> 
A88: =IF(ISBLANK(InfoPro!A81),"",InfoPro!A81) ->  | B88: =IF(ISBLANK(InfoPro!B81),"",InfoPro!B81) ->  | C88: =IF(ISBLANK(InfoPro!E81),"",InfoPro!E81) ->  | D88: =IF(ISBLANK(InfoPro!F81),"",InfoPro!F81) ->  | E88: =IF(ISBLANK(InfoPro!I81),"",YEAR(InfoPro!I81)-$G$3) ->  | F88: =IF(B88="","",VLOOKUP(D88,Tablas!$B$2:$E$13,2,FALSE)) ->  | G88: =IF(B88="","",VLOOKUP(D88,Tablas!$B$2:$G$13,6,FALSE)) -> 
A89: =IF(ISBLANK(InfoPro!A82),"",InfoPro!A82) ->  | B89: =IF(ISBLANK(InfoPro!B82),"",InfoPro!B82) ->  | C89: =IF(ISBLANK(InfoPro!E82),"",InfoPro!E82) ->  | D89: =IF(ISBLANK(InfoPro!F82),"",InfoPro!F82) ->  | E89: =IF(ISBLANK(InfoPro!I82),"",YEAR(InfoPro!I82)-$G$3) ->  | F89: =IF(B89="","",VLOOKUP(D89,Tablas!$B$2:$E$13,2,FALSE)) ->  | G89: =IF(B89="","",VLOOKUP(D89,Tablas!$B$2:$G$13,6,FALSE)) ->  | J89: =IF($I89="","",(1/(1+$C$4)^(J$7+$E89))*$I89*$C$5) -> 
A90: =IF(ISBLANK(InfoPro!A83),"",InfoPro!A83) ->  | B90: =IF(ISBLANK(InfoPro!B83),"",InfoPro!B83) ->  | C90: =IF(ISBLANK(InfoPro!E83),"",InfoPro!E83) ->  | D90: =IF(ISBLANK(InfoPro!F83),"",InfoPro!F83) ->  | E90: =IF(ISBLANK(InfoPro!I83),"",YEAR(InfoPro!I83)-$G$3) ->  | F90: =IF(B90="","",VLOOKUP(D90,Tablas!$B$2:$E$13,2,FALSE)) ->  | G90: =IF(B90="","",VLOOKUP(D90,Tablas!$B$2:$G$13,6,FALSE)) -> 
A91: =IF(ISBLANK(InfoPro!A84),"",InfoPro!A84) ->  | B91: =IF(ISBLANK(InfoPro!B84),"",InfoPro!B84) ->  | C91: =IF(ISBLANK(InfoPro!E84),"",InfoPro!E84) ->  | D91: =IF(ISBLANK(InfoPro!F84),"",InfoPro!F84) ->  | E91: =IF(ISBLANK(InfoPro!I84),"",YEAR(InfoPro!I84)-$G$3) ->  | F91: =IF(B91="","",VLOOKUP(D91,Tablas!$B$2:$E$13,2,FALSE)) ->  | G91: =IF(B91="","",VLOOKUP(D91,Tablas!$B$2:$G$13,6,FALSE)) -> 
A92: =IF(ISBLANK(InfoPro!A85),"",InfoPro!A85) ->  | B92: =IF(ISBLANK(InfoPro!B85),"",InfoPro!B85) ->  | C92: =IF(ISBLANK(InfoPro!E85),"",InfoPro!E85) ->  | D92: =IF(ISBLANK(InfoPro!F85),"",InfoPro!F85) ->  | E92: =IF(ISBLANK(InfoPro!I85),"",YEAR(InfoPro!I85)-$G$3) ->  | F92: =IF(B92="","",VLOOKUP(D92,Tablas!$B$2:$E$13,2,FALSE)) ->  | G92: =IF(B92="","",VLOOKUP(D92,Tablas!$B$2:$G$13,6,FALSE)) -> 
A93: =IF(ISBLANK(InfoPro!A86),"",InfoPro!A86) ->  | B93: =IF(ISBLANK(InfoPro!B86),"",InfoPro!B86) ->  | C93: =IF(ISBLANK(InfoPro!E86),"",InfoPro!E86) ->  | D93: =IF(ISBLANK(InfoPro!F86),"",InfoPro!F86) ->  | E93: =IF(ISBLANK(InfoPro!I86),"",YEAR(InfoPro!I86)-$G$3) ->  | F93: =IF(B93="","",VLOOKUP(D93,Tablas!$B$2:$E$13,2,FALSE)) ->  | G93: =IF(B93="","",VLOOKUP(D93,Tablas!$B$2:$G$13,6,FALSE)) -> 
A94: =IF(ISBLANK(InfoPro!A87),"",InfoPro!A87) ->  | B94: =IF(ISBLANK(InfoPro!B87),"",InfoPro!B87) ->  | C94: =IF(ISBLANK(InfoPro!E87),"",InfoPro!E87) ->  | D94: =IF(ISBLANK(InfoPro!F87),"",InfoPro!F87) ->  | E94: =IF(ISBLANK(InfoPro!I87),"",YEAR(InfoPro!I87)-$G$3) ->  | F94: =IF(B94="","",VLOOKUP(D94,Tablas!$B$2:$E$13,2,FALSE)) ->  | G94: =IF(B94="","",VLOOKUP(D94,Tablas!$B$2:$G$13,6,FALSE)) -> 
A95: =IF(ISBLANK(InfoPro!A88),"",InfoPro!A88) ->  | B95: =IF(ISBLANK(InfoPro!B88),"",InfoPro!B88) ->  | C95: =IF(ISBLANK(InfoPro!E88),"",InfoPro!E88) ->  | D95: =IF(ISBLANK(InfoPro!F88),"",InfoPro!F88) ->  | E95: =IF(ISBLANK(InfoPro!I88),"",YEAR(InfoPro!I88)-$G$3) ->  | F95: =IF(B95="","",VLOOKUP(D95,Tablas!$B$2:$E$13,2,FALSE)) ->  | G95: =IF(B95="","",VLOOKUP(D95,Tablas!$B$2:$G$13,6,FALSE)) ->  | H95: =IF(C95="","",+C95*F95*24*365) -> 
A96: =IF(ISBLANK(InfoPro!A89),"",InfoPro!A89) ->  | B96: =IF(ISBLANK(InfoPro!B89),"",InfoPro!B89) ->  | C96: =IF(ISBLANK(InfoPro!E89),"",InfoPro!E89) ->  | D96: =IF(ISBLANK(InfoPro!F89),"",InfoPro!F89) ->  | E96: =IF(ISBLANK(InfoPro!I89),"",YEAR(InfoPro!I89)-$G$3) ->  | F96: =IF(B96="","",VLOOKUP(D96,Tablas!$B$2:$E$13,2,FALSE)) ->  | G96: =IF(B96="","",VLOOKUP(D96,Tablas!$B$2:$G$13,6,FALSE)) -> 
A97: =IF(ISBLANK(InfoPro!A90),"",InfoPro!A90) ->  | B97: =IF(ISBLANK(InfoPro!B90),"",InfoPro!B90) ->  | C97: =IF(ISBLANK(InfoPro!E90),"",InfoPro!E90) ->  | D97: =IF(ISBLANK(InfoPro!F90),"",InfoPro!F90) ->  | E97: =IF(ISBLANK(InfoPro!I90),"",YEAR(InfoPro!I90)-$G$3) ->  | F97: =IF(B97="","",VLOOKUP(D97,Tablas!$B$2:$E$13,2,FALSE)) ->  | G97: =IF(B97="","",VLOOKUP(D97,Tablas!$B$2:$G$13,6,FALSE)) -> 
A98: =IF(ISBLANK(InfoPro!A91),"",InfoPro!A91) ->  | B98: =IF(ISBLANK(InfoPro!B91),"",InfoPro!B91) ->  | C98: =IF(ISBLANK(InfoPro!E91),"",InfoPro!E91) ->  | D98: =IF(ISBLANK(InfoPro!F91),"",InfoPro!F91) ->  | E98: =IF(ISBLANK(InfoPro!I91),"",YEAR(InfoPro!I91)-$G$3) ->  | F98: =IF(B98="","",VLOOKUP(D98,Tablas!$B$2:$E$13,2,FALSE)) ->  | G98: =IF(B98="","",VLOOKUP(D98,Tablas!$B$2:$G$13,6,FALSE)) -> 
A99: =IF(ISBLANK(InfoPro!A92),"",InfoPro!A92) ->  | B99: =IF(ISBLANK(InfoPro!B92),"",InfoPro!B92) ->  | C99: =IF(ISBLANK(InfoPro!E92),"",InfoPro!E92) ->  | D99: =IF(ISBLANK(InfoPro!F92),"",InfoPro!F92) ->  | E99: =IF(ISBLANK(InfoPro!I92),"",YEAR(InfoPro!I92)-$G$3) ->  | F99: =IF(B99="","",VLOOKUP(D99,Tablas!$B$2:$E$13,2,FALSE)) ->  | G99: =IF(B99="","",VLOOKUP(D99,Tablas!$B$2:$G$13,6,FALSE)) ->  | J99: =IF($I99="","",(1/(1+$C$4)^(J$7+$E99))*$I99*$C$5) -> 
A100: =IF(ISBLANK(InfoPro!A93),"",InfoPro!A93) ->  | B100: =IF(ISBLANK(InfoPro!B93),"",InfoPro!B93) ->  | C100: =IF(ISBLANK(InfoPro!E93),"",InfoPro!E93) ->  | D100: =IF(ISBLANK(InfoPro!F93),"",InfoPro!F93) ->  | E100: =IF(ISBLANK(InfoPro!I93),"",YEAR(InfoPro!I93)-$G$3) ->  | F100: =IF(B100="","",VLOOKUP(D100,Tablas!$B$2:$E$13,2,FALSE)) ->  | G100: =IF(B100="","",VLOOKUP(D100,Tablas!$B$2:$G$13,6,FALSE)) -> 
A101: =IF(ISBLANK(InfoPro!A94),"",InfoPro!A94) ->  | B101: =IF(ISBLANK(InfoPro!B94),"",InfoPro!B94) ->  | C101: =IF(ISBLANK(InfoPro!E94),"",InfoPro!E94) ->  | D101: =IF(ISBLANK(InfoPro!F94),"",InfoPro!F94) ->  | E101: =IF(ISBLANK(InfoPro!I94),"",YEAR(InfoPro!I94)-$G$3) ->  | F101: =IF(B101="","",VLOOKUP(D101,Tablas!$B$2:$E$13,2,FALSE)) ->  | G101: =IF(B101="","",VLOOKUP(D101,Tablas!$B$2:$G$13,6,FALSE)) -> 
A102: =IF(ISBLANK(InfoPro!A95),"",InfoPro!A95) ->  | B102: =IF(ISBLANK(InfoPro!B95),"",InfoPro!B95) ->  | C102: =IF(ISBLANK(InfoPro!E95),"",InfoPro!E95) ->  | D102: =IF(ISBLANK(InfoPro!F95),"",InfoPro!F95) ->  | E102: =IF(ISBLANK(InfoPro!I95),"",YEAR(InfoPro!I95)-$G$3) ->  | F102: =IF(B102="","",VLOOKUP(D102,Tablas!$B$2:$E$13,2,FALSE)) ->  | G102: =IF(B102="","",VLOOKUP(D102,Tablas!$B$2:$G$13,6,FALSE)) -> 
A103: =IF(ISBLANK(InfoPro!A96),"",InfoPro!A96) ->  | B103: =IF(ISBLANK(InfoPro!B96),"",InfoPro!B96) ->  | C103: =IF(ISBLANK(InfoPro!E96),"",InfoPro!E96) ->  | D103: =IF(ISBLANK(InfoPro!F96),"",InfoPro!F96) ->  | E103: =IF(ISBLANK(InfoPro!I96),"",YEAR(InfoPro!I96)-$G$3) ->  | F103: =IF(B103="","",VLOOKUP(D103,Tablas!$B$2:$E$13,2,FALSE)) ->  | G103: =IF(B103="","",VLOOKUP(D103,Tablas!$B$2:$G$13,6,FALSE)) -> 
A104: =IF(ISBLANK(InfoPro!A97),"",InfoPro!A97) ->  | B104: =IF(ISBLANK(InfoPro!B97),"",InfoPro!B97) ->  | C104: =IF(ISBLANK(InfoPro!E97),"",InfoPro!E97) ->  | D104: =IF(ISBLANK(InfoPro!F97),"",InfoPro!F97) ->  | E104: =IF(ISBLANK(InfoPro!I97),"",YEAR(InfoPro!I97)-$G$3) ->  | F104: =IF(B104="","",VLOOKUP(D104,Tablas!$B$2:$E$13,2,FALSE)) ->  | G104: =IF(B104="","",VLOOKUP(D104,Tablas!$B$2:$G$13,6,FALSE)) -> 
A105: =IF(ISBLANK(InfoPro!A98),"",InfoPro!A98) ->  | B105: =IF(ISBLANK(InfoPro!B98),"",InfoPro!B98) ->  | C105: =IF(ISBLANK(InfoPro!E98),"",InfoPro!E98) ->  | D105: =IF(ISBLANK(InfoPro!F98),"",InfoPro!F98) ->  | E105: =IF(ISBLANK(InfoPro!I98),"",YEAR(InfoPro!I98)-$G$3) ->  | F105: =IF(B105="","",VLOOKUP(D105,Tablas!$B$2:$E$13,2,FALSE)) ->  | G105: =IF(B105="","",VLOOKUP(D105,Tablas!$B$2:$G$13,6,FALSE)) ->  | I105: =IF(H105="","",+H105*($C$3-G105)) -> 
A106: =IF(ISBLANK(InfoPro!A99),"",InfoPro!A99) ->  | B106: =IF(ISBLANK(InfoPro!B99),"",InfoPro!B99) ->  | C106: =IF(ISBLANK(InfoPro!E99),"",InfoPro!E99) ->  | D106: =IF(ISBLANK(InfoPro!F99),"",InfoPro!F99) ->  | E106: =IF(ISBLANK(InfoPro!I99),"",YEAR(InfoPro!I99)-$G$3) ->  | F106: =IF(B106="","",VLOOKUP(D106,Tablas!$B$2:$E$13,2,FALSE)) ->  | G106: =IF(B106="","",VLOOKUP(D106,Tablas!$B$2:$G$13,6,FALSE)) -> 
A107: =IF(ISBLANK(InfoPro!A100),"",InfoPro!A100) ->  | B107: =IF(ISBLANK(InfoPro!B100),"",InfoPro!B100) ->  | C107: =IF(ISBLANK(InfoPro!E100),"",InfoPro!E100) ->  | D107: =IF(ISBLANK(InfoPro!F100),"",InfoPro!F100) ->  | E107: =IF(ISBLANK(InfoPro!I100),"",YEAR(InfoPro!I100)-$G$3) ->  | F107: =IF(B107="","",VLOOKUP(D107,Tablas!$B$2:$E$13,2,FALSE)) ->  | G107: =IF(B107="","",VLOOKUP(D107,Tablas!$B$2:$G$13,6,FALSE)) -> 
A108: =IF(ISBLANK(InfoPro!A101),"",InfoPro!A101) ->  | B108: =IF(ISBLANK(InfoPro!B101),"",InfoPro!B101) ->  | C108: =IF(ISBLANK(InfoPro!E101),"",InfoPro!E101) ->  | D108: =IF(ISBLANK(InfoPro!F101),"",InfoPro!F101) ->  | E108: =IF(ISBLANK(InfoPro!I101),"",YEAR(InfoPro!I101)-$G$3) ->  | F108: =IF(B108="","",VLOOKUP(D108,Tablas!$B$2:$E$13,2,FALSE)) ->  | G108: =IF(B108="","",VLOOKUP(D108,Tablas!$B$2:$G$13,6,FALSE)) -> 
A109: =IF(ISBLANK(InfoPro!A102),"",InfoPro!A102) ->  | B109: =IF(ISBLANK(InfoPro!B102),"",InfoPro!B102) ->  | C109: =IF(ISBLANK(InfoPro!E102),"",InfoPro!E102) ->  | D109: =IF(ISBLANK(InfoPro!F102),"",InfoPro!F102) ->  | E109: =IF(ISBLANK(InfoPro!I102),"",YEAR(InfoPro!I102)-$G$3) ->  | F109: =IF(B109="","",VLOOKUP(D109,Tablas!$B$2:$E$13,2,FALSE)) ->  | G109: =IF(B109="","",VLOOKUP(D109,Tablas!$B$2:$G$13,6,FALSE)) ->  | H109: =IF(C109="","",+C109*F109*24*365) ->  | I109: =IF(H109="","",+H109*($C$3-G109)) ->  | Y109: =IF(X109="","",SUM(J109:X109)*$C$6) ->  | Z109: =IF(C109=0,0,IF(Y109="","",Y109/(C109*1000))) -> 
A110: =IF(ISBLANK(InfoPro!A103),"",InfoPro!A103) ->  | B110: =IF(ISBLANK(InfoPro!B103),"",InfoPro!B103) ->  | C110: =IF(ISBLANK(InfoPro!E103),"",InfoPro!E103) ->  | D110: =IF(ISBLANK(InfoPro!F103),"",InfoPro!F103) ->  | E110: =IF(ISBLANK(InfoPro!I103),"",YEAR(InfoPro!I103)-$G$3) ->  | F110: =IF(B110="","",VLOOKUP(D110,Tablas!$B$2:$E$13,2,FALSE)) ->  | G110: =IF(B110="","",VLOOKUP(D110,Tablas!$B$2:$G$13,6,FALSE)) -> 
A111: =IF(ISBLANK(InfoPro!A104),"",InfoPro!A104) ->  | B111: =IF(ISBLANK(InfoPro!B104),"",InfoPro!B104) ->  | C111: =IF(ISBLANK(InfoPro!E104),"",InfoPro!E104) ->  | D111: =IF(ISBLANK(InfoPro!F104),"",InfoPro!F104) ->  | E111: =IF(ISBLANK(InfoPro!I104),"",YEAR(InfoPro!I104)-$G$3) ->  | F111: =IF(B111="","",VLOOKUP(D111,Tablas!$B$2:$E$13,2,FALSE)) ->  | G111: =IF(B111="","",VLOOKUP(D111,Tablas!$B$2:$G$13,6,FALSE)) ->  | H111: =IF(C111="","",+C111*F111*24*365) ->  | I111: =IF(H111="","",+H111*($C$3-G111)) ->  | Y111: =IF(X111="","",SUM(J111:X111)*$C$6) ->  | Z111: =IF(C111=0,0,IF(Y111="","",Y111/(C111*1000))) -> 
A112: =IF(ISBLANK(InfoPro!A105),"",InfoPro!A105) ->  | B112: =IF(ISBLANK(InfoPro!B105),"",InfoPro!B105) ->  | C112: =IF(ISBLANK(InfoPro!E105),"",InfoPro!E105) ->  | D112: =IF(ISBLANK(InfoPro!F105),"",InfoPro!F105) ->  | E112: =IF(ISBLANK(InfoPro!I105),"",YEAR(InfoPro!I105)-$G$3) ->  | F112: =IF(B112="","",VLOOKUP(D112,Tablas!$B$2:$E$13,2,FALSE)) ->  | G112: =IF(B112="","",VLOOKUP(D112,Tablas!$B$2:$G$13,6,FALSE)) -> 
A113: =IF(ISBLANK(InfoPro!A106),"",InfoPro!A106) ->  | B113: =IF(ISBLANK(InfoPro!B106),"",InfoPro!B106) ->  | C113: =IF(ISBLANK(InfoPro!E106),"",InfoPro!E106) ->  | D113: =IF(ISBLANK(InfoPro!F106),"",InfoPro!F106) ->  | E113: =IF(ISBLANK(InfoPro!I106),"",YEAR(InfoPro!I106)-$G$3) ->  | F113: =IF(B113="","",VLOOKUP(D113,Tablas!$B$2:$E$13,2,FALSE)) ->  | G113: =IF(B113="","",VLOOKUP(D113,Tablas!$B$2:$G$13,6,FALSE)) -> 
A114: =IF(ISBLANK(InfoPro!A107),"",InfoPro!A107) ->  | B114: =IF(ISBLANK(InfoPro!B107),"",InfoPro!B107) ->  | C114: =IF(ISBLANK(InfoPro!E107),"",InfoPro!E107) ->  | D114: =IF(ISBLANK(InfoPro!F107),"",InfoPro!F107) ->  | E114: =IF(ISBLANK(InfoPro!I107),"",YEAR(InfoPro!I107)-$G$3) ->  | F114: =IF(B114="","",VLOOKUP(D114,Tablas!$B$2:$E$13,2,FALSE)) ->  | G114: =IF(B114="","",VLOOKUP(D114,Tablas!$B$2:$G$13,6,FALSE)) -> 
A115: =IF(ISBLANK(InfoPro!A108),"",InfoPro!A108) ->  | B115: =IF(ISBLANK(InfoPro!B108),"",InfoPro!B108) ->  | C115: =IF(ISBLANK(InfoPro!E108),"",InfoPro!E108) ->  | D115: =IF(ISBLANK(InfoPro!F108),"",InfoPro!F108) ->  | E115: =IF(ISBLANK(InfoPro!I108),"",YEAR(InfoPro!I108)-$G$3) ->  | F115: =IF(B115="","",VLOOKUP(D115,Tablas!$B$2:$E$13,2,FALSE)) ->  | G115: =IF(B115="","",VLOOKUP(D115,Tablas!$B$2:$G$13,6,FALSE)) ->  | J115: =IF($I115="","",(1/(1+$C$4)^(J$7+$E115))*$I115*$C$5) -> 
A116: =IF(ISBLANK(InfoPro!A109),"",InfoPro!A109) ->  | B116: =IF(ISBLANK(InfoPro!B109),"",InfoPro!B109) ->  | C116: =IF(ISBLANK(InfoPro!E109),"",InfoPro!E109) ->  | D116: =IF(ISBLANK(InfoPro!F109),"",InfoPro!F109) ->  | E116: =IF(ISBLANK(InfoPro!I109),"",YEAR(InfoPro!I109)-$G$3) ->  | F116: =IF(B116="","",VLOOKUP(D116,Tablas!$B$2:$E$13,2,FALSE)) ->  | G116: =IF(B116="","",VLOOKUP(D116,Tablas!$B$2:$G$13,6,FALSE)) -> 
A117: =IF(ISBLANK(InfoPro!A110),"",InfoPro!A110) ->  | B117: =IF(ISBLANK(InfoPro!B110),"",InfoPro!B110) ->  | C117: =IF(ISBLANK(InfoPro!E110),"",InfoPro!E110) ->  | D117: =IF(ISBLANK(InfoPro!F110),"",InfoPro!F110) ->  | E117: =IF(ISBLANK(InfoPro!I110),"",YEAR(InfoPro!I110)-$G$3) ->  | F117: =IF(B117="","",VLOOKUP(D117,Tablas!$B$2:$E$13,2,FALSE)) ->  | G117: =IF(B117="","",VLOOKUP(D117,Tablas!$B$2:$G$13,6,FALSE)) -> 
A118: =IF(ISBLANK(InfoPro!A111),"",InfoPro!A111) ->  | B118: =IF(ISBLANK(InfoPro!B111),"",InfoPro!B111) ->  | C118: =IF(ISBLANK(InfoPro!E111),"",InfoPro!E111) ->  | D118: =IF(ISBLANK(InfoPro!F111),"",InfoPro!F111) ->  | E118: =IF(ISBLANK(InfoPro!I111),"",YEAR(InfoPro!I111)-$G$3) ->  | F118: =IF(B118="","",VLOOKUP(D118,Tablas!$B$2:$E$13,2,FALSE)) ->  | G118: =IF(B118="","",VLOOKUP(D118,Tablas!$B$2:$G$13,6,FALSE)) -> 
A119: =IF(ISBLANK(InfoPro!A112),"",InfoPro!A112) ->  | B119: =IF(ISBLANK(InfoPro!B112),"",InfoPro!B112) ->  | C119: =IF(ISBLANK(InfoPro!E112),"",InfoPro!E112) ->  | D119: =IF(ISBLANK(InfoPro!F112),"",InfoPro!F112) ->  | E119: =IF(ISBLANK(InfoPro!I112),"",YEAR(InfoPro!I112)-$G$3) ->  | F119: =IF(B119="","",VLOOKUP(D119,Tablas!$B$2:$E$13,2,FALSE)) ->  | G119: =IF(B119="","",VLOOKUP(D119,Tablas!$B$2:$G$13,6,FALSE)) -> 
A120: =IF(ISBLANK(InfoPro!A113),"",InfoPro!A113) ->  | B120: =IF(ISBLANK(InfoPro!B113),"",InfoPro!B113) ->  | C120: =IF(ISBLANK(InfoPro!E113),"",InfoPro!E113) ->  | D120: =IF(ISBLANK(InfoPro!F113),"",InfoPro!F113) ->  | E120: =IF(ISBLANK(InfoPro!I113),"",YEAR(InfoPro!I113)-$G$3) ->  | F120: =IF(B120="","",VLOOKUP(D120,Tablas!$B$2:$E$13,2,FALSE)) ->  | G120: =IF(B120="","",VLOOKUP(D120,Tablas!$B$2:$G$13,6,FALSE)) -> 
A121: =IF(ISBLANK(InfoPro!A114),"",InfoPro!A114) ->  | B121: =IF(ISBLANK(InfoPro!B114),"",InfoPro!B114) ->  | C121: =IF(ISBLANK(InfoPro!E114),"",InfoPro!E114) ->  | D121: =IF(ISBLANK(InfoPro!F114),"",InfoPro!F114) ->  | E121: =IF(ISBLANK(InfoPro!I114),"",YEAR(InfoPro!I114)-$G$3) ->  | F121: =IF(B121="","",VLOOKUP(D121,Tablas!$B$2:$E$13,2,FALSE)) ->  | G121: =IF(B121="","",VLOOKUP(D121,Tablas!$B$2:$G$13,6,FALSE)) -> 
A122: =IF(ISBLANK(InfoPro!A115),"",InfoPro!A115) ->  | B122: =IF(ISBLANK(InfoPro!B115),"",InfoPro!B115) ->  | C122: =IF(ISBLANK(InfoPro!E115),"",InfoPro!E115) ->  | D122: =IF(ISBLANK(InfoPro!F115),"",InfoPro!F115) ->  | E122: =IF(ISBLANK(InfoPro!I115),"",YEAR(InfoPro!I115)-$G$3) ->  | F122: =IF(B122="","",VLOOKUP(D122,Tablas!$B$2:$E$13,2,FALSE)) ->  | G122: =IF(B122="","",VLOOKUP(D122,Tablas!$B$2:$G$13,6,FALSE)) -> 
A123: =IF(ISBLANK(InfoPro!A116),"",InfoPro!A116) ->  | B123: =IF(ISBLANK(InfoPro!B116),"",InfoPro!B116) ->  | C123: =IF(ISBLANK(InfoPro!E116),"",InfoPro!E116) ->  | D123: =IF(ISBLANK(InfoPro!F116),"",InfoPro!F116) ->  | E123: =IF(ISBLANK(InfoPro!I116),"",YEAR(InfoPro!I116)-$G$3) ->  | F123: =IF(B123="","",VLOOKUP(D123,Tablas!$B$2:$E$13,2,FALSE)) ->  | G123: =IF(B123="","",VLOOKUP(D123,Tablas!$B$2:$G$13,6,FALSE)) -> 
A124: =IF(ISBLANK(InfoPro!A117),"",InfoPro!A117) ->  | B124: =IF(ISBLANK(InfoPro!B117),"",InfoPro!B117) ->  | C124: =IF(ISBLANK(InfoPro!E117),"",InfoPro!E117) ->  | D124: =IF(ISBLANK(InfoPro!F117),"",InfoPro!F117) ->  | E124: =IF(ISBLANK(InfoPro!I117),"",YEAR(InfoPro!I117)-$G$3) ->  | F124: =IF(B124="","",VLOOKUP(D124,Tablas!$B$2:$E$13,2,FALSE)) ->  | G124: =IF(B124="","",VLOOKUP(D124,Tablas!$B$2:$G$13,6,FALSE)) -> 
A125: =IF(ISBLANK(InfoPro!A118),"",InfoPro!A118) ->  | B125: =IF(ISBLANK(InfoPro!B118),"",InfoPro!B118) ->  | C125: =IF(ISBLANK(InfoPro!E118),"",InfoPro!E118) ->  | D125: =IF(ISBLANK(InfoPro!F118),"",InfoPro!F118) ->  | E125: =IF(ISBLANK(InfoPro!I118),"",YEAR(InfoPro!I118)-$G$3) ->  | F125: =IF(B125="","",VLOOKUP(D125,Tablas!$B$2:$E$13,2,FALSE)) ->  | G125: =IF(B125="","",VLOOKUP(D125,Tablas!$B$2:$G$13,6,FALSE)) -> 
A126: =IF(ISBLANK(InfoPro!A119),"",InfoPro!A119) ->  | B126: =IF(ISBLANK(InfoPro!B119),"",InfoPro!B119) ->  | C126: =IF(ISBLANK(InfoPro!E119),"",InfoPro!E119) ->  | D126: =IF(ISBLANK(InfoPro!F119),"",InfoPro!F119) ->  | E126: =IF(ISBLANK(InfoPro!I119),"",YEAR(InfoPro!I119)-$G$3) ->  | F126: =IF(B126="","",VLOOKUP(D126,Tablas!$B$2:$E$13,2,FALSE)) ->  | G126: =IF(B126="","",VLOOKUP(D126,Tablas!$B$2:$G$13,6,FALSE)) -> 
A127: =IF(ISBLANK(InfoPro!A120),"",InfoPro!A120) ->  | B127: =IF(ISBLANK(InfoPro!B120),"",InfoPro!B120) ->  | C127: =IF(ISBLANK(InfoPro!E120),"",InfoPro!E120) ->  | D127: =IF(ISBLANK(InfoPro!F120),"",InfoPro!F120) ->  | E127: =IF(ISBLANK(InfoPro!I120),"",YEAR(InfoPro!I120)-$G$3) ->  | F127: =IF(B127="","",VLOOKUP(D127,Tablas!$B$2:$E$13,2,FALSE)) ->  | G127: =IF(B127="","",VLOOKUP(D127,Tablas!$B$2:$G$13,6,FALSE)) -> 
A128: =IF(ISBLANK(InfoPro!A121),"",InfoPro!A121) ->  | B128: =IF(ISBLANK(InfoPro!B121),"",InfoPro!B121) ->  | C128: =IF(ISBLANK(InfoPro!E121),"",InfoPro!E121) ->  | D128: =IF(ISBLANK(InfoPro!F121),"",InfoPro!F121) ->  | E128: =IF(ISBLANK(InfoPro!I121),"",YEAR(InfoPro!I121)-$G$3) ->  | F128: =IF(B128="","",VLOOKUP(D128,Tablas!$B$2:$E$13,2,FALSE)) ->  | G128: =IF(B128="","",VLOOKUP(D128,Tablas!$B$2:$G$13,6,FALSE)) -> 
A129: =IF(ISBLANK(InfoPro!A122),"",InfoPro!A122) ->  | B129: =IF(ISBLANK(InfoPro!B122),"",InfoPro!B122) ->  | C129: =IF(ISBLANK(InfoPro!E122),"",InfoPro!E122) ->  | D129: =IF(ISBLANK(InfoPro!F122),"",InfoPro!F122) ->  | E129: =IF(ISBLANK(InfoPro!I122),"",YEAR(InfoPro!I122)-$G$3) ->  | F129: =IF(B129="","",VLOOKUP(D129,Tablas!$B$2:$E$13,2,FALSE)) ->  | G129: =IF(B129="","",VLOOKUP(D129,Tablas!$B$2:$G$13,6,FALSE)) -> 
A130: =IF(ISBLANK(InfoPro!A123),"",InfoPro!A123) ->  | B130: =IF(ISBLANK(InfoPro!B123),"",InfoPro!B123) ->  | C130: =IF(ISBLANK(InfoPro!E123),"",InfoPro!E123) ->  | D130: =IF(ISBLANK(InfoPro!F123),"",InfoPro!F123) ->  | E130: =IF(ISBLANK(InfoPro!I123),"",YEAR(InfoPro!I123)-$G$3) ->  | F130: =IF(B130="","",VLOOKUP(D130,Tablas!$B$2:$E$13,2,FALSE)) ->  | G130: =IF(B130="","",VLOOKUP(D130,Tablas!$B$2:$G$13,6,FALSE)) -> 
A131: =IF(ISBLANK(InfoPro!A124),"",InfoPro!A124) ->  | B131: =IF(ISBLANK(InfoPro!B124),"",InfoPro!B124) ->  | C131: =IF(ISBLANK(InfoPro!E124),"",InfoPro!E124) ->  | D131: =IF(ISBLANK(InfoPro!F124),"",InfoPro!F124) ->  | E131: =IF(ISBLANK(InfoPro!I124),"",YEAR(InfoPro!I124)-$G$3) ->  | F131: =IF(B131="","",VLOOKUP(D131,Tablas!$B$2:$E$13,2,FALSE)) ->  | G131: =IF(B131="","",VLOOKUP(D131,Tablas!$B$2:$G$13,6,FALSE)) -> 
A132: =IF(ISBLANK(InfoPro!A125),"",InfoPro!A125) ->  | B132: =IF(ISBLANK(InfoPro!B125),"",InfoPro!B125) ->  | C132: =IF(ISBLANK(InfoPro!E125),"",InfoPro!E125) ->  | D132: =IF(ISBLANK(InfoPro!F125),"",InfoPro!F125) ->  | E132: =IF(ISBLANK(InfoPro!I125),"",YEAR(InfoPro!I125)-$G$3) ->  | F132: =IF(B132="","",VLOOKUP(D132,Tablas!$B$2:$E$13,2,FALSE)) ->  | G132: =IF(B132="","",VLOOKUP(D132,Tablas!$B$2:$G$13,6,FALSE)) ->  | J132: =IF($I132="","",(1/(1+$C$4)^(J$7+$E132))*$I132*$C$5) -> 
A133: =IF(ISBLANK(InfoPro!A126),"",InfoPro!A126) ->  | B133: =IF(ISBLANK(InfoPro!B126),"",InfoPro!B126) ->  | C133: =IF(ISBLANK(InfoPro!E126),"",InfoPro!E126) ->  | D133: =IF(ISBLANK(InfoPro!F126),"",InfoPro!F126) ->  | E133: =IF(ISBLANK(InfoPro!I126),"",YEAR(InfoPro!I126)-$G$3) ->  | F133: =IF(B133="","",VLOOKUP(D133,Tablas!$B$2:$E$13,2,FALSE)) ->  | G133: =IF(B133="","",VLOOKUP(D133,Tablas!$B$2:$G$13,6,FALSE)) -> 
A134: =IF(ISBLANK(InfoPro!A127),"",InfoPro!A127) ->  | B134: =IF(ISBLANK(InfoPro!B127),"",InfoPro!B127) ->  | C134: =IF(ISBLANK(InfoPro!E127),"",InfoPro!E127) ->  | D134: =IF(ISBLANK(InfoPro!F127),"",InfoPro!F127) ->  | E134: =IF(ISBLANK(InfoPro!I127),"",YEAR(InfoPro!I127)-$G$3) ->  | F134: =IF(B134="","",VLOOKUP(D134,Tablas!$B$2:$E$13,2,FALSE)) ->  | G134: =IF(B134="","",VLOOKUP(D134,Tablas!$B$2:$G$13,6,FALSE)) -> 
A135: =IF(ISBLANK(InfoPro!A128),"",InfoPro!A128) ->  | B135: =IF(ISBLANK(InfoPro!B128),"",InfoPro!B128) ->  | C135: =IF(ISBLANK(InfoPro!E128),"",InfoPro!E128) ->  | D135: =IF(ISBLANK(InfoPro!F128),"",InfoPro!F128) ->  | E135: =IF(ISBLANK(InfoPro!I128),"",YEAR(InfoPro!I128)-$G$3) ->  | F135: =IF(B135="","",VLOOKUP(D135,Tablas!$B$2:$E$13,2,FALSE)) ->  | G135: =IF(B135="","",VLOOKUP(D135,Tablas!$B$2:$G$13,6,FALSE)) -> 
A136: =IF(ISBLANK(InfoPro!A129),"",InfoPro!A129) ->  | B136: =IF(ISBLANK(InfoPro!B129),"",InfoPro!B129) ->  | C136: =IF(ISBLANK(InfoPro!E129),"",InfoPro!E129) ->  | D136: =IF(ISBLANK(InfoPro!F129),"",InfoPro!F129) ->  | E136: =IF(ISBLANK(InfoPro!I129),"",YEAR(InfoPro!I129)-$G$3) ->  | F136: =IF(B136="","",VLOOKUP(D136,Tablas!$B$2:$E$13,2,FALSE)) ->  | G136: =IF(B136="","",VLOOKUP(D136,Tablas!$B$2:$G$13,6,FALSE)) -> 
A137: =IF(ISBLANK(InfoPro!A130),"",InfoPro!A130) ->  | B137: =IF(ISBLANK(InfoPro!B130),"",InfoPro!B130) ->  | C137: =IF(ISBLANK(InfoPro!E130),"",InfoPro!E130) ->  | D137: =IF(ISBLANK(InfoPro!F130),"",InfoPro!F130) ->  | E137: =IF(ISBLANK(InfoPro!I130),"",YEAR(InfoPro!I130)-$G$3) ->  | F137: =IF(B137="","",VLOOKUP(D137,Tablas!$B$2:$E$13,2,FALSE)) ->  | G137: =IF(B137="","",VLOOKUP(D137,Tablas!$B$2:$G$13,6,FALSE)) -> 
A138: =IF(ISBLANK(InfoPro!A131),"",InfoPro!A131) ->  | B138: =IF(ISBLANK(InfoPro!B131),"",InfoPro!B131) ->  | C138: =IF(ISBLANK(InfoPro!E131),"",InfoPro!E131) ->  | D138: =IF(ISBLANK(InfoPro!F131),"",InfoPro!F131) ->  | E138: =IF(ISBLANK(InfoPro!I131),"",YEAR(InfoPro!I131)-$G$3) ->  | F138: =IF(B138="","",VLOOKUP(D138,Tablas!$B$2:$E$13,2,FALSE)) ->  | G138: =IF(B138="","",VLOOKUP(D138,Tablas!$B$2:$G$13,6,FALSE)) -> 
A139: =IF(ISBLANK(InfoPro!A132),"",InfoPro!A132) ->  | B139: =IF(ISBLANK(InfoPro!B132),"",InfoPro!B132) ->  | C139: =IF(ISBLANK(InfoPro!E132),"",InfoPro!E132) ->  | D139: =IF(ISBLANK(InfoPro!F132),"",InfoPro!F132) ->  | E139: =IF(ISBLANK(InfoPro!I132),"",YEAR(InfoPro!I132)-$G$3) ->  | F139: =IF(B139="","",VLOOKUP(D139,Tablas!$B$2:$E$13,2,FALSE)) ->  | G139: =IF(B139="","",VLOOKUP(D139,Tablas!$B$2:$G$13,6,FALSE)) -> 
A140: =IF(ISBLANK(InfoPro!A133),"",InfoPro!A133) ->  | B140: =IF(ISBLANK(InfoPro!B133),"",InfoPro!B133) ->  | C140: =IF(ISBLANK(InfoPro!E133),"",InfoPro!E133) ->  | D140: =IF(ISBLANK(InfoPro!F133),"",InfoPro!F133) ->  | E140: =IF(ISBLANK(InfoPro!I133),"",YEAR(InfoPro!I133)-$G$3) ->  | F140: =IF(B140="","",VLOOKUP(D140,Tablas!$B$2:$E$13,2,FALSE)) ->  | G140: =IF(B140="","",VLOOKUP(D140,Tablas!$B$2:$G$13,6,FALSE)) -> 
A141: =IF(ISBLANK(InfoPro!A134),"",InfoPro!A134) ->  | B141: =IF(ISBLANK(InfoPro!B134),"",InfoPro!B134) ->  | C141: =IF(ISBLANK(InfoPro!E134),"",InfoPro!E134) ->  | D141: =IF(ISBLANK(InfoPro!F134),"",InfoPro!F134) ->  | E141: =IF(ISBLANK(InfoPro!I134),"",YEAR(InfoPro!I134)-$G$3) ->  | F141: =IF(B141="","",VLOOKUP(D141,Tablas!$B$2:$E$13,2,FALSE)) ->  | G141: =IF(B141="","",VLOOKUP(D141,Tablas!$B$2:$G$13,6,FALSE)) -> 
A142: =IF(ISBLANK(InfoPro!A135),"",InfoPro!A135) ->  | B142: =IF(ISBLANK(InfoPro!B135),"",InfoPro!B135) ->  | C142: =IF(ISBLANK(InfoPro!E135),"",InfoPro!E135) ->  | D142: =IF(ISBLANK(InfoPro!F135),"",InfoPro!F135) ->  | E142: =IF(ISBLANK(InfoPro!I135),"",YEAR(InfoPro!I135)-$G$3) ->  | F142: =IF(B142="","",VLOOKUP(D142,Tablas!$B$2:$E$13,2,FALSE)) ->  | G142: =IF(B142="","",VLOOKUP(D142,Tablas!$B$2:$G$13,6,FALSE)) -> 
A143: =IF(ISBLANK(InfoPro!A136),"",InfoPro!A136) ->  | B143: =IF(ISBLANK(InfoPro!B136),"",InfoPro!B136) ->  | C143: =IF(ISBLANK(InfoPro!E136),"",InfoPro!E136) ->  | D143: =IF(ISBLANK(InfoPro!F136),"",InfoPro!F136) ->  | E143: =IF(ISBLANK(InfoPro!I136),"",YEAR(InfoPro!I136)-$G$3) ->  | F143: =IF(B143="","",VLOOKUP(D143,Tablas!$B$2:$E$13,2,FALSE)) ->  | G143: =IF(B143="","",VLOOKUP(D143,Tablas!$B$2:$G$13,6,FALSE)) -> 
A144: =IF(ISBLANK(InfoPro!A137),"",InfoPro!A137) ->  | B144: =IF(ISBLANK(InfoPro!B137),"",InfoPro!B137) ->  | C144: =IF(ISBLANK(InfoPro!E137),"",InfoPro!E137) ->  | D144: =IF(ISBLANK(InfoPro!F137),"",InfoPro!F137) ->  | E144: =IF(ISBLANK(InfoPro!I137),"",YEAR(InfoPro!I137)-$G$3) ->  | F144: =IF(B144="","",VLOOKUP(D144,Tablas!$B$2:$E$13,2,FALSE)) ->  | G144: =IF(B144="","",VLOOKUP(D144,Tablas!$B$2:$G$13,6,FALSE)) -> 
A145: =IF(ISBLANK(InfoPro!A138),"",InfoPro!A138) ->  | B145: =IF(ISBLANK(InfoPro!B138),"",InfoPro!B138) ->  | C145: =IF(ISBLANK(InfoPro!E138),"",InfoPro!E138) ->  | D145: =IF(ISBLANK(InfoPro!F138),"",InfoPro!F138) ->  | E145: =IF(ISBLANK(InfoPro!I138),"",YEAR(InfoPro!I138)-$G$3) ->  | F145: =IF(B145="","",VLOOKUP(D145,Tablas!$B$2:$E$13,2,FALSE)) ->  | G145: =IF(B145="","",VLOOKUP(D145,Tablas!$B$2:$G$13,6,FALSE)) -> 
A146: =IF(ISBLANK(InfoPro!A139),"",InfoPro!A139) ->  | B146: =IF(ISBLANK(InfoPro!B139),"",InfoPro!B139) ->  | C146: =IF(ISBLANK(InfoPro!E139),"",InfoPro!E139) ->  | D146: =IF(ISBLANK(InfoPro!F139),"",InfoPro!F139) ->  | E146: =IF(ISBLANK(InfoPro!I139),"",YEAR(InfoPro!I139)-$G$3) ->  | F146: =IF(B146="","",VLOOKUP(D146,Tablas!$B$2:$E$13,2,FALSE)) ->  | G146: =IF(B146="","",VLOOKUP(D146,Tablas!$B$2:$G$13,6,FALSE)) -> 
A147: =IF(ISBLANK(InfoPro!A140),"",InfoPro!A140) ->  | B147: =IF(ISBLANK(InfoPro!B140),"",InfoPro!B140) ->  | C147: =IF(ISBLANK(InfoPro!E140),"",InfoPro!E140) ->  | D147: =IF(ISBLANK(InfoPro!F140),"",InfoPro!F140) ->  | E147: =IF(ISBLANK(InfoPro!I140),"",YEAR(InfoPro!I140)-$G$3) ->  | F147: =IF(B147="","",VLOOKUP(D147,Tablas!$B$2:$E$13,2,FALSE)) ->  | G147: =IF(B147="","",VLOOKUP(D147,Tablas!$B$2:$G$13,6,FALSE)) -> 
A148: =IF(ISBLANK(InfoPro!A141),"",InfoPro!A141) ->  | B148: =IF(ISBLANK(InfoPro!B141),"",InfoPro!B141) ->  | C148: =IF(ISBLANK(InfoPro!E141),"",InfoPro!E141) ->  | D148: =IF(ISBLANK(InfoPro!F141),"",InfoPro!F141) ->  | E148: =IF(ISBLANK(InfoPro!I141),"",YEAR(InfoPro!I141)-$G$3) ->  | F148: =IF(B148="","",VLOOKUP(D148,Tablas!$B$2:$E$13,2,FALSE)) ->  | G148: =IF(B148="","",VLOOKUP(D148,Tablas!$B$2:$G$13,6,FALSE)) -> 
A149: =IF(ISBLANK(InfoPro!A142),"",InfoPro!A142) ->  | B149: =IF(ISBLANK(InfoPro!B142),"",InfoPro!B142) ->  | C149: =IF(ISBLANK(InfoPro!E142),"",InfoPro!E142) ->  | D149: =IF(ISBLANK(InfoPro!F142),"",InfoPro!F142) ->  | E149: =IF(ISBLANK(InfoPro!I142),"",YEAR(InfoPro!I142)-$G$3) ->  | F149: =IF(B149="","",VLOOKUP(D149,Tablas!$B$2:$E$13,2,FALSE)) ->  | G149: =IF(B149="","",VLOOKUP(D149,Tablas!$B$2:$G$13,6,FALSE)) ->  | J149: =IF($I149="","",(1/(1+$C$4)^(J$7+$E149))*$I149*$C$5) -> 
A150: =IF(ISBLANK(InfoPro!A143),"",InfoPro!A143) ->  | B150: =IF(ISBLANK(InfoPro!B143),"",InfoPro!B143) ->  | C150: =IF(ISBLANK(InfoPro!E143),"",InfoPro!E143) ->  | D150: =IF(ISBLANK(InfoPro!F143),"",InfoPro!F143) ->  | E150: =IF(ISBLANK(InfoPro!I143),"",YEAR(InfoPro!I143)-$G$3) ->  | F150: =IF(B150="","",VLOOKUP(D150,Tablas!$B$2:$E$13,2,FALSE)) ->  | G150: =IF(B150="","",VLOOKUP(D150,Tablas!$B$2:$G$13,6,FALSE)) -> 
A151: =IF(ISBLANK(InfoPro!A144),"",InfoPro!A144) ->  | B151: =IF(ISBLANK(InfoPro!B144),"",InfoPro!B144) ->  | C151: =IF(ISBLANK(InfoPro!E144),"",InfoPro!E144) ->  | D151: =IF(ISBLANK(InfoPro!F144),"",InfoPro!F144) ->  | E151: =IF(ISBLANK(InfoPro!I144),"",YEAR(InfoPro!I144)-$G$3) ->  | F151: =IF(B151="","",VLOOKUP(D151,Tablas!$B$2:$E$13,2,FALSE)) ->  | G151: =IF(B151="","",VLOOKUP(D151,Tablas!$B$2:$G$13,6,FALSE)) -> 
A152: =IF(ISBLANK(InfoPro!A145),"",InfoPro!A145) ->  | B152: =IF(ISBLANK(InfoPro!B145),"",InfoPro!B145) ->  | C152: =IF(ISBLANK(InfoPro!E145),"",InfoPro!E145) ->  | D152: =IF(ISBLANK(InfoPro!F145),"",InfoPro!F145) ->  | E152: =IF(ISBLANK(InfoPro!I145),"",YEAR(InfoPro!I145)-$G$3) ->  | F152: =IF(B152="","",VLOOKUP(D152,Tablas!$B$2:$E$13,2,FALSE)) ->  | G152: =IF(B152="","",VLOOKUP(D152,Tablas!$B$2:$G$13,6,FALSE)) -> 
A153: =IF(ISBLANK(InfoPro!A146),"",InfoPro!A146) ->  | B153: =IF(ISBLANK(InfoPro!B146),"",InfoPro!B146) ->  | C153: =IF(ISBLANK(InfoPro!E146),"",InfoPro!E146) ->  | D153: =IF(ISBLANK(InfoPro!F146),"",InfoPro!F146) ->  | E153: =IF(ISBLANK(InfoPro!I146),"",YEAR(InfoPro!I146)-$G$3) ->  | F153: =IF(B153="","",VLOOKUP(D153,Tablas!$B$2:$E$13,2,FALSE)) ->  | G153: =IF(B153="","",VLOOKUP(D153,Tablas!$B$2:$G$13,6,FALSE)) -> 
A154: =IF(ISBLANK(InfoPro!A147),"",InfoPro!A147) ->  | B154: =IF(ISBLANK(InfoPro!B147),"",InfoPro!B147) ->  | C154: =IF(ISBLANK(InfoPro!E147),"",InfoPro!E147) ->  | D154: =IF(ISBLANK(InfoPro!F147),"",InfoPro!F147) ->  | E154: =IF(ISBLANK(InfoPro!I147),"",YEAR(InfoPro!I147)-$G$3) ->  | F154: =IF(B154="","",VLOOKUP(D154,Tablas!$B$2:$E$13,2,FALSE)) ->  | G154: =IF(B154="","",VLOOKUP(D154,Tablas!$B$2:$G$13,6,FALSE)) -> 
A155: =IF(ISBLANK(InfoPro!A148),"",InfoPro!A148) ->  | B155: =IF(ISBLANK(InfoPro!B148),"",InfoPro!B148) ->  | C155: =IF(ISBLANK(InfoPro!E148),"",InfoPro!E148) ->  | D155: =IF(ISBLANK(InfoPro!F148),"",InfoPro!F148) ->  | E155: =IF(ISBLANK(InfoPro!I148),"",YEAR(InfoPro!I148)-$G$3) ->  | F155: =IF(B155="","",VLOOKUP(D155,Tablas!$B$2:$E$13,2,FALSE)) ->  | G155: =IF(B155="","",VLOOKUP(D155,Tablas!$B$2:$G$13,6,FALSE)) -> 
A156: =IF(ISBLANK(InfoPro!A149),"",InfoPro!A149) ->  | B156: =IF(ISBLANK(InfoPro!B149),"",InfoPro!B149) ->  | C156: =IF(ISBLANK(InfoPro!E149),"",InfoPro!E149) ->  | D156: =IF(ISBLANK(InfoPro!F149),"",InfoPro!F149) ->  | E156: =IF(ISBLANK(InfoPro!I149),"",YEAR(InfoPro!I149)-$G$3) ->  | F156: =IF(B156="","",VLOOKUP(D156,Tablas!$B$2:$E$13,2,FALSE)) ->  | G156: =IF(B156="","",VLOOKUP(D156,Tablas!$B$2:$G$13,6,FALSE)) -> 
A157: =IF(ISBLANK(InfoPro!A150),"",InfoPro!A150) ->  | B157: =IF(ISBLANK(InfoPro!B150),"",InfoPro!B150) ->  | C157: =IF(ISBLANK(InfoPro!E150),"",InfoPro!E150) ->  | D157: =IF(ISBLANK(InfoPro!F150),"",InfoPro!F150) ->  | E157: =IF(ISBLANK(InfoPro!I150),"",YEAR(InfoPro!I150)-$G$3) ->  | F157: =IF(B157="","",VLOOKUP(D157,Tablas!$B$2:$E$13,2,FALSE)) ->  | G157: =IF(B157="","",VLOOKUP(D157,Tablas!$B$2:$G$13,6,FALSE)) -> 
A158: =IF(ISBLANK(InfoPro!A151),"",InfoPro!A151) ->  | B158: =IF(ISBLANK(InfoPro!B151),"",InfoPro!B151) ->  | C158: =IF(ISBLANK(InfoPro!E151),"",InfoPro!E151) ->  | D158: =IF(ISBLANK(InfoPro!F151),"",InfoPro!F151) ->  | E158: =IF(ISBLANK(InfoPro!I151),"",YEAR(InfoPro!I151)-$G$3) ->  | F158: =IF(B158="","",VLOOKUP(D158,Tablas!$B$2:$E$13,2,FALSE)) ->  | G158: =IF(B158="","",VLOOKUP(D158,Tablas!$B$2:$G$13,6,FALSE)) -> 
A159: =IF(ISBLANK(InfoPro!A152),"",InfoPro!A152) ->  | B159: =IF(ISBLANK(InfoPro!B152),"",InfoPro!B152) ->  | C159: =IF(ISBLANK(InfoPro!E152),"",InfoPro!E152) ->  | D159: =IF(ISBLANK(InfoPro!F152),"",InfoPro!F152) ->  | E159: =IF(ISBLANK(InfoPro!I152),"",YEAR(InfoPro!I152)-$G$3) ->  | F159: =IF(B159="","",VLOOKUP(D159,Tablas!$B$2:$E$13,2,FALSE)) ->  | G159: =IF(B159="","",VLOOKUP(D159,Tablas!$B$2:$G$13,6,FALSE)) -> 
A160: =IF(ISBLANK(InfoPro!A153),"",InfoPro!A153) ->  | B160: =IF(ISBLANK(InfoPro!B153),"",InfoPro!B153) ->  | C160: =IF(ISBLANK(InfoPro!E153),"",InfoPro!E153) ->  | D160: =IF(ISBLANK(InfoPro!F153),"",InfoPro!F153) ->  | E160: =IF(ISBLANK(InfoPro!I153),"",YEAR(InfoPro!I153)-$G$3) ->  | F160: =IF(B160="","",VLOOKUP(D160,Tablas!$B$2:$E$13,2,FALSE)) ->  | G160: =IF(B160="","",VLOOKUP(D160,Tablas!$B$2:$G$13,6,FALSE)) -> 
A161: =IF(ISBLANK(InfoPro!A154),"",InfoPro!A154) ->  | B161: =IF(ISBLANK(InfoPro!B154),"",InfoPro!B154) ->  | C161: =IF(ISBLANK(InfoPro!E154),"",InfoPro!E154) ->  | D161: =IF(ISBLANK(InfoPro!F154),"",InfoPro!F154) ->  | E161: =IF(ISBLANK(InfoPro!I154),"",YEAR(InfoPro!I154)-$G$3) ->  | F161: =IF(B161="","",VLOOKUP(D161,Tablas!$B$2:$E$13,2,FALSE)) ->  | G161: =IF(B161="","",VLOOKUP(D161,Tablas!$B$2:$G$13,6,FALSE)) -> 
A162: =IF(ISBLANK(InfoPro!A155),"",InfoPro!A155) ->  | B162: =IF(ISBLANK(InfoPro!B155),"",InfoPro!B155) ->  | C162: =IF(ISBLANK(InfoPro!E155),"",InfoPro!E155) ->  | D162: =IF(ISBLANK(InfoPro!F155),"",InfoPro!F155) ->  | E162: =IF(ISBLANK(InfoPro!I155),"",YEAR(InfoPro!I155)-$G$3) ->  | F162: =IF(B162="","",VLOOKUP(D162,Tablas!$B$2:$E$13,2,FALSE)) ->  | G162: =IF(B162="","",VLOOKUP(D162,Tablas!$B$2:$G$13,6,FALSE)) -> 
A163: =IF(ISBLANK(InfoPro!A156),"",InfoPro!A156) ->  | B163: =IF(ISBLANK(InfoPro!B156),"",InfoPro!B156) ->  | C163: =IF(ISBLANK(InfoPro!E156),"",InfoPro!E156) ->  | D163: =IF(ISBLANK(InfoPro!F156),"",InfoPro!F156) ->  | E163: =IF(ISBLANK(InfoPro!I156),"",YEAR(InfoPro!I156)-$G$3) ->  | F163: =IF(B163="","",VLOOKUP(D163,Tablas!$B$2:$E$13,2,FALSE)) ->  | G163: =IF(B163="","",VLOOKUP(D163,Tablas!$B$2:$G$13,6,FALSE)) -> 
A164: =IF(ISBLANK(InfoPro!A157),"",InfoPro!A157) ->  | B164: =IF(ISBLANK(InfoPro!B157),"",InfoPro!B157) ->  | C164: =IF(ISBLANK(InfoPro!E157),"",InfoPro!E157) ->  | D164: =IF(ISBLANK(InfoPro!F157),"",InfoPro!F157) ->  | E164: =IF(ISBLANK(InfoPro!I157),"",YEAR(InfoPro!I157)-$G$3) ->  | F164: =IF(B164="","",VLOOKUP(D164,Tablas!$B$2:$E$13,2,FALSE)) ->  | G164: =IF(B164="","",VLOOKUP(D164,Tablas!$B$2:$G$13,6,FALSE)) -> 
A165: =IF(ISBLANK(InfoPro!A158),"",InfoPro!A158) ->  | B165: =IF(ISBLANK(InfoPro!B158),"",InfoPro!B158) ->  | C165: =IF(ISBLANK(InfoPro!E158),"",InfoPro!E158) ->  | D165: =IF(ISBLANK(InfoPro!F158),"",InfoPro!F158) ->  | E165: =IF(ISBLANK(InfoPro!I158),"",YEAR(InfoPro!I158)-$G$3) ->  | F165: =IF(B165="","",VLOOKUP(D165,Tablas!$B$2:$E$13,2,FALSE)) ->  | G165: =IF(B165="","",VLOOKUP(D165,Tablas!$B$2:$G$13,6,FALSE)) -> 
A166: =IF(ISBLANK(InfoPro!A159),"",InfoPro!A159) ->  | B166: =IF(ISBLANK(InfoPro!B159),"",InfoPro!B159) ->  | C166: =IF(ISBLANK(InfoPro!E159),"",InfoPro!E159) ->  | D166: =IF(ISBLANK(InfoPro!F159),"",InfoPro!F159) ->  | E166: =IF(ISBLANK(InfoPro!I159),"",YEAR(InfoPro!I159)-$G$3) ->  | F166: =IF(B166="","",VLOOKUP(D166,Tablas!$B$2:$E$13,2,FALSE)) ->  | G166: =IF(B166="","",VLOOKUP(D166,Tablas!$B$2:$G$13,6,FALSE)) ->  | J166: =IF($I166="","",(1/(1+$C$4)^(J$7+$E166))*$I166*$C$5) -> 
A167: =IF(ISBLANK(InfoPro!A160),"",InfoPro!A160) ->  | B167: =IF(ISBLANK(InfoPro!B160),"",InfoPro!B160) ->  | C167: =IF(ISBLANK(InfoPro!E160),"",InfoPro!E160) ->  | D167: =IF(ISBLANK(InfoPro!F160),"",InfoPro!F160) ->  | E167: =IF(ISBLANK(InfoPro!I160),"",YEAR(InfoPro!I160)-$G$3) ->  | F167: =IF(B167="","",VLOOKUP(D167,Tablas!$B$2:$E$13,2,FALSE)) ->  | G167: =IF(B167="","",VLOOKUP(D167,Tablas!$B$2:$G$13,6,FALSE)) -> 
A168: =IF(ISBLANK(InfoPro!A161),"",InfoPro!A161) ->  | B168: =IF(ISBLANK(InfoPro!B161),"",InfoPro!B161) ->  | C168: =IF(ISBLANK(InfoPro!E161),"",InfoPro!E161) ->  | D168: =IF(ISBLANK(InfoPro!F161),"",InfoPro!F161) ->  | E168: =IF(ISBLANK(InfoPro!I161),"",YEAR(InfoPro!I161)-$G$3) ->  | F168: =IF(B168="","",VLOOKUP(D168,Tablas!$B$2:$E$13,2,FALSE)) ->  | G168: =IF(B168="","",VLOOKUP(D168,Tablas!$B$2:$G$13,6,FALSE)) -> 
A169: =IF(ISBLANK(InfoPro!A162),"",InfoPro!A162) ->  | B169: =IF(ISBLANK(InfoPro!B162),"",InfoPro!B162) ->  | C169: =IF(ISBLANK(InfoPro!E162),"",InfoPro!E162) ->  | D169: =IF(ISBLANK(InfoPro!F162),"",InfoPro!F162) ->  | E169: =IF(ISBLANK(InfoPro!I162),"",YEAR(InfoPro!I162)-$G$3) ->  | F169: =IF(B169="","",VLOOKUP(D169,Tablas!$B$2:$E$13,2,FALSE)) ->  | G169: =IF(B169="","",VLOOKUP(D169,Tablas!$B$2:$G$13,6,FALSE)) -> 
A170: =IF(ISBLANK(InfoPro!A163),"",InfoPro!A163) ->  | B170: =IF(ISBLANK(InfoPro!B163),"",InfoPro!B163) ->  | C170: =IF(ISBLANK(InfoPro!E163),"",InfoPro!E163) ->  | D170: =IF(ISBLANK(InfoPro!F163),"",InfoPro!F163) ->  | E170: =IF(ISBLANK(InfoPro!I163),"",YEAR(InfoPro!I163)-$G$3) ->  | F170: =IF(B170="","",VLOOKUP(D170,Tablas!$B$2:$E$13,2,FALSE)) ->  | G170: =IF(B170="","",VLOOKUP(D170,Tablas!$B$2:$G$13,6,FALSE)) -> 
A171: =IF(ISBLANK(InfoPro!A164),"",InfoPro!A164) ->  | B171: =IF(ISBLANK(InfoPro!B164),"",InfoPro!B164) ->  | C171: =IF(ISBLANK(InfoPro!E164),"",InfoPro!E164) ->  | D171: =IF(ISBLANK(InfoPro!F164),"",InfoPro!F164) ->  | E171: =IF(ISBLANK(InfoPro!I164),"",YEAR(InfoPro!I164)-$G$3) ->  | F171: =IF(B171="","",VLOOKUP(D171,Tablas!$B$2:$E$13,2,FALSE)) ->  | G171: =IF(B171="","",VLOOKUP(D171,Tablas!$B$2:$G$13,6,FALSE)) -> 
A172: =IF(ISBLANK(InfoPro!A165),"",InfoPro!A165) ->  | B172: =IF(ISBLANK(InfoPro!B165),"",InfoPro!B165) ->  | C172: =IF(ISBLANK(InfoPro!E165),"",InfoPro!E165) ->  | D172: =IF(ISBLANK(InfoPro!F165),"",InfoPro!F165) ->  | E172: =IF(ISBLANK(InfoPro!I165),"",YEAR(InfoPro!I165)-$G$3) ->  | F172: =IF(B172="","",VLOOKUP(D172,Tablas!$B$2:$E$13,2,FALSE)) ->  | G172: =IF(B172="","",VLOOKUP(D172,Tablas!$B$2:$G$13,6,FALSE)) -> 
A173: =IF(ISBLANK(InfoPro!A166),"",InfoPro!A166) ->  | B173: =IF(ISBLANK(InfoPro!B166),"",InfoPro!B166) ->  | C173: =IF(ISBLANK(InfoPro!E166),"",InfoPro!E166) ->  | D173: =IF(ISBLANK(InfoPro!F166),"",InfoPro!F166) ->  | E173: =IF(ISBLANK(InfoPro!I166),"",YEAR(InfoPro!I166)-$G$3) ->  | F173: =IF(B173="","",VLOOKUP(D173,Tablas!$B$2:$E$13,2,FALSE)) ->  | G173: =IF(B173="","",VLOOKUP(D173,Tablas!$B$2:$G$13,6,FALSE)) -> 
A174: =IF(ISBLANK(InfoPro!A167),"",InfoPro!A167) ->  | B174: =IF(ISBLANK(InfoPro!B167),"",InfoPro!B167) ->  | C174: =IF(ISBLANK(InfoPro!E167),"",InfoPro!E167) ->  | D174: =IF(ISBLANK(InfoPro!F167),"",InfoPro!F167) ->  | E174: =IF(ISBLANK(InfoPro!I167),"",YEAR(InfoPro!I167)-$G$3) ->  | F174: =IF(B174="","",VLOOKUP(D174,Tablas!$B$2:$E$13,2,FALSE)) ->  | G174: =IF(B174="","",VLOOKUP(D174,Tablas!$B$2:$G$13,6,FALSE)) -> 
A175: =IF(ISBLANK(InfoPro!A168),"",InfoPro!A168) ->  | B175: =IF(ISBLANK(InfoPro!B168),"",InfoPro!B168) ->  | C175: =IF(ISBLANK(InfoPro!E168),"",InfoPro!E168) ->  | D175: =IF(ISBLANK(InfoPro!F168),"",InfoPro!F168) ->  | E175: =IF(ISBLANK(InfoPro!I168),"",YEAR(InfoPro!I168)-$G$3) ->  | F175: =IF(B175="","",VLOOKUP(D175,Tablas!$B$2:$E$13,2,FALSE)) ->  | G175: =IF(B175="","",VLOOKUP(D175,Tablas!$B$2:$G$13,6,FALSE)) ->  | H175: =IF(C175="","",+C175*F175*24*365) ->  | I175: =IF(H175="","",+H175*($C$3-G175)) ->  | Y175: =IF(X175="","",SUM(J175:X175)*$C$6) ->  | Z175: =IF(C175=0,0,IF(Y175="","",Y175/(C175*1000))) -> 
A176: =IF(ISBLANK(InfoPro!A169),"",InfoPro!A169) ->  | B176: =IF(ISBLANK(InfoPro!B169),"",InfoPro!B169) ->  | C176: =IF(ISBLANK(InfoPro!E169),"",InfoPro!E169) ->  | D176: =IF(ISBLANK(InfoPro!F169),"",InfoPro!F169) ->  | E176: =IF(ISBLANK(InfoPro!I169),"",YEAR(InfoPro!I169)-$G$3) ->  | F176: =IF(B176="","",VLOOKUP(D176,Tablas!$B$2:$E$13,2,FALSE)) ->  | G176: =IF(B176="","",VLOOKUP(D176,Tablas!$B$2:$G$13,6,FALSE)) -> 
A177: =IF(ISBLANK(InfoPro!A170),"",InfoPro!A170) ->  | B177: =IF(ISBLANK(InfoPro!B170),"",InfoPro!B170) ->  | C177: =IF(ISBLANK(InfoPro!E170),"",InfoPro!E170) ->  | D177: =IF(ISBLANK(InfoPro!F170),"",InfoPro!F170) ->  | E177: =IF(ISBLANK(InfoPro!I170),"",YEAR(InfoPro!I170)-$G$3) ->  | F177: =IF(B177="","",VLOOKUP(D177,Tablas!$B$2:$E$13,2,FALSE)) ->  | G177: =IF(B177="","",VLOOKUP(D177,Tablas!$B$2:$G$13,6,FALSE)) -> 
A178: =IF(ISBLANK(InfoPro!A171),"",InfoPro!A171) ->  | B178: =IF(ISBLANK(InfoPro!B171),"",InfoPro!B171) ->  | C178: =IF(ISBLANK(InfoPro!E171),"",InfoPro!E171) ->  | D178: =IF(ISBLANK(InfoPro!F171),"",InfoPro!F171) ->  | E178: =IF(ISBLANK(InfoPro!I171),"",YEAR(InfoPro!I171)-$G$3) ->  | F178: =IF(B178="","",VLOOKUP(D178,Tablas!$B$2:$E$13,2,FALSE)) ->  | G178: =IF(B178="","",VLOOKUP(D178,Tablas!$B$2:$G$13,6,FALSE)) -> 
A179: =IF(ISBLANK(InfoPro!A172),"",InfoPro!A172) ->  | B179: =IF(ISBLANK(InfoPro!B172),"",InfoPro!B172) ->  | C179: =IF(ISBLANK(InfoPro!E172),"",InfoPro!E172) ->  | D179: =IF(ISBLANK(InfoPro!F172),"",InfoPro!F172) ->  | E179: =IF(ISBLANK(InfoPro!I172),"",YEAR(InfoPro!I172)-$G$3) ->  | F179: =IF(B179="","",VLOOKUP(D179,Tablas!$B$2:$E$13,2,FALSE)) ->  | G179: =IF(B179="","",VLOOKUP(D179,Tablas!$B$2:$G$13,6,FALSE)) -> 
A180: =IF(ISBLANK(InfoPro!A173),"",InfoPro!A173) ->  | B180: =IF(ISBLANK(InfoPro!B173),"",InfoPro!B173) ->  | C180: =IF(ISBLANK(InfoPro!E173),"",InfoPro!E173) ->  | D180: =IF(ISBLANK(InfoPro!F173),"",InfoPro!F173) ->  | E180: =IF(ISBLANK(InfoPro!I173),"",YEAR(InfoPro!I173)-$G$3) ->  | F180: =IF(B180="","",VLOOKUP(D180,Tablas!$B$2:$E$13,2,FALSE)) ->  | G180: =IF(B180="","",VLOOKUP(D180,Tablas!$B$2:$G$13,6,FALSE)) -> 
A181: =IF(ISBLANK(InfoPro!A174),"",InfoPro!A174) ->  | B181: =IF(ISBLANK(InfoPro!B174),"",InfoPro!B174) ->  | C181: =IF(ISBLANK(InfoPro!E174),"",InfoPro!E174) ->  | D181: =IF(ISBLANK(InfoPro!F174),"",InfoPro!F174) ->  | E181: =IF(ISBLANK(InfoPro!I174),"",YEAR(InfoPro!I174)-$G$3) ->  | F181: =IF(B181="","",VLOOKUP(D181,Tablas!$B$2:$E$13,2,FALSE)) ->  | G181: =IF(B181="","",VLOOKUP(D181,Tablas!$B$2:$G$13,6,FALSE)) -> 
A182: =IF(ISBLANK(InfoPro!A175),"",InfoPro!A175) ->  | B182: =IF(ISBLANK(InfoPro!B175),"",InfoPro!B175) ->  | C182: =IF(ISBLANK(InfoPro!E175),"",InfoPro!E175) ->  | D182: =IF(ISBLANK(InfoPro!F175),"",InfoPro!F175) ->  | E182: =IF(ISBLANK(InfoPro!I175),"",YEAR(InfoPro!I175)-$G$3) ->  | F182: =IF(B182="","",VLOOKUP(D182,Tablas!$B$2:$E$13,2,FALSE)) ->  | G182: =IF(B182="","",VLOOKUP(D182,Tablas!$B$2:$G$13,6,FALSE)) -> 
A183: =IF(ISBLANK(InfoPro!A176),"",InfoPro!A176) ->  | B183: =IF(ISBLANK(InfoPro!B176),"",InfoPro!B176) ->  | C183: =IF(ISBLANK(InfoPro!E176),"",InfoPro!E176) ->  | D183: =IF(ISBLANK(InfoPro!F176),"",InfoPro!F176) ->  | E183: =IF(ISBLANK(InfoPro!I176),"",YEAR(InfoPro!I176)-$G$3) ->  | F183: =IF(B183="","",VLOOKUP(D183,Tablas!$B$2:$E$13,2,FALSE)) ->  | G183: =IF(B183="","",VLOOKUP(D183,Tablas!$B$2:$G$13,6,FALSE)) ->  | J183: =IF($I183="","",(1/(1+$C$4)^(J$7+$E183))*$I183*$C$5) -> 
A184: =IF(ISBLANK(InfoPro!A177),"",InfoPro!A177) ->  | B184: =IF(ISBLANK(InfoPro!B177),"",InfoPro!B177) ->  | C184: =IF(ISBLANK(InfoPro!E177),"",InfoPro!E177) ->  | D184: =IF(ISBLANK(InfoPro!F177),"",InfoPro!F177) ->  | E184: =IF(ISBLANK(InfoPro!I177),"",YEAR(InfoPro!I177)-$G$3) ->  | F184: =IF(B184="","",VLOOKUP(D184,Tablas!$B$2:$E$13,2,FALSE)) ->  | G184: =IF(B184="","",VLOOKUP(D184,Tablas!$B$2:$G$13,6,FALSE)) -> 
A185: =IF(ISBLANK(InfoPro!A178),"",InfoPro!A178) ->  | B185: =IF(ISBLANK(InfoPro!B178),"",InfoPro!B178) ->  | C185: =IF(ISBLANK(InfoPro!E178),"",InfoPro!E178) ->  | D185: =IF(ISBLANK(InfoPro!F178),"",InfoPro!F178) ->  | E185: =IF(ISBLANK(InfoPro!I178),"",YEAR(InfoPro!I178)-$G$3) ->  | F185: =IF(B185="","",VLOOKUP(D185,Tablas!$B$2:$E$13,2,FALSE)) ->  | G185: =IF(B185="","",VLOOKUP(D185,Tablas!$B$2:$G$13,6,FALSE)) -> 
A186: =IF(ISBLANK(InfoPro!A179),"",InfoPro!A179) ->  | B186: =IF(ISBLANK(InfoPro!B179),"",InfoPro!B179) ->  | C186: =IF(ISBLANK(InfoPro!E179),"",InfoPro!E179) ->  | D186: =IF(ISBLANK(InfoPro!F179),"",InfoPro!F179) ->  | E186: =IF(ISBLANK(InfoPro!I179),"",YEAR(InfoPro!I179)-$G$3) ->  | F186: =IF(B186="","",VLOOKUP(D186,Tablas!$B$2:$E$13,2,FALSE)) ->  | G186: =IF(B186="","",VLOOKUP(D186,Tablas!$B$2:$G$13,6,FALSE)) -> 
A187: =IF(ISBLANK(InfoPro!A180),"",InfoPro!A180) ->  | B187: =IF(ISBLANK(InfoPro!B180),"",InfoPro!B180) ->  | C187: =IF(ISBLANK(InfoPro!E180),"",InfoPro!E180) ->  | D187: =IF(ISBLANK(InfoPro!F180),"",InfoPro!F180) ->  | E187: =IF(ISBLANK(InfoPro!I180),"",YEAR(InfoPro!I180)-$G$3) ->  | F187: =IF(B187="","",VLOOKUP(D187,Tablas!$B$2:$E$13,2,FALSE)) ->  | G187: =IF(B187="","",VLOOKUP(D187,Tablas!$B$2:$G$13,6,FALSE)) -> 
A188: =IF(ISBLANK(InfoPro!A181),"",InfoPro!A181) ->  | B188: =IF(ISBLANK(InfoPro!B181),"",InfoPro!B181) ->  | C188: =IF(ISBLANK(InfoPro!E181),"",InfoPro!E181) ->  | D188: =IF(ISBLANK(InfoPro!F181),"",InfoPro!F181) ->  | E188: =IF(ISBLANK(InfoPro!I181),"",YEAR(InfoPro!I181)-$G$3) ->  | F188: =IF(B188="","",VLOOKUP(D188,Tablas!$B$2:$E$13,2,FALSE)) ->  | G188: =IF(B188="","",VLOOKUP(D188,Tablas!$B$2:$G$13,6,FALSE)) -> 
A189: =IF(ISBLANK(InfoPro!A182),"",InfoPro!A182) ->  | B189: =IF(ISBLANK(InfoPro!B182),"",InfoPro!B182) ->  | C189: =IF(ISBLANK(InfoPro!E182),"",InfoPro!E182) ->  | D189: =IF(ISBLANK(InfoPro!F182),"",InfoPro!F182) ->  | E189: =IF(ISBLANK(InfoPro!I182),"",YEAR(InfoPro!I182)-$G$3) ->  | F189: =IF(B189="","",VLOOKUP(D189,Tablas!$B$2:$E$13,2,FALSE)) ->  | G189: =IF(B189="","",VLOOKUP(D189,Tablas!$B$2:$G$13,6,FALSE)) -> 
A190: =IF(ISBLANK(InfoPro!A183),"",InfoPro!A183) ->  | B190: =IF(ISBLANK(InfoPro!B183),"",InfoPro!B183) ->  | C190: =IF(ISBLANK(InfoPro!E183),"",InfoPro!E183) ->  | D190: =IF(ISBLANK(InfoPro!F183),"",InfoPro!F183) ->  | E190: =IF(ISBLANK(InfoPro!I183),"",YEAR(InfoPro!I183)-$G$3) ->  | F190: =IF(B190="","",VLOOKUP(D190,Tablas!$B$2:$E$13,2,FALSE)) ->  | G190: =IF(B190="","",VLOOKUP(D190,Tablas!$B$2:$G$13,6,FALSE)) -> 
A191: =IF(ISBLANK(InfoPro!A184),"",InfoPro!A184) ->  | B191: =IF(ISBLANK(InfoPro!B184),"",InfoPro!B184) ->  | C191: =IF(ISBLANK(InfoPro!E184),"",InfoPro!E184) ->  | D191: =IF(ISBLANK(InfoPro!F184),"",InfoPro!F184) ->  | E191: =IF(ISBLANK(InfoPro!I184),"",YEAR(InfoPro!I184)-$G$3) ->  | F191: =IF(B191="","",VLOOKUP(D191,Tablas!$B$2:$E$13,2,FALSE)) ->  | G191: =IF(B191="","",VLOOKUP(D191,Tablas!$B$2:$G$13,6,FALSE)) ->  | H191: =IF(C191="","",+C191*F191*24*365) ->  | I191: =IF(H191="","",+H191*($C$3-G191)) ->  | Y191: =IF(X191="","",SUM(J191:X191)*$C$6) ->  | Z191: =IF(C191=0,0,IF(Y191="","",Y191/(C191*1000))) -> 
A192: =IF(ISBLANK(InfoPro!A185),"",InfoPro!A185) ->  | B192: =IF(ISBLANK(InfoPro!B185),"",InfoPro!B185) ->  | C192: =IF(ISBLANK(InfoPro!E185),"",InfoPro!E185) ->  | D192: =IF(ISBLANK(InfoPro!F185),"",InfoPro!F185) ->  | E192: =IF(ISBLANK(InfoPro!I185),"",YEAR(InfoPro!I185)-$G$3) ->  | F192: =IF(B192="","",VLOOKUP(D192,Tablas!$B$2:$E$13,2,FALSE)) ->  | G192: =IF(B192="","",VLOOKUP(D192,Tablas!$B$2:$G$13,6,FALSE)) -> 
A193: =IF(ISBLANK(InfoPro!A186),"",InfoPro!A186) ->  | B193: =IF(ISBLANK(InfoPro!B186),"",InfoPro!B186) ->  | C193: =IF(ISBLANK(InfoPro!E186),"",InfoPro!E186) ->  | D193: =IF(ISBLANK(InfoPro!F186),"",InfoPro!F186) ->  | E193: =IF(ISBLANK(InfoPro!I186),"",YEAR(InfoPro!I186)-$G$3) ->  | F193: =IF(B193="","",VLOOKUP(D193,Tablas!$B$2:$E$13,2,FALSE)) ->  | G193: =IF(B193="","",VLOOKUP(D193,Tablas!$B$2:$G$13,6,FALSE)) -> 
A194: =IF(ISBLANK(InfoPro!A187),"",InfoPro!A187) ->  | B194: =IF(ISBLANK(InfoPro!B187),"",InfoPro!B187) ->  | C194: =IF(ISBLANK(InfoPro!E187),"",InfoPro!E187) ->  | D194: =IF(ISBLANK(InfoPro!F187),"",InfoPro!F187) ->  | E194: =IF(ISBLANK(InfoPro!I187),"",YEAR(InfoPro!I187)-$G$3) ->  | F194: =IF(B194="","",VLOOKUP(D194,Tablas!$B$2:$E$13,2,FALSE)) ->  | G194: =IF(B194="","",VLOOKUP(D194,Tablas!$B$2:$G$13,6,FALSE)) -> 
A195: =IF(ISBLANK(InfoPro!A188),"",InfoPro!A188) ->  | B195: =IF(ISBLANK(InfoPro!B188),"",InfoPro!B188) ->  | C195: =IF(ISBLANK(InfoPro!E188),"",InfoPro!E188) ->  | D195: =IF(ISBLANK(InfoPro!F188),"",InfoPro!F188) ->  | E195: =IF(ISBLANK(InfoPro!I188),"",YEAR(InfoPro!I188)-$G$3) ->  | F195: =IF(B195="","",VLOOKUP(D195,Tablas!$B$2:$E$13,2,FALSE)) ->  | G195: =IF(B195="","",VLOOKUP(D195,Tablas!$B$2:$G$13,6,FALSE)) -> 
A196: =IF(ISBLANK(InfoPro!A189),"",InfoPro!A189) ->  | B196: =IF(ISBLANK(InfoPro!B189),"",InfoPro!B189) ->  | C196: =IF(ISBLANK(InfoPro!E189),"",InfoPro!E189) ->  | D196: =IF(ISBLANK(InfoPro!F189),"",InfoPro!F189) ->  | E196: =IF(ISBLANK(InfoPro!I189),"",YEAR(InfoPro!I189)-$G$3) ->  | F196: =IF(B196="","",VLOOKUP(D196,Tablas!$B$2:$E$13,2,FALSE)) ->  | G196: =IF(B196="","",VLOOKUP(D196,Tablas!$B$2:$G$13,6,FALSE)) -> 
A197: =IF(ISBLANK(InfoPro!A190),"",InfoPro!A190) ->  | B197: =IF(ISBLANK(InfoPro!B190),"",InfoPro!B190) ->  | C197: =IF(ISBLANK(InfoPro!E190),"",InfoPro!E190) ->  | D197: =IF(ISBLANK(InfoPro!F190),"",InfoPro!F190) ->  | E197: =IF(ISBLANK(InfoPro!I190),"",YEAR(InfoPro!I190)-$G$3) ->  | F197: =IF(B197="","",VLOOKUP(D197,Tablas!$B$2:$E$13,2,FALSE)) ->  | G197: =IF(B197="","",VLOOKUP(D197,Tablas!$B$2:$G$13,6,FALSE)) -> 
A198: =IF(ISBLANK(InfoPro!A191),"",InfoPro!A191) ->  | B198: =IF(ISBLANK(InfoPro!B191),"",InfoPro!B191) ->  | C198: =IF(ISBLANK(InfoPro!E191),"",InfoPro!E191) ->  | D198: =IF(ISBLANK(InfoPro!F191),"",InfoPro!F191) ->  | E198: =IF(ISBLANK(InfoPro!I191),"",YEAR(InfoPro!I191)-$G$3) ->  | F198: =IF(B198="","",VLOOKUP(D198,Tablas!$B$2:$E$13,2,FALSE)) ->  | G198: =IF(B198="","",VLOOKUP(D198,Tablas!$B$2:$G$13,6,FALSE)) -> 
A199: =IF(ISBLANK(InfoPro!A192),"",InfoPro!A192) ->  | B199: =IF(ISBLANK(InfoPro!B192),"",InfoPro!B192) ->  | C199: =IF(ISBLANK(InfoPro!E192),"",InfoPro!E192) ->  | D199: =IF(ISBLANK(InfoPro!F192),"",InfoPro!F192) ->  | E199: =IF(ISBLANK(InfoPro!I192),"",YEAR(InfoPro!I192)-$G$3) ->  | F199: =IF(B199="","",VLOOKUP(D199,Tablas!$B$2:$E$13,2,FALSE)) ->  | G199: =IF(B199="","",VLOOKUP(D199,Tablas!$B$2:$G$13,6,FALSE)) ->  | J199: =IF($I199="","",(1/(1+$C$4)^(J$7+$E199))*$I199*$C$5) -> 
A200: =IF(ISBLANK(InfoPro!A193),"",InfoPro!A193) ->  | B200: =IF(ISBLANK(InfoPro!B193),"",InfoPro!B193) ->  | C200: =IF(ISBLANK(InfoPro!E193),"",InfoPro!E193) ->  | D200: =IF(ISBLANK(InfoPro!F193),"",InfoPro!F193) ->  | E200: =IF(ISBLANK(InfoPro!I193),"",YEAR(InfoPro!I193)-$G$3) ->  | F200: =IF(B200="","",VLOOKUP(D200,Tablas!$B$2:$E$13,2,FALSE)) ->  | G200: =IF(B200="","",VLOOKUP(D200,Tablas!$B$2:$G$13,6,FALSE)) -> 
A201: =IF(ISBLANK(InfoPro!A194),"",InfoPro!A194) ->  | B201: =IF(ISBLANK(InfoPro!B194),"",InfoPro!B194) ->  | C201: =IF(ISBLANK(InfoPro!E194),"",InfoPro!E194) ->  | D201: =IF(ISBLANK(InfoPro!F194),"",InfoPro!F194) ->  | E201: =IF(ISBLANK(InfoPro!I194),"",YEAR(InfoPro!I194)-$G$3) ->  | F201: =IF(B201="","",VLOOKUP(D201,Tablas!$B$2:$E$13,2,FALSE)) ->  | G201: =IF(B201="","",VLOOKUP(D201,Tablas!$B$2:$G$13,6,FALSE)) -> 
A202: =IF(ISBLANK(InfoPro!A195),"",InfoPro!A195) ->  | B202: =IF(ISBLANK(InfoPro!B195),"",InfoPro!B195) ->  | C202: =IF(ISBLANK(InfoPro!E195),"",InfoPro!E195) ->  | D202: =IF(ISBLANK(InfoPro!F195),"",InfoPro!F195) ->  | E202: =IF(ISBLANK(InfoPro!I195),"",YEAR(InfoPro!I195)-$G$3) ->  | F202: =IF(B202="","",VLOOKUP(D202,Tablas!$B$2:$E$13,2,FALSE)) ->  | G202: =IF(B202="","",VLOOKUP(D202,Tablas!$B$2:$G$13,6,FALSE)) -> 

Sheet EC-RP
B2: Precio promedio de bolsa | C2: 192057 | D2: COP/MWh
B3: Tasa de descuento | C3: 0.118 | F3: Año de Referencia | H3: 2023
F4: Mínimo | H4: =MIN(Z8:Z400) -> -4303623.742
J6: 0 | K6: 1 | L6: 2 | M6: 3 | N6: 4 | O6: 5 | P6: 6 | Q6: 7 | R6: 8 | S6: 9 | T6: 10 | U6: 11 | V6: 12 | W6: 13 | X6: 14
A7: Codigo | B7: Nombre | C7: capacidad | D7: Tecnologia | E7: Año de entrada | F7: FP | G7: Precio de oferta | H7: Desviacion | I7: Produccion media/a MWh/a | J7: Flujo Descontado 0 | K7: Flujo Descontado 1 | L7: Flujo Descontado 2 | M7: Flujo Descontado 3 | N7: Flujo Descontado 4 | O7: Flujo Descontado 5 | P7: Flujo Descontado 6 | Q7: Flujo Descontado 7 | R7: Flujo Descontado 8 | S7: Flujo Descontado 9 | T7: Flujo Descontado 10 | U7: Flujo Descontado 11 | V7: Flujo Descontado 12 | W7: Flujo Descontado 13 | X7: Flujo Descontado 14 | Y7: VPN | Z7: Beneficio/kW
A8: =IF(ISBLANK(InfoPro!A2),"",InfoPro!A2) -> SC_1323_A1 | B8: =IF(ISBLANK(InfoPro!B2),"",InfoPro!B2) -> GEN ARAUCA | C8: =IF(ISBLANK(InfoPro!E2),"",InfoPro!E2) -> 30 | D8: =IF(ISBLANK(InfoPro!F2),"",InfoPro!F2) -> Termica - Ciclo Abierto | E8: =IF(ISBLANK(InfoPro!I2),"",YEAR(InfoPro!I2)-$H$3) -> 0 | F8: =IF(B8="","",VLOOKUP(D8,Tablas!$B$2:$E$13,2,FALSE)) -> 0.85 | G8: =IF(B8="","",VLOOKUP(D8,Tablas!$B$2:$H$13,7,FALSE)) -> 267152.5 | H8: =IF(B8="","",($C$2-(G8))/$C$2) -> -0.3910063158 | I8: =IF(C8="","",+C8*F8*24*365) -> 223380 | J8: =IF($I8="","",(1/(1+$C$3)^(J$6+$E8))*$I8*$C$2*$H8) -> -16774832790 | K8: =IF($I8="","",(1/(1+$C$3)^(K$6+$E8))*$I8*$C$2*$H8) -> -1.500432271e+10 | L8: -1.342068221e+10 | M8: -1.200418802e+10 | N8: -1.073719859e+10 | O8: -9603934337 | P8: -8590281161 | Q8: -7683614634 | R8: -6872642785 | S8: -6147265461 | T8: -5498448534 | U8: -4918111390 | V8: -4399026288 | W8: -3934728343 | X8: =IF($I8="","",(1/(1+$C$3)^(X$6+$E8))*$I8*$C$2*$H8) -> -3519435012 | Y8: =IF(X8="","",SUM(J8:X8)) -> -1.291087123e+11 | Z8: =IF(C8=0,0,IF(Y8="","",Y8/(C8*1000))) -> -4303623.742
A9: =IF(ISBLANK(InfoPro!A3),"",InfoPro!A3) -> SC_1323_A2 | B9: =IF(ISBLANK(InfoPro!B3),"",InfoPro!B3) -> GEN ARAUCA | C9: =IF(ISBLANK(InfoPro!E3),"",InfoPro!E3) -> 30 | D9: =IF(ISBLANK(InfoPro!F3),"",InfoPro!F3) -> Termica - Ciclo Abierto | E9: =IF(ISBLANK(InfoPro!I3),"",YEAR(InfoPro!I3)-$H$3) -> 0 | F9: =IF(B9="","",VLOOKUP(D9,Tablas!$B$2:$E$13,2,FALSE)) -> 0.85 | G9: =IF(B9="","",VLOOKUP(D9,Tablas!$B$2:$H$13,7,FALSE)) -> 267152.5 | H9: =IF(B9="","",($C$2-(G9))/$C$2) -> -0.3910063158 | I9: =IF(C9="","",+C9*F9*24*365) -> 223380 | J9: -16774832790 | K9: -1.500432271e+10 | L9: -1.342068221e+10 | M9: -1.200418802e+10 | N9: -1.073719859e+10 | O9: -9603934337 | P9: -8590281161 | Q9: -7683614634 | R9: -6872642785 | S9: -6147265461 | T9: -5498448534 | U9: -4918111390 | V9: -4399026288 | W9: -3934728343 | X9: -3519435012 | Y9: =IF(X9="","",SUM(J9:X9)) -> -1.291087123e+11 | Z9: =IF(C9=0,0,IF(Y9="","",Y9/(C9*1000))) -> -4303623.742
A10: =IF(ISBLANK(InfoPro!A4),"",InfoPro!A4) -> SC_1323_A3 | B10: =IF(ISBLANK(InfoPro!B4),"",InfoPro!B4) -> GEN ARAUCA | C10: =IF(ISBLANK(InfoPro!E4),"",InfoPro!E4) -> 30 | D10: =IF(ISBLANK(InfoPro!F4),"",InfoPro!F4) -> Termica - Ciclo Abierto | E10: =IF(ISBLANK(InfoPro!I4),"",YEAR(InfoPro!I4)-$H$3) -> 0 | F10: =IF(B10="","",VLOOKUP(D10,Tablas!$B$2:$E$13,2,FALSE)) -> 0.85 | G10: =IF(B10="","",VLOOKUP(D10,Tablas!$B$2:$H$13,7,FALSE)) -> 267152.5 | H10: -0.3910063158 | I10: 223380 | J10: -16774832790 | K10: -1.500432271e+10 | L10: -1.342068221e+10 | M10: -1.200418802e+10 | N10: -1.073719859e+10 | O10: -9603934337 | P10: -8590281161 | Q10: -7683614634 | R10: -6872642785 | S10: -6147265461 | T10: -5498448534 | U10: -4918111390 | V10: -4399026288 | W10: -3934728343 | X10: -3519435012 | Y10: -1.291087123e+11 | Z10: =IF(C10=0,0,IF(Y10="","",Y10/(C10*1000))) -> -4303623.742
A11: =IF(ISBLANK(InfoPro!A5),"",InfoPro!A5) ->  | B11: =IF(ISBLANK(InfoPro!B5),"",InfoPro!B5) ->  | C11: =IF(ISBLANK(InfoPro!E5),"",InfoPro!E5) ->  | D11: =IF(ISBLANK(InfoPro!F5),"",InfoPro!F5) ->  | E11: =IF(ISBLANK(InfoPro!I5),"",YEAR(InfoPro!I5)-$H$3) ->  | F11: =IF(B11="","",VLOOKUP(D11,Tablas!$B$2:$E$13,2,FALSE)) ->  | G11: =IF(B11="","",VLOOKUP(D11,Tablas!$B$2:$H$13,7,FALSE)) -> 
A12: =IF(ISBLANK(InfoPro!A6),"",InfoPro!A6) ->  | B12: =IF(ISBLANK(InfoPro!B6),"",InfoPro!B6) ->  | C12: =IF(ISBLANK(InfoPro!E6),"",InfoPro!E6) ->  | D12: =IF(ISBLANK(InfoPro!F6),"",InfoPro!F6) ->  | E12: =IF(ISBLANK(InfoPro!I6),"",YEAR(InfoPro!I6)-$H$3) ->  | F12: =IF(B12="","",VLOOKUP(D12,Tablas!$B$2:$E$13,2,FALSE)) ->  | G12: =IF(B12="","",VLOOKUP(D12,Tablas!$B$2:$H$13,7,FALSE)) -> 
A13: =IF(ISBLANK(InfoPro!A7),"",InfoPro!A7) ->  | B13: =IF(ISBLANK(InfoPro!B7),"",InfoPro!B7) ->  | C13: =IF(ISBLANK(InfoPro!E7),"",InfoPro!E7) ->  | D13: =IF(ISBLANK(InfoPro!F7),"",InfoPro!F7) ->  | E13: =IF(ISBLANK(InfoPro!I7),"",YEAR(InfoPro!I7)-$H$3) ->  | F13: =IF(B13="","",VLOOKUP(D13,Tablas!$B$2:$E$13,2,FALSE)) ->  | G13: =IF(B13="","",VLOOKUP(D13,Tablas!$B$2:$H$13,7,FALSE)) -> 
A14: =IF(ISBLANK(InfoPro!A8),"",InfoPro!A8) ->  | B14: =IF(ISBLANK(InfoPro!B8),"",InfoPro!B8) ->  | C14: =IF(ISBLANK(InfoPro!E8),"",InfoPro!E8) ->  | D14: =IF(ISBLANK(InfoPro!F8),"",InfoPro!F8) ->  | E14: =IF(ISBLANK(InfoPro!I8),"",YEAR(InfoPro!I8)-$H$3) ->  | F14: =IF(B14="","",VLOOKUP(D14,Tablas!$B$2:$E$13,2,FALSE)) ->  | G14: =IF(B14="","",VLOOKUP(D14,Tablas!$B$2:$H$13,7,FALSE)) -> 
A15: =IF(ISBLANK(InfoPro!A9),"",InfoPro!A9) ->  | B15: =IF(ISBLANK(InfoPro!B9),"",InfoPro!B9) ->  | C15: =IF(ISBLANK(InfoPro!E9),"",InfoPro!E9) ->  | D15: =IF(ISBLANK(InfoPro!F9),"",InfoPro!F9) ->  | E15: =IF(ISBLANK(InfoPro!I9),"",YEAR(InfoPro!I9)-$H$3) ->  | F15: =IF(B15="","",VLOOKUP(D15,Tablas!$B$2:$E$13,2,FALSE)) ->  | G15: =IF(B15="","",VLOOKUP(D15,Tablas!$B$2:$H$13,7,FALSE)) -> 
A16: =IF(ISBLANK(InfoPro!A10),"",InfoPro!A10) ->  | B16: =IF(ISBLANK(InfoPro!B10),"",InfoPro!B10) ->  | C16: =IF(ISBLANK(InfoPro!E10),"",InfoPro!E10) ->  | D16: =IF(ISBLANK(InfoPro!F10),"",InfoPro!F10) ->  | E16: =IF(ISBLANK(InfoPro!I10),"",YEAR(InfoPro!I10)-$H$3) ->  | F16: =IF(B16="","",VLOOKUP(D16,Tablas!$B$2:$E$13,2,FALSE)) ->  | G16: =IF(B16="","",VLOOKUP(D16,Tablas!$B$2:$H$13,7,FALSE)) -> 
A17: =IF(ISBLANK(InfoPro!A11),"",InfoPro!A11) ->  | B17: =IF(ISBLANK(InfoPro!B11),"",InfoPro!B11) ->  | C17: =IF(ISBLANK(InfoPro!E11),"",InfoPro!E11) ->  | D17: =IF(ISBLANK(InfoPro!F11),"",InfoPro!F11) ->  | E17: =IF(ISBLANK(InfoPro!I11),"",YEAR(InfoPro!I11)-$H$3) ->  | F17: =IF(B17="","",VLOOKUP(D17,Tablas!$B$2:$E$13,2,FALSE)) ->  | G17: =IF(B17="","",VLOOKUP(D17,Tablas!$B$2:$H$13,7,FALSE)) -> 
A18: =IF(ISBLANK(InfoPro!A12),"",InfoPro!A12) ->  | B18: =IF(ISBLANK(InfoPro!B12),"",InfoPro!B12) ->  | C18: =IF(ISBLANK(InfoPro!E12),"",InfoPro!E12) ->  | D18: =IF(ISBLANK(InfoPro!F12),"",InfoPro!F12) ->  | E18: =IF(ISBLANK(InfoPro!I12),"",YEAR(InfoPro!I12)-$H$3) ->  | F18: =IF(B18="","",VLOOKUP(D18,Tablas!$B$2:$E$13,2,FALSE)) ->  | G18: =IF(B18="","",VLOOKUP(D18,Tablas!$B$2:$H$13,7,FALSE)) ->  | J18: =IF($I18="","",(1/(1+$C$3)^(J$6+$E18))*$I18*$C$2*$H18) -> 
A19: =IF(ISBLANK(InfoPro!A13),"",InfoPro!A13) ->  | B19: =IF(ISBLANK(InfoPro!B13),"",InfoPro!B13) ->  | C19: =IF(ISBLANK(InfoPro!E13),"",InfoPro!E13) ->  | D19: =IF(ISBLANK(InfoPro!F13),"",InfoPro!F13) ->  | E19: =IF(ISBLANK(InfoPro!I13),"",YEAR(InfoPro!I13)-$H$3) ->  | F19: =IF(B19="","",VLOOKUP(D19,Tablas!$B$2:$E$13,2,FALSE)) ->  | G19: =IF(B19="","",VLOOKUP(D19,Tablas!$B$2:$H$13,7,FALSE)) -> 
A20: =IF(ISBLANK(InfoPro!A14),"",InfoPro!A14) ->  | B20: =IF(ISBLANK(InfoPro!B14),"",InfoPro!B14) ->  | C20: =IF(ISBLANK(InfoPro!E14),"",InfoPro!E14) ->  | D20: =IF(ISBLANK(InfoPro!F14),"",InfoPro!F14) ->  | E20: =IF(ISBLANK(InfoPro!I14),"",YEAR(InfoPro!I14)-$H$3) ->  | F20: =IF(B20="","",VLOOKUP(D20,Tablas!$B$2:$E$13,2,FALSE)) ->  | G20: =IF(B20="","",VLOOKUP(D20,Tablas!$B$2:$H$13,7,FALSE)) -> 
A21: =IF(ISBLANK(InfoPro!A15),"",InfoPro!A15) ->  | B21: =IF(ISBLANK(InfoPro!B15),"",InfoPro!B15) ->  | C21: =IF(ISBLANK(InfoPro!E15),"",InfoPro!E15) ->  | D21: =IF(ISBLANK(InfoPro!F15),"",InfoPro!F15) ->  | E21: =IF(ISBLANK(InfoPro!I15),"",YEAR(InfoPro!I15)-$H$3) ->  | F21: =IF(B21="","",VLOOKUP(D21,Tablas!$B$2:$E$13,2,FALSE)) ->  | G21: =IF(B21="","",VLOOKUP(D21,Tablas!$B$2:$H$13,7,FALSE)) -> 
A22: =IF(ISBLANK(InfoPro!A16),"",InfoPro!A16) ->  | B22: =IF(ISBLANK(InfoPro!B16),"",InfoPro!B16) ->  | C22: =IF(ISBLANK(InfoPro!E16),"",InfoPro!E16) ->  | D22: =IF(ISBLANK(InfoPro!F16),"",InfoPro!F16) ->  | E22: =IF(ISBLANK(InfoPro!I16),"",YEAR(InfoPro!I16)-$H$3) ->  | F22: =IF(B22="","",VLOOKUP(D22,Tablas!$B$2:$E$13,2,FALSE)) ->  | G22: =IF(B22="","",VLOOKUP(D22,Tablas!$B$2:$H$13,7,FALSE)) -> 
A23: =IF(ISBLANK(InfoPro!A17),"",InfoPro!A17) ->  | B23: =IF(ISBLANK(InfoPro!B17),"",InfoPro!B17) ->  | C23: =IF(ISBLANK(InfoPro!E17),"",InfoPro!E17) ->  | D23: =IF(ISBLANK(InfoPro!F17),"",InfoPro!F17) ->  | E23: =IF(ISBLANK(InfoPro!I17),"",YEAR(InfoPro!I17)-$H$3) ->  | F23: =IF(B23="","",VLOOKUP(D23,Tablas!$B$2:$E$13,2,FALSE)) ->  | G23: =IF(B23="","",VLOOKUP(D23,Tablas!$B$2:$H$13,7,FALSE)) -> 
A24: =IF(ISBLANK(InfoPro!A18),"",InfoPro!A18) ->  | B24: =IF(ISBLANK(InfoPro!B18),"",InfoPro!B18) ->  | C24: =IF(ISBLANK(InfoPro!E18),"",InfoPro!E18) ->  | D24: =IF(ISBLANK(InfoPro!F18),"",InfoPro!F18) ->  | E24: =IF(ISBLANK(InfoPro!I18),"",YEAR(InfoPro!I18)-$H$3) ->  | F24: =IF(B24="","",VLOOKUP(D24,Tablas!$B$2:$E$13,2,FALSE)) ->  | G24: =IF(B24="","",VLOOKUP(D24,Tablas!$B$2:$H$13,7,FALSE)) -> 
A25: =IF(ISBLANK(InfoPro!A19),"",InfoPro!A19) ->  | B25: =IF(ISBLANK(InfoPro!B19),"",InfoPro!B19) ->  | C25: =IF(ISBLANK(InfoPro!E19),"",InfoPro!E19) ->  | D25: =IF(ISBLANK(InfoPro!F19),"",InfoPro!F19) ->  | E25: =IF(ISBLANK(InfoPro!I19),"",YEAR(InfoPro!I19)-$H$3) ->  | F25: =IF(B25="","",VLOOKUP(D25,Tablas!$B$2:$E$13,2,FALSE)) ->  | G25: =IF(B25="","",VLOOKUP(D25,Tablas!$B$2:$H$13,7,FALSE)) -> 
A26: =IF(ISBLANK(InfoPro!A20),"",InfoPro!A20) ->  | B26: =IF(ISBLANK(InfoPro!B20),"",InfoPro!B20) ->  | C26: =IF(ISBLANK(InfoPro!E20),"",InfoPro!E20) ->  | D26: =IF(ISBLANK(InfoPro!F20),"",InfoPro!F20) ->  | E26: =IF(ISBLANK(InfoPro!I20),"",YEAR(InfoPro!I20)-$H$3) ->  | F26: =IF(B26="","",VLOOKUP(D26,Tablas!$B$2:$E$13,2,FALSE)) ->  | G26: =IF(B26="","",VLOOKUP(D26,Tablas!$B$2:$H$13,7,FALSE)) -> 
A27: =IF(ISBLANK(InfoPro!A21),"",InfoPro!A21) ->  | B27: =IF(ISBLANK(InfoPro!B21),"",InfoPro!B21) ->  | C27: =IF(ISBLANK(InfoPro!E21),"",InfoPro!E21) ->  | D27: =IF(ISBLANK(InfoPro!F21),"",InfoPro!F21) ->  | E27: =IF(ISBLANK(InfoPro!I21),"",YEAR(InfoPro!I21)-$H$3) ->  | F27: =IF(B27="","",VLOOKUP(D27,Tablas!$B$2:$E$13,2,FALSE)) ->  | G27: =IF(B27="","",VLOOKUP(D27,Tablas!$B$2:$H$13,7,FALSE)) -> 
A28: =IF(ISBLANK(InfoPro!A22),"",InfoPro!A22) ->  | B28: =IF(ISBLANK(InfoPro!B22),"",InfoPro!B22) ->  | C28: =IF(ISBLANK(InfoPro!E22),"",InfoPro!E22) ->  | D28: =IF(ISBLANK(InfoPro!F22),"",InfoPro!F22) ->  | E28: =IF(ISBLANK(InfoPro!I22),"",YEAR(InfoPro!I22)-$H$3) ->  | F28: =IF(B28="","",VLOOKUP(D28,Tablas!$B$2:$E$13,2,FALSE)) ->  | G28: =IF(B28="","",VLOOKUP(D28,Tablas!$B$2:$H$13,7,FALSE)) ->  | J28: =IF($I28="","",(1/(1+$C$3)^(J$6+$E28))*$I28*$C$2*$H28) -> 
A29: =IF(ISBLANK(InfoPro!A23),"",InfoPro!A23) ->  | B29: =IF(ISBLANK(InfoPro!B23),"",InfoPro!B23) ->  | C29: =IF(ISBLANK(InfoPro!E23),"",InfoPro!E23) ->  | D29: =IF(ISBLANK(InfoPro!F23),"",InfoPro!F23) ->  | E29: =IF(ISBLANK(InfoPro!I23),"",YEAR(InfoPro!I23)-$H$3) ->  | F29: =IF(B29="","",VLOOKUP(D29,Tablas!$B$2:$E$13,2,FALSE)) ->  | G29: =IF(B29="","",VLOOKUP(D29,Tablas!$B$2:$H$13,7,FALSE)) -> 
A30: =IF(ISBLANK(InfoPro!A24),"",InfoPro!A24) ->  | B30: =IF(ISBLANK(InfoPro!B24),"",InfoPro!B24) ->  | C30: =IF(ISBLANK(InfoPro!E24),"",InfoPro!E24) ->  | D30: =IF(ISBLANK(InfoPro!F24),"",InfoPro!F24) ->  | E30: =IF(ISBLANK(InfoPro!I24),"",YEAR(InfoPro!I24)-$H$3) ->  | F30: =IF(B30="","",VLOOKUP(D30,Tablas!$B$2:$E$13,2,FALSE)) ->  | G30: =IF(B30="","",VLOOKUP(D30,Tablas!$B$2:$H$13,7,FALSE)) -> 
A31: =IF(ISBLANK(InfoPro!A25),"",InfoPro!A25) ->  | B31: =IF(ISBLANK(InfoPro!B25),"",InfoPro!B25) ->  | C31: =IF(ISBLANK(InfoPro!E25),"",InfoPro!E25) ->  | D31: =IF(ISBLANK(InfoPro!F25),"",InfoPro!F25) ->  | E31: =IF(ISBLANK(InfoPro!I25),"",YEAR(InfoPro!I25)-$H$3) ->  | F31: =IF(B31="","",VLOOKUP(D31,Tablas!$B$2:$E$13,2,FALSE)) ->  | G31: =IF(B31="","",VLOOKUP(D31,Tablas!$B$2:$H$13,7,FALSE)) -> 
A32: =IF(ISBLANK(InfoPro!A26),"",InfoPro!A26) ->  | B32: =IF(ISBLANK(InfoPro!B26),"",InfoPro!B26) ->  | C32: =IF(ISBLANK(InfoPro!E26),"",InfoPro!E26) ->  | D32: =IF(ISBLANK(InfoPro!F26),"",InfoPro!F26) ->  | E32: =IF(ISBLANK(InfoPro!I26),"",YEAR(InfoPro!I26)-$H$3) ->  | F32: =IF(B32="","",VLOOKUP(D32,Tablas!$B$2:$E$13,2,FALSE)) ->  | G32: =IF(B32="","",VLOOKUP(D32,Tablas!$B$2:$H$13,7,FALSE)) -> 
A33: =IF(ISBLANK(InfoPro!A27),"",InfoPro!A27) ->  | B33: =IF(ISBLANK(InfoPro!B27),"",InfoPro!B27) ->  | C33: =IF(ISBLANK(InfoPro!E27),"",InfoPro!E27) ->  | D33: =IF(ISBLANK(InfoPro!F27),"",InfoPro!F27) ->  | E33: =IF(ISBLANK(InfoPro!I27),"",YEAR(InfoPro!I27)-$H$3) ->  | F33: =IF(B33="","",VLOOKUP(D33,Tablas!$B$2:$E$13,2,FALSE)) ->  | G33: =IF(B33="","",VLOOKUP(D33,Tablas!$B$2:$H$13,7,FALSE)) -> 
A34: =IF(ISBLANK(InfoPro!A28),"",InfoPro!A28) ->  | B34: =IF(ISBLANK(InfoPro!B28),"",InfoPro!B28) ->  | C34: =IF(ISBLANK(InfoPro!E28),"",InfoPro!E28) ->  | D34: =IF(ISBLANK(InfoPro!F28),"",InfoPro!F28) ->  | E34: =IF(ISBLANK(InfoPro!I28),"",YEAR(InfoPro!I28)-$H$3) ->  | F34: =IF(B34="","",VLOOKUP(D34,Tablas!$B$2:$E$13,2,FALSE)) ->  | G34: =IF(B34="","",VLOOKUP(D34,Tablas!$B$2:$H$13,7,FALSE)) -> 
A35: =IF(ISBLANK(InfoPro!A29),"",InfoPro!A29) ->  | B35: =IF(ISBLANK(InfoPro!B29),"",InfoPro!B29) ->  | C35: =IF(ISBLANK(InfoPro!E29),"",InfoPro!E29) ->  | D35: =IF(ISBLANK(InfoPro!F29),"",InfoPro!F29) ->  | E35: =IF(ISBLANK(InfoPro!I29),"",YEAR(InfoPro!I29)-$H$3) ->  | F35: =IF(B35="","",VLOOKUP(D35,Tablas!$B$2:$E$13,2,FALSE)) ->  | G35: =IF(B35="","",VLOOKUP(D35,Tablas!$B$2:$H$13,7,FALSE)) -> 
A36: =IF(ISBLANK(InfoPro!A30),"",InfoPro!A30) ->  | B36: =IF(ISBLANK(InfoPro!B30),"",InfoPro!B30) ->  | C36: =IF(ISBLANK(InfoPro!E30),"",InfoPro!E30) ->  | D36: =IF(ISBLANK(InfoPro!F30),"",InfoPro!F30) ->  | E36: =IF(ISBLANK(InfoPro!I30),"",YEAR(InfoPro!I30)-$H$3) ->  | F36: =IF(B36="","",VLOOKUP(D36,Tablas!$B$2:$E$13,2,FALSE)) ->  | G36: =IF(B36="","",VLOOKUP(D36,Tablas!$B$2:$H$13,7,FALSE)) -> 
A37: =IF(ISBLANK(InfoPro!A31),"",InfoPro!A31) ->  | B37: =IF(ISBLANK(InfoPro!B31),"",InfoPro!B31) ->  | C37: =IF(ISBLANK(InfoPro!E31),"",InfoPro!E31) ->  | D37: =IF(ISBLANK(InfoPro!F31),"",InfoPro!F31) ->  | E37: =IF(ISBLANK(InfoPro!I31),"",YEAR(InfoPro!I31)-$H$3) ->  | F37: =IF(B37="","",VLOOKUP(D37,Tablas!$B$2:$E$13,2,FALSE)) ->  | G37: =IF(B37="","",VLOOKUP(D37,Tablas!$B$2:$H$13,7,FALSE)) -> 
A38: =IF(ISBLANK(InfoPro!A32),"",InfoPro!A32) ->  | B38: =IF(ISBLANK(InfoPro!B32),"",InfoPro!B32) ->  | C38: =IF(ISBLANK(InfoPro!E32),"",InfoPro!E32) ->  | D38: =IF(ISBLANK(InfoPro!F32),"",InfoPro!F32) ->  | E38: =IF(ISBLANK(InfoPro!I32),"",YEAR(InfoPro!I32)-$H$3) ->  | F38: =IF(B38="","",VLOOKUP(D38,Tablas!$B$2:$E$13,2,FALSE)) ->  | G38: =IF(B38="","",VLOOKUP(D38,Tablas!$B$2:$H$13,7,FALSE)) ->  | J38: =IF($I38="","",(1/(1+$C$3)^(J$6+$E38))*$I38*$C$2*$H38) -> 
A39: =IF(ISBLANK(InfoPro!A33),"",InfoPro!A33) ->  | B39: =IF(ISBLANK(InfoPro!B33),"",InfoPro!B33) ->  | C39: =IF(ISBLANK(InfoPro!E33),"",InfoPro!E33) ->  | D39: =IF(ISBLANK(InfoPro!F33),"",InfoPro!F33) ->  | E39: =IF(ISBLANK(InfoPro!I33),"",YEAR(InfoPro!I33)-$H$3) ->  | F39: =IF(B39="","",VLOOKUP(D39,Tablas!$B$2:$E$13,2,FALSE)) ->  | G39: =IF(B39="","",VLOOKUP(D39,Tablas!$B$2:$H$13,7,FALSE)) -> 
A40: =IF(ISBLANK(InfoPro!A34),"",InfoPro!A34) ->  | B40: =IF(ISBLANK(InfoPro!B34),"",InfoPro!B34) ->  | C40: =IF(ISBLANK(InfoPro!E34),"",InfoPro!E34) ->  | D40: =IF(ISBLANK(InfoPro!F34),"",InfoPro!F34) ->  | E40: =IF(ISBLANK(InfoPro!I34),"",YEAR(InfoPro!I34)-$H$3) ->  | F40: =IF(B40="","",VLOOKUP(D40,Tablas!$B$2:$E$13,2,FALSE)) ->  | G40: =IF(B40="","",VLOOKUP(D40,Tablas!$B$2:$H$13,7,FALSE)) ->  | I40: =IF(C40="","",+C40*F40*24*365) -> 
A41: =IF(ISBLANK(InfoPro!A35),"",InfoPro!A35) ->  | B41: =IF(ISBLANK(InfoPro!B35),"",InfoPro!B35) ->  | C41: =IF(ISBLANK(InfoPro!E35),"",InfoPro!E35) ->  | D41: =IF(ISBLANK(InfoPro!F35),"",InfoPro!F35) ->  | E41: =IF(ISBLANK(InfoPro!I35),"",YEAR(InfoPro!I35)-$H$3) ->  | F41: =IF(B41="","",VLOOKUP(D41,Tablas!$B$2:$E$13,2,FALSE)) ->  | G41: =IF(B41="","",VLOOKUP(D41,Tablas!$B$2:$H$13,7,FALSE)) -> 
A42: =IF(ISBLANK(InfoPro!A36),"",InfoPro!A36) ->  | B42: =IF(ISBLANK(InfoPro!B36),"",InfoPro!B36) ->  | C42: =IF(ISBLANK(InfoPro!E36),"",InfoPro!E36) ->  | D42: =IF(ISBLANK(InfoPro!F36),"",InfoPro!F36) ->  | E42: =IF(ISBLANK(InfoPro!I36),"",YEAR(InfoPro!I36)-$H$3) ->  | F42: =IF(B42="","",VLOOKUP(D42,Tablas!$B$2:$E$13,2,FALSE)) ->  | G42: =IF(B42="","",VLOOKUP(D42,Tablas!$B$2:$H$13,7,FALSE)) -> 
A43: =IF(ISBLANK(InfoPro!A37),"",InfoPro!A37) ->  | B43: =IF(ISBLANK(InfoPro!B37),"",InfoPro!B37) ->  | C43: =IF(ISBLANK(InfoPro!E37),"",InfoPro!E37) ->  | D43: =IF(ISBLANK(InfoPro!F37),"",InfoPro!F37) ->  | E43: =IF(ISBLANK(InfoPro!I37),"",YEAR(InfoPro!I37)-$H$3) ->  | F43: =IF(B43="","",VLOOKUP(D43,Tablas!$B$2:$E$13,2,FALSE)) ->  | G43: =IF(B43="","",VLOOKUP(D43,Tablas!$B$2:$H$13,7,FALSE)) -> 
A44: =IF(ISBLANK(InfoPro!A38),"",InfoPro!A38) ->  | B44: =IF(ISBLANK(InfoPro!B38),"",InfoPro!B38) ->  | C44: =IF(ISBLANK(InfoPro!E38),"",InfoPro!E38) ->  | D44: =IF(ISBLANK(InfoPro!F38),"",InfoPro!F38) ->  | E44: =IF(ISBLANK(InfoPro!I38),"",YEAR(InfoPro!I38)-$H$3) ->  | F44: =IF(B44="","",VLOOKUP(D44,Tablas!$B$2:$E$13,2,FALSE)) ->  | G44: =IF(B44="","",VLOOKUP(D44,Tablas!$B$2:$H$13,7,FALSE)) -> 
A45: =IF(ISBLANK(InfoPro!A39),"",InfoPro!A39) ->  | B45: =IF(ISBLANK(InfoPro!B39),"",InfoPro!B39) ->  | C45: =IF(ISBLANK(InfoPro!E39),"",InfoPro!E39) ->  | D45: =IF(ISBLANK(InfoPro!F39),"",InfoPro!F39) ->  | E45: =IF(ISBLANK(InfoPro!I39),"",YEAR(InfoPro!I39)-$H$3) ->  | F45: =IF(B45="","",VLOOKUP(D45,Tablas!$B$2:$E$13,2,FALSE)) ->  | G45: =IF(B45="","",VLOOKUP(D45,Tablas!$B$2:$H$13,7,FALSE)) -> 
A46: =IF(ISBLANK(InfoPro!A40),"",InfoPro!A40) ->  | B46: =IF(ISBLANK(InfoPro!B40),"",InfoPro!B40) ->  | C46: =IF(ISBLANK(InfoPro!E40),"",InfoPro!E40) ->  | D46: =IF(ISBLANK(InfoPro!F40),"",InfoPro!F40) ->  | E46: =IF(ISBLANK(InfoPro!I40),"",YEAR(InfoPro!I40)-$H$3) ->  | F46: =IF(B46="","",VLOOKUP(D46,Tablas!$B$2:$E$13,2,FALSE)) ->  | G46: =IF(B46="","",VLOOKUP(D46,Tablas!$B$2:$H$13,7,FALSE)) -> 
A47: =IF(ISBLANK(InfoPro!A41),"",InfoPro!A41) ->  | B47: =IF(ISBLANK(InfoPro!B41),"",InfoPro!B41) ->  | C47: =IF(ISBLANK(InfoPro!E41),"",InfoPro!E41) ->  | D47: =IF(ISBLANK(InfoPro!F41),"",InfoPro!F41) ->  | E47: =IF(ISBLANK(InfoPro!I41),"",YEAR(InfoPro!I41)-$H$3) ->  | F47: =IF(B47="","",VLOOKUP(D47,Tablas!$B$2:$E$13,2,FALSE)) ->  | G47: =IF(B47="","",VLOOKUP(D47,Tablas!$B$2:$H$13,7,FALSE)) -> 
A48: =IF(ISBLANK(InfoPro!A42),"",InfoPro!A42) ->  | B48: =IF(ISBLANK(InfoPro!B42),"",InfoPro!B42) ->  | C48: =IF(ISBLANK(InfoPro!E42),"",InfoPro!E42) ->  | D48: =IF(ISBLANK(InfoPro!F42),"",InfoPro!F42) ->  | E48: =IF(ISBLANK(InfoPro!I42),"",YEAR(InfoPro!I42)-$H$3) ->  | F48: =IF(B48="","",VLOOKUP(D48,Tablas!$B$2:$E$13,2,FALSE)) ->  | G48: =IF(B48="","",VLOOKUP(D48,Tablas!$B$2:$H$13,7,FALSE)) ->  | J48: =IF($I48="","",(1/(1+$C$3)^(J$6+$E48))*$I48*$C$2*$H48) -> 
A49: =IF(ISBLANK(InfoPro!A43),"",InfoPro!A43) ->  | B49: =IF(ISBLANK(InfoPro!B43),"",InfoPro!B43) ->  | C49: =IF(ISBLANK(InfoPro!E43),"",InfoPro!E43) ->  | D49: =IF(ISBLANK(InfoPro!F43),"",InfoPro!F43) ->  | E49: =IF(ISBLANK(InfoPro!I43),"",YEAR(InfoPro!I43)-$H$3) ->  | F49: =IF(B49="","",VLOOKUP(D49,Tablas!$B$2:$E$13,2,FALSE)) ->  | G49: =IF(B49="","",VLOOKUP(D49,Tablas!$B$2:$H$13,7,FALSE)) -> 
A50: =IF(ISBLANK(InfoPro!A44),"",InfoPro!A44) ->  | B50: =IF(ISBLANK(InfoPro!B44),"",InfoPro!B44) ->  | C50: =IF(ISBLANK(InfoPro!E44),"",InfoPro!E44) ->  | D50: =IF(ISBLANK(InfoPro!F44),"",InfoPro!F44) ->  | E50: =IF(ISBLANK(InfoPro!I44),"",YEAR(InfoPro!I44)-$H$3) ->  | F50: =IF(B50="","",VLOOKUP(D50,Tablas!$B$2:$E$13,2,FALSE)) ->  | G50: =IF(B50="","",VLOOKUP(D50,Tablas!$B$2:$H$13,7,FALSE)) -> 
A51: =IF(ISBLANK(InfoPro!A45),"",InfoPro!A45) ->  | B51: =IF(ISBLANK(InfoPro!B45),"",InfoPro!B45) ->  | C51: =IF(ISBLANK(InfoPro!E45),"",InfoPro!E45) ->  | D51: =IF(ISBLANK(InfoPro!F45),"",InfoPro!F45) ->  | E51: =IF(ISBLANK(InfoPro!I45),"",YEAR(InfoPro!I45)-$H$3) ->  | F51: =IF(B51="","",VLOOKUP(D51,Tablas!$B$2:$E$13,2,FALSE)) ->  | G51: =IF(B51="","",VLOOKUP(D51,Tablas!$B$2:$H$13,7,FALSE)) -> 
A52: =IF(ISBLANK(InfoPro!A46),"",InfoPro!A46) ->  | B52: =IF(ISBLANK(InfoPro!B46),"",InfoPro!B46) ->  | C52: =IF(ISBLANK(InfoPro!E46),"",InfoPro!E46) ->  | D52: =IF(ISBLANK(InfoPro!F46),"",InfoPro!F46) ->  | E52: =IF(ISBLANK(InfoPro!I46),"",YEAR(InfoPro!I46)-$H$3) ->  | F52: =IF(B52="","",VLOOKUP(D52,Tablas!$B$2:$E$13,2,FALSE)) ->  | G52: =IF(B52="","",VLOOKUP(D52,Tablas!$B$2:$H$13,7,FALSE)) -> 
A53: =IF(ISBLANK(InfoPro!A47),"",InfoPro!A47) ->  | B53: =IF(ISBLANK(InfoPro!B47),"",InfoPro!B47) ->  | C53: =IF(ISBLANK(InfoPro!E47),"",InfoPro!E47) ->  | D53: =IF(ISBLANK(InfoPro!F47),"",InfoPro!F47) ->  | E53: =IF(ISBLANK(InfoPro!I47),"",YEAR(InfoPro!I47)-$H$3) ->  | F53: =IF(B53="","",VLOOKUP(D53,Tablas!$B$2:$E$13,2,FALSE)) ->  | G53: =IF(B53="","",VLOOKUP(D53,Tablas!$B$2:$H$13,7,FALSE)) -> 
A54: =IF(ISBLANK(InfoPro!A48),"",InfoPro!A48) ->  | B54: =IF(ISBLANK(InfoPro!B48),"",InfoPro!B48) ->  | C54: =IF(ISBLANK(InfoPro!E48),"",InfoPro!E48) ->  | D54: =IF(ISBLANK(InfoPro!F48),"",InfoPro!F48) ->  | E54: =IF(ISBLANK(InfoPro!I48),"",YEAR(InfoPro!I48)-$H$3) ->  | F54: =IF(B54="","",VLOOKUP(D54,Tablas!$B$2:$E$13,2,FALSE)) ->  | G54: =IF(B54="","",VLOOKUP(D54,Tablas!$B$2:$H$13,7,FALSE)) -> 
A55: =IF(ISBLANK(InfoPro!A49),"",InfoPro!A49) ->  | B55: =IF(ISBLANK(InfoPro!B49),"",InfoPro!B49) ->  | C55: =IF(ISBLANK(InfoPro!E49),"",InfoPro!E49) ->  | D55: =IF(ISBLANK(InfoPro!F49),"",InfoPro!F49) ->  | E55: =IF(ISBLANK(InfoPro!I49),"",YEAR(InfoPro!I49)-$H$3) ->  | F55: =IF(B55="","",VLOOKUP(D55,Tablas!$B$2:$E$13,2,FALSE)) ->  | G55: =IF(B55="","",VLOOKUP(D55,Tablas!$B$2:$H$13,7,FALSE)) -> 
A56: =IF(ISBLANK(InfoPro!A50),"",InfoPro!A50) ->  | B56: =IF(ISBLANK(InfoPro!B50),"",InfoPro!B50) ->  | C56: =IF(ISBLANK(InfoPro!E50),"",InfoPro!E50) ->  | D56: =IF(ISBLANK(InfoPro!F50),"",InfoPro!F50) ->  | E56: =IF(ISBLANK(InfoPro!I50),"",YEAR(InfoPro!I50)-$H$3) ->  | F56: =IF(B56="","",VLOOKUP(D56,Tablas!$B$2:$E$13,2,FALSE)) ->  | G56: =IF(B56="","",VLOOKUP(D56,Tablas!$B$2:$H$13,7,FALSE)) -> 
A57: =IF(ISBLANK(InfoPro!A51),"",InfoPro!A51) ->  | B57: =IF(ISBLANK(InfoPro!B51),"",InfoPro!B51) ->  | C57: =IF(ISBLANK(InfoPro!E51),"",InfoPro!E51) ->  | D57: =IF(ISBLANK(InfoPro!F51),"",InfoPro!F51) ->  | E57: =IF(ISBLANK(InfoPro!I51),"",YEAR(InfoPro!I51)-$H$3) ->  | F57: =IF(B57="","",VLOOKUP(D57,Tablas!$B$2:$E$13,2,FALSE)) ->  | G57: =IF(B57="","",VLOOKUP(D57,Tablas!$B$2:$H$13,7,FALSE)) -> 
A58: =IF(ISBLANK(InfoPro!A52),"",InfoPro!A52) ->  | B58: =IF(ISBLANK(InfoPro!B52),"",InfoPro!B52) ->  | C58: =IF(ISBLANK(InfoPro!E52),"",InfoPro!E52) ->  | D58: =IF(ISBLANK(InfoPro!F52),"",InfoPro!F52) ->  | E58: =IF(ISBLANK(InfoPro!I52),"",YEAR(InfoPro!I52)-$H$3) ->  | F58: =IF(B58="","",VLOOKUP(D58,Tablas!$B$2:$E$13,2,FALSE)) ->  | G58: =IF(B58="","",VLOOKUP(D58,Tablas!$B$2:$H$13,7,FALSE)) ->  | J58: =IF($I58="","",(1/(1+$C$3)^(J$6+$E58))*$I58*$C$2*$H58) -> 
A59: =IF(ISBLANK(InfoPro!A53),"",InfoPro!A53) ->  | B59: =IF(ISBLANK(InfoPro!B53),"",InfoPro!B53) ->  | C59: =IF(ISBLANK(InfoPro!E53),"",InfoPro!E53) ->  | D59: =IF(ISBLANK(InfoPro!F53),"",InfoPro!F53) ->  | E59: =IF(ISBLANK(InfoPro!I53),"",YEAR(InfoPro!I53)-$H$3) ->  | F59: =IF(B59="","",VLOOKUP(D59,Tablas!$B$2:$E$13,2,FALSE)) ->  | G59: =IF(B59="","",VLOOKUP(D59,Tablas!$B$2:$H$13,7,FALSE)) -> 
A60: =IF(ISBLANK(InfoPro!A54),"",InfoPro!A54) ->  | B60: =IF(ISBLANK(InfoPro!B54),"",InfoPro!B54) ->  | C60: =IF(ISBLANK(InfoPro!E54),"",InfoPro!E54) ->  | D60: =IF(ISBLANK(InfoPro!F54),"",InfoPro!F54) ->  | E60: =IF(ISBLANK(InfoPro!I54),"",YEAR(InfoPro!I54)-$H$3) ->  | F60: =IF(B60="","",VLOOKUP(D60,Tablas!$B$2:$E$13,2,FALSE)) ->  | G60: =IF(B60="","",VLOOKUP(D60,Tablas!$B$2:$H$13,7,FALSE)) -> 
A61: =IF(ISBLANK(InfoPro!A55),"",InfoPro!A55) ->  | B61: =IF(ISBLANK(InfoPro!B55),"",InfoPro!B55) ->  | C61: =IF(ISBLANK(InfoPro!E55),"",InfoPro!E55) ->  | D61: =IF(ISBLANK(InfoPro!F55),"",InfoPro!F55) ->  | E61: =IF(ISBLANK(InfoPro!I55),"",YEAR(InfoPro!I55)-$H$3) ->  | F61: =IF(B61="","",VLOOKUP(D61,Tablas!$B$2:$E$13,2,FALSE)) ->  | G61: =IF(B61="","",VLOOKUP(D61,Tablas!$B$2:$H$13,7,FALSE)) -> 
A62: =IF(ISBLANK(InfoPro!A56),"",InfoPro!A56) ->  | B62: =IF(ISBLANK(InfoPro!B56),"",InfoPro!B56) ->  | C62: =IF(ISBLANK(InfoPro!E56),"",InfoPro!E56) ->  | D62: =IF(ISBLANK(InfoPro!F56),"",InfoPro!F56) ->  | E62: =IF(ISBLANK(InfoPro!I56),"",YEAR(InfoPro!I56)-$H$3) ->  | F62: =IF(B62="","",VLOOKUP(D62,Tablas!$B$2:$E$13,2,FALSE)) ->  | G62: =IF(B62="","",VLOOKUP(D62,Tablas!$B$2:$H$13,7,FALSE)) -> 
A63: =IF(ISBLANK(InfoPro!A57),"",InfoPro!A57) ->  | B63: =IF(ISBLANK(InfoPro!B57),"",InfoPro!B57) ->  | C63: =IF(ISBLANK(InfoPro!E57),"",InfoPro!E57) ->  | D63: =IF(ISBLANK(InfoPro!F57),"",InfoPro!F57) ->  | E63: =IF(ISBLANK(InfoPro!I57),"",YEAR(InfoPro!I57)-$H$3) ->  | F63: =IF(B63="","",VLOOKUP(D63,Tablas!$B$2:$E$13,2,FALSE)) ->  | G63: =IF(B63="","",VLOOKUP(D63,Tablas!$B$2:$H$13,7,FALSE)) -> 
A64: =IF(ISBLANK(InfoPro!A58),"",InfoPro!A58) ->  | B64: =IF(ISBLANK(InfoPro!B58),"",InfoPro!B58) ->  | C64: =IF(ISBLANK(InfoPro!E58),"",InfoPro!E58) ->  | D64: =IF(ISBLANK(InfoPro!F58),"",InfoPro!F58) ->  | E64: =IF(ISBLANK(InfoPro!I58),"",YEAR(InfoPro!I58)-$H$3) ->  | F64: =IF(B64="","",VLOOKUP(D64,Tablas!$B$2:$E$13,2,FALSE)) ->  | G64: =IF(B64="","",VLOOKUP(D64,Tablas!$B$2:$H$13,7,FALSE)) -> 
A65: =IF(ISBLANK(InfoPro!A59),"",InfoPro!A59) ->  | B65: =IF(ISBLANK(InfoPro!B59),"",InfoPro!B59) ->  | C65: =IF(ISBLANK(InfoPro!E59),"",InfoPro!E59) ->  | D65: =IF(ISBLANK(InfoPro!F59),"",InfoPro!F59) ->  | E65: =IF(ISBLANK(InfoPro!I59),"",YEAR(InfoPro!I59)-$H$3) ->  | F65: =IF(B65="","",VLOOKUP(D65,Tablas!$B$2:$E$13,2,FALSE)) ->  | G65: =IF(B65="","",VLOOKUP(D65,Tablas!$B$2:$H$13,7,FALSE)) -> 
A66: =IF(ISBLANK(InfoPro!A60),"",InfoPro!A60) ->  | B66: =IF(ISBLANK(InfoPro!B60),"",InfoPro!B60) ->  | C66: =IF(ISBLANK(InfoPro!E60),"",InfoPro!E60) ->  | D66: =IF(ISBLANK(InfoPro!F60),"",InfoPro!F60) ->  | E66: =IF(ISBLANK(InfoPro!I60),"",YEAR(InfoPro!I60)-$H$3) ->  | F66: =IF(B66="","",VLOOKUP(D66,Tablas!$B$2:$E$13,2,FALSE)) ->  | G66: =IF(B66="","",VLOOKUP(D66,Tablas!$B$2:$H$13,7,FALSE)) -> 
A67: =IF(ISBLANK(InfoPro!A61),"",InfoPro!A61) ->  | B67: =IF(ISBLANK(InfoPro!B61),"",InfoPro!B61) ->  | C67: =IF(ISBLANK(InfoPro!E61),"",InfoPro!E61) ->  | D67: =IF(ISBLANK(InfoPro!F61),"",InfoPro!F61) ->  | E67: =IF(ISBLANK(InfoPro!I61),"",YEAR(InfoPro!I61)-$H$3) ->  | F67: =IF(B67="","",VLOOKUP(D67,Tablas!$B$2:$E$13,2,FALSE)) ->  | G67: =IF(B67="","",VLOOKUP(D67,Tablas!$B$2:$H$13,7,FALSE)) -> 
A68: =IF(ISBLANK(InfoPro!A62),"",InfoPro!A62) ->  | B68: =IF(ISBLANK(InfoPro!B62),"",InfoPro!B62) ->  | C68: =IF(ISBLANK(InfoPro!E62),"",InfoPro!E62) ->  | D68: =IF(ISBLANK(InfoPro!F62),"",InfoPro!F62) ->  | E68: =IF(ISBLANK(InfoPro!I62),"",YEAR(InfoPro!I62)-$H$3) ->  | F68: =IF(B68="","",VLOOKUP(D68,Tablas!$B$2:$E$13,2,FALSE)) ->  | G68: =IF(B68="","",VLOOKUP(D68,Tablas!$B$2:$H$13,7,FALSE)) ->  | J68: =IF($I68="","",(1/(1+$C$3)^(J$6+$E68))*$I68*$C$2*$H68) -> 
A69: =IF(ISBLANK(InfoPro!A63),"",InfoPro!A63) ->  | B69: =IF(ISBLANK(InfoPro!B63),"",InfoPro!B63) ->  | C69: =IF(ISBLANK(InfoPro!E63),"",InfoPro!E63) ->  | D69: =IF(ISBLANK(InfoPro!F63),"",InfoPro!F63) ->  | E69: =IF(ISBLANK(InfoPro!I63),"",YEAR(InfoPro!I63)-$H$3) ->  | F69: =IF(B69="","",VLOOKUP(D69,Tablas!$B$2:$E$13,2,FALSE)) ->  | G69: =IF(B69="","",VLOOKUP(D69,Tablas!$B$2:$H$13,7,FALSE)) -> 
A70: =IF(ISBLANK(InfoPro!A64),"",InfoPro!A64) ->  | B70: =IF(ISBLANK(InfoPro!B64),"",InfoPro!B64) ->  | C70: =IF(ISBLANK(InfoPro!E64),"",InfoPro!E64) ->  | D70: =IF(ISBLANK(InfoPro!F64),"",InfoPro!F64) ->  | E70: =IF(ISBLANK(InfoPro!I64),"",YEAR(InfoPro!I64)-$H$3) ->  | F70: =IF(B70="","",VLOOKUP(D70,Tablas!$B$2:$E$13,2,FALSE)) ->  | G70: =IF(B70="","",VLOOKUP(D70,Tablas!$B$2:$H$13,7,FALSE)) -> 
A71: =IF(ISBLANK(InfoPro!A65),"",InfoPro!A65) ->  | B71: =IF(ISBLANK(InfoPro!B65),"",InfoPro!B65) ->  | C71: =IF(ISBLANK(InfoPro!E65),"",InfoPro!E65) ->  | D71: =IF(ISBLANK(InfoPro!F65),"",InfoPro!F65) ->  | E71: =IF(ISBLANK(InfoPro!I65),"",YEAR(InfoPro!I65)-$H$3) ->  | F71: =IF(B71="","",VLOOKUP(D71,Tablas!$B$2:$E$13,2,FALSE)) ->  | G71: =IF(B71="","",VLOOKUP(D71,Tablas!$B$2:$H$13,7,FALSE)) -> 
A72: =IF(ISBLANK(InfoPro!A66),"",InfoPro!A66) ->  | B72: =IF(ISBLANK(InfoPro!B66),"",InfoPro!B66) ->  | C72: =IF(ISBLANK(InfoPro!E66),"",InfoPro!E66) ->  | D72: =IF(ISBLANK(InfoPro!F66),"",InfoPro!F66) ->  | E72: =IF(ISBLANK(InfoPro!I66),"",YEAR(InfoPro!I66)-$H$3) ->  | F72: =IF(B72="","",VLOOKUP(D72,Tablas!$B$2:$E$13,2,FALSE)) ->  | G72: =IF(B72="","",VLOOKUP(D72,Tablas!$B$2:$H$13,7,FALSE)) ->  | I72: =IF(C72="","",+C72*F72*24*365) -> 
A73: =IF(ISBLANK(InfoPro!A67),"",InfoPro!A67) ->  | B73: =IF(ISBLANK(InfoPro!B67),"",InfoPro!B67) ->  | C73: =IF(ISBLANK(InfoPro!E67),"",InfoPro!E67) ->  | D73: =IF(ISBLANK(InfoPro!F67),"",InfoPro!F67) ->  | E73: =IF(ISBLANK(InfoPro!I67),"",YEAR(InfoPro!I67)-$H$3) ->  | F73: =IF(B73="","",VLOOKUP(D73,Tablas!$B$2:$E$13,2,FALSE)) ->  | G73: =IF(B73="","",VLOOKUP(D73,Tablas!$B$2:$H$13,7,FALSE)) ->  | H73: =IF(B73="","",($C$2-(G73))/$C$2) ->  | Y73: =IF(X73="","",SUM(J73:X73)) ->  | Z73: =IF(C73=0,0,IF(Y73="","",Y73/(C73*1000))) -> 
A74: =IF(ISBLANK(InfoPro!A68),"",InfoPro!A68) ->  | B74: =IF(ISBLANK(InfoPro!B68),"",InfoPro!B68) ->  | C74: =IF(ISBLANK(InfoPro!E68),"",InfoPro!E68) ->  | D74: =IF(ISBLANK(InfoPro!F68),"",InfoPro!F68) ->  | E74: =IF(ISBLANK(InfoPro!I68),"",YEAR(InfoPro!I68)-$H$3) ->  | F74: =IF(B74="","",VLOOKUP(D74,Tablas!$B$2:$E$13,2,FALSE)) ->  | G74: =IF(B74="","",VLOOKUP(D74,Tablas!$B$2:$H$13,7,FALSE)) -> 
A75: =IF(ISBLANK(InfoPro!A69),"",InfoPro!A69) ->  | B75: =IF(ISBLANK(InfoPro!B69),"",InfoPro!B69) ->  | C75: =IF(ISBLANK(InfoPro!E69),"",InfoPro!E69) ->  | D75: =IF(ISBLANK(InfoPro!F69),"",InfoPro!F69) ->  | E75: =IF(ISBLANK(InfoPro!I69),"",YEAR(InfoPro!I69)-$H$3) ->  | F75: =IF(B75="","",VLOOKUP(D75,Tablas!$B$2:$E$13,2,FALSE)) ->  | G75: =IF(B75="","",VLOOKUP(D75,Tablas!$B$2:$H$13,7,FALSE)) -> 
A76: =IF(ISBLANK(InfoPro!A70),"",InfoPro!A70) ->  | B76: =IF(ISBLANK(InfoPro!B70),"",InfoPro!B70) ->  | C76: =IF(ISBLANK(InfoPro!E70),"",InfoPro!E70) ->  | D76: =IF(ISBLANK(InfoPro!F70),"",InfoPro!F70) ->  | E76: =IF(ISBLANK(InfoPro!I70),"",YEAR(InfoPro!I70)-$H$3) ->  | F76: =IF(B76="","",VLOOKUP(D76,Tablas!$B$2:$E$13,2,FALSE)) ->  | G76: =IF(B76="","",VLOOKUP(D76,Tablas!$B$2:$H$13,7,FALSE)) -> 
A77: =IF(ISBLANK(InfoPro!A71),"",InfoPro!A71) ->  | B77: =IF(ISBLANK(InfoPro!B71),"",InfoPro!B71) ->  | C77: =IF(ISBLANK(InfoPro!E71),"",InfoPro!E71) ->  | D77: =IF(ISBLANK(InfoPro!F71),"",InfoPro!F71) ->  | E77: =IF(ISBLANK(InfoPro!I71),"",YEAR(InfoPro!I71)-$H$3) ->  | F77: =IF(B77="","",VLOOKUP(D77,Tablas!$B$2:$E$13,2,FALSE)) ->  | G77: =IF(B77="","",VLOOKUP(D77,Tablas!$B$2:$H$13,7,FALSE)) -> 
A78: =IF(ISBLANK(InfoPro!A72),"",InfoPro!A72) ->  | B78: =IF(ISBLANK(InfoPro!B72),"",InfoPro!B72) ->  | C78: =IF(ISBLANK(InfoPro!E72),"",InfoPro!E72) ->  | D78: =IF(ISBLANK(InfoPro!F72),"",InfoPro!F72) ->  | E78: =IF(ISBLANK(InfoPro!I72),"",YEAR(InfoPro!I72)-$H$3) ->  | F78: =IF(B78="","",VLOOKUP(D78,Tablas!$B$2:$E$13,2,FALSE)) ->  | G78: =IF(B78="","",VLOOKUP(D78,Tablas!$B$2:$H$13,7,FALSE)) ->  | J78: =IF($I78="","",(1/(1+$C$3)^(J$6+$E78))*$I78*$C$2*$H78) -> 
A79: =IF(ISBLANK(InfoPro!A73),"",InfoPro!A73) ->  | B79: =IF(ISBLANK(InfoPro!B73),"",InfoPro!B73) ->  | C79: =IF(ISBLANK(InfoPro!E73),"",InfoPro!E73) ->  | D79: =IF(ISBLANK(InfoPro!F73),"",InfoPro!F73) ->  | E79: =IF(ISBLANK(InfoPro!I73),"",YEAR(InfoPro!I73)-$H$3) ->  | F79: =IF(B79="","",VLOOKUP(D79,Tablas!$B$2:$E$13,2,FALSE)) ->  | G79: =IF(B79="","",VLOOKUP(D79,Tablas!$B$2:$H$13,7,FALSE)) -> 
A80: =IF(ISBLANK(InfoPro!A74),"",InfoPro!A74) ->  | B80: =IF(ISBLANK(InfoPro!B74),"",InfoPro!B74) ->  | C80: =IF(ISBLANK(InfoPro!E74),"",InfoPro!E74) ->  | D80: =IF(ISBLANK(InfoPro!F74),"",InfoPro!F74) ->  | E80: =IF(ISBLANK(InfoPro!I74),"",YEAR(InfoPro!I74)-$H$3) ->  | F80: =IF(B80="","",VLOOKUP(D80,Tablas!$B$2:$E$13,2,FALSE)) ->  | G80: =IF(B80="","",VLOOKUP(D80,Tablas!$B$2:$H$13,7,FALSE)) -> 
A81: =IF(ISBLANK(InfoPro!A75),"",InfoPro!A75) ->  | B81: =IF(ISBLANK(InfoPro!B75),"",InfoPro!B75) ->  | C81: =IF(ISBLANK(InfoPro!E75),"",InfoPro!E75) ->  | D81: =IF(ISBLANK(InfoPro!F75),"",InfoPro!F75) ->  | E81: =IF(ISBLANK(InfoPro!I75),"",YEAR(InfoPro!I75)-$H$3) ->  | F81: =IF(B81="","",VLOOKUP(D81,Tablas!$B$2:$E$13,2,FALSE)) ->  | G81: =IF(B81="","",VLOOKUP(D81,Tablas!$B$2:$H$13,7,FALSE)) -> 
A82: =IF(ISBLANK(InfoPro!A76),"",InfoPro!A76) ->  | B82: =IF(ISBLANK(InfoPro!B76),"",InfoPro!B76) ->  | C82: =IF(ISBLANK(InfoPro!E76),"",InfoPro!E76) ->  | D82: =IF(ISBLANK(InfoPro!F76),"",InfoPro!F76) ->  | E82: =IF(ISBLANK(InfoPro!I76),"",YEAR(InfoPro!I76)-$H$3) ->  | F82: =IF(B82="","",VLOOKUP(D82,Tablas!$B$2:$E$13,2,FALSE)) ->  | G82: =IF(B82="","",VLOOKUP(D82,Tablas!$B$2:$H$13,7,FALSE)) -> 
A83: =IF(ISBLANK(InfoPro!A77),"",InfoPro!A77) ->  | B83: =IF(ISBLANK(InfoPro!B77),"",InfoPro!B77) ->  | C83: =IF(ISBLANK(InfoPro!E77),"",InfoPro!E77) ->  | D83: =IF(ISBLANK(InfoPro!F77),"",InfoPro!F77) ->  | E83: =IF(ISBLANK(InfoPro!I77),"",YEAR(InfoPro!I77)-$H$3) ->  | F83: =IF(B83="","",VLOOKUP(D83,Tablas!$B$2:$E$13,2,FALSE)) ->  | G83: =IF(B83="","",VLOOKUP(D83,Tablas!$B$2:$H$13,7,FALSE)) -> 
A84: =IF(ISBLANK(InfoPro!A78),"",InfoPro!A78) ->  | B84: =IF(ISBLANK(InfoPro!B78),"",InfoPro!B78) ->  | C84: =IF(ISBLANK(InfoPro!E78),"",InfoPro!E78) ->  | D84: =IF(ISBLANK(InfoPro!F78),"",InfoPro!F78) ->  | E84: =IF(ISBLANK(InfoPro!I78),"",YEAR(InfoPro!I78)-$H$3) ->  | F84: =IF(B84="","",VLOOKUP(D84,Tablas!$B$2:$E$13,2,FALSE)) ->  | G84: =IF(B84="","",VLOOKUP(D84,Tablas!$B$2:$H$13,7,FALSE)) -> 
A85: =IF(ISBLANK(InfoPro!A79),"",InfoPro!A79) ->  | B85: =IF(ISBLANK(InfoPro!B79),"",InfoPro!B79) ->  | C85: =IF(ISBLANK(InfoPro!E79),"",InfoPro!E79) ->  | D85: =IF(ISBLANK(InfoPro!F79),"",InfoPro!F79) ->  | E85: =IF(ISBLANK(InfoPro!I79),"",YEAR(InfoPro!I79)-$H$3) ->  | F85: =IF(B85="","",VLOOKUP(D85,Tablas!$B$2:$E$13,2,FALSE)) ->  | G85: =IF(B85="","",VLOOKUP(D85,Tablas!$B$2:$H$13,7,FALSE)) -> 
A86: =IF(ISBLANK(InfoPro!A80),"",InfoPro!A80) ->  | B86: =IF(ISBLANK(InfoPro!B80),"",InfoPro!B80) ->  | C86: =IF(ISBLANK(InfoPro!E80),"",InfoPro!E80) ->  | D86: =IF(ISBLANK(InfoPro!F80),"",InfoPro!F80) ->  | E86: =IF(ISBLANK(InfoPro!I80),"",YEAR(InfoPro!I80)-$H$3) ->  | F86: =IF(B86="","",VLOOKUP(D86,Tablas!$B$2:$E$13,2,FALSE)) ->  | G86: =IF(B86="","",VLOOKUP(D86,Tablas!$B$2:$H$13,7,FALSE)) -> 
A87: =IF(ISBLANK(InfoPro!A81),"",InfoPro!A81) ->  | B87: =IF(ISBLANK(InfoPro!B81),"",InfoPro!B81) ->  | C87: =IF(ISBLANK(InfoPro!E81),"",InfoPro!E81) ->  | D87: =IF(ISBLANK(InfoPro!F81),"",InfoPro!F81) ->  | E87: =IF(ISBLANK(InfoPro!I81),"",YEAR(InfoPro!I81)-$H$3) ->  | F87: =IF(B87="","",VLOOKUP(D87,Tablas!$B$2:$E$13,2,FALSE)) ->  | G87: =IF(B87="","",VLOOKUP(D87,Tablas!$B$2:$H$13,7,FALSE)) -> 
A88: =IF(ISBLANK(InfoPro!A82),"",InfoPro!A82) ->  | B88: =IF(ISBLANK(InfoPro!B82),"",InfoPro!B82) ->  | C88: =IF(ISBLANK(InfoPro!E82),"",InfoPro!E82) ->  | D88: =IF(ISBLANK(InfoPro!F82),"",InfoPro!F82) ->  | E88: =IF(ISBLANK(InfoPro!I82),"",YEAR(InfoPro!I82)-$H$3) ->  | F88: =IF(B88="","",VLOOKUP(D88,Tablas!$B$2:$E$13,2,FALSE)) ->  | G88: =IF(B88="","",VLOOKUP(D88,Tablas!$B$2:$H$13,7,FALSE)) ->  | J88: =IF($I88="","",(1/(1+$C$3)^(J$6+$E88))*$I88*$C$2*$H88) -> 
A89: =IF(ISBLANK(InfoPro!A83),"",InfoPro!A83) ->  | B89: =IF(ISBLANK(InfoPro!B83),"",InfoPro!B83) ->  | C89: =IF(ISBLANK(InfoPro!E83),"",InfoPro!E83) ->  | D89: =IF(ISBLANK(InfoPro!F83),"",InfoPro!F83) ->  | E89: =IF(ISBLANK(InfoPro!I83),"",YEAR(InfoPro!I83)-$H$3) ->  | F89: =IF(B89="","",VLOOKUP(D89,Tablas!$B$2:$E$13,2,FALSE)) ->  | G89: =IF(B89="","",VLOOKUP(D89,Tablas!$B$2:$H$13,7,FALSE)) -> 
A90: =IF(ISBLANK(InfoPro!A84),"",InfoPro!A84) ->  | B90: =IF(ISBLANK(InfoPro!B84),"",InfoPro!B84) ->  | C90: =IF(ISBLANK(InfoPro!E84),"",InfoPro!E84) ->  | D90: =IF(ISBLANK(InfoPro!F84),"",InfoPro!F84) ->  | E90: =IF(ISBLANK(InfoPro!I84),"",YEAR(InfoPro!I84)-$H$3) ->  | F90: =IF(B90="","",VLOOKUP(D90,Tablas!$B$2:$E$13,2,FALSE)) ->  | G90: =IF(B90="","",VLOOKUP(D90,Tablas!$B$2:$H$13,7,FALSE)) -> 
A91: =IF(ISBLANK(InfoPro!A85),"",InfoPro!A85) ->  | B91: =IF(ISBLANK(InfoPro!B85),"",InfoPro!B85) ->  | C91: =IF(ISBLANK(InfoPro!E85),"",InfoPro!E85) ->  | D91: =IF(ISBLANK(InfoPro!F85),"",InfoPro!F85) ->  | E91: =IF(ISBLANK(InfoPro!I85),"",YEAR(InfoPro!I85)-$H$3) ->  | F91: =IF(B91="","",VLOOKUP(D91,Tablas!$B$2:$E$13,2,FALSE)) ->  | G91: =IF(B91="","",VLOOKUP(D91,Tablas!$B$2:$H$13,7,FALSE)) -> 
A92: =IF(ISBLANK(InfoPro!A86),"",InfoPro!A86) ->  | B92: =IF(ISBLANK(InfoPro!B86),"",InfoPro!B86) ->  | C92: =IF(ISBLANK(InfoPro!E86),"",InfoPro!E86) ->  | D92: =IF(ISBLANK(InfoPro!F86),"",InfoPro!F86) ->  | E92: =IF(ISBLANK(InfoPro!I86),"",YEAR(InfoPro!I86)-$H$3) ->  | F92: =IF(B92="","",VLOOKUP(D92,Tablas!$B$2:$E$13,2,FALSE)) ->  | G92: =IF(B92="","",VLOOKUP(D92,Tablas!$B$2:$H$13,7,FALSE)) -> 
A93: =IF(ISBLANK(InfoPro!A87),"",InfoPro!A87) ->  | B93: =IF(ISBLANK(InfoPro!B87),"",InfoPro!B87) ->  | C93: =IF(ISBLANK(InfoPro!E87),"",InfoPro!E87) ->  | D93: =IF(ISBLANK(InfoPro!F87),"",InfoPro!F87) ->  | E93: =IF(ISBLANK(InfoPro!I87),"",YEAR(InfoPro!I87)-$H$3) ->  | F93: =IF(B93="","",VLOOKUP(D93,Tablas!$B$2:$E$13,2,FALSE)) ->  | G93: =IF(B93="","",VLOOKUP(D93,Tablas!$B$2:$H$13,7,FALSE)) -> 
A94: =IF(ISBLANK(InfoPro!A88),"",InfoPro!A88) ->  | B94: =IF(ISBLANK(InfoPro!B88),"",InfoPro!B88) ->  | C94: =IF(ISBLANK(InfoPro!E88),"",InfoPro!E88) ->  | D94: =IF(ISBLANK(InfoPro!F88),"",InfoPro!F88) ->  | E94: =IF(ISBLANK(InfoPro!I88),"",YEAR(InfoPro!I88)-$H$3) ->  | F94: =IF(B94="","",VLOOKUP(D94,Tablas!$B$2:$E$13,2,FALSE)) ->  | G94: =IF(B94="","",VLOOKUP(D94,Tablas!$B$2:$H$13,7,FALSE)) -> 
A95: =IF(ISBLANK(InfoPro!A89),"",InfoPro!A89) ->  | B95: =IF(ISBLANK(InfoPro!B89),"",InfoPro!B89) ->  | C95: =IF(ISBLANK(InfoPro!E89),"",InfoPro!E89) ->  | D95: =IF(ISBLANK(InfoPro!F89),"",InfoPro!F89) ->  | E95: =IF(ISBLANK(InfoPro!I89),"",YEAR(InfoPro!I89)-$H$3) ->  | F95: =IF(B95="","",VLOOKUP(D95,Tablas!$B$2:$E$13,2,FALSE)) ->  | G95: =IF(B95="","",VLOOKUP(D95,Tablas!$B$2:$H$13,7,FALSE)) -> 
A96: =IF(ISBLANK(InfoPro!A90),"",InfoPro!A90) ->  | B96: =IF(ISBLANK(InfoPro!B90),"",InfoPro!B90) ->  | C96: =IF(ISBLANK(InfoPro!E90),"",InfoPro!E90) ->  | D96: =IF(ISBLANK(InfoPro!F90),"",InfoPro!F90) ->  | E96: =IF(ISBLANK(InfoPro!I90),"",YEAR(InfoPro!I90)-$H$3) ->  | F96: =IF(B96="","",VLOOKUP(D96,Tablas!$B$2:$E$13,2,FALSE)) ->  | G96: =IF(B96="","",VLOOKUP(D96,Tablas!$B$2:$H$13,7,FALSE)) -> 
A97: =IF(ISBLANK(InfoPro!A91),"",InfoPro!A91) ->  | B97: =IF(ISBLANK(InfoPro!B91),"",InfoPro!B91) ->  | C97: =IF(ISBLANK(InfoPro!E91),"",InfoPro!E91) ->  | D97: =IF(ISBLANK(InfoPro!F91),"",InfoPro!F91) ->  | E97: =IF(ISBLANK(InfoPro!I91),"",YEAR(InfoPro!I91)-$H$3) ->  | F97: =IF(B97="","",VLOOKUP(D97,Tablas!$B$2:$E$13,2,FALSE)) ->  | G97: =IF(B97="","",VLOOKUP(D97,Tablas!$B$2:$H$13,7,FALSE)) -> 
A98: =IF(ISBLANK(InfoPro!A92),"",InfoPro!A92) ->  | B98: =IF(ISBLANK(InfoPro!B92),"",InfoPro!B92) ->  | C98: =IF(ISBLANK(InfoPro!E92),"",InfoPro!E92) ->  | D98: =IF(ISBLANK(InfoPro!F92),"",InfoPro!F92) ->  | E98: =IF(ISBLANK(InfoPro!I92),"",YEAR(InfoPro!I92)-$H$3) ->  | F98: =IF(B98="","",VLOOKUP(D98,Tablas!$B$2:$E$13,2,FALSE)) ->  | G98: =IF(B98="","",VLOOKUP(D98,Tablas!$B$2:$H$13,7,FALSE)) ->  | J98: =IF($I98="","",(1/(1+$C$3)^(J$6+$E98))*$I98*$C$2*$H98) -> 
A99: =IF(ISBLANK(InfoPro!A93),"",InfoPro!A93) ->  | B99: =IF(ISBLANK(InfoPro!B93),"",InfoPro!B93) ->  | C99: =IF(ISBLANK(InfoPro!E93),"",InfoPro!E93) ->  | D99: =IF(ISBLANK(InfoPro!F93),"",InfoPro!F93) ->  | E99: =IF(ISBLANK(InfoPro!I93),"",YEAR(InfoPro!I93)-$H$3) ->  | F99: =IF(B99="","",VLOOKUP(D99,Tablas!$B$2:$E$13,2,FALSE)) ->  | G99: =IF(B99="","",VLOOKUP(D99,Tablas!$B$2:$H$13,7,FALSE)) -> 
A100: =IF(ISBLANK(InfoPro!A94),"",InfoPro!A94) ->  | B100: =IF(ISBLANK(InfoPro!B94),"",InfoPro!B94) ->  | C100: =IF(ISBLANK(InfoPro!E94),"",InfoPro!E94) ->  | D100: =IF(ISBLANK(InfoPro!F94),"",InfoPro!F94) ->  | E100: =IF(ISBLANK(InfoPro!I94),"",YEAR(InfoPro!I94)-$H$3) ->  | F100: =IF(B100="","",VLOOKUP(D100,Tablas!$B$2:$E$13,2,FALSE)) ->  | G100: =IF(B100="","",VLOOKUP(D100,Tablas!$B$2:$H$13,7,FALSE)) -> 
A101: =IF(ISBLANK(InfoPro!A95),"",InfoPro!A95) ->  | B101: =IF(ISBLANK(InfoPro!B95),"",InfoPro!B95) ->  | C101: =IF(ISBLANK(InfoPro!E95),"",InfoPro!E95) ->  | D101: =IF(ISBLANK(InfoPro!F95),"",InfoPro!F95) ->  | E101: =IF(ISBLANK(InfoPro!I95),"",YEAR(InfoPro!I95)-$H$3) ->  | F101: =IF(B101="","",VLOOKUP(D101,Tablas!$B$2:$E$13,2,FALSE)) ->  | G101: =IF(B101="","",VLOOKUP(D101,Tablas!$B$2:$H$13,7,FALSE)) -> 
A102: =IF(ISBLANK(InfoPro!A96),"",InfoPro!A96) ->  | B102: =IF(ISBLANK(InfoPro!B96),"",InfoPro!B96) ->  | C102: =IF(ISBLANK(InfoPro!E96),"",InfoPro!E96) ->  | D102: =IF(ISBLANK(InfoPro!F96),"",InfoPro!F96) ->  | E102: =IF(ISBLANK(InfoPro!I96),"",YEAR(InfoPro!I96)-$H$3) ->  | F102: =IF(B102="","",VLOOKUP(D102,Tablas!$B$2:$E$13,2,FALSE)) ->  | G102: =IF(B102="","",VLOOKUP(D102,Tablas!$B$2:$H$13,7,FALSE)) -> 
A103: =IF(ISBLANK(InfoPro!A97),"",InfoPro!A97) ->  | B103: =IF(ISBLANK(InfoPro!B97),"",InfoPro!B97) ->  | C103: =IF(ISBLANK(InfoPro!E97),"",InfoPro!E97) ->  | D103: =IF(ISBLANK(InfoPro!F97),"",InfoPro!F97) ->  | E103: =IF(ISBLANK(InfoPro!I97),"",YEAR(InfoPro!I97)-$H$3) ->  | F103: =IF(B103="","",VLOOKUP(D103,Tablas!$B$2:$E$13,2,FALSE)) ->  | G103: =IF(B103="","",VLOOKUP(D103,Tablas!$B$2:$H$13,7,FALSE)) -> 
A104: =IF(ISBLANK(InfoPro!A98),"",InfoPro!A98) ->  | B104: =IF(ISBLANK(InfoPro!B98),"",InfoPro!B98) ->  | C104: =IF(ISBLANK(InfoPro!E98),"",InfoPro!E98) ->  | D104: =IF(ISBLANK(InfoPro!F98),"",InfoPro!F98) ->  | E104: =IF(ISBLANK(InfoPro!I98),"",YEAR(InfoPro!I98)-$H$3) ->  | F104: =IF(B104="","",VLOOKUP(D104,Tablas!$B$2:$E$13,2,FALSE)) ->  | G104: =IF(B104="","",VLOOKUP(D104,Tablas!$B$2:$H$13,7,FALSE)) -> 
A105: =IF(ISBLANK(InfoPro!A99),"",InfoPro!A99) ->  | B105: =IF(ISBLANK(InfoPro!B99),"",InfoPro!B99) ->  | C105: =IF(ISBLANK(InfoPro!E99),"",InfoPro!E99) ->  | D105: =IF(ISBLANK(InfoPro!F99),"",InfoPro!F99) ->  | E105: =IF(ISBLANK(InfoPro!I99),"",YEAR(InfoPro!I99)-$H$3) ->  | F105: =IF(B105="","",VLOOKUP(D105,Tablas!$B$2:$E$13,2,FALSE)) ->  | G105: =IF(B105="","",VLOOKUP(D105,Tablas!$B$2:$H$13,7,FALSE)) -> 
A106: =IF(ISBLANK(InfoPro!A100),"",InfoPro!A100) ->  | B106: =IF(ISBLANK(InfoPro!B100),"",InfoPro!B100) ->  | C106: =IF(ISBLANK(InfoPro!E100),"",InfoPro!E100) ->  | D106: =IF(ISBLANK(InfoPro!F100),"",InfoPro!F100) ->  | E106: =IF(ISBLANK(InfoPro!I100),"",YEAR(InfoPro!I100)-$H$3) ->  | F106: =IF(B106="","",VLOOKUP(D106,Tablas!$B$2:$E$13,2,FALSE)) ->  | G106: =IF(B106="","",VLOOKUP(D106,Tablas!$B$2:$H$13,7,FALSE)) -> 
A107: =IF(ISBLANK(InfoPro!A101),"",InfoPro!A101) ->  | B107: =IF(ISBLANK(InfoPro!B101),"",InfoPro!B101) ->  | C107: =IF(ISBLANK(InfoPro!E101),"",InfoPro!E101) ->  | D107: =IF(ISBLANK(InfoPro!F101),"",InfoPro!F101) ->  | E107: =IF(ISBLANK(InfoPro!I101),"",YEAR(InfoPro!I101)-$H$3) ->  | F107: =IF(B107="","",VLOOKUP(D107,Tablas!$B$2:$E$13,2,FALSE)) ->  | G107: =IF(B107="","",VLOOKUP(D107,Tablas!$B$2:$H$13,7,FALSE)) -> 
A108: =IF(ISBLANK(InfoPro!A102),"",InfoPro!A102) ->  | B108: =IF(ISBLANK(InfoPro!B102),"",InfoPro!B102) ->  | C108: =IF(ISBLANK(InfoPro!E102),"",InfoPro!E102) ->  | D108: =IF(ISBLANK(InfoPro!F102),"",InfoPro!F102) ->  | E108: =IF(ISBLANK(InfoPro!I102),"",YEAR(InfoPro!I102)-$H$3) ->  | F108: =IF(B108="","",VLOOKUP(D108,Tablas!$B$2:$E$13,2,FALSE)) ->  | G108: =IF(B108="","",VLOOKUP(D108,Tablas!$B$2:$H$13,7,FALSE)) ->  | H108: =IF(B108="","",($C$2-(G108))/$C$2) ->  | I108: =IF(C108="","",+C108*F108*24*365) ->  | Y108: =IF(X108="","",SUM(J108:X108)) ->  | Z108: =IF(C108=0,0,IF(Y108="","",Y108/(C108*1000))) -> 
A109: =IF(ISBLANK(InfoPro!A103),"",InfoPro!A103) ->  | B109: =IF(ISBLANK(InfoPro!B103),"",InfoPro!B103) ->  | C109: =IF(ISBLANK(InfoPro!E103),"",InfoPro!E103) ->  | D109: =IF(ISBLANK(InfoPro!F103),"",InfoPro!F103) ->  | E109: =IF(ISBLANK(InfoPro!I103),"",YEAR(InfoPro!I103)-$H$3) ->  | F109: =IF(B109="","",VLOOKUP(D109,Tablas!$B$2:$E$13,2,FALSE)) ->  | G109: =IF(B109="","",VLOOKUP(D109,Tablas!$B$2:$H$13,7,FALSE)) -> 
A110: =IF(ISBLANK(InfoPro!A104),"",InfoPro!A104) ->  | B110: =IF(ISBLANK(InfoPro!B104),"",InfoPro!B104) ->  | C110: =IF(ISBLANK(InfoPro!E104),"",InfoPro!E104) ->  | D110: =IF(ISBLANK(InfoPro!F104),"",InfoPro!F104) ->  | E110: =IF(ISBLANK(InfoPro!I104),"",YEAR(InfoPro!I104)-$H$3) ->  | F110: =IF(B110="","",VLOOKUP(D110,Tablas!$B$2:$E$13,2,FALSE)) ->  | G110: =IF(B110="","",VLOOKUP(D110,Tablas!$B$2:$H$13,7,FALSE)) -> 
A111: =IF(ISBLANK(InfoPro!A105),"",InfoPro!A105) ->  | B111: =IF(ISBLANK(InfoPro!B105),"",InfoPro!B105) ->  | C111: =IF(ISBLANK(InfoPro!E105),"",InfoPro!E105) ->  | D111: =IF(ISBLANK(InfoPro!F105),"",InfoPro!F105) ->  | E111: =IF(ISBLANK(InfoPro!I105),"",YEAR(InfoPro!I105)-$H$3) ->  | F111: =IF(B111="","",VLOOKUP(D111,Tablas!$B$2:$E$13,2,FALSE)) ->  | G111: =IF(B111="","",VLOOKUP(D111,Tablas!$B$2:$H$13,7,FALSE)) -> 
A112: =IF(ISBLANK(InfoPro!A106),"",InfoPro!A106) ->  | B112: =IF(ISBLANK(InfoPro!B106),"",InfoPro!B106) ->  | C112: =IF(ISBLANK(InfoPro!E106),"",InfoPro!E106) ->  | D112: =IF(ISBLANK(InfoPro!F106),"",InfoPro!F106) ->  | E112: =IF(ISBLANK(InfoPro!I106),"",YEAR(InfoPro!I106)-$H$3) ->  | F112: =IF(B112="","",VLOOKUP(D112,Tablas!$B$2:$E$13,2,FALSE)) ->  | G112: =IF(B112="","",VLOOKUP(D112,Tablas!$B$2:$H$13,7,FALSE)) -> 
A113: =IF(ISBLANK(InfoPro!A107),"",InfoPro!A107) ->  | B113: =IF(ISBLANK(InfoPro!B107),"",InfoPro!B107) ->  | C113: =IF(ISBLANK(InfoPro!E107),"",InfoPro!E107) ->  | D113: =IF(ISBLANK(InfoPro!F107),"",InfoPro!F107) ->  | E113: =IF(ISBLANK(InfoPro!I107),"",YEAR(InfoPro!I107)-$H$3) ->  | F113: =IF(B113="","",VLOOKUP(D113,Tablas!$B$2:$E$13,2,FALSE)) ->  | G113: =IF(B113="","",VLOOKUP(D113,Tablas!$B$2:$H$13,7,FALSE)) -> 
A114: =IF(ISBLANK(InfoPro!A108),"",InfoPro!A108) ->  | B114: =IF(ISBLANK(InfoPro!B108),"",InfoPro!B108) ->  | C114: =IF(ISBLANK(InfoPro!E108),"",InfoPro!E108) ->  | D114: =IF(ISBLANK(InfoPro!F108),"",InfoPro!F108) ->  | E114: =IF(ISBLANK(InfoPro!I108),"",YEAR(InfoPro!I108)-$H$3) ->  | F114: =IF(B114="","",VLOOKUP(D114,Tablas!$B$2:$E$13,2,FALSE)) ->  | G114: =IF(B114="","",VLOOKUP(D114,Tablas!$B$2:$H$13,7,FALSE)) ->  | J114: =IF($I114="","",(1/(1+$C$3)^(J$6+$E114))*$I114*$C$2*$H114) -> 
A115: =IF(ISBLANK(InfoPro!A109),"",InfoPro!A109) ->  | B115: =IF(ISBLANK(InfoPro!B109),"",InfoPro!B109) ->  | C115: =IF(ISBLANK(InfoPro!E109),"",InfoPro!E109) ->  | D115: =IF(ISBLANK(InfoPro!F109),"",InfoPro!F109) ->  | E115: =IF(ISBLANK(InfoPro!I109),"",YEAR(InfoPro!I109)-$H$3) ->  | F115: =IF(B115="","",VLOOKUP(D115,Tablas!$B$2:$E$13,2,FALSE)) ->  | G115: =IF(B115="","",VLOOKUP(D115,Tablas!$B$2:$H$13,7,FALSE)) -> 
A116: =IF(ISBLANK(InfoPro!A110),"",InfoPro!A110) ->  | B116: =IF(ISBLANK(InfoPro!B110),"",InfoPro!B110) ->  | C116: =IF(ISBLANK(InfoPro!E110),"",InfoPro!E110) ->  | D116: =IF(ISBLANK(InfoPro!F110),"",InfoPro!F110) ->  | E116: =IF(ISBLANK(InfoPro!I110),"",YEAR(InfoPro!I110)-$H$3) ->  | F116: =IF(B116="","",VLOOKUP(D116,Tablas!$B$2:$E$13,2,FALSE)) ->  | G116: =IF(B116="","",VLOOKUP(D116,Tablas!$B$2:$H$13,7,FALSE)) -> 
A117: =IF(ISBLANK(InfoPro!A111),"",InfoPro!A111) ->  | B117: =IF(ISBLANK(InfoPro!B111),"",InfoPro!B111) ->  | C117: =IF(ISBLANK(InfoPro!E111),"",InfoPro!E111) ->  | D117: =IF(ISBLANK(InfoPro!F111),"",InfoPro!F111) ->  | E117: =IF(ISBLANK(InfoPro!I111),"",YEAR(InfoPro!I111)-$H$3) ->  | F117: =IF(B117="","",VLOOKUP(D117,Tablas!$B$2:$E$13,2,FALSE)) ->  | G117: =IF(B117="","",VLOOKUP(D117,Tablas!$B$2:$H$13,7,FALSE)) -> 
A118: =IF(ISBLANK(InfoPro!A112),"",InfoPro!A112) ->  | B118: =IF(ISBLANK(InfoPro!B112),"",InfoPro!B112) ->  | C118: =IF(ISBLANK(InfoPro!E112),"",InfoPro!E112) ->  | D118: =IF(ISBLANK(InfoPro!F112),"",InfoPro!F112) ->  | E118: =IF(ISBLANK(InfoPro!I112),"",YEAR(InfoPro!I112)-$H$3) ->  | F118: =IF(B118="","",VLOOKUP(D118,Tablas!$B$2:$E$13,2,FALSE)) ->  | G118: =IF(B118="","",VLOOKUP(D118,Tablas!$B$2:$H$13,7,FALSE)) -> 
A119: =IF(ISBLANK(InfoPro!A113),"",InfoPro!A113) ->  | B119: =IF(ISBLANK(InfoPro!B113),"",InfoPro!B113) ->  | C119: =IF(ISBLANK(InfoPro!E113),"",InfoPro!E113) ->  | D119: =IF(ISBLANK(InfoPro!F113),"",InfoPro!F113) ->  | E119: =IF(ISBLANK(InfoPro!I113),"",YEAR(InfoPro!I113)-$H$3) ->  | F119: =IF(B119="","",VLOOKUP(D119,Tablas!$B$2:$E$13,2,FALSE)) ->  | G119: =IF(B119="","",VLOOKUP(D119,Tablas!$B$2:$H$13,7,FALSE)) -> 
A120: =IF(ISBLANK(InfoPro!A114),"",InfoPro!A114) ->  | B120: =IF(ISBLANK(InfoPro!B114),"",InfoPro!B114) ->  | C120: =IF(ISBLANK(InfoPro!E114),"",InfoPro!E114) ->  | D120: =IF(ISBLANK(InfoPro!F114),"",InfoPro!F114) ->  | E120: =IF(ISBLANK(InfoPro!I114),"",YEAR(InfoPro!I114)-$H$3) ->  | F120: =IF(B120="","",VLOOKUP(D120,Tablas!$B$2:$E$13,2,FALSE)) ->  | G120: =IF(B120="","",VLOOKUP(D120,Tablas!$B$2:$H$13,7,FALSE)) -> 
A121: =IF(ISBLANK(InfoPro!A115),"",InfoPro!A115) ->  | B121: =IF(ISBLANK(InfoPro!B115),"",InfoPro!B115) ->  | C121: =IF(ISBLANK(InfoPro!E115),"",InfoPro!E115) ->  | D121: =IF(ISBLANK(InfoPro!F115),"",InfoPro!F115) ->  | E121: =IF(ISBLANK(InfoPro!I115),"",YEAR(InfoPro!I115)-$H$3) ->  | F121: =IF(B121="","",VLOOKUP(D121,Tablas!$B$2:$E$13,2,FALSE)) ->  | G121: =IF(B121="","",VLOOKUP(D121,Tablas!$B$2:$H$13,7,FALSE)) -> 
A122: =IF(ISBLANK(InfoPro!A116),"",InfoPro!A116) ->  | B122: =IF(ISBLANK(InfoPro!B116),"",InfoPro!B116) ->  | C122: =IF(ISBLANK(InfoPro!E116),"",InfoPro!E116) ->  | D122: =IF(ISBLANK(InfoPro!F116),"",InfoPro!F116) ->  | E122: =IF(ISBLANK(InfoPro!I116),"",YEAR(InfoPro!I116)-$H$3) ->  | F122: =IF(B122="","",VLOOKUP(D122,Tablas!$B$2:$E$13,2,FALSE)) ->  | G122: =IF(B122="","",VLOOKUP(D122,Tablas!$B$2:$H$13,7,FALSE)) -> 
A123: =IF(ISBLANK(InfoPro!A117),"",InfoPro!A117) ->  | B123: =IF(ISBLANK(InfoPro!B117),"",InfoPro!B117) ->  | C123: =IF(ISBLANK(InfoPro!E117),"",InfoPro!E117) ->  | D123: =IF(ISBLANK(InfoPro!F117),"",InfoPro!F117) ->  | E123: =IF(ISBLANK(InfoPro!I117),"",YEAR(InfoPro!I117)-$H$3) ->  | F123: =IF(B123="","",VLOOKUP(D123,Tablas!$B$2:$E$13,2,FALSE)) ->  | G123: =IF(B123="","",VLOOKUP(D123,Tablas!$B$2:$H$13,7,FALSE)) -> 
A124: =IF(ISBLANK(InfoPro!A118),"",InfoPro!A118) ->  | B124: =IF(ISBLANK(InfoPro!B118),"",InfoPro!B118) ->  | C124: =IF(ISBLANK(InfoPro!E118),"",InfoPro!E118) ->  | D124: =IF(ISBLANK(InfoPro!F118),"",InfoPro!F118) ->  | E124: =IF(ISBLANK(InfoPro!I118),"",YEAR(InfoPro!I118)-$H$3) ->  | F124: =IF(B124="","",VLOOKUP(D124,Tablas!$B$2:$E$13,2,FALSE)) ->  | G124: =IF(B124="","",VLOOKUP(D124,Tablas!$B$2:$H$13,7,FALSE)) -> 
A125: =IF(ISBLANK(InfoPro!A119),"",InfoPro!A119) ->  | B125: =IF(ISBLANK(InfoPro!B119),"",InfoPro!B119) ->  | C125: =IF(ISBLANK(InfoPro!E119),"",InfoPro!E119) ->  | D125: =IF(ISBLANK(InfoPro!F119),"",InfoPro!F119) ->  | E125: =IF(ISBLANK(InfoPro!I119),"",YEAR(InfoPro!I119)-$H$3) ->  | F125: =IF(B125="","",VLOOKUP(D125,Tablas!$B$2:$E$13,2,FALSE)) ->  | G125: =IF(B125="","",VLOOKUP(D125,Tablas!$B$2:$H$13,7,FALSE)) -> 
A126: =IF(ISBLANK(InfoPro!A120),"",InfoPro!A120) ->  | B126: =IF(ISBLANK(InfoPro!B120),"",InfoPro!B120) ->  | C126: =IF(ISBLANK(InfoPro!E120),"",InfoPro!E120) ->  | D126: =IF(ISBLANK(InfoPro!F120),"",InfoPro!F120) ->  | E126: =IF(ISBLANK(InfoPro!I120),"",YEAR(InfoPro!I120)-$H$3) ->  | F126: =IF(B126="","",VLOOKUP(D126,Tablas!$B$2:$E$13,2,FALSE)) ->  | G126: =IF(B126="","",VLOOKUP(D126,Tablas!$B$2:$H$13,7,FALSE)) -> 
A127: =IF(ISBLANK(InfoPro!A121),"",InfoPro!A121) ->  | B127: =IF(ISBLANK(InfoPro!B121),"",InfoPro!B121) ->  | C127: =IF(ISBLANK(InfoPro!E121),"",InfoPro!E121) ->  | D127: =IF(ISBLANK(InfoPro!F121),"",InfoPro!F121) ->  | E127: =IF(ISBLANK(InfoPro!I121),"",YEAR(InfoPro!I121)-$H$3) ->  | F127: =IF(B127="","",VLOOKUP(D127,Tablas!$B$2:$E$13,2,FALSE)) ->  | G127: =IF(B127="","",VLOOKUP(D127,Tablas!$B$2:$H$13,7,FALSE)) -> 
A128: =IF(ISBLANK(InfoPro!A122),"",InfoPro!A122) ->  | B128: =IF(ISBLANK(InfoPro!B122),"",InfoPro!B122) ->  | C128: =IF(ISBLANK(InfoPro!E122),"",InfoPro!E122) ->  | D128: =IF(ISBLANK(InfoPro!F122),"",InfoPro!F122) ->  | E128: =IF(ISBLANK(InfoPro!I122),"",YEAR(InfoPro!I122)-$H$3) ->  | F128: =IF(B128="","",VLOOKUP(D128,Tablas!$B$2:$E$13,2,FALSE)) ->  | G128: =IF(B128="","",VLOOKUP(D128,Tablas!$B$2:$H$13,7,FALSE)) -> 
A129: =IF(ISBLANK(InfoPro!A123),"",InfoPro!A123) ->  | B129: =IF(ISBLANK(InfoPro!B123),"",InfoPro!B123) ->  | C129: =IF(ISBLANK(InfoPro!E123),"",InfoPro!E123) ->  | D129: =IF(ISBLANK(InfoPro!F123),"",InfoPro!F123) ->  | E129: =IF(ISBLANK(InfoPro!I123),"",YEAR(InfoPro!I123)-$H$3) ->  | F129: =IF(B129="","",VLOOKUP(D129,Tablas!$B$2:$E$13,2,FALSE)) ->  | G129: =IF(B129="","",VLOOKUP(D129,Tablas!$B$2:$H$13,7,FALSE)) -> 
A130: =IF(ISBLANK(InfoPro!A124),"",InfoPro!A124) ->  | B130: =IF(ISBLANK(InfoPro!B124),"",InfoPro!B124) ->  | C130: =IF(ISBLANK(InfoPro!E124),"",InfoPro!E124) ->  | D130: =IF(ISBLANK(InfoPro!F124),"",InfoPro!F124) ->  | E130: =IF(ISBLANK(InfoPro!I124),"",YEAR(InfoPro!I124)-$H$3) ->  | F130: =IF(B130="","",VLOOKUP(D130,Tablas!$B$2:$E$13,2,FALSE)) ->  | G130: =IF(B130="","",VLOOKUP(D130,Tablas!$B$2:$H$13,7,FALSE)) -> 
A131: =IF(ISBLANK(InfoPro!A125),"",InfoPro!A125) ->  | B131: =IF(ISBLANK(InfoPro!B125),"",InfoPro!B125) ->  | C131: =IF(ISBLANK(InfoPro!E125),"",InfoPro!E125) ->  | D131: =IF(ISBLANK(InfoPro!F125),"",InfoPro!F125) ->  | E131: =IF(ISBLANK(InfoPro!I125),"",YEAR(InfoPro!I125)-$H$3) ->  | F131: =IF(B131="","",VLOOKUP(D131,Tablas!$B$2:$E$13,2,FALSE)) ->  | G131: =IF(B131="","",VLOOKUP(D131,Tablas!$B$2:$H$13,7,FALSE)) ->  | J131: =IF($I131="","",(1/(1+$C$3)^(J$6+$E131))*$I131*$C$2*$H131) -> 
A132: =IF(ISBLANK(InfoPro!A126),"",InfoPro!A126) ->  | B132: =IF(ISBLANK(InfoPro!B126),"",InfoPro!B126) ->  | C132: =IF(ISBLANK(InfoPro!E126),"",InfoPro!E126) ->  | D132: =IF(ISBLANK(InfoPro!F126),"",InfoPro!F126) ->  | E132: =IF(ISBLANK(InfoPro!I126),"",YEAR(InfoPro!I126)-$H$3) ->  | F132: =IF(B132="","",VLOOKUP(D132,Tablas!$B$2:$E$13,2,FALSE)) ->  | G132: =IF(B132="","",VLOOKUP(D132,Tablas!$B$2:$H$13,7,FALSE)) -> 
A133: =IF(ISBLANK(InfoPro!A127),"",InfoPro!A127) ->  | B133: =IF(ISBLANK(InfoPro!B127),"",InfoPro!B127) ->  | C133: =IF(ISBLANK(InfoPro!E127),"",InfoPro!E127) ->  | D133: =IF(ISBLANK(InfoPro!F127),"",InfoPro!F127) ->  | E133: =IF(ISBLANK(InfoPro!I127),"",YEAR(InfoPro!I127)-$H$3) ->  | F133: =IF(B133="","",VLOOKUP(D133,Tablas!$B$2:$E$13,2,FALSE)) ->  | G133: =IF(B133="","",VLOOKUP(D133,Tablas!$B$2:$H$13,7,FALSE)) -> 
A134: =IF(ISBLANK(InfoPro!A128),"",InfoPro!A128) ->  | B134: =IF(ISBLANK(InfoPro!B128),"",InfoPro!B128) ->  | C134: =IF(ISBLANK(InfoPro!E128),"",InfoPro!E128) ->  | D134: =IF(ISBLANK(InfoPro!F128),"",InfoPro!F128) ->  | E134: =IF(ISBLANK(InfoPro!I128),"",YEAR(InfoPro!I128)-$H$3) ->  | F134: =IF(B134="","",VLOOKUP(D134,Tablas!$B$2:$E$13,2,FALSE)) ->  | G134: =IF(B134="","",VLOOKUP(D134,Tablas!$B$2:$H$13,7,FALSE)) -> 
A135: =IF(ISBLANK(InfoPro!A129),"",InfoPro!A129) ->  | B135: =IF(ISBLANK(InfoPro!B129),"",InfoPro!B129) ->  | C135: =IF(ISBLANK(InfoPro!E129),"",InfoPro!E129) ->  | D135: =IF(ISBLANK(InfoPro!F129),"",InfoPro!F129) ->  | E135: =IF(ISBLANK(InfoPro!I129),"",YEAR(InfoPro!I129)-$H$3) ->  | F135: =IF(B135="","",VLOOKUP(D135,Tablas!$B$2:$E$13,2,FALSE)) ->  | G135: =IF(B135="","",VLOOKUP(D135,Tablas!$B$2:$H$13,7,FALSE)) -> 
A136: =IF(ISBLANK(InfoPro!A130),"",InfoPro!A130) ->  | B136: =IF(ISBLANK(InfoPro!B130),"",InfoPro!B130) ->  | C136: =IF(ISBLANK(InfoPro!E130),"",InfoPro!E130) ->  | D136: =IF(ISBLANK(InfoPro!F130),"",InfoPro!F130) ->  | E136: =IF(ISBLANK(InfoPro!I130),"",YEAR(InfoPro!I130)-$H$3) ->  | F136: =IF(B136="","",VLOOKUP(D136,Tablas!$B$2:$E$13,2,FALSE)) ->  | G136: =IF(B136="","",VLOOKUP(D136,Tablas!$B$2:$H$13,7,FALSE)) -> 
A137: =IF(ISBLANK(InfoPro!A131),"",InfoPro!A131) ->  | B137: =IF(ISBLANK(InfoPro!B131),"",InfoPro!B131) ->  | C137: =IF(ISBLANK(InfoPro!E131),"",InfoPro!E131) ->  | D137: =IF(ISBLANK(InfoPro!F131),"",InfoPro!F131) ->  | E137: =IF(ISBLANK(InfoPro!I131),"",YEAR(InfoPro!I131)-$H$3) ->  | F137: =IF(B137="","",VLOOKUP(D137,Tablas!$B$2:$E$13,2,FALSE)) ->  | G137: =IF(B137="","",VLOOKUP(D137,Tablas!$B$2:$H$13,7,FALSE)) -> 
A138: =IF(ISBLANK(InfoPro!A132),"",InfoPro!A132) ->  | B138: =IF(ISBLANK(InfoPro!B132),"",InfoPro!B132) ->  | C138: =IF(ISBLANK(InfoPro!E132),"",InfoPro!E132) ->  | D138: =IF(ISBLANK(InfoPro!F132),"",InfoPro!F132) ->  | E138: =IF(ISBLANK(InfoPro!I132),"",YEAR(InfoPro!I132)-$H$3) ->  | F138: =IF(B138="","",VLOOKUP(D138,Tablas!$B$2:$E$13,2,FALSE)) ->  | G138: =IF(B138="","",VLOOKUP(D138,Tablas!$B$2:$H$13,7,FALSE)) -> 
A139: =IF(ISBLANK(InfoPro!A133),"",InfoPro!A133) ->  | B139: =IF(ISBLANK(InfoPro!B133),"",InfoPro!B133) ->  | C139: =IF(ISBLANK(InfoPro!E133),"",InfoPro!E133) ->  | D139: =IF(ISBLANK(InfoPro!F133),"",InfoPro!F133) ->  | E139: =IF(ISBLANK(InfoPro!I133),"",YEAR(InfoPro!I133)-$H$3) ->  | F139: =IF(B139="","",VLOOKUP(D139,Tablas!$B$2:$E$13,2,FALSE)) ->  | G139: =IF(B139="","",VLOOKUP(D139,Tablas!$B$2:$H$13,7,FALSE)) -> 
A140: =IF(ISBLANK(InfoPro!A134),"",InfoPro!A134) ->  | B140: =IF(ISBLANK(InfoPro!B134),"",InfoPro!B134) ->  | C140: =IF(ISBLANK(InfoPro!E134),"",InfoPro!E134) ->  | D140: =IF(ISBLANK(InfoPro!F134),"",InfoPro!F134) ->  | E140: =IF(ISBLANK(InfoPro!I134),"",YEAR(InfoPro!I134)-$H$3) ->  | F140: =IF(B140="","",VLOOKUP(D140,Tablas!$B$2:$E$13,2,FALSE)) ->  | G140: =IF(B140="","",VLOOKUP(D140,Tablas!$B$2:$H$13,7,FALSE)) -> 
A141: =IF(ISBLANK(InfoPro!A135),"",InfoPro!A135) ->  | B141: =IF(ISBLANK(InfoPro!B135),"",InfoPro!B135) ->  | C141: =IF(ISBLANK(InfoPro!E135),"",InfoPro!E135) ->  | D141: =IF(ISBLANK(InfoPro!F135),"",InfoPro!F135) ->  | E141: =IF(ISBLANK(InfoPro!I135),"",YEAR(InfoPro!I135)-$H$3) ->  | F141: =IF(B141="","",VLOOKUP(D141,Tablas!$B$2:$E$13,2,FALSE)) ->  | G141: =IF(B141="","",VLOOKUP(D141,Tablas!$B$2:$H$13,7,FALSE)) -> 
A142: =IF(ISBLANK(InfoPro!A136),"",InfoPro!A136) ->  | B142: =IF(ISBLANK(InfoPro!B136),"",InfoPro!B136) ->  | C142: =IF(ISBLANK(InfoPro!E136),"",InfoPro!E136) ->  | D142: =IF(ISBLANK(InfoPro!F136),"",InfoPro!F136) ->  | E142: =IF(ISBLANK(InfoPro!I136),"",YEAR(InfoPro!I136)-$H$3) ->  | F142: =IF(B142="","",VLOOKUP(D142,Tablas!$B$2:$E$13,2,FALSE)) ->  | G142: =IF(B142="","",VLOOKUP(D142,Tablas!$B$2:$H$13,7,FALSE)) -> 
A143: =IF(ISBLANK(InfoPro!A137),"",InfoPro!A137) ->  | B143: =IF(ISBLANK(InfoPro!B137),"",InfoPro!B137) ->  | C143: =IF(ISBLANK(InfoPro!E137),"",InfoPro!E137) ->  | D143: =IF(ISBLANK(InfoPro!F137),"",InfoPro!F137) ->  | E143: =IF(ISBLANK(InfoPro!I137),"",YEAR(InfoPro!I137)-$H$3) ->  | F143: =IF(B143="","",VLOOKUP(D143,Tablas!$B$2:$E$13,2,FALSE)) ->  | G143: =IF(B143="","",VLOOKUP(D143,Tablas!$B$2:$H$13,7,FALSE)) -> 
A144: =IF(ISBLANK(InfoPro!A138),"",InfoPro!A138) ->  | B144: =IF(ISBLANK(InfoPro!B138),"",InfoPro!B138) ->  | C144: =IF(ISBLANK(InfoPro!E138),"",InfoPro!E138) ->  | D144: =IF(ISBLANK(InfoPro!F138),"",InfoPro!F138) ->  | E144: =IF(ISBLANK(InfoPro!I138),"",YEAR(InfoPro!I138)-$H$3) ->  | F144: =IF(B144="","",VLOOKUP(D144,Tablas!$B$2:$E$13,2,FALSE)) ->  | G144: =IF(B144="","",VLOOKUP(D144,Tablas!$B$2:$H$13,7,FALSE)) -> 
A145: =IF(ISBLANK(InfoPro!A139),"",InfoPro!A139) ->  | B145: =IF(ISBLANK(InfoPro!B139),"",InfoPro!B139) ->  | C145: =IF(ISBLANK(InfoPro!E139),"",InfoPro!E139) ->  | D145: =IF(ISBLANK(InfoPro!F139),"",InfoPro!F139) ->  | E145: =IF(ISBLANK(InfoPro!I139),"",YEAR(InfoPro!I139)-$H$3) ->  | F145: =IF(B145="","",VLOOKUP(D145,Tablas!$B$2:$E$13,2,FALSE)) ->  | G145: =IF(B145="","",VLOOKUP(D145,Tablas!$B$2:$H$13,7,FALSE)) -> 
A146: =IF(ISBLANK(InfoPro!A140),"",InfoPro!A140) ->  | B146: =IF(ISBLANK(InfoPro!B140),"",InfoPro!B140) ->  | C146: =IF(ISBLANK(InfoPro!E140),"",InfoPro!E140) ->  | D146: =IF(ISBLANK(InfoPro!F140),"",InfoPro!F140) ->  | E146: =IF(ISBLANK(InfoPro!I140),"",YEAR(InfoPro!I140)-$H$3) ->  | F146: =IF(B146="","",VLOOKUP(D146,Tablas!$B$2:$E$13,2,FALSE)) ->  | G146: =IF(B146="","",VLOOKUP(D146,Tablas!$B$2:$H$13,7,FALSE)) -> 
A147: =IF(ISBLANK(InfoPro!A141),"",InfoPro!A141) ->  | B147: =IF(ISBLANK(InfoPro!B141),"",InfoPro!B141) ->  | C147: =IF(ISBLANK(InfoPro!E141),"",InfoPro!E141) ->  | D147: =IF(ISBLANK(InfoPro!F141),"",InfoPro!F141) ->  | E147: =IF(ISBLANK(InfoPro!I141),"",YEAR(InfoPro!I141)-$H$3) ->  | F147: =IF(B147="","",VLOOKUP(D147,Tablas!$B$2:$E$13,2,FALSE)) ->  | G147: =IF(B147="","",VLOOKUP(D147,Tablas!$B$2:$H$13,7,FALSE)) -> 
A148: =IF(ISBLANK(InfoPro!A142),"",InfoPro!A142) ->  | B148: =IF(ISBLANK(InfoPro!B142),"",InfoPro!B142) ->  | C148: =IF(ISBLANK(InfoPro!E142),"",InfoPro!E142) ->  | D148: =IF(ISBLANK(InfoPro!F142),"",InfoPro!F142) ->  | E148: =IF(ISBLANK(InfoPro!I142),"",YEAR(InfoPro!I142)-$H$3) ->  | F148: =IF(B148="","",VLOOKUP(D148,Tablas!$B$2:$E$13,2,FALSE)) ->  | G148: =IF(B148="","",VLOOKUP(D148,Tablas!$B$2:$H$13,7,FALSE)) ->  | J148: =IF($I148="","",(1/(1+$C$3)^(J$6+$E148))*$I148*$C$2*$H148) -> 
A149: =IF(ISBLANK(InfoPro!A143),"",InfoPro!A143) ->  | B149: =IF(ISBLANK(InfoPro!B143),"",InfoPro!B143) ->  | C149: =IF(ISBLANK(InfoPro!E143),"",InfoPro!E143) ->  | D149: =IF(ISBLANK(InfoPro!F143),"",InfoPro!F143) ->  | E149: =IF(ISBLANK(InfoPro!I143),"",YEAR(InfoPro!I143)-$H$3) ->  | F149: =IF(B149="","",VLOOKUP(D149,Tablas!$B$2:$E$13,2,FALSE)) ->  | G149: =IF(B149="","",VLOOKUP(D149,Tablas!$B$2:$H$13,7,FALSE)) -> 
A150: =IF(ISBLANK(InfoPro!A144),"",InfoPro!A144) ->  | B150: =IF(ISBLANK(InfoPro!B144),"",InfoPro!B144) ->  | C150: =IF(ISBLANK(InfoPro!E144),"",InfoPro!E144) ->  | D150: =IF(ISBLANK(InfoPro!F144),"",InfoPro!F144) ->  | E150: =IF(ISBLANK(InfoPro!I144),"",YEAR(InfoPro!I144)-$H$3) ->  | F150: =IF(B150="","",VLOOKUP(D150,Tablas!$B$2:$E$13,2,FALSE)) ->  | G150: =IF(B150="","",VLOOKUP(D150,Tablas!$B$2:$H$13,7,FALSE)) -> 
A151: =IF(ISBLANK(InfoPro!A145),"",InfoPro!A145) ->  | B151: =IF(ISBLANK(InfoPro!B145),"",InfoPro!B145) ->  | C151: =IF(ISBLANK(InfoPro!E145),"",InfoPro!E145) ->  | D151: =IF(ISBLANK(InfoPro!F145),"",InfoPro!F145) ->  | E151: =IF(ISBLANK(InfoPro!I145),"",YEAR(InfoPro!I145)-$H$3) ->  | F151: =IF(B151="","",VLOOKUP(D151,Tablas!$B$2:$E$13,2,FALSE)) ->  | G151: =IF(B151="","",VLOOKUP(D151,Tablas!$B$2:$H$13,7,FALSE)) -> 
A152: =IF(ISBLANK(InfoPro!A146),"",InfoPro!A146) ->  | B152: =IF(ISBLANK(InfoPro!B146),"",InfoPro!B146) ->  | C152: =IF(ISBLANK(InfoPro!E146),"",InfoPro!E146) ->  | D152: =IF(ISBLANK(InfoPro!F146),"",InfoPro!F146) ->  | E152: =IF(ISBLANK(InfoPro!I146),"",YEAR(InfoPro!I146)-$H$3) ->  | F152: =IF(B152="","",VLOOKUP(D152,Tablas!$B$2:$E$13,2,FALSE)) ->  | G152: =IF(B152="","",VLOOKUP(D152,Tablas!$B$2:$H$13,7,FALSE)) -> 
A153: =IF(ISBLANK(InfoPro!A147),"",InfoPro!A147) ->  | B153: =IF(ISBLANK(InfoPro!B147),"",InfoPro!B147) ->  | C153: =IF(ISBLANK(InfoPro!E147),"",InfoPro!E147) ->  | D153: =IF(ISBLANK(InfoPro!F147),"",InfoPro!F147) ->  | E153: =IF(ISBLANK(InfoPro!I147),"",YEAR(InfoPro!I147)-$H$3) ->  | F153: =IF(B153="","",VLOOKUP(D153,Tablas!$B$2:$E$13,2,FALSE)) ->  | G153: =IF(B153="","",VLOOKUP(D153,Tablas!$B$2:$H$13,7,FALSE)) -> 
A154: =IF(ISBLANK(InfoPro!A148),"",InfoPro!A148) ->  | B154: =IF(ISBLANK(InfoPro!B148),"",InfoPro!B148) ->  | C154: =IF(ISBLANK(InfoPro!E148),"",InfoPro!E148) ->  | D154: =IF(ISBLANK(InfoPro!F148),"",InfoPro!F148) ->  | E154: =IF(ISBLANK(InfoPro!I148),"",YEAR(InfoPro!I148)-$H$3) ->  | F154: =IF(B154="","",VLOOKUP(D154,Tablas!$B$2:$E$13,2,FALSE)) ->  | G154: =IF(B154="","",VLOOKUP(D154,Tablas!$B$2:$H$13,7,FALSE)) -> 
A155: =IF(ISBLANK(InfoPro!A149),"",InfoPro!A149) ->  | B155: =IF(ISBLANK(InfoPro!B149),"",InfoPro!B149) ->  | C155: =IF(ISBLANK(InfoPro!E149),"",InfoPro!E149) ->  | D155: =IF(ISBLANK(InfoPro!F149),"",InfoPro!F149) ->  | E155: =IF(ISBLANK(InfoPro!I149),"",YEAR(InfoPro!I149)-$H$3) ->  | F155: =IF(B155="","",VLOOKUP(D155,Tablas!$B$2:$E$13,2,FALSE)) ->  | G155: =IF(B155="","",VLOOKUP(D155,Tablas!$B$2:$H$13,7,FALSE)) -> 
A156: =IF(ISBLANK(InfoPro!A150),"",InfoPro!A150) ->  | B156: =IF(ISBLANK(InfoPro!B150),"",InfoPro!B150) ->  | C156: =IF(ISBLANK(InfoPro!E150),"",InfoPro!E150) ->  | D156: =IF(ISBLANK(InfoPro!F150),"",InfoPro!F150) ->  | E156: =IF(ISBLANK(InfoPro!I150),"",YEAR(InfoPro!I150)-$H$3) ->  | F156: =IF(B156="","",VLOOKUP(D156,Tablas!$B$2:$E$13,2,FALSE)) ->  | G156: =IF(B156="","",VLOOKUP(D156,Tablas!$B$2:$H$13,7,FALSE)) -> 
A157: =IF(ISBLANK(InfoPro!A151),"",InfoPro!A151) ->  | B157: =IF(ISBLANK(InfoPro!B151),"",InfoPro!B151) ->  | C157: =IF(ISBLANK(InfoPro!E151),"",InfoPro!E151) ->  | D157: =IF(ISBLANK(InfoPro!F151),"",InfoPro!F151) ->  | E157: =IF(ISBLANK(InfoPro!I151),"",YEAR(InfoPro!I151)-$H$3) ->  | F157: =IF(B157="","",VLOOKUP(D157,Tablas!$B$2:$E$13,2,FALSE)) ->  | G157: =IF(B157="","",VLOOKUP(D157,Tablas!$B$2:$H$13,7,FALSE)) -> 
A158: =IF(ISBLANK(InfoPro!A152),"",InfoPro!A152) ->  | B158: =IF(ISBLANK(InfoPro!B152),"",InfoPro!B152) ->  | C158: =IF(ISBLANK(InfoPro!E152),"",InfoPro!E152) ->  | D158: =IF(ISBLANK(InfoPro!F152),"",InfoPro!F152) ->  | E158: =IF(ISBLANK(InfoPro!I152),"",YEAR(InfoPro!I152)-$H$3) ->  | F158: =IF(B158="","",VLOOKUP(D158,Tablas!$B$2:$E$13,2,FALSE)) ->  | G158: =IF(B158="","",VLOOKUP(D158,Tablas!$B$2:$H$13,7,FALSE)) -> 
A159: =IF(ISBLANK(InfoPro!A153),"",InfoPro!A153) ->  | B159: =IF(ISBLANK(InfoPro!B153),"",InfoPro!B153) ->  | C159: =IF(ISBLANK(InfoPro!E153),"",InfoPro!E153) ->  | D159: =IF(ISBLANK(InfoPro!F153),"",InfoPro!F153) ->  | E159: =IF(ISBLANK(InfoPro!I153),"",YEAR(InfoPro!I153)-$H$3) ->  | F159: =IF(B159="","",VLOOKUP(D159,Tablas!$B$2:$E$13,2,FALSE)) ->  | G159: =IF(B159="","",VLOOKUP(D159,Tablas!$B$2:$H$13,7,FALSE)) -> 
A160: =IF(ISBLANK(InfoPro!A154),"",InfoPro!A154) ->  | B160: =IF(ISBLANK(InfoPro!B154),"",InfoPro!B154) ->  | C160: =IF(ISBLANK(InfoPro!E154),"",InfoPro!E154) ->  | D160: =IF(ISBLANK(InfoPro!F154),"",InfoPro!F154) ->  | E160: =IF(ISBLANK(InfoPro!I154),"",YEAR(InfoPro!I154)-$H$3) ->  | F160: =IF(B160="","",VLOOKUP(D160,Tablas!$B$2:$E$13,2,FALSE)) ->  | G160: =IF(B160="","",VLOOKUP(D160,Tablas!$B$2:$H$13,7,FALSE)) -> 
A161: =IF(ISBLANK(InfoPro!A155),"",InfoPro!A155) ->  | B161: =IF(ISBLANK(InfoPro!B155),"",InfoPro!B155) ->  | C161: =IF(ISBLANK(InfoPro!E155),"",InfoPro!E155) ->  | D161: =IF(ISBLANK(InfoPro!F155),"",InfoPro!F155) ->  | E161: =IF(ISBLANK(InfoPro!I155),"",YEAR(InfoPro!I155)-$H$3) ->  | F161: =IF(B161="","",VLOOKUP(D161,Tablas!$B$2:$E$13,2,FALSE)) ->  | G161: =IF(B161="","",VLOOKUP(D161,Tablas!$B$2:$H$13,7,FALSE)) -> 
A162: =IF(ISBLANK(InfoPro!A156),"",InfoPro!A156) ->  | B162: =IF(ISBLANK(InfoPro!B156),"",InfoPro!B156) ->  | C162: =IF(ISBLANK(InfoPro!E156),"",InfoPro!E156) ->  | D162: =IF(ISBLANK(InfoPro!F156),"",InfoPro!F156) ->  | E162: =IF(ISBLANK(InfoPro!I156),"",YEAR(InfoPro!I156)-$H$3) ->  | F162: =IF(B162="","",VLOOKUP(D162,Tablas!$B$2:$E$13,2,FALSE)) ->  | G162: =IF(B162="","",VLOOKUP(D162,Tablas!$B$2:$H$13,7,FALSE)) -> 
A163: =IF(ISBLANK(InfoPro!A157),"",InfoPro!A157) ->  | B163: =IF(ISBLANK(InfoPro!B157),"",InfoPro!B157) ->  | C163: =IF(ISBLANK(InfoPro!E157),"",InfoPro!E157) ->  | D163: =IF(ISBLANK(InfoPro!F157),"",InfoPro!F157) ->  | E163: =IF(ISBLANK(InfoPro!I157),"",YEAR(InfoPro!I157)-$H$3) ->  | F163: =IF(B163="","",VLOOKUP(D163,Tablas!$B$2:$E$13,2,FALSE)) ->  | G163: =IF(B163="","",VLOOKUP(D163,Tablas!$B$2:$H$13,7,FALSE)) -> 
A164: =IF(ISBLANK(InfoPro!A158),"",InfoPro!A158) ->  | B164: =IF(ISBLANK(InfoPro!B158),"",InfoPro!B158) ->  | C164: =IF(ISBLANK(InfoPro!E158),"",InfoPro!E158) ->  | D164: =IF(ISBLANK(InfoPro!F158),"",InfoPro!F158) ->  | E164: =IF(ISBLANK(InfoPro!I158),"",YEAR(InfoPro!I158)-$H$3) ->  | F164: =IF(B164="","",VLOOKUP(D164,Tablas!$B$2:$E$13,2,FALSE)) ->  | G164: =IF(B164="","",VLOOKUP(D164,Tablas!$B$2:$H$13,7,FALSE)) -> 
A165: =IF(ISBLANK(InfoPro!A159),"",InfoPro!A159) ->  | B165: =IF(ISBLANK(InfoPro!B159),"",InfoPro!B159) ->  | C165: =IF(ISBLANK(InfoPro!E159),"",InfoPro!E159) ->  | D165: =IF(ISBLANK(InfoPro!F159),"",InfoPro!F159) ->  | E165: =IF(ISBLANK(InfoPro!I159),"",YEAR(InfoPro!I159)-$H$3) ->  | F165: =IF(B165="","",VLOOKUP(D165,Tablas!$B$2:$E$13,2,FALSE)) ->  | G165: =IF(B165="","",VLOOKUP(D165,Tablas!$B$2:$H$13,7,FALSE)) ->  | J165: =IF($I165="","",(1/(1+$C$3)^(J$6+$E165))*$I165*$C$2*$H165) -> 
A166: =IF(ISBLANK(InfoPro!A160),"",InfoPro!A160) ->  | B166: =IF(ISBLANK(InfoPro!B160),"",InfoPro!B160) ->  | C166: =IF(ISBLANK(InfoPro!E160),"",InfoPro!E160) ->  | D166: =IF(ISBLANK(InfoPro!F160),"",InfoPro!F160) ->  | E166: =IF(ISBLANK(InfoPro!I160),"",YEAR(InfoPro!I160)-$H$3) ->  | F166: =IF(B166="","",VLOOKUP(D166,Tablas!$B$2:$E$13,2,FALSE)) ->  | G166: =IF(B166="","",VLOOKUP(D166,Tablas!$B$2:$H$13,7,FALSE)) -> 
A167: =IF(ISBLANK(InfoPro!A161),"",InfoPro!A161) ->  | B167: =IF(ISBLANK(InfoPro!B161),"",InfoPro!B161) ->  | C167: =IF(ISBLANK(InfoPro!E161),"",InfoPro!E161) ->  | D167: =IF(ISBLANK(InfoPro!F161),"",InfoPro!F161) ->  | E167: =IF(ISBLANK(InfoPro!I161),"",YEAR(InfoPro!I161)-$H$3) ->  | F167: =IF(B167="","",VLOOKUP(D167,Tablas!$B$2:$E$13,2,FALSE)) ->  | G167: =IF(B167="","",VLOOKUP(D167,Tablas!$B$2:$H$13,7,FALSE)) -> 
A168: =IF(ISBLANK(InfoPro!A162),"",InfoPro!A162) ->  | B168: =IF(ISBLANK(InfoPro!B162),"",InfoPro!B162) ->  | C168: =IF(ISBLANK(InfoPro!E162),"",InfoPro!E162) ->  | D168: =IF(ISBLANK(InfoPro!F162),"",InfoPro!F162) ->  | E168: =IF(ISBLANK(InfoPro!I162),"",YEAR(InfoPro!I162)-$H$3) ->  | F168: =IF(B168="","",VLOOKUP(D168,Tablas!$B$2:$E$13,2,FALSE)) ->  | G168: =IF(B168="","",VLOOKUP(D168,Tablas!$B$2:$H$13,7,FALSE)) -> 
A169: =IF(ISBLANK(InfoPro!A163),"",InfoPro!A163) ->  | B169: =IF(ISBLANK(InfoPro!B163),"",InfoPro!B163) ->  | C169: =IF(ISBLANK(InfoPro!E163),"",InfoPro!E163) ->  | D169: =IF(ISBLANK(InfoPro!F163),"",InfoPro!F163) ->  | E169: =IF(ISBLANK(InfoPro!I163),"",YEAR(InfoPro!I163)-$H$3) ->  | F169: =IF(B169="","",VLOOKUP(D169,Tablas!$B$2:$E$13,2,FALSE)) ->  | G169: =IF(B169="","",VLOOKUP(D169,Tablas!$B$2:$H$13,7,FALSE)) -> 
A170: =IF(ISBLANK(InfoPro!A164),"",InfoPro!A164) ->  | B170: =IF(ISBLANK(InfoPro!B164),"",InfoPro!B164) ->  | C170: =IF(ISBLANK(InfoPro!E164),"",InfoPro!E164) ->  | D170: =IF(ISBLANK(InfoPro!F164),"",InfoPro!F164) ->  | E170: =IF(ISBLANK(InfoPro!I164),"",YEAR(InfoPro!I164)-$H$3) ->  | F170: =IF(B170="","",VLOOKUP(D170,Tablas!$B$2:$E$13,2,FALSE)) ->  | G170: =IF(B170="","",VLOOKUP(D170,Tablas!$B$2:$H$13,7,FALSE)) -> 
A171: =IF(ISBLANK(InfoPro!A165),"",InfoPro!A165) ->  | B171: =IF(ISBLANK(InfoPro!B165),"",InfoPro!B165) ->  | C171: =IF(ISBLANK(InfoPro!E165),"",InfoPro!E165) ->  | D171: =IF(ISBLANK(InfoPro!F165),"",InfoPro!F165) ->  | E171: =IF(ISBLANK(InfoPro!I165),"",YEAR(InfoPro!I165)-$H$3) ->  | F171: =IF(B171="","",VLOOKUP(D171,Tablas!$B$2:$E$13,2,FALSE)) ->  | G171: =IF(B171="","",VLOOKUP(D171,Tablas!$B$2:$H$13,7,FALSE)) -> 
A172: =IF(ISBLANK(InfoPro!A166),"",InfoPro!A166) ->  | B172: =IF(ISBLANK(InfoPro!B166),"",InfoPro!B166) ->  | C172: =IF(ISBLANK(InfoPro!E166),"",InfoPro!E166) ->  | D172: =IF(ISBLANK(InfoPro!F166),"",InfoPro!F166) ->  | E172: =IF(ISBLANK(InfoPro!I166),"",YEAR(InfoPro!I166)-$H$3) ->  | F172: =IF(B172="","",VLOOKUP(D172,Tablas!$B$2:$E$13,2,FALSE)) ->  | G172: =IF(B172="","",VLOOKUP(D172,Tablas!$B$2:$H$13,7,FALSE)) ->  | H172: =IF(B172="","",($C$2-(G172))/$C$2) ->  | I172: =IF(C172="","",+C172*F172*24*365) ->  | Y172: =IF(X172="","",SUM(J172:X172)) ->  | Z172: =IF(C172=0,0,IF(Y172="","",Y172/(C172*1000))) -> 
A173: =IF(ISBLANK(InfoPro!A167),"",InfoPro!A167) ->  | B173: =IF(ISBLANK(InfoPro!B167),"",InfoPro!B167) ->  | C173: =IF(ISBLANK(InfoPro!E167),"",InfoPro!E167) ->  | D173: =IF(ISBLANK(InfoPro!F167),"",InfoPro!F167) ->  | E173: =IF(ISBLANK(InfoPro!I167),"",YEAR(InfoPro!I167)-$H$3) ->  | F173: =IF(B173="","",VLOOKUP(D173,Tablas!$B$2:$E$13,2,FALSE)) ->  | G173: =IF(B173="","",VLOOKUP(D173,Tablas!$B$2:$H$13,7,FALSE)) -> 
A174: =IF(ISBLANK(InfoPro!A168),"",InfoPro!A168) ->  | B174: =IF(ISBLANK(InfoPro!B168),"",InfoPro!B168) ->  | C174: =IF(ISBLANK(InfoPro!E168),"",InfoPro!E168) ->  | D174: =IF(ISBLANK(InfoPro!F168),"",InfoPro!F168) ->  | E174: =IF(ISBLANK(InfoPro!I168),"",YEAR(InfoPro!I168)-$H$3) ->  | F174: =IF(B174="","",VLOOKUP(D174,Tablas!$B$2:$E$13,2,FALSE)) ->  | G174: =IF(B174="","",VLOOKUP(D174,Tablas!$B$2:$H$13,7,FALSE)) -> 
A175: =IF(ISBLANK(InfoPro!A169),"",InfoPro!A169) ->  | B175: =IF(ISBLANK(InfoPro!B169),"",InfoPro!B169) ->  | C175: =IF(ISBLANK(InfoPro!E169),"",InfoPro!E169) ->  | D175: =IF(ISBLANK(InfoPro!F169),"",InfoPro!F169) ->  | E175: =IF(ISBLANK(InfoPro!I169),"",YEAR(InfoPro!I169)-$H$3) ->  | F175: =IF(B175="","",VLOOKUP(D175,Tablas!$B$2:$E$13,2,FALSE)) ->  | G175: =IF(B175="","",VLOOKUP(D175,Tablas!$B$2:$H$13,7,FALSE)) -> 
A176: =IF(ISBLANK(InfoPro!A170),"",InfoPro!A170) ->  | B176: =IF(ISBLANK(InfoPro!B170),"",InfoPro!B170) ->  | C176: =IF(ISBLANK(InfoPro!E170),"",InfoPro!E170) ->  | D176: =IF(ISBLANK(InfoPro!F170),"",InfoPro!F170) ->  | E176: =IF(ISBLANK(InfoPro!I170),"",YEAR(InfoPro!I170)-$H$3) ->  | F176: =IF(B176="","",VLOOKUP(D176,Tablas!$B$2:$E$13,2,FALSE)) ->  | G176: =IF(B176="","",VLOOKUP(D176,Tablas!$B$2:$H$13,7,FALSE)) -> 
A177: =IF(ISBLANK(InfoPro!A171),"",InfoPro!A171) ->  | B177: =IF(ISBLANK(InfoPro!B171),"",InfoPro!B171) ->  | C177: =IF(ISBLANK(InfoPro!E171),"",InfoPro!E171) ->  | D177: =IF(ISBLANK(InfoPro!F171),"",InfoPro!F171) ->  | E177: =IF(ISBLANK(InfoPro!I171),"",YEAR(InfoPro!I171)-$H$3) ->  | F177: =IF(B177="","",VLOOKUP(D177,Tablas!$B$2:$E$13,2,FALSE)) ->  | G177: =IF(B177="","",VLOOKUP(D177,Tablas!$B$2:$H$13,7,FALSE)) -> 
A178: =IF(ISBLANK(InfoPro!A172),"",InfoPro!A172) ->  | B178: =IF(ISBLANK(InfoPro!B172),"",InfoPro!B172) ->  | C178: =IF(ISBLANK(InfoPro!E172),"",InfoPro!E172) ->  | D178: =IF(ISBLANK(InfoPro!F172),"",InfoPro!F172) ->  | E178: =IF(ISBLANK(InfoPro!I172),"",YEAR(InfoPro!I172)-$H$3) ->  | F178: =IF(B178="","",VLOOKUP(D178,Tablas!$B$2:$E$13,2,FALSE)) ->  | G178: =IF(B178="","",VLOOKUP(D178,Tablas!$B$2:$H$13,7,FALSE)) -> 
A179: =IF(ISBLANK(InfoPro!A173),"",InfoPro!A173) ->  | B179: =IF(ISBLANK(InfoPro!B173),"",InfoPro!B173) ->  | C179: =IF(ISBLANK(InfoPro!E173),"",InfoPro!E173) ->  | D179: =IF(ISBLANK(InfoPro!F173),"",InfoPro!F173) ->  | E179: =IF(ISBLANK(InfoPro!I173),"",YEAR(InfoPro!I173)-$H$3) ->  | F179: =IF(B179="","",VLOOKUP(D179,Tablas!$B$2:$E$13,2,FALSE)) ->  | G179: =IF(B179="","",VLOOKUP(D179,Tablas!$B$2:$H$13,7,FALSE)) -> 
A180: =IF(ISBLANK(InfoPro!A174),"",InfoPro!A174) ->  | B180: =IF(ISBLANK(InfoPro!B174),"",InfoPro!B174) ->  | C180: =IF(ISBLANK(InfoPro!E174),"",InfoPro!E174) ->  | D180: =IF(ISBLANK(InfoPro!F174),"",InfoPro!F174) ->  | E180: =IF(ISBLANK(InfoPro!I174),"",YEAR(InfoPro!I174)-$H$3) ->  | F180: =IF(B180="","",VLOOKUP(D180,Tablas!$B$2:$E$13,2,FALSE)) ->  | G180: =IF(B180="","",VLOOKUP(D180,Tablas!$B$2:$H$13,7,FALSE)) -> 
A181: =IF(ISBLANK(InfoPro!A175),"",InfoPro!A175) ->  | B181: =IF(ISBLANK(InfoPro!B175),"",InfoPro!B175) ->  | C181: =IF(ISBLANK(InfoPro!E175),"",InfoPro!E175) ->  | D181: =IF(ISBLANK(InfoPro!F175),"",InfoPro!F175) ->  | E181: =IF(ISBLANK(InfoPro!I175),"",YEAR(InfoPro!I175)-$H$3) ->  | F181: =IF(B181="","",VLOOKUP(D181,Tablas!$B$2:$E$13,2,FALSE)) ->  | G181: =IF(B181="","",VLOOKUP(D181,Tablas!$B$2:$H$13,7,FALSE)) -> 
A182: =IF(ISBLANK(InfoPro!A176),"",InfoPro!A176) ->  | B182: =IF(ISBLANK(InfoPro!B176),"",InfoPro!B176) ->  | C182: =IF(ISBLANK(InfoPro!E176),"",InfoPro!E176) ->  | D182: =IF(ISBLANK(InfoPro!F176),"",InfoPro!F176) ->  | E182: =IF(ISBLANK(InfoPro!I176),"",YEAR(InfoPro!I176)-$H$3) ->  | F182: =IF(B182="","",VLOOKUP(D182,Tablas!$B$2:$E$13,2,FALSE)) ->  | G182: =IF(B182="","",VLOOKUP(D182,Tablas!$B$2:$H$13,7,FALSE)) ->  | J182: =IF($I182="","",(1/(1+$C$3)^(J$6+$E182))*$I182*$C$2*$H182) -> 
A183: =IF(ISBLANK(InfoPro!A177),"",InfoPro!A177) ->  | B183: =IF(ISBLANK(InfoPro!B177),"",InfoPro!B177) ->  | C183: =IF(ISBLANK(InfoPro!E177),"",InfoPro!E177) ->  | D183: =IF(ISBLANK(InfoPro!F177),"",InfoPro!F177) ->  | E183: =IF(ISBLANK(InfoPro!I177),"",YEAR(InfoPro!I177)-$H$3) ->  | F183: =IF(B183="","",VLOOKUP(D183,Tablas!$B$2:$E$13,2,FALSE)) ->  | G183: =IF(B183="","",VLOOKUP(D183,Tablas!$B$2:$H$13,7,FALSE)) -> 
A184: =IF(ISBLANK(InfoPro!A178),"",InfoPro!A178) ->  | B184: =IF(ISBLANK(InfoPro!B178),"",InfoPro!B178) ->  | C184: =IF(ISBLANK(InfoPro!E178),"",InfoPro!E178) ->  | D184: =IF(ISBLANK(InfoPro!F178),"",InfoPro!F178) ->  | E184: =IF(ISBLANK(InfoPro!I178),"",YEAR(InfoPro!I178)-$H$3) ->  | F184: =IF(B184="","",VLOOKUP(D184,Tablas!$B$2:$E$13,2,FALSE)) ->  | G184: =IF(B184="","",VLOOKUP(D184,Tablas!$B$2:$H$13,7,FALSE)) -> 
A185: =IF(ISBLANK(InfoPro!A179),"",InfoPro!A179) ->  | B185: =IF(ISBLANK(InfoPro!B179),"",InfoPro!B179) ->  | C185: =IF(ISBLANK(InfoPro!E179),"",InfoPro!E179) ->  | D185: =IF(ISBLANK(InfoPro!F179),"",InfoPro!F179) ->  | E185: =IF(ISBLANK(InfoPro!I179),"",YEAR(InfoPro!I179)-$H$3) ->  | F185: =IF(B185="","",VLOOKUP(D185,Tablas!$B$2:$E$13,2,FALSE)) ->  | G185: =IF(B185="","",VLOOKUP(D185,Tablas!$B$2:$H$13,7,FALSE)) -> 
A186: =IF(ISBLANK(InfoPro!A180),"",InfoPro!A180) ->  | B186: =IF(ISBLANK(InfoPro!B180),"",InfoPro!B180) ->  | C186: =IF(ISBLANK(InfoPro!E180),"",InfoPro!E180) ->  | D186: =IF(ISBLANK(InfoPro!F180),"",InfoPro!F180) ->  | E186: =IF(ISBLANK(InfoPro!I180),"",YEAR(InfoPro!I180)-$H$3) ->  | F186: =IF(B186="","",VLOOKUP(D186,Tablas!$B$2:$E$13,2,FALSE)) ->  | G186: =IF(B186="","",VLOOKUP(D186,Tablas!$B$2:$H$13,7,FALSE)) -> 
A187: =IF(ISBLANK(InfoPro!A181),"",InfoPro!A181) ->  | B187: =IF(ISBLANK(InfoPro!B181),"",InfoPro!B181) ->  | C187: =IF(ISBLANK(InfoPro!E181),"",InfoPro!E181) ->  | D187: =IF(ISBLANK(InfoPro!F181),"",InfoPro!F181) ->  | E187: =IF(ISBLANK(InfoPro!I181),"",YEAR(InfoPro!I181)-$H$3) ->  | F187: =IF(B187="","",VLOOKUP(D187,Tablas!$B$2:$E$13,2,FALSE)) ->  | G187: =IF(B187="","",VLOOKUP(D187,Tablas!$B$2:$H$13,7,FALSE)) -> 
A188: =IF(ISBLANK(InfoPro!A182),"",InfoPro!A182) ->  | B188: =IF(ISBLANK(InfoPro!B182),"",InfoPro!B182) ->  | C188: =IF(ISBLANK(InfoPro!E182),"",InfoPro!E182) ->  | D188: =IF(ISBLANK(InfoPro!F182),"",InfoPro!F182) ->  | E188: =IF(ISBLANK(InfoPro!I182),"",YEAR(InfoPro!I182)-$H$3) ->  | F188: =IF(B188="","",VLOOKUP(D188,Tablas!$B$2:$E$13,2,FALSE)) ->  | G188: =IF(B188="","",VLOOKUP(D188,Tablas!$B$2:$H$13,7,FALSE)) -> 
A189: =IF(ISBLANK(InfoPro!A183),"",InfoPro!A183) ->  | B189: =IF(ISBLANK(InfoPro!B183),"",InfoPro!B183) ->  | C189: =IF(ISBLANK(InfoPro!E183),"",InfoPro!E183) ->  | D189: =IF(ISBLANK(InfoPro!F183),"",InfoPro!F183) ->  | E189: =IF(ISBLANK(InfoPro!I183),"",YEAR(InfoPro!I183)-$H$3) ->  | F189: =IF(B189="","",VLOOKUP(D189,Tablas!$B$2:$E$13,2,FALSE)) ->  | G189: =IF(B189="","",VLOOKUP(D189,Tablas!$B$2:$H$13,7,FALSE)) -> 
A190: =IF(ISBLANK(InfoPro!A184),"",InfoPro!A184) ->  | B190: =IF(ISBLANK(InfoPro!B184),"",InfoPro!B184) ->  | C190: =IF(ISBLANK(InfoPro!E184),"",InfoPro!E184) ->  | D190: =IF(ISBLANK(InfoPro!F184),"",InfoPro!F184) ->  | E190: =IF(ISBLANK(InfoPro!I184),"",YEAR(InfoPro!I184)-$H$3) ->  | F190: =IF(B190="","",VLOOKUP(D190,Tablas!$B$2:$E$13,2,FALSE)) ->  | G190: =IF(B190="","",VLOOKUP(D190,Tablas!$B$2:$H$13,7,FALSE)) -> 
A191: =IF(ISBLANK(InfoPro!A185),"",InfoPro!A185) ->  | B191: =IF(ISBLANK(InfoPro!B185),"",InfoPro!B185) ->  | C191: =IF(ISBLANK(InfoPro!E185),"",InfoPro!E185) ->  | D191: =IF(ISBLANK(InfoPro!F185),"",InfoPro!F185) ->  | E191: =IF(ISBLANK(InfoPro!I185),"",YEAR(InfoPro!I185)-$H$3) ->  | F191: =IF(B191="","",VLOOKUP(D191,Tablas!$B$2:$E$13,2,FALSE)) ->  | G191: =IF(B191="","",VLOOKUP(D191,Tablas!$B$2:$H$13,7,FALSE)) -> 
A192: =IF(ISBLANK(InfoPro!A186),"",InfoPro!A186) ->  | B192: =IF(ISBLANK(InfoPro!B186),"",InfoPro!B186) ->  | C192: =IF(ISBLANK(InfoPro!E186),"",InfoPro!E186) ->  | D192: =IF(ISBLANK(InfoPro!F186),"",InfoPro!F186) ->  | E192: =IF(ISBLANK(InfoPro!I186),"",YEAR(InfoPro!I186)-$H$3) ->  | F192: =IF(B192="","",VLOOKUP(D192,Tablas!$B$2:$E$13,2,FALSE)) ->  | G192: =IF(B192="","",VLOOKUP(D192,Tablas!$B$2:$H$13,7,FALSE)) -> 
A193: =IF(ISBLANK(InfoPro!A187),"",InfoPro!A187) ->  | B193: =IF(ISBLANK(InfoPro!B187),"",InfoPro!B187) ->  | C193: =IF(ISBLANK(InfoPro!E187),"",InfoPro!E187) ->  | D193: =IF(ISBLANK(InfoPro!F187),"",InfoPro!F187) ->  | E193: =IF(ISBLANK(InfoPro!I187),"",YEAR(InfoPro!I187)-$H$3) ->  | F193: =IF(B193="","",VLOOKUP(D193,Tablas!$B$2:$E$13,2,FALSE)) ->  | G193: =IF(B193="","",VLOOKUP(D193,Tablas!$B$2:$H$13,7,FALSE)) -> 
A194: =IF(ISBLANK(InfoPro!A188),"",InfoPro!A188) ->  | B194: =IF(ISBLANK(InfoPro!B188),"",InfoPro!B188) ->  | C194: =IF(ISBLANK(InfoPro!E188),"",InfoPro!E188) ->  | D194: =IF(ISBLANK(InfoPro!F188),"",InfoPro!F188) ->  | E194: =IF(ISBLANK(InfoPro!I188),"",YEAR(InfoPro!I188)-$H$3) ->  | F194: =IF(B194="","",VLOOKUP(D194,Tablas!$B$2:$E$13,2,FALSE)) ->  | G194: =IF(B194="","",VLOOKUP(D194,Tablas!$B$2:$H$13,7,FALSE)) -> 
A195: =IF(ISBLANK(InfoPro!A189),"",InfoPro!A189) ->  | B195: =IF(ISBLANK(InfoPro!B189),"",InfoPro!B189) ->  | C195: =IF(ISBLANK(InfoPro!E189),"",InfoPro!E189) ->  | D195: =IF(ISBLANK(InfoPro!F189),"",InfoPro!F189) ->  | E195: =IF(ISBLANK(InfoPro!I189),"",YEAR(InfoPro!I189)-$H$3) ->  | F195: =IF(B195="","",VLOOKUP(D195,Tablas!$B$2:$E$13,2,FALSE)) ->  | G195: =IF(B195="","",VLOOKUP(D195,Tablas!$B$2:$H$13,7,FALSE)) -> 

Sheet EC-Per
B2: Precio promedio de bolsa | C2: ='EC-RP'!C2*1000 -> 192057000 | D2: COP/GWh
B3: Tasa de descuento | C3: 0.118 | E3: Año de Referencia | F3: 2023
E4: Mínimo | F4: =MIN(W8:W400) -> 277503.7663
G6: 0 | H6: 1 | I6: 2 | J6: 3 | K6: 4 | L6: 5 | M6: 6 | N6: 7 | O6: 8 | P6: 9 | Q6: 10 | R6: 11 | S6: 12 | T6: 13 | U6: 14
A7: Codigo | B7: Nombre | C7: capacidad | D7: Tipo | E7: Año de entrada | F7: Pérdidas STN | G7: Flujo Descontado 0 | H7: Flujo Descontado 1 | I7: Flujo Descontado 2 | J7: Flujo Descontado 3 | K7: Flujo Descontado 4 | L7: Flujo Descontado 5 | M7: Flujo Descontado 6 | N7: Flujo Descontado 7 | O7: Flujo Descontado 8 | P7: Flujo Descontado 9 | Q7: Flujo Descontado 10 | R7: Flujo Descontado 11 | S7: Flujo Descontado 12 | T7: Flujo Descontado 13 | U7: Flujo Descontado 14 | V7: VPN | W7: Beneficio/kW
A8: =IF(ISBLANK(InfoPro!A2),"",InfoPro!A2) -> SC_1323_A1 | B8: =IF(ISBLANK(InfoPro!B2),"",InfoPro!B2) -> GEN ARAUCA | C8: =IF(ISBLANK(InfoPro!E2),"",InfoPro!E2) -> 30 | D8: =IF(ISBLANK(InfoPro!F2),"",InfoPro!F2) -> Termica - Ciclo Abierto | E8: =IF(ISBLANK(InfoPro!I2),"",YEAR(InfoPro!I2)-$F$3) -> 0 | F8: =IF(ISBLANK(InfoPro!P2),"",InfoPro!P2) -> 5.632 | G8: =IF($F8="","",(1/(1+$C$3)^(G$6+$E8))*$F8*$C$2) -> 1081665024 | H8: =IF($F8="","",(1/(1+$C$3)^(H$6+$E8))*$F8*$C$2) -> 967500021.5 | I8: =IF($F8="","",(1/(1+$C$3)^(I$6+$E8))*$F8*$C$2) -> 865384634.6 | J8: 774047079.2 | K8: 692349802.5 | L8: 619275315.3 | M8: 553913520 | N8: 495450375.6 | O8: 443157760 | P8: 396384400.7 | Q8: 354547764.5 | R8: 317126801.9 | S8: 283655457.8 | T8: 253716867.5 | U8: 226938164.1 | V8: =IF(U8="","",SUM(G8:U8)) -> 8325112989 | W8: =IF(C8=0,0,IF(V8="","",V8/(C8*1000))) -> 277503.7663
A9: =IF(ISBLANK(InfoPro!A3),"",InfoPro!A3) -> SC_1323_A2 | B9: =IF(ISBLANK(InfoPro!B3),"",InfoPro!B3) -> GEN ARAUCA | C9: =IF(ISBLANK(InfoPro!E3),"",InfoPro!E3) -> 30 | D9: =IF(ISBLANK(InfoPro!F3),"",InfoPro!F3) -> Termica - Ciclo Abierto | E9: =IF(ISBLANK(InfoPro!I3),"",YEAR(InfoPro!I3)-$F$3) -> 0 | F9: =IF(ISBLANK(InfoPro!P3),"",InfoPro!P3) -> 15.033 | G9: 2887192881 | H9: 2582462326 | I9: 2309894746 | J9: 2066095480 | K9: 1848028157 | L9: 1652976885 | M9: 1478512419 | N9: 1322461914 | O9: 1182881855 | P9: 1058033859 | Q9: 946363022.6 | R9: 846478553.3 | S9: 757136452 | T9: 677224017.9 | U9: 605745991 | V9: =IF(U9="","",SUM(G9:U9)) -> 2.222148856e+10 | W9: =IF(C9=0,0,IF(V9="","",V9/(C9*1000))) -> 740716.2853
A10: =IF(ISBLANK(InfoPro!A4),"",InfoPro!A4) -> SC_1323_A3 | B10: =IF(ISBLANK(InfoPro!B4),"",InfoPro!B4) -> GEN ARAUCA | C10: =IF(ISBLANK(InfoPro!E4),"",InfoPro!E4) -> 30 | D10: =IF(ISBLANK(InfoPro!F4),"",InfoPro!F4) -> Termica - Ciclo Abierto | E10: =IF(ISBLANK(InfoPro!I4),"",YEAR(InfoPro!I4)-$F$3) -> 0 | F10: =IF(ISBLANK(InfoPro!P4),"",InfoPro!P4) -> 16.453 | G10: 3159913821 | H10: 2826398767 | I10: 2528084764 | J10: 2261256498 | K10: 2022590785 | L10: 1809115192 | M10: 1618171013 | N10: 1447380155 | O10: 1294615523 | P10: 1157974529 | Q10: 1035755392 | R10: 926435950.1 | S10: 828654696 | T10: 741193824.7 | U10: 662964065 | V10: 2.432050497e+10 | W10: 810683.4991
A11: =IF(ISBLANK(InfoPro!A5),"",InfoPro!A5) ->  | B11: =IF(ISBLANK(InfoPro!B5),"",InfoPro!B5) ->  | C11: =IF(ISBLANK(InfoPro!E5),"",InfoPro!E5) ->  | D11: =IF(ISBLANK(InfoPro!F5),"",InfoPro!F5) ->  | E11: =IF(ISBLANK(InfoPro!I5),"",YEAR(InfoPro!I5)-$F$3) ->  | F11: =IF(ISBLANK(InfoPro!P5),"",InfoPro!P5) -> 
A12: =IF(ISBLANK(InfoPro!A6),"",InfoPro!A6) ->  | B12: =IF(ISBLANK(InfoPro!B6),"",InfoPro!B6) ->  | C12: =IF(ISBLANK(InfoPro!E6),"",InfoPro!E6) ->  | D12: =IF(ISBLANK(InfoPro!F6),"",InfoPro!F6) ->  | E12: =IF(ISBLANK(InfoPro!I6),"",YEAR(InfoPro!I6)-$F$3) ->  | F12: =IF(ISBLANK(InfoPro!P6),"",InfoPro!P6) -> 
A13: =IF(ISBLANK(InfoPro!A7),"",InfoPro!A7) ->  | B13: =IF(ISBLANK(InfoPro!B7),"",InfoPro!B7) ->  | C13: =IF(ISBLANK(InfoPro!E7),"",InfoPro!E7) ->  | D13: =IF(ISBLANK(InfoPro!F7),"",InfoPro!F7) ->  | E13: =IF(ISBLANK(InfoPro!I7),"",YEAR(InfoPro!I7)-$F$3) ->  | F13: =IF(ISBLANK(InfoPro!P7),"",InfoPro!P7) -> 
A14: =IF(ISBLANK(InfoPro!A8),"",InfoPro!A8) ->  | B14: =IF(ISBLANK(InfoPro!B8),"",InfoPro!B8) ->  | C14: =IF(ISBLANK(InfoPro!E8),"",InfoPro!E8) ->  | D14: =IF(ISBLANK(InfoPro!F8),"",InfoPro!F8) ->  | E14: =IF(ISBLANK(InfoPro!I8),"",YEAR(InfoPro!I8)-$F$3) ->  | F14: =IF(ISBLANK(InfoPro!P8),"",InfoPro!P8) -> 
A15: =IF(ISBLANK(InfoPro!A9),"",InfoPro!A9) ->  | B15: =IF(ISBLANK(InfoPro!B9),"",InfoPro!B9) ->  | C15: =IF(ISBLANK(InfoPro!E9),"",InfoPro!E9) ->  | D15: =IF(ISBLANK(InfoPro!F9),"",InfoPro!F9) ->  | E15: =IF(ISBLANK(InfoPro!I9),"",YEAR(InfoPro!I9)-$F$3) ->  | F15: =IF(ISBLANK(InfoPro!P9),"",InfoPro!P9) -> 
A16: =IF(ISBLANK(InfoPro!A10),"",InfoPro!A10) ->  | B16: =IF(ISBLANK(InfoPro!B10),"",InfoPro!B10) ->  | C16: =IF(ISBLANK(InfoPro!E10),"",InfoPro!E10) ->  | D16: =IF(ISBLANK(InfoPro!F10),"",InfoPro!F10) ->  | E16: =IF(ISBLANK(InfoPro!I10),"",YEAR(InfoPro!I10)-$F$3) ->  | F16: =IF(ISBLANK(InfoPro!P10),"",InfoPro!P10) -> 
A17: =IF(ISBLANK(InfoPro!A11),"",InfoPro!A11) ->  | B17: =IF(ISBLANK(InfoPro!B11),"",InfoPro!B11) ->  | C17: =IF(ISBLANK(InfoPro!E11),"",InfoPro!E11) ->  | D17: =IF(ISBLANK(InfoPro!F11),"",InfoPro!F11) ->  | E17: =IF(ISBLANK(InfoPro!I11),"",YEAR(InfoPro!I11)-$F$3) ->  | F17: =IF(ISBLANK(InfoPro!P11),"",InfoPro!P11) -> 
A18: =IF(ISBLANK(InfoPro!A12),"",InfoPro!A12) ->  | B18: =IF(ISBLANK(InfoPro!B12),"",InfoPro!B12) ->  | C18: =IF(ISBLANK(InfoPro!E12),"",InfoPro!E12) ->  | D18: =IF(ISBLANK(InfoPro!F12),"",InfoPro!F12) ->  | E18: =IF(ISBLANK(InfoPro!I12),"",YEAR(InfoPro!I12)-$F$3) ->  | F18: =IF(ISBLANK(InfoPro!P12),"",InfoPro!P12) ->  | G18: =IF($F18="","",(1/(1+$C$3)^(G$6+$E18))*$F18*$C$2) -> 
A19: =IF(ISBLANK(InfoPro!A13),"",InfoPro!A13) ->  | B19: =IF(ISBLANK(InfoPro!B13),"",InfoPro!B13) ->  | C19: =IF(ISBLANK(InfoPro!E13),"",InfoPro!E13) ->  | D19: =IF(ISBLANK(InfoPro!F13),"",InfoPro!F13) ->  | E19: =IF(ISBLANK(InfoPro!I13),"",YEAR(InfoPro!I13)-$F$3) ->  | F19: =IF(ISBLANK(InfoPro!P13),"",InfoPro!P13) -> 
A20: =IF(ISBLANK(InfoPro!A14),"",InfoPro!A14) ->  | B20: =IF(ISBLANK(InfoPro!B14),"",InfoPro!B14) ->  | C20: =IF(ISBLANK(InfoPro!E14),"",InfoPro!E14) ->  | D20: =IF(ISBLANK(InfoPro!F14),"",InfoPro!F14) ->  | E20: =IF(ISBLANK(InfoPro!I14),"",YEAR(InfoPro!I14)-$F$3) ->  | F20: =IF(ISBLANK(InfoPro!P14),"",InfoPro!P14) -> 
A21: =IF(ISBLANK(InfoPro!A15),"",InfoPro!A15) ->  | B21: =IF(ISBLANK(InfoPro!B15),"",InfoPro!B15) ->  | C21: =IF(ISBLANK(InfoPro!E15),"",InfoPro!E15) ->  | D21: =IF(ISBLANK(InfoPro!F15),"",InfoPro!F15) ->  | E21: =IF(ISBLANK(InfoPro!I15),"",YEAR(InfoPro!I15)-$F$3) ->  | F21: =IF(ISBLANK(InfoPro!P15),"",InfoPro!P15) -> 
A22: =IF(ISBLANK(InfoPro!A16),"",InfoPro!A16) ->  | B22: =IF(ISBLANK(InfoPro!B16),"",InfoPro!B16) ->  | C22: =IF(ISBLANK(InfoPro!E16),"",InfoPro!E16) ->  | D22: =IF(ISBLANK(InfoPro!F16),"",InfoPro!F16) ->  | E22: =IF(ISBLANK(InfoPro!I16),"",YEAR(InfoPro!I16)-$F$3) ->  | F22: =IF(ISBLANK(InfoPro!P16),"",InfoPro!P16) -> 
A23: =IF(ISBLANK(InfoPro!A17),"",InfoPro!A17) ->  | B23: =IF(ISBLANK(InfoPro!B17),"",InfoPro!B17) ->  | C23: =IF(ISBLANK(InfoPro!E17),"",InfoPro!E17) ->  | D23: =IF(ISBLANK(InfoPro!F17),"",InfoPro!F17) ->  | E23: =IF(ISBLANK(InfoPro!I17),"",YEAR(InfoPro!I17)-$F$3) ->  | F23: =IF(ISBLANK(InfoPro!P17),"",InfoPro!P17) -> 
A24: =IF(ISBLANK(InfoPro!A18),"",InfoPro!A18) ->  | B24: =IF(ISBLANK(InfoPro!B18),"",InfoPro!B18) ->  | C24: =IF(ISBLANK(InfoPro!E18),"",InfoPro!E18) ->  | D24: =IF(ISBLANK(InfoPro!F18),"",InfoPro!F18) ->  | E24: =IF(ISBLANK(InfoPro!I18),"",YEAR(InfoPro!I18)-$F$3) ->  | F24: =IF(ISBLANK(InfoPro!P18),"",InfoPro!P18) -> 
A25: =IF(ISBLANK(InfoPro!A19),"",InfoPro!A19) ->  | B25: =IF(ISBLANK(InfoPro!B19),"",InfoPro!B19) ->  | C25: =IF(ISBLANK(InfoPro!E19),"",InfoPro!E19) ->  | D25: =IF(ISBLANK(InfoPro!F19),"",InfoPro!F19) ->  | E25: =IF(ISBLANK(InfoPro!I19),"",YEAR(InfoPro!I19)-$F$3) ->  | F25: =IF(ISBLANK(InfoPro!P19),"",InfoPro!P19) -> 
A26: =IF(ISBLANK(InfoPro!A20),"",InfoPro!A20) ->  | B26: =IF(ISBLANK(InfoPro!B20),"",InfoPro!B20) ->  | C26: =IF(ISBLANK(InfoPro!E20),"",InfoPro!E20) ->  | D26: =IF(ISBLANK(InfoPro!F20),"",InfoPro!F20) ->  | E26: =IF(ISBLANK(InfoPro!I20),"",YEAR(InfoPro!I20)-$F$3) ->  | F26: =IF(ISBLANK(InfoPro!P20),"",InfoPro!P20) -> 
A27: =IF(ISBLANK(InfoPro!A21),"",InfoPro!A21) ->  | B27: =IF(ISBLANK(InfoPro!B21),"",InfoPro!B21) ->  | C27: =IF(ISBLANK(InfoPro!E21),"",InfoPro!E21) ->  | D27: =IF(ISBLANK(InfoPro!F21),"",InfoPro!F21) ->  | E27: =IF(ISBLANK(InfoPro!I21),"",YEAR(InfoPro!I21)-$F$3) ->  | F27: =IF(ISBLANK(InfoPro!P21),"",InfoPro!P21) -> 
A28: =IF(ISBLANK(InfoPro!A22),"",InfoPro!A22) ->  | B28: =IF(ISBLANK(InfoPro!B22),"",InfoPro!B22) ->  | C28: =IF(ISBLANK(InfoPro!E22),"",InfoPro!E22) ->  | D28: =IF(ISBLANK(InfoPro!F22),"",InfoPro!F22) ->  | E28: =IF(ISBLANK(InfoPro!I22),"",YEAR(InfoPro!I22)-$F$3) ->  | F28: =IF(ISBLANK(InfoPro!P22),"",InfoPro!P22) ->  | G28: =IF($F28="","",(1/(1+$C$3)^(G$6+$E28))*$F28*$C$2) -> 
A29: =IF(ISBLANK(InfoPro!A23),"",InfoPro!A23) ->  | B29: =IF(ISBLANK(InfoPro!B23),"",InfoPro!B23) ->  | C29: =IF(ISBLANK(InfoPro!E23),"",InfoPro!E23) ->  | D29: =IF(ISBLANK(InfoPro!F23),"",InfoPro!F23) ->  | E29: =IF(ISBLANK(InfoPro!I23),"",YEAR(InfoPro!I23)-$F$3) ->  | F29: =IF(ISBLANK(InfoPro!P23),"",InfoPro!P23) -> 
A30: =IF(ISBLANK(InfoPro!A24),"",InfoPro!A24) ->  | B30: =IF(ISBLANK(InfoPro!B24),"",InfoPro!B24) ->  | C30: =IF(ISBLANK(InfoPro!E24),"",InfoPro!E24) ->  | D30: =IF(ISBLANK(InfoPro!F24),"",InfoPro!F24) ->  | E30: =IF(ISBLANK(InfoPro!I24),"",YEAR(InfoPro!I24)-$F$3) ->  | F30: =IF(ISBLANK(InfoPro!P24),"",InfoPro!P24) -> 
A31: =IF(ISBLANK(InfoPro!A25),"",InfoPro!A25) ->  | B31: =IF(ISBLANK(InfoPro!B25),"",InfoPro!B25) ->  | C31: =IF(ISBLANK(InfoPro!E25),"",InfoPro!E25) ->  | D31: =IF(ISBLANK(InfoPro!F25),"",InfoPro!F25) ->  | E31: =IF(ISBLANK(InfoPro!I25),"",YEAR(InfoPro!I25)-$F$3) ->  | F31: =IF(ISBLANK(InfoPro!P25),"",InfoPro!P25) -> 
A32: =IF(ISBLANK(InfoPro!A26),"",InfoPro!A26) ->  | B32: =IF(ISBLANK(InfoPro!B26),"",InfoPro!B26) ->  | C32: =IF(ISBLANK(InfoPro!E26),"",InfoPro!E26) ->  | D32: =IF(ISBLANK(InfoPro!F26),"",InfoPro!F26) ->  | E32: =IF(ISBLANK(InfoPro!I26),"",YEAR(InfoPro!I26)-$F$3) ->  | F32: =IF(ISBLANK(InfoPro!P26),"",InfoPro!P26) -> 
A33: =IF(ISBLANK(InfoPro!A27),"",InfoPro!A27) ->  | B33: =IF(ISBLANK(InfoPro!B27),"",InfoPro!B27) ->  | C33: =IF(ISBLANK(InfoPro!E27),"",InfoPro!E27) ->  | D33: =IF(ISBLANK(InfoPro!F27),"",InfoPro!F27) ->  | E33: =IF(ISBLANK(InfoPro!I27),"",YEAR(InfoPro!I27)-$F$3) ->  | F33: =IF(ISBLANK(InfoPro!P27),"",InfoPro!P27) -> 
A34: =IF(ISBLANK(InfoPro!A28),"",InfoPro!A28) ->  | B34: =IF(ISBLANK(InfoPro!B28),"",InfoPro!B28) ->  | C34: =IF(ISBLANK(InfoPro!E28),"",InfoPro!E28) ->  | D34: =IF(ISBLANK(InfoPro!F28),"",InfoPro!F28) ->  | E34: =IF(ISBLANK(InfoPro!I28),"",YEAR(InfoPro!I28)-$F$3) ->  | F34: =IF(ISBLANK(InfoPro!P28),"",InfoPro!P28) -> 
A35: =IF(ISBLANK(InfoPro!A29),"",InfoPro!A29) ->  | B35: =IF(ISBLANK(InfoPro!B29),"",InfoPro!B29) ->  | C35: =IF(ISBLANK(InfoPro!E29),"",InfoPro!E29) ->  | D35: =IF(ISBLANK(InfoPro!F29),"",InfoPro!F29) ->  | E35: =IF(ISBLANK(InfoPro!I29),"",YEAR(InfoPro!I29)-$F$3) ->  | F35: =IF(ISBLANK(InfoPro!P29),"",InfoPro!P29) -> 
A36: =IF(ISBLANK(InfoPro!A30),"",InfoPro!A30) ->  | B36: =IF(ISBLANK(InfoPro!B30),"",InfoPro!B30) ->  | C36: =IF(ISBLANK(InfoPro!E30),"",InfoPro!E30) ->  | D36: =IF(ISBLANK(InfoPro!F30),"",InfoPro!F30) ->  | E36: =IF(ISBLANK(InfoPro!I30),"",YEAR(InfoPro!I30)-$F$3) ->  | F36: =IF(ISBLANK(InfoPro!P30),"",InfoPro!P30) -> 
A37: =IF(ISBLANK(InfoPro!A31),"",InfoPro!A31) ->  | B37: =IF(ISBLANK(InfoPro!B31),"",InfoPro!B31) ->  | C37: =IF(ISBLANK(InfoPro!E31),"",InfoPro!E31) ->  | D37: =IF(ISBLANK(InfoPro!F31),"",InfoPro!F31) ->  | E37: =IF(ISBLANK(InfoPro!I31),"",YEAR(InfoPro!I31)-$F$3) ->  | F37: =IF(ISBLANK(InfoPro!P31),"",InfoPro!P31) -> 
A38: =IF(ISBLANK(InfoPro!A32),"",InfoPro!A32) ->  | B38: =IF(ISBLANK(InfoPro!B32),"",InfoPro!B32) ->  | C38: =IF(ISBLANK(InfoPro!E32),"",InfoPro!E32) ->  | D38: =IF(ISBLANK(InfoPro!F32),"",InfoPro!F32) ->  | E38: =IF(ISBLANK(InfoPro!I32),"",YEAR(InfoPro!I32)-$F$3) ->  | F38: =IF(ISBLANK(InfoPro!P32),"",InfoPro!P32) ->  | G38: =IF($F38="","",(1/(1+$C$3)^(G$6+$E38))*$F38*$C$2) -> 
A39: =IF(ISBLANK(InfoPro!A33),"",InfoPro!A33) ->  | B39: =IF(ISBLANK(InfoPro!B33),"",InfoPro!B33) ->  | C39: =IF(ISBLANK(InfoPro!E33),"",InfoPro!E33) ->  | D39: =IF(ISBLANK(InfoPro!F33),"",InfoPro!F33) ->  | E39: =IF(ISBLANK(InfoPro!I33),"",YEAR(InfoPro!I33)-$F$3) ->  | F39: =IF(ISBLANK(InfoPro!P33),"",InfoPro!P33) -> 
A40: =IF(ISBLANK(InfoPro!A34),"",InfoPro!A34) ->  | B40: =IF(ISBLANK(InfoPro!B34),"",InfoPro!B34) ->  | C40: =IF(ISBLANK(InfoPro!E34),"",InfoPro!E34) ->  | D40: =IF(ISBLANK(InfoPro!F34),"",InfoPro!F34) ->  | E40: =IF(ISBLANK(InfoPro!I34),"",YEAR(InfoPro!I34)-$F$3) ->  | F40: =IF(ISBLANK(InfoPro!P34),"",InfoPro!P34) -> 
A41: =IF(ISBLANK(InfoPro!A35),"",InfoPro!A35) ->  | B41: =IF(ISBLANK(InfoPro!B35),"",InfoPro!B35) ->  | C41: =IF(ISBLANK(InfoPro!E35),"",InfoPro!E35) ->  | D41: =IF(ISBLANK(InfoPro!F35),"",InfoPro!F35) ->  | E41: =IF(ISBLANK(InfoPro!I35),"",YEAR(InfoPro!I35)-$F$3) ->  | F41: =IF(ISBLANK(InfoPro!P35),"",InfoPro!P35) -> 
A42: =IF(ISBLANK(InfoPro!A36),"",InfoPro!A36) ->  | B42: =IF(ISBLANK(InfoPro!B36),"",InfoPro!B36) ->  | C42: =IF(ISBLANK(InfoPro!E36),"",InfoPro!E36) ->  | D42: =IF(ISBLANK(InfoPro!F36),"",InfoPro!F36) ->  | E42: =IF(ISBLANK(InfoPro!I36),"",YEAR(InfoPro!I36)-$F$3) ->  | F42: =IF(ISBLANK(InfoPro!P36),"",InfoPro!P36) -> 
A43: =IF(ISBLANK(InfoPro!A37),"",InfoPro!A37) ->  | B43: =IF(ISBLANK(InfoPro!B37),"",InfoPro!B37) ->  | C43: =IF(ISBLANK(InfoPro!E37),"",InfoPro!E37) ->  | D43: =IF(ISBLANK(InfoPro!F37),"",InfoPro!F37) ->  | E43: =IF(ISBLANK(InfoPro!I37),"",YEAR(InfoPro!I37)-$F$3) ->  | F43: =IF(ISBLANK(InfoPro!P37),"",InfoPro!P37) -> 
A44: =IF(ISBLANK(InfoPro!A38),"",InfoPro!A38) ->  | B44: =IF(ISBLANK(InfoPro!B38),"",InfoPro!B38) ->  | C44: =IF(ISBLANK(InfoPro!E38),"",InfoPro!E38) ->  | D44: =IF(ISBLANK(InfoPro!F38),"",InfoPro!F38) ->  | E44: =IF(ISBLANK(InfoPro!I38),"",YEAR(InfoPro!I38)-$F$3) ->  | F44: =IF(ISBLANK(InfoPro!P38),"",InfoPro!P38) -> 
A45: =IF(ISBLANK(InfoPro!A39),"",InfoPro!A39) ->  | B45: =IF(ISBLANK(InfoPro!B39),"",InfoPro!B39) ->  | C45: =IF(ISBLANK(InfoPro!E39),"",InfoPro!E39) ->  | D45: =IF(ISBLANK(InfoPro!F39),"",InfoPro!F39) ->  | E45: =IF(ISBLANK(InfoPro!I39),"",YEAR(InfoPro!I39)-$F$3) ->  | F45: =IF(ISBLANK(InfoPro!P39),"",InfoPro!P39) -> 
A46: =IF(ISBLANK(InfoPro!A40),"",InfoPro!A40) ->  | B46: =IF(ISBLANK(InfoPro!B40),"",InfoPro!B40) ->  | C46: =IF(ISBLANK(InfoPro!E40),"",InfoPro!E40) ->  | D46: =IF(ISBLANK(InfoPro!F40),"",InfoPro!F40) ->  | E46: =IF(ISBLANK(InfoPro!I40),"",YEAR(InfoPro!I40)-$F$3) ->  | F46: =IF(ISBLANK(InfoPro!P40),"",InfoPro!P40) -> 
A47: =IF(ISBLANK(InfoPro!A41),"",InfoPro!A41) ->  | B47: =IF(ISBLANK(InfoPro!B41),"",InfoPro!B41) ->  | C47: =IF(ISBLANK(InfoPro!E41),"",InfoPro!E41) ->  | D47: =IF(ISBLANK(InfoPro!F41),"",InfoPro!F41) ->  | E47: =IF(ISBLANK(InfoPro!I41),"",YEAR(InfoPro!I41)-$F$3) ->  | F47: =IF(ISBLANK(InfoPro!P41),"",InfoPro!P41) -> 
A48: =IF(ISBLANK(InfoPro!A42),"",InfoPro!A42) ->  | B48: =IF(ISBLANK(InfoPro!B42),"",InfoPro!B42) ->  | C48: =IF(ISBLANK(InfoPro!E42),"",InfoPro!E42) ->  | D48: =IF(ISBLANK(InfoPro!F42),"",InfoPro!F42) ->  | E48: =IF(ISBLANK(InfoPro!I42),"",YEAR(InfoPro!I42)-$F$3) ->  | F48: =IF(ISBLANK(InfoPro!P42),"",InfoPro!P42) ->  | G48: =IF($F48="","",(1/(1+$C$3)^(G$6+$E48))*$F48*$C$2) -> 
A49: =IF(ISBLANK(InfoPro!A43),"",InfoPro!A43) ->  | B49: =IF(ISBLANK(InfoPro!B43),"",InfoPro!B43) ->  | C49: =IF(ISBLANK(InfoPro!E43),"",InfoPro!E43) ->  | D49: =IF(ISBLANK(InfoPro!F43),"",InfoPro!F43) ->  | E49: =IF(ISBLANK(InfoPro!I43),"",YEAR(InfoPro!I43)-$F$3) ->  | F49: =IF(ISBLANK(InfoPro!P43),"",InfoPro!P43) -> 
A50: =IF(ISBLANK(InfoPro!A44),"",InfoPro!A44) ->  | B50: =IF(ISBLANK(InfoPro!B44),"",InfoPro!B44) ->  | C50: =IF(ISBLANK(InfoPro!E44),"",InfoPro!E44) ->  | D50: =IF(ISBLANK(InfoPro!F44),"",InfoPro!F44) ->  | E50: =IF(ISBLANK(InfoPro!I44),"",YEAR(InfoPro!I44)-$F$3) ->  | F50: =IF(ISBLANK(InfoPro!P44),"",InfoPro!P44) -> 
A51: =IF(ISBLANK(InfoPro!A45),"",InfoPro!A45) ->  | B51: =IF(ISBLANK(InfoPro!B45),"",InfoPro!B45) ->  | C51: =IF(ISBLANK(InfoPro!E45),"",InfoPro!E45) ->  | D51: =IF(ISBLANK(InfoPro!F45),"",InfoPro!F45) ->  | E51: =IF(ISBLANK(InfoPro!I45),"",YEAR(InfoPro!I45)-$F$3) ->  | F51: =IF(ISBLANK(InfoPro!P45),"",InfoPro!P45) -> 
A52: =IF(ISBLANK(InfoPro!A46),"",InfoPro!A46) ->  | B52: =IF(ISBLANK(InfoPro!B46),"",InfoPro!B46) ->  | C52: =IF(ISBLANK(InfoPro!E46),"",InfoPro!E46) ->  | D52: =IF(ISBLANK(InfoPro!F46),"",InfoPro!F46) ->  | E52: =IF(ISBLANK(InfoPro!I46),"",YEAR(InfoPro!I46)-$F$3) ->  | F52: =IF(ISBLANK(InfoPro!P46),"",InfoPro!P46) -> 
A53: =IF(ISBLANK(InfoPro!A47),"",InfoPro!A47) ->  | B53: =IF(ISBLANK(InfoPro!B47),"",InfoPro!B47) ->  | C53: =IF(ISBLANK(InfoPro!E47),"",InfoPro!E47) ->  | D53: =IF(ISBLANK(InfoPro!F47),"",InfoPro!F47) ->  | E53: =IF(ISBLANK(InfoPro!I47),"",YEAR(InfoPro!I47)-$F$3) ->  | F53: =IF(ISBLANK(InfoPro!P47),"",InfoPro!P47) -> 
A54: =IF(ISBLANK(InfoPro!A48),"",InfoPro!A48) ->  | B54: =IF(ISBLANK(InfoPro!B48),"",InfoPro!B48) ->  | C54: =IF(ISBLANK(InfoPro!E48),"",InfoPro!E48) ->  | D54: =IF(ISBLANK(InfoPro!F48),"",InfoPro!F48) ->  | E54: =IF(ISBLANK(InfoPro!I48),"",YEAR(InfoPro!I48)-$F$3) ->  | F54: =IF(ISBLANK(InfoPro!P48),"",InfoPro!P48) -> 
A55: =IF(ISBLANK(InfoPro!A49),"",InfoPro!A49) ->  | B55: =IF(ISBLANK(InfoPro!B49),"",InfoPro!B49) ->  | C55: =IF(ISBLANK(InfoPro!E49),"",InfoPro!E49) ->  | D55: =IF(ISBLANK(InfoPro!F49),"",InfoPro!F49) ->  | E55: =IF(ISBLANK(InfoPro!I49),"",YEAR(InfoPro!I49)-$F$3) ->  | F55: =IF(ISBLANK(InfoPro!P49),"",InfoPro!P49) -> 
A56: =IF(ISBLANK(InfoPro!A50),"",InfoPro!A50) ->  | B56: =IF(ISBLANK(InfoPro!B50),"",InfoPro!B50) ->  | C56: =IF(ISBLANK(InfoPro!E50),"",InfoPro!E50) ->  | D56: =IF(ISBLANK(InfoPro!F50),"",InfoPro!F50) ->  | E56: =IF(ISBLANK(InfoPro!I50),"",YEAR(InfoPro!I50)-$F$3) ->  | F56: =IF(ISBLANK(InfoPro!P50),"",InfoPro!P50) -> 
A57: =IF(ISBLANK(InfoPro!A51),"",InfoPro!A51) ->  | B57: =IF(ISBLANK(InfoPro!B51),"",InfoPro!B51) ->  | C57: =IF(ISBLANK(InfoPro!E51),"",InfoPro!E51) ->  | D57: =IF(ISBLANK(InfoPro!F51),"",InfoPro!F51) ->  | E57: =IF(ISBLANK(InfoPro!I51),"",YEAR(InfoPro!I51)-$F$3) ->  | F57: =IF(ISBLANK(InfoPro!P51),"",InfoPro!P51) -> 
A58: =IF(ISBLANK(InfoPro!A52),"",InfoPro!A52) ->  | B58: =IF(ISBLANK(InfoPro!B52),"",InfoPro!B52) ->  | C58: =IF(ISBLANK(InfoPro!E52),"",InfoPro!E52) ->  | D58: =IF(ISBLANK(InfoPro!F52),"",InfoPro!F52) ->  | E58: =IF(ISBLANK(InfoPro!I52),"",YEAR(InfoPro!I52)-$F$3) ->  | F58: =IF(ISBLANK(InfoPro!P52),"",InfoPro!P52) ->  | G58: =IF($F58="","",(1/(1+$C$3)^(G$6+$E58))*$F58*$C$2) -> 
A59: =IF(ISBLANK(InfoPro!A53),"",InfoPro!A53) ->  | B59: =IF(ISBLANK(InfoPro!B53),"",InfoPro!B53) ->  | C59: =IF(ISBLANK(InfoPro!E53),"",InfoPro!E53) ->  | D59: =IF(ISBLANK(InfoPro!F53),"",InfoPro!F53) ->  | E59: =IF(ISBLANK(InfoPro!I53),"",YEAR(InfoPro!I53)-$F$3) ->  | F59: =IF(ISBLANK(InfoPro!P53),"",InfoPro!P53) -> 
A60: =IF(ISBLANK(InfoPro!A54),"",InfoPro!A54) ->  | B60: =IF(ISBLANK(InfoPro!B54),"",InfoPro!B54) ->  | C60: =IF(ISBLANK(InfoPro!E54),"",InfoPro!E54) ->  | D60: =IF(ISBLANK(InfoPro!F54),"",InfoPro!F54) ->  | E60: =IF(ISBLANK(InfoPro!I54),"",YEAR(InfoPro!I54)-$F$3) ->  | F60: =IF(ISBLANK(InfoPro!P54),"",InfoPro!P54) -> 
A61: =IF(ISBLANK(InfoPro!A55),"",InfoPro!A55) ->  | B61: =IF(ISBLANK(InfoPro!B55),"",InfoPro!B55) ->  | C61: =IF(ISBLANK(InfoPro!E55),"",InfoPro!E55) ->  | D61: =IF(ISBLANK(InfoPro!F55),"",InfoPro!F55) ->  | E61: =IF(ISBLANK(InfoPro!I55),"",YEAR(InfoPro!I55)-$F$3) ->  | F61: =IF(ISBLANK(InfoPro!P55),"",InfoPro!P55) -> 
A62: =IF(ISBLANK(InfoPro!A56),"",InfoPro!A56) ->  | B62: =IF(ISBLANK(InfoPro!B56),"",InfoPro!B56) ->  | C62: =IF(ISBLANK(InfoPro!E56),"",InfoPro!E56) ->  | D62: =IF(ISBLANK(InfoPro!F56),"",InfoPro!F56) ->  | E62: =IF(ISBLANK(InfoPro!I56),"",YEAR(InfoPro!I56)-$F$3) ->  | F62: =IF(ISBLANK(InfoPro!P56),"",InfoPro!P56) -> 
A63: =IF(ISBLANK(InfoPro!A57),"",InfoPro!A57) ->  | B63: =IF(ISBLANK(InfoPro!B57),"",InfoPro!B57) ->  | C63: =IF(ISBLANK(InfoPro!E57),"",InfoPro!E57) ->  | D63: =IF(ISBLANK(InfoPro!F57),"",InfoPro!F57) ->  | E63: =IF(ISBLANK(InfoPro!I57),"",YEAR(InfoPro!I57)-$F$3) ->  | F63: =IF(ISBLANK(InfoPro!P57),"",InfoPro!P57) -> 
A64: =IF(ISBLANK(InfoPro!A58),"",InfoPro!A58) ->  | B64: =IF(ISBLANK(InfoPro!B58),"",InfoPro!B58) ->  | C64: =IF(ISBLANK(InfoPro!E58),"",InfoPro!E58) ->  | D64: =IF(ISBLANK(InfoPro!F58),"",InfoPro!F58) ->  | E64: =IF(ISBLANK(InfoPro!I58),"",YEAR(InfoPro!I58)-$F$3) ->  | F64: =IF(ISBLANK(InfoPro!P58),"",InfoPro!P58) -> 
A65: =IF(ISBLANK(InfoPro!A59),"",InfoPro!A59) ->  | B65: =IF(ISBLANK(InfoPro!B59),"",InfoPro!B59) ->  | C65: =IF(ISBLANK(InfoPro!E59),"",InfoPro!E59) ->  | D65: =IF(ISBLANK(InfoPro!F59),"",InfoPro!F59) ->  | E65: =IF(ISBLANK(InfoPro!I59),"",YEAR(InfoPro!I59)-$F$3) ->  | F65: =IF(ISBLANK(InfoPro!P59),"",InfoPro!P59) -> 
A66: =IF(ISBLANK(InfoPro!A60),"",InfoPro!A60) ->  | B66: =IF(ISBLANK(InfoPro!B60),"",InfoPro!B60) ->  | C66: =IF(ISBLANK(InfoPro!E60),"",InfoPro!E60) ->  | D66: =IF(ISBLANK(InfoPro!F60),"",InfoPro!F60) ->  | E66: =IF(ISBLANK(InfoPro!I60),"",YEAR(InfoPro!I60)-$F$3) ->  | F66: =IF(ISBLANK(InfoPro!P60),"",InfoPro!P60) -> 
A67: =IF(ISBLANK(InfoPro!A61),"",InfoPro!A61) ->  | B67: =IF(ISBLANK(InfoPro!B61),"",InfoPro!B61) ->  | C67: =IF(ISBLANK(InfoPro!E61),"",InfoPro!E61) ->  | D67: =IF(ISBLANK(InfoPro!F61),"",InfoPro!F61) ->  | E67: =IF(ISBLANK(InfoPro!I61),"",YEAR(InfoPro!I61)-$F$3) ->  | F67: =IF(ISBLANK(InfoPro!P61),"",InfoPro!P61) -> 
A68: =IF(ISBLANK(InfoPro!A62),"",InfoPro!A62) ->  | B68: =IF(ISBLANK(InfoPro!B62),"",InfoPro!B62) ->  | C68: =IF(ISBLANK(InfoPro!E62),"",InfoPro!E62) ->  | D68: =IF(ISBLANK(InfoPro!F62),"",InfoPro!F62) ->  | E68: =IF(ISBLANK(InfoPro!I62),"",YEAR(InfoPro!I62)-$F$3) ->  | F68: =IF(ISBLANK(InfoPro!P62),"",InfoPro!P62) ->  | G68: =IF($F68="","",(1/(1+$C$3)^(G$6+$E68))*$F68*$C$2) -> 
A69: =IF(ISBLANK(InfoPro!A63),"",InfoPro!A63) ->  | B69: =IF(ISBLANK(InfoPro!B63),"",InfoPro!B63) ->  | C69: =IF(ISBLANK(InfoPro!E63),"",InfoPro!E63) ->  | D69: =IF(ISBLANK(InfoPro!F63),"",InfoPro!F63) ->  | E69: =IF(ISBLANK(InfoPro!I63),"",YEAR(InfoPro!I63)-$F$3) ->  | F69: =IF(ISBLANK(InfoPro!P63),"",InfoPro!P63) -> 
A70: =IF(ISBLANK(InfoPro!A64),"",InfoPro!A64) ->  | B70: =IF(ISBLANK(InfoPro!B64),"",InfoPro!B64) ->  | C70: =IF(ISBLANK(InfoPro!E64),"",InfoPro!E64) ->  | D70: =IF(ISBLANK(InfoPro!F64),"",InfoPro!F64) ->  | E70: =IF(ISBLANK(InfoPro!I64),"",YEAR(InfoPro!I64)-$F$3) ->  | F70: =IF(ISBLANK(InfoPro!P64),"",InfoPro!P64) -> 
A71: =IF(ISBLANK(InfoPro!A65),"",InfoPro!A65) ->  | B71: =IF(ISBLANK(InfoPro!B65),"",InfoPro!B65) ->  | C71: =IF(ISBLANK(InfoPro!E65),"",InfoPro!E65) ->  | D71: =IF(ISBLANK(InfoPro!F65),"",InfoPro!F65) ->  | E71: =IF(ISBLANK(InfoPro!I65),"",YEAR(InfoPro!I65)-$F$3) ->  | F71: =IF(ISBLANK(InfoPro!P65),"",InfoPro!P65) -> 
A72: =IF(ISBLANK(InfoPro!A66),"",InfoPro!A66) ->  | B72: =IF(ISBLANK(InfoPro!B66),"",InfoPro!B66) ->  | C72: =IF(ISBLANK(InfoPro!E66),"",InfoPro!E66) ->  | D72: =IF(ISBLANK(InfoPro!F66),"",InfoPro!F66) ->  | E72: =IF(ISBLANK(InfoPro!I66),"",YEAR(InfoPro!I66)-$F$3) ->  | F72: =IF(ISBLANK(InfoPro!P66),"",InfoPro!P66) -> 
A73: =IF(ISBLANK(InfoPro!A67),"",InfoPro!A67) ->  | B73: =IF(ISBLANK(InfoPro!B67),"",InfoPro!B67) ->  | C73: =IF(ISBLANK(InfoPro!E67),"",InfoPro!E67) ->  | D73: =IF(ISBLANK(InfoPro!F67),"",InfoPro!F67) ->  | E73: =IF(ISBLANK(InfoPro!I67),"",YEAR(InfoPro!I67)-$F$3) ->  | F73: =IF(ISBLANK(InfoPro!P67),"",InfoPro!P67) ->  | V73: =IF(U73="","",SUM(G73:U73)) ->  | W73: =IF(C73=0,0,IF(V73="","",V73/(C73*1000))) -> 
A74: =IF(ISBLANK(InfoPro!A68),"",InfoPro!A68) ->  | B74: =IF(ISBLANK(InfoPro!B68),"",InfoPro!B68) ->  | C74: =IF(ISBLANK(InfoPro!E68),"",InfoPro!E68) ->  | D74: =IF(ISBLANK(InfoPro!F68),"",InfoPro!F68) ->  | E74: =IF(ISBLANK(InfoPro!I68),"",YEAR(InfoPro!I68)-$F$3) ->  | F74: =IF(ISBLANK(InfoPro!P68),"",InfoPro!P68) -> 
A75: =IF(ISBLANK(InfoPro!A69),"",InfoPro!A69) ->  | B75: =IF(ISBLANK(InfoPro!B69),"",InfoPro!B69) ->  | C75: =IF(ISBLANK(InfoPro!E69),"",InfoPro!E69) ->  | D75: =IF(ISBLANK(InfoPro!F69),"",InfoPro!F69) ->  | E75: =IF(ISBLANK(InfoPro!I69),"",YEAR(InfoPro!I69)-$F$3) ->  | F75: =IF(ISBLANK(InfoPro!P69),"",InfoPro!P69) -> 
A76: =IF(ISBLANK(InfoPro!A70),"",InfoPro!A70) ->  | B76: =IF(ISBLANK(InfoPro!B70),"",InfoPro!B70) ->  | C76: =IF(ISBLANK(InfoPro!E70),"",InfoPro!E70) ->  | D76: =IF(ISBLANK(InfoPro!F70),"",InfoPro!F70) ->  | E76: =IF(ISBLANK(InfoPro!I70),"",YEAR(InfoPro!I70)-$F$3) ->  | F76: =IF(ISBLANK(InfoPro!P70),"",InfoPro!P70) -> 
A77: =IF(ISBLANK(InfoPro!A71),"",InfoPro!A71) ->  | B77: =IF(ISBLANK(InfoPro!B71),"",InfoPro!B71) ->  | C77: =IF(ISBLANK(InfoPro!E71),"",InfoPro!E71) ->  | D77: =IF(ISBLANK(InfoPro!F71),"",InfoPro!F71) ->  | E77: =IF(ISBLANK(InfoPro!I71),"",YEAR(InfoPro!I71)-$F$3) ->  | F77: =IF(ISBLANK(InfoPro!P71),"",InfoPro!P71) -> 
A78: =IF(ISBLANK(InfoPro!A72),"",InfoPro!A72) ->  | B78: =IF(ISBLANK(InfoPro!B72),"",InfoPro!B72) ->  | C78: =IF(ISBLANK(InfoPro!E72),"",InfoPro!E72) ->  | D78: =IF(ISBLANK(InfoPro!F72),"",InfoPro!F72) ->  | E78: =IF(ISBLANK(InfoPro!I72),"",YEAR(InfoPro!I72)-$F$3) ->  | F78: =IF(ISBLANK(InfoPro!P72),"",InfoPro!P72) ->  | G78: =IF($F78="","",(1/(1+$C$3)^(G$6+$E78))*$F78*$C$2) -> 
A79: =IF(ISBLANK(InfoPro!A73),"",InfoPro!A73) ->  | B79: =IF(ISBLANK(InfoPro!B73),"",InfoPro!B73) ->  | C79: =IF(ISBLANK(InfoPro!E73),"",InfoPro!E73) ->  | D79: =IF(ISBLANK(InfoPro!F73),"",InfoPro!F73) ->  | E79: =IF(ISBLANK(InfoPro!I73),"",YEAR(InfoPro!I73)-$F$3) ->  | F79: =IF(ISBLANK(InfoPro!P73),"",InfoPro!P73) -> 
A80: =IF(ISBLANK(InfoPro!A74),"",InfoPro!A74) ->  | B80: =IF(ISBLANK(InfoPro!B74),"",InfoPro!B74) ->  | C80: =IF(ISBLANK(InfoPro!E74),"",InfoPro!E74) ->  | D80: =IF(ISBLANK(InfoPro!F74),"",InfoPro!F74) ->  | E80: =IF(ISBLANK(InfoPro!I74),"",YEAR(InfoPro!I74)-$F$3) ->  | F80: =IF(ISBLANK(InfoPro!P74),"",InfoPro!P74) -> 
A81: =IF(ISBLANK(InfoPro!A75),"",InfoPro!A75) ->  | B81: =IF(ISBLANK(InfoPro!B75),"",InfoPro!B75) ->  | C81: =IF(ISBLANK(InfoPro!E75),"",InfoPro!E75) ->  | D81: =IF(ISBLANK(InfoPro!F75),"",InfoPro!F75) ->  | E81: =IF(ISBLANK(InfoPro!I75),"",YEAR(InfoPro!I75)-$F$3) ->  | F81: =IF(ISBLANK(InfoPro!P75),"",InfoPro!P75) -> 
A82: =IF(ISBLANK(InfoPro!A76),"",InfoPro!A76) ->  | B82: =IF(ISBLANK(InfoPro!B76),"",InfoPro!B76) ->  | C82: =IF(ISBLANK(InfoPro!E76),"",InfoPro!E76) ->  | D82: =IF(ISBLANK(InfoPro!F76),"",InfoPro!F76) ->  | E82: =IF(ISBLANK(InfoPro!I76),"",YEAR(InfoPro!I76)-$F$3) ->  | F82: =IF(ISBLANK(InfoPro!P76),"",InfoPro!P76) -> 
A83: =IF(ISBLANK(InfoPro!A77),"",InfoPro!A77) ->  | B83: =IF(ISBLANK(InfoPro!B77),"",InfoPro!B77) ->  | C83: =IF(ISBLANK(InfoPro!E77),"",InfoPro!E77) ->  | D83: =IF(ISBLANK(InfoPro!F77),"",InfoPro!F77) ->  | E83: =IF(ISBLANK(InfoPro!I77),"",YEAR(InfoPro!I77)-$F$3) ->  | F83: =IF(ISBLANK(InfoPro!P77),"",InfoPro!P77) -> 
A84: =IF(ISBLANK(InfoPro!A78),"",InfoPro!A78) ->  | B84: =IF(ISBLANK(InfoPro!B78),"",InfoPro!B78) ->  | C84: =IF(ISBLANK(InfoPro!E78),"",InfoPro!E78) ->  | D84: =IF(ISBLANK(InfoPro!F78),"",InfoPro!F78) ->  | E84: =IF(ISBLANK(InfoPro!I78),"",YEAR(InfoPro!I78)-$F$3) ->  | F84: =IF(ISBLANK(InfoPro!P78),"",InfoPro!P78) -> 
A85: =IF(ISBLANK(InfoPro!A79),"",InfoPro!A79) ->  | B85: =IF(ISBLANK(InfoPro!B79),"",InfoPro!B79) ->  | C85: =IF(ISBLANK(InfoPro!E79),"",InfoPro!E79) ->  | D85: =IF(ISBLANK(InfoPro!F79),"",InfoPro!F79) ->  | E85: =IF(ISBLANK(InfoPro!I79),"",YEAR(InfoPro!I79)-$F$3) ->  | F85: =IF(ISBLANK(InfoPro!P79),"",InfoPro!P79) -> 
A86: =IF(ISBLANK(InfoPro!A80),"",InfoPro!A80) ->  | B86: =IF(ISBLANK(InfoPro!B80),"",InfoPro!B80) ->  | C86: =IF(ISBLANK(InfoPro!E80),"",InfoPro!E80) ->  | D86: =IF(ISBLANK(InfoPro!F80),"",InfoPro!F80) ->  | E86: =IF(ISBLANK(InfoPro!I80),"",YEAR(InfoPro!I80)-$F$3) ->  | F86: =IF(ISBLANK(InfoPro!P80),"",InfoPro!P80) -> 
A87: =IF(ISBLANK(InfoPro!A81),"",InfoPro!A81) ->  | B87: =IF(ISBLANK(InfoPro!B81),"",InfoPro!B81) ->  | C87: =IF(ISBLANK(InfoPro!E81),"",InfoPro!E81) ->  | D87: =IF(ISBLANK(InfoPro!F81),"",InfoPro!F81) ->  | E87: =IF(ISBLANK(InfoPro!I81),"",YEAR(InfoPro!I81)-$F$3) ->  | F87: =IF(ISBLANK(InfoPro!P81),"",InfoPro!P81) -> 
A88: =IF(ISBLANK(InfoPro!A82),"",InfoPro!A82) ->  | B88: =IF(ISBLANK(InfoPro!B82),"",InfoPro!B82) ->  | C88: =IF(ISBLANK(InfoPro!E82),"",InfoPro!E82) ->  | D88: =IF(ISBLANK(InfoPro!F82),"",InfoPro!F82) ->  | E88: =IF(ISBLANK(InfoPro!I82),"",YEAR(InfoPro!I82)-$F$3) ->  | F88: =IF(ISBLANK(InfoPro!P82),"",InfoPro!P82) ->  | G88: =IF($F88="","",(1/(1+$C$3)^(G$6+$E88))*$F88*$C$2) -> 
A89: =IF(ISBLANK(InfoPro!A83),"",InfoPro!A83) ->  | B89: =IF(ISBLANK(InfoPro!B83),"",InfoPro!B83) ->  | C89: =IF(ISBLANK(InfoPro!E83),"",InfoPro!E83) ->  | D89: =IF(ISBLANK(InfoPro!F83),"",InfoPro!F83) ->  | E89: =IF(ISBLANK(InfoPro!I83),"",YEAR(InfoPro!I83)-$F$3) ->  | F89: =IF(ISBLANK(InfoPro!P83),"",InfoPro!P83) -> 
A90: =IF(ISBLANK(InfoPro!A84),"",InfoPro!A84) ->  | B90: =IF(ISBLANK(InfoPro!B84),"",InfoPro!B84) ->  | C90: =IF(ISBLANK(InfoPro!E84),"",InfoPro!E84) ->  | D90: =IF(ISBLANK(InfoPro!F84),"",InfoPro!F84) ->  | E90: =IF(ISBLANK(InfoPro!I84),"",YEAR(InfoPro!I84)-$F$3) ->  | F90: =IF(ISBLANK(InfoPro!P84),"",InfoPro!P84) -> 
A91: =IF(ISBLANK(InfoPro!A85),"",InfoPro!A85) ->  | B91: =IF(ISBLANK(InfoPro!B85),"",InfoPro!B85) ->  | C91: =IF(ISBLANK(InfoPro!E85),"",InfoPro!E85) ->  | D91: =IF(ISBLANK(InfoPro!F85),"",InfoPro!F85) ->  | E91: =IF(ISBLANK(InfoPro!I85),"",YEAR(InfoPro!I85)-$F$3) ->  | F91: =IF(ISBLANK(InfoPro!P85),"",InfoPro!P85) -> 
A92: =IF(ISBLANK(InfoPro!A86),"",InfoPro!A86) ->  | B92: =IF(ISBLANK(InfoPro!B86),"",InfoPro!B86) ->  | C92: =IF(ISBLANK(InfoPro!E86),"",InfoPro!E86) ->  | D92: =IF(ISBLANK(InfoPro!F86),"",InfoPro!F86) ->  | E92: =IF(ISBLANK(InfoPro!I86),"",YEAR(InfoPro!I86)-$F$3) ->  | F92: =IF(ISBLANK(InfoPro!P86),"",InfoPro!P86) -> 
A93: =IF(ISBLANK(InfoPro!A87),"",InfoPro!A87) ->  | B93: =IF(ISBLANK(InfoPro!B87),"",InfoPro!B87) ->  | C93: =IF(ISBLANK(InfoPro!E87),"",InfoPro!E87) ->  | D93: =IF(ISBLANK(InfoPro!F87),"",InfoPro!F87) ->  | E93: =IF(ISBLANK(InfoPro!I87),"",YEAR(InfoPro!I87)-$F$3) ->  | F93: =IF(ISBLANK(InfoPro!P87),"",InfoPro!P87) -> 
A94: =IF(ISBLANK(InfoPro!A88),"",InfoPro!A88) ->  | B94: =IF(ISBLANK(InfoPro!B88),"",InfoPro!B88) ->  | C94: =IF(ISBLANK(InfoPro!E88),"",InfoPro!E88) ->  | D94: =IF(ISBLANK(InfoPro!F88),"",InfoPro!F88) ->  | E94: =IF(ISBLANK(InfoPro!I88),"",YEAR(InfoPro!I88)-$F$3) ->  | F94: =IF(ISBLANK(InfoPro!P88),"",InfoPro!P88) -> 
A95: =IF(ISBLANK(InfoPro!A89),"",InfoPro!A89) ->  | B95: =IF(ISBLANK(InfoPro!B89),"",InfoPro!B89) ->  | C95: =IF(ISBLANK(InfoPro!E89),"",InfoPro!E89) ->  | D95: =IF(ISBLANK(InfoPro!F89),"",InfoPro!F89) ->  | E95: =IF(ISBLANK(InfoPro!I89),"",YEAR(InfoPro!I89)-$F$3) ->  | F95: =IF(ISBLANK(InfoPro!P89),"",InfoPro!P89) -> 
A96: =IF(ISBLANK(InfoPro!A90),"",InfoPro!A90) ->  | B96: =IF(ISBLANK(InfoPro!B90),"",InfoPro!B90) ->  | C96: =IF(ISBLANK(InfoPro!E90),"",InfoPro!E90) ->  | D96: =IF(ISBLANK(InfoPro!F90),"",InfoPro!F90) ->  | E96: =IF(ISBLANK(InfoPro!I90),"",YEAR(InfoPro!I90)-$F$3) ->  | F96: =IF(ISBLANK(InfoPro!P90),"",InfoPro!P90) -> 
A97: =IF(ISBLANK(InfoPro!A91),"",InfoPro!A91) ->  | B97: =IF(ISBLANK(InfoPro!B91),"",InfoPro!B91) ->  | C97: =IF(ISBLANK(InfoPro!E91),"",InfoPro!E91) ->  | D97: =IF(ISBLANK(InfoPro!F91),"",InfoPro!F91) ->  | E97: =IF(ISBLANK(InfoPro!I91),"",YEAR(InfoPro!I91)-$F$3) ->  | F97: =IF(ISBLANK(InfoPro!P91),"",InfoPro!P91) -> 
A98: =IF(ISBLANK(InfoPro!A92),"",InfoPro!A92) ->  | B98: =IF(ISBLANK(InfoPro!B92),"",InfoPro!B92) ->  | C98: =IF(ISBLANK(InfoPro!E92),"",InfoPro!E92) ->  | D98: =IF(ISBLANK(InfoPro!F92),"",InfoPro!F92) ->  | E98: =IF(ISBLANK(InfoPro!I92),"",YEAR(InfoPro!I92)-$F$3) ->  | F98: =IF(ISBLANK(InfoPro!P92),"",InfoPro!P92) ->  | G98: =IF($F98="","",(1/(1+$C$3)^(G$6+$E98))*$F98*$C$2) -> 
A99: =IF(ISBLANK(InfoPro!A93),"",InfoPro!A93) ->  | B99: =IF(ISBLANK(InfoPro!B93),"",InfoPro!B93) ->  | C99: =IF(ISBLANK(InfoPro!E93),"",InfoPro!E93) ->  | D99: =IF(ISBLANK(InfoPro!F93),"",InfoPro!F93) ->  | E99: =IF(ISBLANK(InfoPro!I93),"",YEAR(InfoPro!I93)-$F$3) ->  | F99: =IF(ISBLANK(InfoPro!P93),"",InfoPro!P93) -> 
A100: =IF(ISBLANK(InfoPro!A94),"",InfoPro!A94) ->  | B100: =IF(ISBLANK(InfoPro!B94),"",InfoPro!B94) ->  | C100: =IF(ISBLANK(InfoPro!E94),"",InfoPro!E94) ->  | D100: =IF(ISBLANK(InfoPro!F94),"",InfoPro!F94) ->  | E100: =IF(ISBLANK(InfoPro!I94),"",YEAR(InfoPro!I94)-$F$3) ->  | F100: =IF(ISBLANK(InfoPro!P94),"",InfoPro!P94) -> 
A101: =IF(ISBLANK(InfoPro!A95),"",InfoPro!A95) ->  | B101: =IF(ISBLANK(InfoPro!B95),"",InfoPro!B95) ->  | C101: =IF(ISBLANK(InfoPro!E95),"",InfoPro!E95) ->  | D101: =IF(ISBLANK(InfoPro!F95),"",InfoPro!F95) ->  | E101: =IF(ISBLANK(InfoPro!I95),"",YEAR(InfoPro!I95)-$F$3) ->  | F101: =IF(ISBLANK(InfoPro!P95),"",InfoPro!P95) -> 
A102: =IF(ISBLANK(InfoPro!A96),"",InfoPro!A96) ->  | B102: =IF(ISBLANK(InfoPro!B96),"",InfoPro!B96) ->  | C102: =IF(ISBLANK(InfoPro!E96),"",InfoPro!E96) ->  | D102: =IF(ISBLANK(InfoPro!F96),"",InfoPro!F96) ->  | E102: =IF(ISBLANK(InfoPro!I96),"",YEAR(InfoPro!I96)-$F$3) ->  | F102: =IF(ISBLANK(InfoPro!P96),"",InfoPro!P96) -> 
A103: =IF(ISBLANK(InfoPro!A97),"",InfoPro!A97) ->  | B103: =IF(ISBLANK(InfoPro!B97),"",InfoPro!B97) ->  | C103: =IF(ISBLANK(InfoPro!E97),"",InfoPro!E97) ->  | D103: =IF(ISBLANK(InfoPro!F97),"",InfoPro!F97) ->  | E103: =IF(ISBLANK(InfoPro!I97),"",YEAR(InfoPro!I97)-$F$3) ->  | F103: =IF(ISBLANK(InfoPro!P97),"",InfoPro!P97) -> 
A104: =IF(ISBLANK(InfoPro!A98),"",InfoPro!A98) ->  | B104: =IF(ISBLANK(InfoPro!B98),"",InfoPro!B98) ->  | C104: =IF(ISBLANK(InfoPro!E98),"",InfoPro!E98) ->  | D104: =IF(ISBLANK(InfoPro!F98),"",InfoPro!F98) ->  | E104: =IF(ISBLANK(InfoPro!I98),"",YEAR(InfoPro!I98)-$F$3) ->  | F104: =IF(ISBLANK(InfoPro!P98),"",InfoPro!P98) -> 
A105: =IF(ISBLANK(InfoPro!A99),"",InfoPro!A99) ->  | B105: =IF(ISBLANK(InfoPro!B99),"",InfoPro!B99) ->  | C105: =IF(ISBLANK(InfoPro!E99),"",InfoPro!E99) ->  | D105: =IF(ISBLANK(InfoPro!F99),"",InfoPro!F99) ->  | E105: =IF(ISBLANK(InfoPro!I99),"",YEAR(InfoPro!I99)-$F$3) ->  | F105: =IF(ISBLANK(InfoPro!P99),"",InfoPro!P99) -> 
A106: =IF(ISBLANK(InfoPro!A100),"",InfoPro!A100) ->  | B106: =IF(ISBLANK(InfoPro!B100),"",InfoPro!B100) ->  | C106: =IF(ISBLANK(InfoPro!E100),"",InfoPro!E100) ->  | D106: =IF(ISBLANK(InfoPro!F100),"",InfoPro!F100) ->  | E106: =IF(ISBLANK(InfoPro!I100),"",YEAR(InfoPro!I100)-$F$3) ->  | F106: =IF(ISBLANK(InfoPro!P100),"",InfoPro!P100) -> 
A107: =IF(ISBLANK(InfoPro!A101),"",InfoPro!A101) ->  | B107: =IF(ISBLANK(InfoPro!B101),"",InfoPro!B101) ->  | C107: =IF(ISBLANK(InfoPro!E101),"",InfoPro!E101) ->  | D107: =IF(ISBLANK(InfoPro!F101),"",InfoPro!F101) ->  | E107: =IF(ISBLANK(InfoPro!I101),"",YEAR(InfoPro!I101)-$F$3) ->  | F107: =IF(ISBLANK(InfoPro!P101),"",InfoPro!P101) -> 
A108: =IF(ISBLANK(InfoPro!A102),"",InfoPro!A102) ->  | B108: =IF(ISBLANK(InfoPro!B102),"",InfoPro!B102) ->  | C108: =IF(ISBLANK(InfoPro!E102),"",InfoPro!E102) ->  | D108: =IF(ISBLANK(InfoPro!F102),"",InfoPro!F102) ->  | E108: =IF(ISBLANK(InfoPro!I102),"",YEAR(InfoPro!I102)-$F$3) ->  | F108: =IF(ISBLANK(InfoPro!P102),"",InfoPro!P102) -> 
A109: =IF(ISBLANK(InfoPro!A103),"",InfoPro!A103) ->  | B109: =IF(ISBLANK(InfoPro!B103),"",InfoPro!B103) ->  | C109: =IF(ISBLANK(InfoPro!E103),"",InfoPro!E103) ->  | D109: =IF(ISBLANK(InfoPro!F103),"",InfoPro!F103) ->  | E109: =IF(ISBLANK(InfoPro!I103),"",YEAR(InfoPro!I103)-$F$3) ->  | F109: =IF(ISBLANK(InfoPro!P103),"",InfoPro!P103) -> 
A110: =IF(ISBLANK(InfoPro!A104),"",InfoPro!A104) ->  | B110: =IF(ISBLANK(InfoPro!B104),"",InfoPro!B104) ->  | C110: =IF(ISBLANK(InfoPro!E104),"",InfoPro!E104) ->  | D110: =IF(ISBLANK(InfoPro!F104),"",InfoPro!F104) ->  | E110: =IF(ISBLANK(InfoPro!I104),"",YEAR(InfoPro!I104)-$F$3) ->  | F110: =IF(ISBLANK(InfoPro!P104),"",InfoPro!P104) -> 
A111: =IF(ISBLANK(InfoPro!A105),"",InfoPro!A105) ->  | B111: =IF(ISBLANK(InfoPro!B105),"",InfoPro!B105) ->  | C111: =IF(ISBLANK(InfoPro!E105),"",InfoPro!E105) ->  | D111: =IF(ISBLANK(InfoPro!F105),"",InfoPro!F105) ->  | E111: =IF(ISBLANK(InfoPro!I105),"",YEAR(InfoPro!I105)-$F$3) ->  | F111: =IF(ISBLANK(InfoPro!P105),"",InfoPro!P105) -> 
A112: =IF(ISBLANK(InfoPro!A106),"",InfoPro!A106) ->  | B112: =IF(ISBLANK(InfoPro!B106),"",InfoPro!B106) ->  | C112: =IF(ISBLANK(InfoPro!E106),"",InfoPro!E106) ->  | D112: =IF(ISBLANK(InfoPro!F106),"",InfoPro!F106) ->  | E112: =IF(ISBLANK(InfoPro!I106),"",YEAR(InfoPro!I106)-$F$3) ->  | F112: =IF(ISBLANK(InfoPro!P106),"",InfoPro!P106) ->  | V112: =IF(U112="","",SUM(G112:U112)) ->  | W112: =IF(C112=0,0,IF(V112="","",V112/(C112*1000))) -> 
A113: =IF(ISBLANK(InfoPro!A107),"",InfoPro!A107) ->  | B113: =IF(ISBLANK(InfoPro!B107),"",InfoPro!B107) ->  | C113: =IF(ISBLANK(InfoPro!E107),"",InfoPro!E107) ->  | D113: =IF(ISBLANK(InfoPro!F107),"",InfoPro!F107) ->  | E113: =IF(ISBLANK(InfoPro!I107),"",YEAR(InfoPro!I107)-$F$3) ->  | F113: =IF(ISBLANK(InfoPro!P107),"",InfoPro!P107) -> 
A114: =IF(ISBLANK(InfoPro!A108),"",InfoPro!A108) ->  | B114: =IF(ISBLANK(InfoPro!B108),"",InfoPro!B108) ->  | C114: =IF(ISBLANK(InfoPro!E108),"",InfoPro!E108) ->  | D114: =IF(ISBLANK(InfoPro!F108),"",InfoPro!F108) ->  | E114: =IF(ISBLANK(InfoPro!I108),"",YEAR(InfoPro!I108)-$F$3) ->  | F114: =IF(ISBLANK(InfoPro!P108),"",InfoPro!P108) ->  | G114: =IF($F114="","",(1/(1+$C$3)^(G$6+$E114))*$F114*$C$2) -> 
A115: =IF(ISBLANK(InfoPro!A109),"",InfoPro!A109) ->  | B115: =IF(ISBLANK(InfoPro!B109),"",InfoPro!B109) ->  | C115: =IF(ISBLANK(InfoPro!E109),"",InfoPro!E109) ->  | D115: =IF(ISBLANK(InfoPro!F109),"",InfoPro!F109) ->  | E115: =IF(ISBLANK(InfoPro!I109),"",YEAR(InfoPro!I109)-$F$3) ->  | F115: =IF(ISBLANK(InfoPro!P109),"",InfoPro!P109) -> 
A116: =IF(ISBLANK(InfoPro!A110),"",InfoPro!A110) ->  | B116: =IF(ISBLANK(InfoPro!B110),"",InfoPro!B110) ->  | C116: =IF(ISBLANK(InfoPro!E110),"",InfoPro!E110) ->  | D116: =IF(ISBLANK(InfoPro!F110),"",InfoPro!F110) ->  | E116: =IF(ISBLANK(InfoPro!I110),"",YEAR(InfoPro!I110)-$F$3) ->  | F116: =IF(ISBLANK(InfoPro!P110),"",InfoPro!P110) -> 
A117: =IF(ISBLANK(InfoPro!A111),"",InfoPro!A111) ->  | B117: =IF(ISBLANK(InfoPro!B111),"",InfoPro!B111) ->  | C117: =IF(ISBLANK(InfoPro!E111),"",InfoPro!E111) ->  | D117: =IF(ISBLANK(InfoPro!F111),"",InfoPro!F111) ->  | E117: =IF(ISBLANK(InfoPro!I111),"",YEAR(InfoPro!I111)-$F$3) ->  | F117: =IF(ISBLANK(InfoPro!P111),"",InfoPro!P111) -> 
A118: =IF(ISBLANK(InfoPro!A112),"",InfoPro!A112) ->  | B118: =IF(ISBLANK(InfoPro!B112),"",InfoPro!B112) ->  | C118: =IF(ISBLANK(InfoPro!E112),"",InfoPro!E112) ->  | D118: =IF(ISBLANK(InfoPro!F112),"",InfoPro!F112) ->  | E118: =IF(ISBLANK(InfoPro!I112),"",YEAR(InfoPro!I112)-$F$3) ->  | F118: =IF(ISBLANK(InfoPro!P112),"",InfoPro!P112) -> 
A119: =IF(ISBLANK(InfoPro!A113),"",InfoPro!A113) ->  | B119: =IF(ISBLANK(InfoPro!B113),"",InfoPro!B113) ->  | C119: =IF(ISBLANK(InfoPro!E113),"",InfoPro!E113) ->  | D119: =IF(ISBLANK(InfoPro!F113),"",InfoPro!F113) ->  | E119: =IF(ISBLANK(InfoPro!I113),"",YEAR(InfoPro!I113)-$F$3) ->  | F119: =IF(ISBLANK(InfoPro!P113),"",InfoPro!P113) -> 
A120: =IF(ISBLANK(InfoPro!A114),"",InfoPro!A114) ->  | B120: =IF(ISBLANK(InfoPro!B114),"",InfoPro!B114) ->  | C120: =IF(ISBLANK(InfoPro!E114),"",InfoPro!E114) ->  | D120: =IF(ISBLANK(InfoPro!F114),"",InfoPro!F114) ->  | E120: =IF(ISBLANK(InfoPro!I114),"",YEAR(InfoPro!I114)-$F$3) ->  | F120: =IF(ISBLANK(InfoPro!P114),"",InfoPro!P114) -> 
A121: =IF(ISBLANK(InfoPro!A115),"",InfoPro!A115) ->  | B121: =IF(ISBLANK(InfoPro!B115),"",InfoPro!B115) ->  | C121: =IF(ISBLANK(InfoPro!E115),"",InfoPro!E115) ->  | D121: =IF(ISBLANK(InfoPro!F115),"",InfoPro!F115) ->  | E121: =IF(ISBLANK(InfoPro!I115),"",YEAR(InfoPro!I115)-$F$3) ->  | F121: =IF(ISBLANK(InfoPro!P115),"",InfoPro!P115) -> 
A122: =IF(ISBLANK(InfoPro!A116),"",InfoPro!A116) ->  | B122: =IF(ISBLANK(InfoPro!B116),"",InfoPro!B116) ->  | C122: =IF(ISBLANK(InfoPro!E116),"",InfoPro!E116) ->  | D122: =IF(ISBLANK(InfoPro!F116),"",InfoPro!F116) ->  | E122: =IF(ISBLANK(InfoPro!I116),"",YEAR(InfoPro!I116)-$F$3) ->  | F122: =IF(ISBLANK(InfoPro!P116),"",InfoPro!P116) -> 
A123: =IF(ISBLANK(InfoPro!A117),"",InfoPro!A117) ->  | B123: =IF(ISBLANK(InfoPro!B117),"",InfoPro!B117) ->  | C123: =IF(ISBLANK(InfoPro!E117),"",InfoPro!E117) ->  | D123: =IF(ISBLANK(InfoPro!F117),"",InfoPro!F117) ->  | E123: =IF(ISBLANK(InfoPro!I117),"",YEAR(InfoPro!I117)-$F$3) ->  | F123: =IF(ISBLANK(InfoPro!P117),"",InfoPro!P117) -> 
A124: =IF(ISBLANK(InfoPro!A118),"",InfoPro!A118) ->  | B124: =IF(ISBLANK(InfoPro!B118),"",InfoPro!B118) ->  | C124: =IF(ISBLANK(InfoPro!E118),"",InfoPro!E118) ->  | D124: =IF(ISBLANK(InfoPro!F118),"",InfoPro!F118) ->  | E124: =IF(ISBLANK(InfoPro!I118),"",YEAR(InfoPro!I118)-$F$3) ->  | F124: =IF(ISBLANK(InfoPro!P118),"",InfoPro!P118) -> 
A125: =IF(ISBLANK(InfoPro!A119),"",InfoPro!A119) ->  | B125: =IF(ISBLANK(InfoPro!B119),"",InfoPro!B119) ->  | C125: =IF(ISBLANK(InfoPro!E119),"",InfoPro!E119) ->  | D125: =IF(ISBLANK(InfoPro!F119),"",InfoPro!F119) ->  | E125: =IF(ISBLANK(InfoPro!I119),"",YEAR(InfoPro!I119)-$F$3) ->  | F125: =IF(ISBLANK(InfoPro!P119),"",InfoPro!P119) -> 
A126: =IF(ISBLANK(InfoPro!A120),"",InfoPro!A120) ->  | B126: =IF(ISBLANK(InfoPro!B120),"",InfoPro!B120) ->  | C126: =IF(ISBLANK(InfoPro!E120),"",InfoPro!E120) ->  | D126: =IF(ISBLANK(InfoPro!F120),"",InfoPro!F120) ->  | E126: =IF(ISBLANK(InfoPro!I120),"",YEAR(InfoPro!I120)-$F$3) ->  | F126: =IF(ISBLANK(InfoPro!P120),"",InfoPro!P120) -> 
A127: =IF(ISBLANK(InfoPro!A121),"",InfoPro!A121) ->  | B127: =IF(ISBLANK(InfoPro!B121),"",InfoPro!B121) ->  | C127: =IF(ISBLANK(InfoPro!E121),"",InfoPro!E121) ->  | D127: =IF(ISBLANK(InfoPro!F121),"",InfoPro!F121) ->  | E127: =IF(ISBLANK(InfoPro!I121),"",YEAR(InfoPro!I121)-$F$3) ->  | F127: =IF(ISBLANK(InfoPro!P121),"",InfoPro!P121) -> 
A128: =IF(ISBLANK(InfoPro!A122),"",InfoPro!A122) ->  | B128: =IF(ISBLANK(InfoPro!B122),"",InfoPro!B122) ->  | C128: =IF(ISBLANK(InfoPro!E122),"",InfoPro!E122) ->  | D128: =IF(ISBLANK(InfoPro!F122),"",InfoPro!F122) ->  | E128: =IF(ISBLANK(InfoPro!I122),"",YEAR(InfoPro!I122)-$F$3) ->  | F128: =IF(ISBLANK(InfoPro!P122),"",InfoPro!P122) -> 
A129: =IF(ISBLANK(InfoPro!A123),"",InfoPro!A123) ->  | B129: =IF(ISBLANK(InfoPro!B123),"",InfoPro!B123) ->  | C129: =IF(ISBLANK(InfoPro!E123),"",InfoPro!E123) ->  | D129: =IF(ISBLANK(InfoPro!F123),"",InfoPro!F123) ->  | E129: =IF(ISBLANK(InfoPro!I123),"",YEAR(InfoPro!I123)-$F$3) ->  | F129: =IF(ISBLANK(InfoPro!P123),"",InfoPro!P123) -> 
A130: =IF(ISBLANK(InfoPro!A124),"",InfoPro!A124) ->  | B130: =IF(ISBLANK(InfoPro!B124),"",InfoPro!B124) ->  | C130: =IF(ISBLANK(InfoPro!E124),"",InfoPro!E124) ->  | D130: =IF(ISBLANK(InfoPro!F124),"",InfoPro!F124) ->  | E130: =IF(ISBLANK(InfoPro!I124),"",YEAR(InfoPro!I124)-$F$3) ->  | F130: =IF(ISBLANK(InfoPro!P124),"",InfoPro!P124) -> 
A131: =IF(ISBLANK(InfoPro!A125),"",InfoPro!A125) ->  | B131: =IF(ISBLANK(InfoPro!B125),"",InfoPro!B125) ->  | C131: =IF(ISBLANK(InfoPro!E125),"",InfoPro!E125) ->  | D131: =IF(ISBLANK(InfoPro!F125),"",InfoPro!F125) ->  | E131: =IF(ISBLANK(InfoPro!I125),"",YEAR(InfoPro!I125)-$F$3) ->  | F131: =IF(ISBLANK(InfoPro!P125),"",InfoPro!P125) ->  | G131: =IF($F131="","",(1/(1+$C$3)^(G$6+$E131))*$F131*$C$2) -> 
A132: =IF(ISBLANK(InfoPro!A126),"",InfoPro!A126) ->  | B132: =IF(ISBLANK(InfoPro!B126),"",InfoPro!B126) ->  | C132: =IF(ISBLANK(InfoPro!E126),"",InfoPro!E126) ->  | D132: =IF(ISBLANK(InfoPro!F126),"",InfoPro!F126) ->  | E132: =IF(ISBLANK(InfoPro!I126),"",YEAR(InfoPro!I126)-$F$3) ->  | F132: =IF(ISBLANK(InfoPro!P126),"",InfoPro!P126) -> 
A133: =IF(ISBLANK(InfoPro!A127),"",InfoPro!A127) ->  | B133: =IF(ISBLANK(InfoPro!B127),"",InfoPro!B127) ->  | C133: =IF(ISBLANK(InfoPro!E127),"",InfoPro!E127) ->  | D133: =IF(ISBLANK(InfoPro!F127),"",InfoPro!F127) ->  | E133: =IF(ISBLANK(InfoPro!I127),"",YEAR(InfoPro!I127)-$F$3) ->  | F133: =IF(ISBLANK(InfoPro!P127),"",InfoPro!P127) -> 
A134: =IF(ISBLANK(InfoPro!A128),"",InfoPro!A128) ->  | B134: =IF(ISBLANK(InfoPro!B128),"",InfoPro!B128) ->  | C134: =IF(ISBLANK(InfoPro!E128),"",InfoPro!E128) ->  | D134: =IF(ISBLANK(InfoPro!F128),"",InfoPro!F128) ->  | E134: =IF(ISBLANK(InfoPro!I128),"",YEAR(InfoPro!I128)-$F$3) ->  | F134: =IF(ISBLANK(InfoPro!P128),"",InfoPro!P128) -> 
A135: =IF(ISBLANK(InfoPro!A129),"",InfoPro!A129) ->  | B135: =IF(ISBLANK(InfoPro!B129),"",InfoPro!B129) ->  | C135: =IF(ISBLANK(InfoPro!E129),"",InfoPro!E129) ->  | D135: =IF(ISBLANK(InfoPro!F129),"",InfoPro!F129) ->  | E135: =IF(ISBLANK(InfoPro!I129),"",YEAR(InfoPro!I129)-$F$3) ->  | F135: =IF(ISBLANK(InfoPro!P129),"",InfoPro!P129) -> 
A136: =IF(ISBLANK(InfoPro!A130),"",InfoPro!A130) ->  | B136: =IF(ISBLANK(InfoPro!B130),"",InfoPro!B130) ->  | C136: =IF(ISBLANK(InfoPro!E130),"",InfoPro!E130) ->  | D136: =IF(ISBLANK(InfoPro!F130),"",InfoPro!F130) ->  | E136: =IF(ISBLANK(InfoPro!I130),"",YEAR(InfoPro!I130)-$F$3) ->  | F136: =IF(ISBLANK(InfoPro!P130),"",InfoPro!P130) -> 
A137: =IF(ISBLANK(InfoPro!A131),"",InfoPro!A131) ->  | B137: =IF(ISBLANK(InfoPro!B131),"",InfoPro!B131) ->  | C137: =IF(ISBLANK(InfoPro!E131),"",InfoPro!E131) ->  | D137: =IF(ISBLANK(InfoPro!F131),"",InfoPro!F131) ->  | E137: =IF(ISBLANK(InfoPro!I131),"",YEAR(InfoPro!I131)-$F$3) ->  | F137: =IF(ISBLANK(InfoPro!P131),"",InfoPro!P131) -> 
A138: =IF(ISBLANK(InfoPro!A132),"",InfoPro!A132) ->  | B138: =IF(ISBLANK(InfoPro!B132),"",InfoPro!B132) ->  | C138: =IF(ISBLANK(InfoPro!E132),"",InfoPro!E132) ->  | D138: =IF(ISBLANK(InfoPro!F132),"",InfoPro!F132) ->  | E138: =IF(ISBLANK(InfoPro!I132),"",YEAR(InfoPro!I132)-$F$3) ->  | F138: =IF(ISBLANK(InfoPro!P132),"",InfoPro!P132) -> 
A139: =IF(ISBLANK(InfoPro!A133),"",InfoPro!A133) ->  | B139: =IF(ISBLANK(InfoPro!B133),"",InfoPro!B133) ->  | C139: =IF(ISBLANK(InfoPro!E133),"",InfoPro!E133) ->  | D139: =IF(ISBLANK(InfoPro!F133),"",InfoPro!F133) ->  | E139: =IF(ISBLANK(InfoPro!I133),"",YEAR(InfoPro!I133)-$F$3) ->  | F139: =IF(ISBLANK(InfoPro!P133),"",InfoPro!P133) -> 
A140: =IF(ISBLANK(InfoPro!A134),"",InfoPro!A134) ->  | B140: =IF(ISBLANK(InfoPro!B134),"",InfoPro!B134) ->  | C140: =IF(ISBLANK(InfoPro!E134),"",InfoPro!E134) ->  | D140: =IF(ISBLANK(InfoPro!F134),"",InfoPro!F134) ->  | E140: =IF(ISBLANK(InfoPro!I134),"",YEAR(InfoPro!I134)-$F$3) ->  | F140: =IF(ISBLANK(InfoPro!P134),"",InfoPro!P134) -> 
A141: =IF(ISBLANK(InfoPro!A135),"",InfoPro!A135) ->  | B141: =IF(ISBLANK(InfoPro!B135),"",InfoPro!B135) ->  | C141: =IF(ISBLANK(InfoPro!E135),"",InfoPro!E135) ->  | D141: =IF(ISBLANK(InfoPro!F135),"",InfoPro!F135) ->  | E141: =IF(ISBLANK(InfoPro!I135),"",YEAR(InfoPro!I135)-$F$3) ->  | F141: =IF(ISBLANK(InfoPro!P135),"",InfoPro!P135) -> 
A142: =IF(ISBLANK(InfoPro!A136),"",InfoPro!A136) ->  | B142: =IF(ISBLANK(InfoPro!B136),"",InfoPro!B136) ->  | C142: =IF(ISBLANK(InfoPro!E136),"",InfoPro!E136) ->  | D142: =IF(ISBLANK(InfoPro!F136),"",InfoPro!F136) ->  | E142: =IF(ISBLANK(InfoPro!I136),"",YEAR(InfoPro!I136)-$F$3) ->  | F142: =IF(ISBLANK(InfoPro!P136),"",InfoPro!P136) -> 
A143: =IF(ISBLANK(InfoPro!A137),"",InfoPro!A137) ->  | B143: =IF(ISBLANK(InfoPro!B137),"",InfoPro!B137) ->  | C143: =IF(ISBLANK(InfoPro!E137),"",InfoPro!E137) ->  | D143: =IF(ISBLANK(InfoPro!F137),"",InfoPro!F137) ->  | E143: =IF(ISBLANK(InfoPro!I137),"",YEAR(InfoPro!I137)-$F$3) ->  | F143: =IF(ISBLANK(InfoPro!P137),"",InfoPro!P137) -> 
A144: =IF(ISBLANK(InfoPro!A138),"",InfoPro!A138) ->  | B144: =IF(ISBLANK(InfoPro!B138),"",InfoPro!B138) ->  | C144: =IF(ISBLANK(InfoPro!E138),"",InfoPro!E138) ->  | D144: =IF(ISBLANK(InfoPro!F138),"",InfoPro!F138) ->  | E144: =IF(ISBLANK(InfoPro!I138),"",YEAR(InfoPro!I138)-$F$3) ->  | F144: =IF(ISBLANK(InfoPro!P138),"",InfoPro!P138) -> 
A145: =IF(ISBLANK(InfoPro!A139),"",InfoPro!A139) ->  | B145: =IF(ISBLANK(InfoPro!B139),"",InfoPro!B139) ->  | C145: =IF(ISBLANK(InfoPro!E139),"",InfoPro!E139) ->  | D145: =IF(ISBLANK(InfoPro!F139),"",InfoPro!F139) ->  | E145: =IF(ISBLANK(InfoPro!I139),"",YEAR(InfoPro!I139)-$F$3) ->  | F145: =IF(ISBLANK(InfoPro!P139),"",InfoPro!P139) -> 
A146: =IF(ISBLANK(InfoPro!A140),"",InfoPro!A140) ->  | B146: =IF(ISBLANK(InfoPro!B140),"",InfoPro!B140) ->  | C146: =IF(ISBLANK(InfoPro!E140),"",InfoPro!E140) ->  | D146: =IF(ISBLANK(InfoPro!F140),"",InfoPro!F140) ->  | E146: =IF(ISBLANK(InfoPro!I140),"",YEAR(InfoPro!I140)-$F$3) ->  | F146: =IF(ISBLANK(InfoPro!P140),"",InfoPro!P140) -> 
A147: =IF(ISBLANK(InfoPro!A141),"",InfoPro!A141) ->  | B147: =IF(ISBLANK(InfoPro!B141),"",InfoPro!B141) ->  | C147: =IF(ISBLANK(InfoPro!E141),"",InfoPro!E141) ->  | D147: =IF(ISBLANK(InfoPro!F141),"",InfoPro!F141) ->  | E147: =IF(ISBLANK(InfoPro!I141),"",YEAR(InfoPro!I141)-$F$3) ->  | F147: =IF(ISBLANK(InfoPro!P141),"",InfoPro!P141) -> 
A148: =IF(ISBLANK(InfoPro!A142),"",InfoPro!A142) ->  | B148: =IF(ISBLANK(InfoPro!B142),"",InfoPro!B142) ->  | C148: =IF(ISBLANK(InfoPro!E142),"",InfoPro!E142) ->  | D148: =IF(ISBLANK(InfoPro!F142),"",InfoPro!F142) ->  | E148: =IF(ISBLANK(InfoPro!I142),"",YEAR(InfoPro!I142)-$F$3) ->  | F148: =IF(ISBLANK(InfoPro!P142),"",InfoPro!P142) ->  | G148: =IF($F148="","",(1/(1+$C$3)^(G$6+$E148))*$F148*$C$2) -> 
A149: =IF(ISBLANK(InfoPro!A143),"",InfoPro!A143) ->  | B149: =IF(ISBLANK(InfoPro!B143),"",InfoPro!B143) ->  | C149: =IF(ISBLANK(InfoPro!E143),"",InfoPro!E143) ->  | D149: =IF(ISBLANK(InfoPro!F143),"",InfoPro!F143) ->  | E149: =IF(ISBLANK(InfoPro!I143),"",YEAR(InfoPro!I143)-$F$3) ->  | F149: =IF(ISBLANK(InfoPro!P143),"",InfoPro!P143) -> 
A150: =IF(ISBLANK(InfoPro!A144),"",InfoPro!A144) ->  | B150: =IF(ISBLANK(InfoPro!B144),"",InfoPro!B144) ->  | C150: =IF(ISBLANK(InfoPro!E144),"",InfoPro!E144) ->  | D150: =IF(ISBLANK(InfoPro!F144),"",InfoPro!F144) ->  | E150: =IF(ISBLANK(InfoPro!I144),"",YEAR(InfoPro!I144)-$F$3) ->  | F150: =IF(ISBLANK(InfoPro!P144),"",InfoPro!P144) -> 
A151: =IF(ISBLANK(InfoPro!A145),"",InfoPro!A145) ->  | B151: =IF(ISBLANK(InfoPro!B145),"",InfoPro!B145) ->  | C151: =IF(ISBLANK(InfoPro!E145),"",InfoPro!E145) ->  | D151: =IF(ISBLANK(InfoPro!F145),"",InfoPro!F145) ->  | E151: =IF(ISBLANK(InfoPro!I145),"",YEAR(InfoPro!I145)-$F$3) ->  | F151: =IF(ISBLANK(InfoPro!P145),"",InfoPro!P145) -> 
A152: =IF(ISBLANK(InfoPro!A146),"",InfoPro!A146) ->  | B152: =IF(ISBLANK(InfoPro!B146),"",InfoPro!B146) ->  | C152: =IF(ISBLANK(InfoPro!E146),"",InfoPro!E146) ->  | D152: =IF(ISBLANK(InfoPro!F146),"",InfoPro!F146) ->  | E152: =IF(ISBLANK(InfoPro!I146),"",YEAR(InfoPro!I146)-$F$3) ->  | F152: =IF(ISBLANK(InfoPro!P146),"",InfoPro!P146) -> 
A153: =IF(ISBLANK(InfoPro!A147),"",InfoPro!A147) ->  | B153: =IF(ISBLANK(InfoPro!B147),"",InfoPro!B147) ->  | C153: =IF(ISBLANK(InfoPro!E147),"",InfoPro!E147) ->  | D153: =IF(ISBLANK(InfoPro!F147),"",InfoPro!F147) ->  | E153: =IF(ISBLANK(InfoPro!I147),"",YEAR(InfoPro!I147)-$F$3) ->  | F153: =IF(ISBLANK(InfoPro!P147),"",InfoPro!P147) -> 
A154: =IF(ISBLANK(InfoPro!A148),"",InfoPro!A148) ->  | B154: =IF(ISBLANK(InfoPro!B148),"",InfoPro!B148) ->  | C154: =IF(ISBLANK(InfoPro!E148),"",InfoPro!E148) ->  | D154: =IF(ISBLANK(InfoPro!F148),"",InfoPro!F148) ->  | E154: =IF(ISBLANK(InfoPro!I148),"",YEAR(InfoPro!I148)-$F$3) ->  | F154: =IF(ISBLANK(InfoPro!P148),"",InfoPro!P148) -> 
A155: =IF(ISBLANK(InfoPro!A149),"",InfoPro!A149) ->  | B155: =IF(ISBLANK(InfoPro!B149),"",InfoPro!B149) ->  | C155: =IF(ISBLANK(InfoPro!E149),"",InfoPro!E149) ->  | D155: =IF(ISBLANK(InfoPro!F149),"",InfoPro!F149) ->  | E155: =IF(ISBLANK(InfoPro!I149),"",YEAR(InfoPro!I149)-$F$3) ->  | F155: =IF(ISBLANK(InfoPro!P149),"",InfoPro!P149) -> 
A156: =IF(ISBLANK(InfoPro!A150),"",InfoPro!A150) ->  | B156: =IF(ISBLANK(InfoPro!B150),"",InfoPro!B150) ->  | C156: =IF(ISBLANK(InfoPro!E150),"",InfoPro!E150) ->  | D156: =IF(ISBLANK(InfoPro!F150),"",InfoPro!F150) ->  | E156: =IF(ISBLANK(InfoPro!I150),"",YEAR(InfoPro!I150)-$F$3) ->  | F156: =IF(ISBLANK(InfoPro!P150),"",InfoPro!P150) -> 
A157: =IF(ISBLANK(InfoPro!A151),"",InfoPro!A151) ->  | B157: =IF(ISBLANK(InfoPro!B151),"",InfoPro!B151) ->  | C157: =IF(ISBLANK(InfoPro!E151),"",InfoPro!E151) ->  | D157: =IF(ISBLANK(InfoPro!F151),"",InfoPro!F151) ->  | E157: =IF(ISBLANK(InfoPro!I151),"",YEAR(InfoPro!I151)-$F$3) ->  | F157: =IF(ISBLANK(InfoPro!P151),"",InfoPro!P151) -> 
A158: =IF(ISBLANK(InfoPro!A152),"",InfoPro!A152) ->  | B158: =IF(ISBLANK(InfoPro!B152),"",InfoPro!B152) ->  | C158: =IF(ISBLANK(InfoPro!E152),"",InfoPro!E152) ->  | D158: =IF(ISBLANK(InfoPro!F152),"",InfoPro!F152) ->  | E158: =IF(ISBLANK(InfoPro!I152),"",YEAR(InfoPro!I152)-$F$3) ->  | F158: =IF(ISBLANK(InfoPro!P152),"",InfoPro!P152) -> 
A159: =IF(ISBLANK(InfoPro!A153),"",InfoPro!A153) ->  | B159: =IF(ISBLANK(InfoPro!B153),"",InfoPro!B153) ->  | C159: =IF(ISBLANK(InfoPro!E153),"",InfoPro!E153) ->  | D159: =IF(ISBLANK(InfoPro!F153),"",InfoPro!F153) ->  | E159: =IF(ISBLANK(InfoPro!I153),"",YEAR(InfoPro!I153)-$F$3) ->  | F159: =IF(ISBLANK(InfoPro!P153),"",InfoPro!P153) -> 
A160: =IF(ISBLANK(InfoPro!A154),"",InfoPro!A154) ->  | B160: =IF(ISBLANK(InfoPro!B154),"",InfoPro!B154) ->  | C160: =IF(ISBLANK(InfoPro!E154),"",InfoPro!E154) ->  | D160: =IF(ISBLANK(InfoPro!F154),"",InfoPro!F154) ->  | E160: =IF(ISBLANK(InfoPro!I154),"",YEAR(InfoPro!I154)-$F$3) ->  | F160: =IF(ISBLANK(InfoPro!P154),"",InfoPro!P154) -> 
A161: =IF(ISBLANK(InfoPro!A155),"",InfoPro!A155) ->  | B161: =IF(ISBLANK(InfoPro!B155),"",InfoPro!B155) ->  | C161: =IF(ISBLANK(InfoPro!E155),"",InfoPro!E155) ->  | D161: =IF(ISBLANK(InfoPro!F155),"",InfoPro!F155) ->  | E161: =IF(ISBLANK(InfoPro!I155),"",YEAR(InfoPro!I155)-$F$3) ->  | F161: =IF(ISBLANK(InfoPro!P155),"",InfoPro!P155) -> 
A162: =IF(ISBLANK(InfoPro!A156),"",InfoPro!A156) ->  | B162: =IF(ISBLANK(InfoPro!B156),"",InfoPro!B156) ->  | C162: =IF(ISBLANK(InfoPro!E156),"",InfoPro!E156) ->  | D162: =IF(ISBLANK(InfoPro!F156),"",InfoPro!F156) ->  | E162: =IF(ISBLANK(InfoPro!I156),"",YEAR(InfoPro!I156)-$F$3) ->  | F162: =IF(ISBLANK(InfoPro!P156),"",InfoPro!P156) -> 
A163: =IF(ISBLANK(InfoPro!A157),"",InfoPro!A157) ->  | B163: =IF(ISBLANK(InfoPro!B157),"",InfoPro!B157) ->  | C163: =IF(ISBLANK(InfoPro!E157),"",InfoPro!E157) ->  | D163: =IF(ISBLANK(InfoPro!F157),"",InfoPro!F157) ->  | E163: =IF(ISBLANK(InfoPro!I157),"",YEAR(InfoPro!I157)-$F$3) ->  | F163: =IF(ISBLANK(InfoPro!P157),"",InfoPro!P157) -> 
A164: =IF(ISBLANK(InfoPro!A158),"",InfoPro!A158) ->  | B164: =IF(ISBLANK(InfoPro!B158),"",InfoPro!B158) ->  | C164: =IF(ISBLANK(InfoPro!E158),"",InfoPro!E158) ->  | D164: =IF(ISBLANK(InfoPro!F158),"",InfoPro!F158) ->  | E164: =IF(ISBLANK(InfoPro!I158),"",YEAR(InfoPro!I158)-$F$3) ->  | F164: =IF(ISBLANK(InfoPro!P158),"",InfoPro!P158) -> 
A165: =IF(ISBLANK(InfoPro!A159),"",InfoPro!A159) ->  | B165: =IF(ISBLANK(InfoPro!B159),"",InfoPro!B159) ->  | C165: =IF(ISBLANK(InfoPro!E159),"",InfoPro!E159) ->  | D165: =IF(ISBLANK(InfoPro!F159),"",InfoPro!F159) ->  | E165: =IF(ISBLANK(InfoPro!I159),"",YEAR(InfoPro!I159)-$F$3) ->  | F165: =IF(ISBLANK(InfoPro!P159),"",InfoPro!P159) ->  | G165: =IF($F165="","",(1/(1+$C$3)^(G$6+$E165))*$F165*$C$2) -> 
A166: =IF(ISBLANK(InfoPro!A160),"",InfoPro!A160) ->  | B166: =IF(ISBLANK(InfoPro!B160),"",InfoPro!B160) ->  | C166: =IF(ISBLANK(InfoPro!E160),"",InfoPro!E160) ->  | D166: =IF(ISBLANK(InfoPro!F160),"",InfoPro!F160) ->  | E166: =IF(ISBLANK(InfoPro!I160),"",YEAR(InfoPro!I160)-$F$3) ->  | F166: =IF(ISBLANK(InfoPro!P160),"",InfoPro!P160) -> 
A167: =IF(ISBLANK(InfoPro!A161),"",InfoPro!A161) ->  | B167: =IF(ISBLANK(InfoPro!B161),"",InfoPro!B161) ->  | C167: =IF(ISBLANK(InfoPro!E161),"",InfoPro!E161) ->  | D167: =IF(ISBLANK(InfoPro!F161),"",InfoPro!F161) ->  | E167: =IF(ISBLANK(InfoPro!I161),"",YEAR(InfoPro!I161)-$F$3) ->  | F167: =IF(ISBLANK(InfoPro!P161),"",InfoPro!P161) -> 
A168: =IF(ISBLANK(InfoPro!A162),"",InfoPro!A162) ->  | B168: =IF(ISBLANK(InfoPro!B162),"",InfoPro!B162) ->  | C168: =IF(ISBLANK(InfoPro!E162),"",InfoPro!E162) ->  | D168: =IF(ISBLANK(InfoPro!F162),"",InfoPro!F162) ->  | E168: =IF(ISBLANK(InfoPro!I162),"",YEAR(InfoPro!I162)-$F$3) ->  | F168: =IF(ISBLANK(InfoPro!P162),"",InfoPro!P162) -> 
A169: =IF(ISBLANK(InfoPro!A163),"",InfoPro!A163) ->  | B169: =IF(ISBLANK(InfoPro!B163),"",InfoPro!B163) ->  | C169: =IF(ISBLANK(InfoPro!E163),"",InfoPro!E163) ->  | D169: =IF(ISBLANK(InfoPro!F163),"",InfoPro!F163) ->  | E169: =IF(ISBLANK(InfoPro!I163),"",YEAR(InfoPro!I163)-$F$3) ->  | F169: =IF(ISBLANK(InfoPro!P163),"",InfoPro!P163) -> 
A170: =IF(ISBLANK(InfoPro!A164),"",InfoPro!A164) ->  | B170: =IF(ISBLANK(InfoPro!B164),"",InfoPro!B164) ->  | C170: =IF(ISBLANK(InfoPro!E164),"",InfoPro!E164) ->  | D170: =IF(ISBLANK(InfoPro!F164),"",InfoPro!F164) ->  | E170: =IF(ISBLANK(InfoPro!I164),"",YEAR(InfoPro!I164)-$F$3) ->  | F170: =IF(ISBLANK(InfoPro!P164),"",InfoPro!P164) -> 
A171: =IF(ISBLANK(InfoPro!A165),"",InfoPro!A165) ->  | B171: =IF(ISBLANK(InfoPro!B165),"",InfoPro!B165) ->  | C171: =IF(ISBLANK(InfoPro!E165),"",InfoPro!E165) ->  | D171: =IF(ISBLANK(InfoPro!F165),"",InfoPro!F165) ->  | E171: =IF(ISBLANK(InfoPro!I165),"",YEAR(InfoPro!I165)-$F$3) ->  | F171: =IF(ISBLANK(InfoPro!P165),"",InfoPro!P165) -> 
A172: =IF(ISBLANK(InfoPro!A166),"",InfoPro!A166) ->  | B172: =IF(ISBLANK(InfoPro!B166),"",InfoPro!B166) ->  | C172: =IF(ISBLANK(InfoPro!E166),"",InfoPro!E166) ->  | D172: =IF(ISBLANK(InfoPro!F166),"",InfoPro!F166) ->  | E172: =IF(ISBLANK(InfoPro!I166),"",YEAR(InfoPro!I166)-$F$3) ->  | F172: =IF(ISBLANK(InfoPro!P166),"",InfoPro!P166) -> 
A173: =IF(ISBLANK(InfoPro!A167),"",InfoPro!A167) ->  | B173: =IF(ISBLANK(InfoPro!B167),"",InfoPro!B167) ->  | C173: =IF(ISBLANK(InfoPro!E167),"",InfoPro!E167) ->  | D173: =IF(ISBLANK(InfoPro!F167),"",InfoPro!F167) ->  | E173: =IF(ISBLANK(InfoPro!I167),"",YEAR(InfoPro!I167)-$F$3) ->  | F173: =IF(ISBLANK(InfoPro!P167),"",InfoPro!P167) -> 
A174: =IF(ISBLANK(InfoPro!A168),"",InfoPro!A168) ->  | B174: =IF(ISBLANK(InfoPro!B168),"",InfoPro!B168) ->  | C174: =IF(ISBLANK(InfoPro!E168),"",InfoPro!E168) ->  | D174: =IF(ISBLANK(InfoPro!F168),"",InfoPro!F168) ->  | E174: =IF(ISBLANK(InfoPro!I168),"",YEAR(InfoPro!I168)-$F$3) ->  | F174: =IF(ISBLANK(InfoPro!P168),"",InfoPro!P168) -> 
A175: =IF(ISBLANK(InfoPro!A169),"",InfoPro!A169) ->  | B175: =IF(ISBLANK(InfoPro!B169),"",InfoPro!B169) ->  | C175: =IF(ISBLANK(InfoPro!E169),"",InfoPro!E169) ->  | D175: =IF(ISBLANK(InfoPro!F169),"",InfoPro!F169) ->  | E175: =IF(ISBLANK(InfoPro!I169),"",YEAR(InfoPro!I169)-$F$3) ->  | F175: =IF(ISBLANK(InfoPro!P169),"",InfoPro!P169) -> 
A176: =IF(ISBLANK(InfoPro!A170),"",InfoPro!A170) ->  | B176: =IF(ISBLANK(InfoPro!B170),"",InfoPro!B170) ->  | C176: =IF(ISBLANK(InfoPro!E170),"",InfoPro!E170) ->  | D176: =IF(ISBLANK(InfoPro!F170),"",InfoPro!F170) ->  | E176: =IF(ISBLANK(InfoPro!I170),"",YEAR(InfoPro!I170)-$F$3) ->  | F176: =IF(ISBLANK(InfoPro!P170),"",InfoPro!P170) ->  | V176: =IF(U176="","",SUM(G176:U176)) ->  | W176: =IF(C176=0,0,IF(V176="","",V176/(C176*1000))) -> 
A177: =IF(ISBLANK(InfoPro!A171),"",InfoPro!A171) ->  | B177: =IF(ISBLANK(InfoPro!B171),"",InfoPro!B171) ->  | C177: =IF(ISBLANK(InfoPro!E171),"",InfoPro!E171) ->  | D177: =IF(ISBLANK(InfoPro!F171),"",InfoPro!F171) ->  | E177: =IF(ISBLANK(InfoPro!I171),"",YEAR(InfoPro!I171)-$F$3) ->  | F177: =IF(ISBLANK(InfoPro!P171),"",InfoPro!P171) -> 
A178: =IF(ISBLANK(InfoPro!A172),"",InfoPro!A172) ->  | B178: =IF(ISBLANK(InfoPro!B172),"",InfoPro!B172) ->  | C178: =IF(ISBLANK(InfoPro!E172),"",InfoPro!E172) ->  | D178: =IF(ISBLANK(InfoPro!F172),"",InfoPro!F172) ->  | E178: =IF(ISBLANK(InfoPro!I172),"",YEAR(InfoPro!I172)-$F$3) ->  | F178: =IF(ISBLANK(InfoPro!P172),"",InfoPro!P172) -> 
A179: =IF(ISBLANK(InfoPro!A173),"",InfoPro!A173) ->  | B179: =IF(ISBLANK(InfoPro!B173),"",InfoPro!B173) ->  | C179: =IF(ISBLANK(InfoPro!E173),"",InfoPro!E173) ->  | D179: =IF(ISBLANK(InfoPro!F173),"",InfoPro!F173) ->  | E179: =IF(ISBLANK(InfoPro!I173),"",YEAR(InfoPro!I173)-$F$3) ->  | F179: =IF(ISBLANK(InfoPro!P173),"",InfoPro!P173) -> 
A180: =IF(ISBLANK(InfoPro!A174),"",InfoPro!A174) ->  | B180: =IF(ISBLANK(InfoPro!B174),"",InfoPro!B174) ->  | C180: =IF(ISBLANK(InfoPro!E174),"",InfoPro!E174) ->  | D180: =IF(ISBLANK(InfoPro!F174),"",InfoPro!F174) ->  | E180: =IF(ISBLANK(InfoPro!I174),"",YEAR(InfoPro!I174)-$F$3) ->  | F180: =IF(ISBLANK(InfoPro!P174),"",InfoPro!P174) -> 
A181: =IF(ISBLANK(InfoPro!A175),"",InfoPro!A175) ->  | B181: =IF(ISBLANK(InfoPro!B175),"",InfoPro!B175) ->  | C181: =IF(ISBLANK(InfoPro!E175),"",InfoPro!E175) ->  | D181: =IF(ISBLANK(InfoPro!F175),"",InfoPro!F175) ->  | E181: =IF(ISBLANK(InfoPro!I175),"",YEAR(InfoPro!I175)-$F$3) ->  | F181: =IF(ISBLANK(InfoPro!P175),"",InfoPro!P175) -> 
A182: =IF(ISBLANK(InfoPro!A176),"",InfoPro!A176) ->  | B182: =IF(ISBLANK(InfoPro!B176),"",InfoPro!B176) ->  | C182: =IF(ISBLANK(InfoPro!E176),"",InfoPro!E176) ->  | D182: =IF(ISBLANK(InfoPro!F176),"",InfoPro!F176) ->  | E182: =IF(ISBLANK(InfoPro!I176),"",YEAR(InfoPro!I176)-$F$3) ->  | F182: =IF(ISBLANK(InfoPro!P176),"",InfoPro!P176) ->  | G182: =IF($F182="","",(1/(1+$C$3)^(G$6+$E182))*$F182*$C$2) -> 
A183: =IF(ISBLANK(InfoPro!A177),"",InfoPro!A177) ->  | B183: =IF(ISBLANK(InfoPro!B177),"",InfoPro!B177) ->  | C183: =IF(ISBLANK(InfoPro!E177),"",InfoPro!E177) ->  | D183: =IF(ISBLANK(InfoPro!F177),"",InfoPro!F177) ->  | E183: =IF(ISBLANK(InfoPro!I177),"",YEAR(InfoPro!I177)-$F$3) ->  | F183: =IF(ISBLANK(InfoPro!P177),"",InfoPro!P177) -> 
A184: =IF(ISBLANK(InfoPro!A178),"",InfoPro!A178) ->  | B184: =IF(ISBLANK(InfoPro!B178),"",InfoPro!B178) ->  | C184: =IF(ISBLANK(InfoPro!E178),"",InfoPro!E178) ->  | D184: =IF(ISBLANK(InfoPro!F178),"",InfoPro!F178) ->  | E184: =IF(ISBLANK(InfoPro!I178),"",YEAR(InfoPro!I178)-$F$3) ->  | F184: =IF(ISBLANK(InfoPro!P178),"",InfoPro!P178) -> 
A185: =IF(ISBLANK(InfoPro!A179),"",InfoPro!A179) ->  | B185: =IF(ISBLANK(InfoPro!B179),"",InfoPro!B179) ->  | C185: =IF(ISBLANK(InfoPro!E179),"",InfoPro!E179) ->  | D185: =IF(ISBLANK(InfoPro!F179),"",InfoPro!F179) ->  | E185: =IF(ISBLANK(InfoPro!I179),"",YEAR(InfoPro!I179)-$F$3) ->  | F185: =IF(ISBLANK(InfoPro!P179),"",InfoPro!P179) -> 
A186: =IF(ISBLANK(InfoPro!A180),"",InfoPro!A180) ->  | B186: =IF(ISBLANK(InfoPro!B180),"",InfoPro!B180) ->  | C186: =IF(ISBLANK(InfoPro!E180),"",InfoPro!E180) ->  | D186: =IF(ISBLANK(InfoPro!F180),"",InfoPro!F180) ->  | E186: =IF(ISBLANK(InfoPro!I180),"",YEAR(InfoPro!I180)-$F$3) ->  | F186: =IF(ISBLANK(InfoPro!P180),"",InfoPro!P180) -> 
A187: =IF(ISBLANK(InfoPro!A181),"",InfoPro!A181) ->  | B187: =IF(ISBLANK(InfoPro!B181),"",InfoPro!B181) ->  | C187: =IF(ISBLANK(InfoPro!E181),"",InfoPro!E181) ->  | D187: =IF(ISBLANK(InfoPro!F181),"",InfoPro!F181) ->  | E187: =IF(ISBLANK(InfoPro!I181),"",YEAR(InfoPro!I181)-$F$3) ->  | F187: =IF(ISBLANK(InfoPro!P181),"",InfoPro!P181) -> 
A188: =IF(ISBLANK(InfoPro!A182),"",InfoPro!A182) ->  | B188: =IF(ISBLANK(InfoPro!B182),"",InfoPro!B182) ->  | C188: =IF(ISBLANK(InfoPro!E182),"",InfoPro!E182) ->  | D188: =IF(ISBLANK(InfoPro!F182),"",InfoPro!F182) ->  | E188: =IF(ISBLANK(InfoPro!I182),"",YEAR(InfoPro!I182)-$F$3) ->  | F188: =IF(ISBLANK(InfoPro!P182),"",InfoPro!P182) -> 
A189: =IF(ISBLANK(InfoPro!A183),"",InfoPro!A183) ->  | B189: =IF(ISBLANK(InfoPro!B183),"",InfoPro!B183) ->  | C189: =IF(ISBLANK(InfoPro!E183),"",InfoPro!E183) ->  | D189: =IF(ISBLANK(InfoPro!F183),"",InfoPro!F183) ->  | E189: =IF(ISBLANK(InfoPro!I183),"",YEAR(InfoPro!I183)-$F$3) ->  | F189: =IF(ISBLANK(InfoPro!P183),"",InfoPro!P183) -> 
A190: =IF(ISBLANK(InfoPro!A184),"",InfoPro!A184) ->  | B190: =IF(ISBLANK(InfoPro!B184),"",InfoPro!B184) ->  | C190: =IF(ISBLANK(InfoPro!E184),"",InfoPro!E184) ->  | D190: =IF(ISBLANK(InfoPro!F184),"",InfoPro!F184) ->  | E190: =IF(ISBLANK(InfoPro!I184),"",YEAR(InfoPro!I184)-$F$3) ->  | F190: =IF(ISBLANK(InfoPro!P184),"",InfoPro!P184) -> 
A191: =IF(ISBLANK(InfoPro!A185),"",InfoPro!A185) ->  | B191: =IF(ISBLANK(InfoPro!B185),"",InfoPro!B185) ->  | C191: =IF(ISBLANK(InfoPro!E185),"",InfoPro!E185) ->  | D191: =IF(ISBLANK(InfoPro!F185),"",InfoPro!F185) ->  | E191: =IF(ISBLANK(InfoPro!I185),"",YEAR(InfoPro!I185)-$F$3) ->  | F191: =IF(ISBLANK(InfoPro!P185),"",InfoPro!P185) -> 
A192: =IF(ISBLANK(InfoPro!A186),"",InfoPro!A186) ->  | B192: =IF(ISBLANK(InfoPro!B186),"",InfoPro!B186) ->  | C192: =IF(ISBLANK(InfoPro!E186),"",InfoPro!E186) ->  | D192: =IF(ISBLANK(InfoPro!F186),"",InfoPro!F186) ->  | E192: =IF(ISBLANK(InfoPro!I186),"",YEAR(InfoPro!I186)-$F$3) ->  | F192: =IF(ISBLANK(InfoPro!P186),"",InfoPro!P186) -> 
A193: =IF(ISBLANK(InfoPro!A187),"",InfoPro!A187) ->  | B193: =IF(ISBLANK(InfoPro!B187),"",InfoPro!B187) ->  | C193: =IF(ISBLANK(InfoPro!E187),"",InfoPro!E187) ->  | D193: =IF(ISBLANK(InfoPro!F187),"",InfoPro!F187) ->  | E193: =IF(ISBLANK(InfoPro!I187),"",YEAR(InfoPro!I187)-$F$3) ->  | F193: =IF(ISBLANK(InfoPro!P187),"",InfoPro!P187) -> 
A194: =IF(ISBLANK(InfoPro!A188),"",InfoPro!A188) ->  | B194: =IF(ISBLANK(InfoPro!B188),"",InfoPro!B188) ->  | C194: =IF(ISBLANK(InfoPro!E188),"",InfoPro!E188) ->  | D194: =IF(ISBLANK(InfoPro!F188),"",InfoPro!F188) ->  | E194: =IF(ISBLANK(InfoPro!I188),"",YEAR(InfoPro!I188)-$F$3) ->  | F194: =IF(ISBLANK(InfoPro!P188),"",InfoPro!P188) -> 
A195: =IF(ISBLANK(InfoPro!A189),"",InfoPro!A189) ->  | B195: =IF(ISBLANK(InfoPro!B189),"",InfoPro!B189) ->  | C195: =IF(ISBLANK(InfoPro!E189),"",InfoPro!E189) ->  | D195: =IF(ISBLANK(InfoPro!F189),"",InfoPro!F189) ->  | E195: =IF(ISBLANK(InfoPro!I189),"",YEAR(InfoPro!I189)-$F$3) ->  | F195: =IF(ISBLANK(InfoPro!P189),"",InfoPro!P189) -> 

Sheet EC-Mar
B2: Precio promedio de bolsa | C2: ='EC-RP'!C2 -> 192057 | D2: COP/MWh
B3: Tasa de descuento | C3: 0.118 | F3: Año de Referencia | G3: 2023
F4: Mínimo | G4: =MIN(Y8:Y400) -> -4303623.742
I6: 0 | J6: 1 | K6: 2 | L6: 3 | M6: 4 | N6: 5 | O6: 6 | P6: 7 | Q6: 8 | R6: 9 | S6: 10 | T6: 11 | U6: 12 | V6: 13 | W6: 14
A7: Codigo | B7: Nombre | C7: capacidad | D7: Tecnologia | E7: Año de entrada | F7: FP | G7: Precio de oferta promedio | H7: Produccion media/a MWh/a | I7: Flujo Descontado 0 | J7: Flujo Descontado 1 | K7: Flujo Descontado 2 | L7: Flujo Descontado 3 | M7: Flujo Descontado 4 | N7: Flujo Descontado 5 | O7: Flujo Descontado 6 | P7: Flujo Descontado 7 | Q7: Flujo Descontado 8 | R7: Flujo Descontado 9 | S7: Flujo Descontado 10 | T7: Flujo Descontado 11 | U7: Flujo Descontado 12 | V7: Flujo Descontado 13 | W7: Flujo Descontado 14 | X7: VPN | Y7: Beneficio/kW
A8: =IF(ISBLANK(InfoPro!A2),"",InfoPro!A2) -> SC_1323_A1 | B8: =IF(ISBLANK(InfoPro!B2),"",InfoPro!B2) -> GEN ARAUCA | C8: =IF(ISBLANK(InfoPro!E2),"",InfoPro!E2) -> 30 | D8: =IF(ISBLANK(InfoPro!F2),"",InfoPro!F2) -> Termica - Ciclo Abierto | E8: =IF(ISBLANK(InfoPro!I2),"",YEAR(InfoPro!I2)-$G$3) -> 0 | F8: =IF(B8="","",VLOOKUP(D8,Tablas!$B$2:$E$13,2,FALSE)) -> 0.85 | G8: =IF(B8="","",VLOOKUP(D8,Tablas!$B$2:$H$13,7,FALSE)) -> 267152.5 | H8: =IF(C8="","",+C8*F8*24*365) -> 223380 | I8: =IF($H8="","",(1/(1+$C$3)^(I$6+$E8))*$H8*($C$2 - $G8)) -> -16774832790 | J8: =IF($H8="","",(1/(1+$C$3)^(J$6+$E8))*$H8*($C$2 - $G8)) -> -1.500432271e+10 | K8: -1.342068221e+10 | L8: -1.200418802e+10 | M8: -1.073719859e+10 | N8: -9603934337 | O8: -8590281161 | P8: -7683614634 | Q8: -6872642785 | R8: -6147265461 | S8: -5498448534 | T8: -4918111390 | U8: -4399026288 | V8: -3934728343 | W8: -3519435012 | X8: =IF(W8="","",SUM(I8:W8)) -> -1.291087123e+11 | Y8: =IF(C8=0,0,IF(X8="","",X8/(C8*1000))) -> -4303623.742
A9: =IF(ISBLANK(InfoPro!A3),"",InfoPro!A3) -> SC_1323_A2 | B9: =IF(ISBLANK(InfoPro!B3),"",InfoPro!B3) -> GEN ARAUCA | C9: =IF(ISBLANK(InfoPro!E3),"",InfoPro!E3) -> 30 | D9: =IF(ISBLANK(InfoPro!F3),"",InfoPro!F3) -> Termica - Ciclo Abierto | E9: =IF(ISBLANK(InfoPro!I3),"",YEAR(InfoPro!I3)-$G$3) -> 0 | F9: =IF(B9="","",VLOOKUP(D9,Tablas!$B$2:$E$13,2,FALSE)) -> 0.85 | G9: =IF(B9="","",VLOOKUP(D9,Tablas!$B$2:$H$13,7,FALSE)) -> 267152.5 | H9: =IF(C9="","",+C9*F9*24*365) -> 223380 | I9: -16774832790 | J9: -1.500432271e+10 | K9: -1.342068221e+10 | L9: -1.200418802e+10 | M9: -1.073719859e+10 | N9: -9603934337 | O9: -8590281161 | P9: -7683614634 | Q9: -6872642785 | R9: -6147265461 | S9: -5498448534 | T9: -4918111390 | U9: -4399026288 | V9: -3934728343 | W9: -3519435012 | X9: =IF(W9="","",SUM(I9:W9)) -> -1.291087123e+11 | Y9: =IF(C9=0,0,IF(X9="","",X9/(C9*1000))) -> -4303623.742
A10: =IF(ISBLANK(InfoPro!A4),"",InfoPro!A4) -> SC_1323_A3 | B10: =IF(ISBLANK(InfoPro!B4),"",InfoPro!B4) -> GEN ARAUCA | C10: =IF(ISBLANK(InfoPro!E4),"",InfoPro!E4) -> 30 | D10: =IF(ISBLANK(InfoPro!F4),"",InfoPro!F4) -> Termica - Ciclo Abierto | E10: =IF(ISBLANK(InfoPro!I4),"",YEAR(InfoPro!I4)-$G$3) -> 0 | F10: =IF(B10="","",VLOOKUP(D10,Tablas!$B$2:$E$13,2,FALSE)) -> 0.85 | G10: =IF(B10="","",VLOOKUP(D10,Tablas!$B$2:$H$13,7,FALSE)) -> 267152.5 | H10: 223380 | I10: -16774832790 | J10: -1.500432271e+10 | K10: -1.342068221e+10 | L10: -1.200418802e+10 | M10: -1.073719859e+10 | N10: -9603934337 | O10: -8590281161 | P10: -7683614634 | Q10: -6872642785 | R10: -6147265461 | S10: -5498448534 | T10: -4918111390 | U10: -4399026288 | V10: -3934728343 | W10: -3519435012 | X10: -1.291087123e+11 | Y10: -4303623.742
A11: =IF(ISBLANK(InfoPro!A5),"",InfoPro!A5) ->  | B11: =IF(ISBLANK(InfoPro!B5),"",InfoPro!B5) ->  | C11: =IF(ISBLANK(InfoPro!E5),"",InfoPro!E5) ->  | D11: =IF(ISBLANK(InfoPro!F5),"",InfoPro!F5) ->  | E11: =IF(ISBLANK(InfoPro!I5),"",YEAR(InfoPro!I5)-$G$3) ->  | F11: =IF(B11="","",VLOOKUP(D11,Tablas!$B$2:$E$13,2,FALSE)) ->  | G11: =IF(B11="","",VLOOKUP(D11,Tablas!$B$2:$H$13,7,FALSE)) -> 
A12: =IF(ISBLANK(InfoPro!A6),"",InfoPro!A6) ->  | B12: =IF(ISBLANK(InfoPro!B6),"",InfoPro!B6) ->  | C12: =IF(ISBLANK(InfoPro!E6),"",InfoPro!E6) ->  | D12: =IF(ISBLANK(InfoPro!F6),"",InfoPro!F6) ->  | E12: =IF(ISBLANK(InfoPro!I6),"",YEAR(InfoPro!I6)-$G$3) ->  | F12: =IF(B12="","",VLOOKUP(D12,Tablas!$B$2:$E$13,2,FALSE)) ->  | G12: =IF(B12="","",VLOOKUP(D12,Tablas!$B$2:$H$13,7,FALSE)) -> 
A13: =IF(ISBLANK(InfoPro!A7),"",InfoPro!A7) ->  | B13: =IF(ISBLANK(InfoPro!B7),"",InfoPro!B7) ->  | C13: =IF(ISBLANK(InfoPro!E7),"",InfoPro!E7) ->  | D13: =IF(ISBLANK(InfoPro!F7),"",InfoPro!F7) ->  | E13: =IF(ISBLANK(InfoPro!I7),"",YEAR(InfoPro!I7)-$G$3) ->  | F13: =IF(B13="","",VLOOKUP(D13,Tablas!$B$2:$E$13,2,FALSE)) ->  | G13: =IF(B13="","",VLOOKUP(D13,Tablas!$B$2:$H$13,7,FALSE)) -> 
A14: =IF(ISBLANK(InfoPro!A8),"",InfoPro!A8) ->  | B14: =IF(ISBLANK(InfoPro!B8),"",InfoPro!B8) ->  | C14: =IF(ISBLANK(InfoPro!E8),"",InfoPro!E8) ->  | D14: =IF(ISBLANK(InfoPro!F8),"",InfoPro!F8) ->  | E14: =IF(ISBLANK(InfoPro!I8),"",YEAR(InfoPro!I8)-$G$3) ->  | F14: =IF(B14="","",VLOOKUP(D14,Tablas!$B$2:$E$13,2,FALSE)) ->  | G14: =IF(B14="","",VLOOKUP(D14,Tablas!$B$2:$H$13,7,FALSE)) -> 
A15: =IF(ISBLANK(InfoPro!A9),"",InfoPro!A9) ->  | B15: =IF(ISBLANK(InfoPro!B9),"",InfoPro!B9) ->  | C15: =IF(ISBLANK(InfoPro!E9),"",InfoPro!E9) ->  | D15: =IF(ISBLANK(InfoPro!F9),"",InfoPro!F9) ->  | E15: =IF(ISBLANK(InfoPro!I9),"",YEAR(InfoPro!I9)-$G$3) ->  | F15: =IF(B15="","",VLOOKUP(D15,Tablas!$B$2:$E$13,2,FALSE)) ->  | G15: =IF(B15="","",VLOOKUP(D15,Tablas!$B$2:$H$13,7,FALSE)) -> 
A16: =IF(ISBLANK(InfoPro!A10),"",InfoPro!A10) ->  | B16: =IF(ISBLANK(InfoPro!B10),"",InfoPro!B10) ->  | C16: =IF(ISBLANK(InfoPro!E10),"",InfoPro!E10) ->  | D16: =IF(ISBLANK(InfoPro!F10),"",InfoPro!F10) ->  | E16: =IF(ISBLANK(InfoPro!I10),"",YEAR(InfoPro!I10)-$G$3) ->  | F16: =IF(B16="","",VLOOKUP(D16,Tablas!$B$2:$E$13,2,FALSE)) ->  | G16: =IF(B16="","",VLOOKUP(D16,Tablas!$B$2:$H$13,7,FALSE)) -> 
A17: =IF(ISBLANK(InfoPro!A11),"",InfoPro!A11) ->  | B17: =IF(ISBLANK(InfoPro!B11),"",InfoPro!B11) ->  | C17: =IF(ISBLANK(InfoPro!E11),"",InfoPro!E11) ->  | D17: =IF(ISBLANK(InfoPro!F11),"",InfoPro!F11) ->  | E17: =IF(ISBLANK(InfoPro!I11),"",YEAR(InfoPro!I11)-$G$3) ->  | F17: =IF(B17="","",VLOOKUP(D17,Tablas!$B$2:$E$13,2,FALSE)) ->  | G17: =IF(B17="","",VLOOKUP(D17,Tablas!$B$2:$H$13,7,FALSE)) -> 
A18: =IF(ISBLANK(InfoPro!A12),"",InfoPro!A12) ->  | B18: =IF(ISBLANK(InfoPro!B12),"",InfoPro!B12) ->  | C18: =IF(ISBLANK(InfoPro!E12),"",InfoPro!E12) ->  | D18: =IF(ISBLANK(InfoPro!F12),"",InfoPro!F12) ->  | E18: =IF(ISBLANK(InfoPro!I12),"",YEAR(InfoPro!I12)-$G$3) ->  | F18: =IF(B18="","",VLOOKUP(D18,Tablas!$B$2:$E$13,2,FALSE)) ->  | G18: =IF(B18="","",VLOOKUP(D18,Tablas!$B$2:$H$13,7,FALSE)) ->  | I18: =IF($H18="","",(1/(1+$C$3)^(I$6+$E18))*$H18*($C$2 - $G18)) -> 
A19: =IF(ISBLANK(InfoPro!A13),"",InfoPro!A13) ->  | B19: =IF(ISBLANK(InfoPro!B13),"",InfoPro!B13) ->  | C19: =IF(ISBLANK(InfoPro!E13),"",InfoPro!E13) ->  | D19: =IF(ISBLANK(InfoPro!F13),"",InfoPro!F13) ->  | E19: =IF(ISBLANK(InfoPro!I13),"",YEAR(InfoPro!I13)-$G$3) ->  | F19: =IF(B19="","",VLOOKUP(D19,Tablas!$B$2:$E$13,2,FALSE)) ->  | G19: =IF(B19="","",VLOOKUP(D19,Tablas!$B$2:$H$13,7,FALSE)) -> 
A20: =IF(ISBLANK(InfoPro!A14),"",InfoPro!A14) ->  | B20: =IF(ISBLANK(InfoPro!B14),"",InfoPro!B14) ->  | C20: =IF(ISBLANK(InfoPro!E14),"",InfoPro!E14) ->  | D20: =IF(ISBLANK(InfoPro!F14),"",InfoPro!F14) ->  | E20: =IF(ISBLANK(InfoPro!I14),"",YEAR(InfoPro!I14)-$G$3) ->  | F20: =IF(B20="","",VLOOKUP(D20,Tablas!$B$2:$E$13,2,FALSE)) ->  | G20: =IF(B20="","",VLOOKUP(D20,Tablas!$B$2:$H$13,7,FALSE)) -> 
A21: =IF(ISBLANK(InfoPro!A15),"",InfoPro!A15) ->  | B21: =IF(ISBLANK(InfoPro!B15),"",InfoPro!B15) ->  | C21: =IF(ISBLANK(InfoPro!E15),"",InfoPro!E15) ->  | D21: =IF(ISBLANK(InfoPro!F15),"",InfoPro!F15) ->  | E21: =IF(ISBLANK(InfoPro!I15),"",YEAR(InfoPro!I15)-$G$3) ->  | F21: =IF(B21="","",VLOOKUP(D21,Tablas!$B$2:$E$13,2,FALSE)) ->  | G21: =IF(B21="","",VLOOKUP(D21,Tablas!$B$2:$H$13,7,FALSE)) -> 
A22: =IF(ISBLANK(InfoPro!A16),"",InfoPro!A16) ->  | B22: =IF(ISBLANK(InfoPro!B16),"",InfoPro!B16) ->  | C22: =IF(ISBLANK(InfoPro!E16),"",InfoPro!E16) ->  | D22: =IF(ISBLANK(InfoPro!F16),"",InfoPro!F16) ->  | E22: =IF(ISBLANK(InfoPro!I16),"",YEAR(InfoPro!I16)-$G$3) ->  | F22: =IF(B22="","",VLOOKUP(D22,Tablas!$B$2:$E$13,2,FALSE)) ->  | G22: =IF(B22="","",VLOOKUP(D22,Tablas!$B$2:$H$13,7,FALSE)) -> 
A23: =IF(ISBLANK(InfoPro!A17),"",InfoPro!A17) ->  | B23: =IF(ISBLANK(InfoPro!B17),"",InfoPro!B17) ->  | C23: =IF(ISBLANK(InfoPro!E17),"",InfoPro!E17) ->  | D23: =IF(ISBLANK(InfoPro!F17),"",InfoPro!F17) ->  | E23: =IF(ISBLANK(InfoPro!I17),"",YEAR(InfoPro!I17)-$G$3) ->  | F23: =IF(B23="","",VLOOKUP(D23,Tablas!$B$2:$E$13,2,FALSE)) ->  | G23: =IF(B23="","",VLOOKUP(D23,Tablas!$B$2:$H$13,7,FALSE)) -> 
A24: =IF(ISBLANK(InfoPro!A18),"",InfoPro!A18) ->  | B24: =IF(ISBLANK(InfoPro!B18),"",InfoPro!B18) ->  | C24: =IF(ISBLANK(InfoPro!E18),"",InfoPro!E18) ->  | D24: =IF(ISBLANK(InfoPro!F18),"",InfoPro!F18) ->  | E24: =IF(ISBLANK(InfoPro!I18),"",YEAR(InfoPro!I18)-$G$3) ->  | F24: =IF(B24="","",VLOOKUP(D24,Tablas!$B$2:$E$13,2,FALSE)) ->  | G24: =IF(B24="","",VLOOKUP(D24,Tablas!$B$2:$H$13,7,FALSE)) -> 
A25: =IF(ISBLANK(InfoPro!A19),"",InfoPro!A19) ->  | B25: =IF(ISBLANK(InfoPro!B19),"",InfoPro!B19) ->  | C25: =IF(ISBLANK(InfoPro!E19),"",InfoPro!E19) ->  | D25: =IF(ISBLANK(InfoPro!F19),"",InfoPro!F19) ->  | E25: =IF(ISBLANK(InfoPro!I19),"",YEAR(InfoPro!I19)-$G$3) ->  | F25: =IF(B25="","",VLOOKUP(D25,Tablas!$B$2:$E$13,2,FALSE)) ->  | G25: =IF(B25="","",VLOOKUP(D25,Tablas!$B$2:$H$13,7,FALSE)) -> 
A26: =IF(ISBLANK(InfoPro!A20),"",InfoPro!A20) ->  | B26: =IF(ISBLANK(InfoPro!B20),"",InfoPro!B20) ->  | C26: =IF(ISBLANK(InfoPro!E20),"",InfoPro!E20) ->  | D26: =IF(ISBLANK(InfoPro!F20),"",InfoPro!F20) ->  | E26: =IF(ISBLANK(InfoPro!I20),"",YEAR(InfoPro!I20)-$G$3) ->  | F26: =IF(B26="","",VLOOKUP(D26,Tablas!$B$2:$E$13,2,FALSE)) ->  | G26: =IF(B26="","",VLOOKUP(D26,Tablas!$B$2:$H$13,7,FALSE)) -> 
A27: =IF(ISBLANK(InfoPro!A21),"",InfoPro!A21) ->  | B27: =IF(ISBLANK(InfoPro!B21),"",InfoPro!B21) ->  | C27: =IF(ISBLANK(InfoPro!E21),"",InfoPro!E21) ->  | D27: =IF(ISBLANK(InfoPro!F21),"",InfoPro!F21) ->  | E27: =IF(ISBLANK(InfoPro!I21),"",YEAR(InfoPro!I21)-$G$3) ->  | F27: =IF(B27="","",VLOOKUP(D27,Tablas!$B$2:$E$13,2,FALSE)) ->  | G27: =IF(B27="","",VLOOKUP(D27,Tablas!$B$2:$H$13,7,FALSE)) -> 
A28: =IF(ISBLANK(InfoPro!A22),"",InfoPro!A22) ->  | B28: =IF(ISBLANK(InfoPro!B22),"",InfoPro!B22) ->  | C28: =IF(ISBLANK(InfoPro!E22),"",InfoPro!E22) ->  | D28: =IF(ISBLANK(InfoPro!F22),"",InfoPro!F22) ->  | E28: =IF(ISBLANK(InfoPro!I22),"",YEAR(InfoPro!I22)-$G$3) ->  | F28: =IF(B28="","",VLOOKUP(D28,Tablas!$B$2:$E$13,2,FALSE)) ->  | G28: =IF(B28="","",VLOOKUP(D28,Tablas!$B$2:$H$13,7,FALSE)) ->  | I28: =IF($H28="","",(1/(1+$C$3)^(I$6+$E28))*$H28*($C$2 - $G28)) -> 
A29: =IF(ISBLANK(InfoPro!A23),"",InfoPro!A23) ->  | B29: =IF(ISBLANK(InfoPro!B23),"",InfoPro!B23) ->  | C29: =IF(ISBLANK(InfoPro!E23),"",InfoPro!E23) ->  | D29: =IF(ISBLANK(InfoPro!F23),"",InfoPro!F23) ->  | E29: =IF(ISBLANK(InfoPro!I23),"",YEAR(InfoPro!I23)-$G$3) ->  | F29: =IF(B29="","",VLOOKUP(D29,Tablas!$B$2:$E$13,2,FALSE)) ->  | G29: =IF(B29="","",VLOOKUP(D29,Tablas!$B$2:$H$13,7,FALSE)) -> 
A30: =IF(ISBLANK(InfoPro!A24),"",InfoPro!A24) ->  | B30: =IF(ISBLANK(InfoPro!B24),"",InfoPro!B24) ->  | C30: =IF(ISBLANK(InfoPro!E24),"",InfoPro!E24) ->  | D30: =IF(ISBLANK(InfoPro!F24),"",InfoPro!F24) ->  | E30: =IF(ISBLANK(InfoPro!I24),"",YEAR(InfoPro!I24)-$G$3) ->  | F30: =IF(B30="","",VLOOKUP(D30,Tablas!$B$2:$E$13,2,FALSE)) ->  | G30: =IF(B30="","",VLOOKUP(D30,Tablas!$B$2:$H$13,7,FALSE)) -> 
A31: =IF(ISBLANK(InfoPro!A25),"",InfoPro!A25) ->  | B31: =IF(ISBLANK(InfoPro!B25),"",InfoPro!B25) ->  | C31: =IF(ISBLANK(InfoPro!E25),"",InfoPro!E25) ->  | D31: =IF(ISBLANK(InfoPro!F25),"",InfoPro!F25) ->  | E31: =IF(ISBLANK(InfoPro!I25),"",YEAR(InfoPro!I25)-$G$3) ->  | F31: =IF(B31="","",VLOOKUP(D31,Tablas!$B$2:$E$13,2,FALSE)) ->  | G31: =IF(B31="","",VLOOKUP(D31,Tablas!$B$2:$H$13,7,FALSE)) -> 
A32: =IF(ISBLANK(InfoPro!A26),"",InfoPro!A26) ->  | B32: =IF(ISBLANK(InfoPro!B26),"",InfoPro!B26) ->  | C32: =IF(ISBLANK(InfoPro!E26),"",InfoPro!E26) ->  | D32: =IF(ISBLANK(InfoPro!F26),"",InfoPro!F26) ->  | E32: =IF(ISBLANK(InfoPro!I26),"",YEAR(InfoPro!I26)-$G$3) ->  | F32: =IF(B32="","",VLOOKUP(D32,Tablas!$B$2:$E$13,2,FALSE)) ->  | G32: =IF(B32="","",VLOOKUP(D32,Tablas!$B$2:$H$13,7,FALSE)) -> 
